Workbook

Sheet Cover
A2: RIIO-2 Price Control Financial Model (PCFM)
B3: Electricity Transmission
C4: Model Version | G4: =MID(CELL("filename"),SEARCH("[",CELL("filename"))+1,SEARCH("]",CELL("filename"))-SEARCH("[",CELL("filename"))-1) -> 
B7: Model key
E9: Sample | G9: Calculated value | I9: Sample | K9: Information and interface
E10: Sample | G10: Import | I10: Sample | K10: Fixed input value
E11: Sample | G11: Export | I11: Sample | K11: Ofgem annual update input (outturn value)
E12: Sample | G12: Named range | I12: Sample | K12: Ofgem annual update input (forecasted value)
E13: Sample | G13: Formula change in cells to the right | I13: Sample | K13: Other annual update input (outturn value)
I14: Sample | K14: Other annual update input (forecasted value)
I15: Sample | K15: Input linked from annual update
I16: Sample | K16: Notes and instructions
I17: Sample | K17: Check
B19: Contents
E21: INTERFACE > | I21: GENERAL INPUT SHEETS >
E22: Cover | G22: Model key and content directory | I22: Annual Inflation | K22: Derivation of annual inflation rates and price indices
E23: UserInterface | G23: Model operation | I23: Monthly Inflation | K23: Dataset and derivation of monthly inflation rates and price indices
E25: INPUT SELECTION > | I25: COMPANY SPECIFIC INPUT SHEETS >
E26: Input | G26: Inputs for selected licensee | I26: SHET | K26: Inputs for SHE-Transmission PLC TO
I27: SPTL | K27: Inputs for SPTL TO
E28: CALCULATION > | I28: NGET | K28: Inputs for NGET TO
E29: Totex | G29: Totex allowance and actuals
E30: TIM | G30: Totex Incentive Mechanism and capitalisation
E31: Depn | G31: Electricity transmission regulatory depreciation
E32: Return&RAV | G32: RAV and return calculations
E33: TaxPools | G33: Tax pools and capital allowances
E34: Finance&Tax | G34: Net debt, equity issuance, financing costs and tax
E35: NonCore | G35: Calculations for non-core regulatory assets (TIRG)
E36: ReturnAdj | G36: Calculations for the Return Adjustment
E37: Revenue | G37: Summary of calculated revenue
E38: AR | G38: Derivation of allowed revenue
E40: OUTPUT >
E41: LiveResults | G41: Results for selected company
E42: SavedResults | G42: Saved results for all companies
B44: End of sheet

Sheet UserInterface
A1: User Interface
B3: Model operation
C5: PCFM year t
C6: Instruction: Use the following drop-down list to identify year t in the model. Year t is identified here by its end date.
E8: Year t selection:
E10: Year t selected: | G10: =INDEX($G$37:$G$43, m_PCFM_year_t) -> 2024-03-31
C12: Active company
C13: Instruction: Use the following drop-down list to select the active company in the model.
E15: Company selection:
E17: Selected company: | G17: =INDEX(E37:E39, E40) -> NGET
C19: Run model for all licensees
C20: Instruction: Click on the left button to save results for the selected company only. Click the right button to save results for all.
C21: Note: Annual iterations must have been completed for all prior years before running the model to generate MOD.
C22: The macros save results and values required for future years which cannot be recreated once inputs are revised.
C23: Running the macro saves the output from year t's iteration for use in future iterations.
C24: Results for the selected company can be found on the "LiveResults" sheet and also on the "SavedResults" sheet once saved by a macro.
B30: User selection lists
B31: Note: The lists below drive the drop-down lists above.
B32: Using the drop-down lists above returns an integer in the "cell link" positioned below their "source list."
B33: The number returned in the cell link corresponds to the position of the selected item in the source list.
B34: The company selection output is set as a "named range." This gives a stable anchor point for the "RunForAll" macro to change the company.
E36: ="Source for ''"&C12&"'' drop-down list" -> Source for ''Active company'' drop-down list | G36: ="Source for ''"&C5&"'' drop-down list" -> Source for ''PCFM year t'' drop-down list
E37: SHET | G37: 2022-03-31
E38: SPTL | G38: 2023-03-31
E39: NGET | G39: 2024-03-31
E40: 3 | G40: 2025-03-31
E41: Adjacent named range: m_identity | G41: 2026-03-31
G42: 2027-03-31
G43: 2028-03-31
G44: 3
G45: Adjacent named range: m_PCFM_year_t
B47: End of sheet
E51: 0

Sheet Input
A1: Input
B2: =UserInterface!G17 -> NGET | G2: Price shock:
E3: Parameter | F3: Licence condition | G3: Units | H3: Term | I3: Constant | AP3: Annual values | BC3: TIM/ Non-TIM | BD3: RPE Incl. or Excl. | BE3: Baseline/UM | BF3: Fast/slow split or 100% fast money award
E4: PCFM year ending | F4: =Cover!C4 -> Model Version | I4: =UserInterface!$G$10 -> 2024-03-31 | K4: 1991-03-31 | L4: 1992-03-31 | M4: 1993-03-31 | N4: 1994-03-31 | O4: 1995-03-31 | P4: 1996-03-31 | Q4: 1997-03-31 | R4: 1998-03-31 | S4: 1999-03-31 | T4: 2000-03-31 | U4: 2001-03-31 | V4: 2002-03-31 | W4: 2003-03-31 | X4: 2004-03-31 | Y4: 2005-03-31 | Z4: 2006-03-31 | AA4: 2007-03-31 | AB4: 2008-03-31 | AC4: 2009-03-31 | AD4: 2010-03-31 | AE4: 2011-03-31 | AF4: 2012-03-31 | AG4: 2013-03-31 | AH4: 2014-03-31 | AI4: 2015-03-31 | AJ4: 2016-03-31 | AK4: 2017-03-31 | AL4: 2018-03-31 | AM4: 2019-03-31 | AN4: 2020-03-31 | AO4: 2021-03-31 | AP4: 2022-03-31 | AQ4: 2023-03-31 | AR4: 2024-03-31 | AS4: 2025-03-31 | AT4: 2026-03-31
B6: Totex allowance
C8: Non-variant allowances
C9: Note: Disposals net sales proceeds are deducted from non-variant "other capex".
E11: Non-variant allowed load related capex expenditure | G11: £m 18/19 prices | AP11: =(CHOOSE(m_identity,SHET!AP10, SPTL!AP10, NGET!AP10)) -> 84.37821269 | AQ11: =(CHOOSE(m_identity,SHET!AQ10, SPTL!AQ10, NGET!AQ10)) -> 137.2422477 | AR11: =(CHOOSE(m_identity,SHET!AR10, SPTL!AR10, NGET!AR10)) -> 100.6406319 | AS11: =(CHOOSE(m_identity,SHET!AS10, SPTL!AS10, NGET!AS10)) -> 166.4787612 | AT11: =(CHOOSE(m_identity,SHET!AT10, SPTL!AT10, NGET!AT10)) -> 190.8633543
E12: Non-variant allowed asset replacement capex expenditure | G12: £m 18/19 prices | AP12: =(CHOOSE(m_identity,SHET!AP11, SPTL!AP11, NGET!AP11)) -> 197.197542 | AQ12: =(CHOOSE(m_identity,SHET!AQ11, SPTL!AQ11, NGET!AQ11)) -> 207.7985015 | AR12: =(CHOOSE(m_identity,SHET!AR11, SPTL!AR11, NGET!AR11)) -> 177.0078014 | AS12: =(CHOOSE(m_identity,SHET!AS11, SPTL!AS11, NGET!AS11)) -> 133.4804295 | AT12: =(CHOOSE(m_identity,SHET!AT11, SPTL!AT11, NGET!AT11)) -> 119.6706576
E13: Non-variant allowed other capex expenditure (net of disposals) | G13: £m 18/19 prices | AP13: =- AP722 + CHOOSE(m_identity,SHET!AP12, SPTL!AP12, NGET!AP12) -> 36.37054609 | AQ13: =- AQ722 + CHOOSE(m_identity,SHET!AQ12, SPTL!AQ12, NGET!AQ12) -> 34.65430291 | AR13: =- AR722 + CHOOSE(m_identity,SHET!AR12, SPTL!AR12, NGET!AR12) -> 38.73686325 | AS13: =- AS722 + CHOOSE(m_identity,SHET!AS12, SPTL!AS12, NGET!AS12) -> 29.77601768 | AT13: =- AT722 + CHOOSE(m_identity,SHET!AT12, SPTL!AT12, NGET!AT12) -> 35.19201004
E14: Non-variant allowed network operating costs (opex) | G14: £m 18/19 prices | AP14: =(CHOOSE(m_identity,SHET!AP13, SPTL!AP13, NGET!AP13)) -> 113.744868 | AQ14: =(CHOOSE(m_identity,SHET!AQ13, SPTL!AQ13, NGET!AQ13)) -> 111.2609058 | AR14: =(CHOOSE(m_identity,SHET!AR13, SPTL!AR13, NGET!AR13)) -> 109.3026388 | AS14: =(CHOOSE(m_identity,SHET!AS13, SPTL!AS13, NGET!AS13)) -> 96.62296946 | AT14: =(CHOOSE(m_identity,SHET!AT13, SPTL!AT13, NGET!AT13)) -> 99.12730125
E15: Non-variant allowed indirects (opex) | G15: £m 18/19 prices | AP15: =(CHOOSE(m_identity,SHET!AP14, SPTL!AP14, NGET!AP14)) -> 151.3971872 | AQ15: =(CHOOSE(m_identity,SHET!AQ14, SPTL!AQ14, NGET!AQ14)) -> 141.5387771 | AR15: =(CHOOSE(m_identity,SHET!AR14, SPTL!AR14, NGET!AR14)) -> 131.2096877 | AS15: =(CHOOSE(m_identity,SHET!AS14, SPTL!AS14, NGET!AS14)) -> 130.0703433 | AT15: =(CHOOSE(m_identity,SHET!AT14, SPTL!AT14, NGET!AT14)) -> 147.9883087
E16: Non-variant allowed non-operational capex | G16: £m 18/19 prices | AP16: =(CHOOSE(m_identity,SHET!AP15, SPTL!AP15, NGET!AP15)) -> 66.71701594 | AQ16: =(CHOOSE(m_identity,SHET!AQ15, SPTL!AQ15, NGET!AQ15)) -> 58.27520657 | AR16: =(CHOOSE(m_identity,SHET!AR15, SPTL!AR15, NGET!AR15)) -> 48.4637645 | AS16: =(CHOOSE(m_identity,SHET!AS15, SPTL!AS15, NGET!AS15)) -> 31.83677833 | AT16: =(CHOOSE(m_identity,SHET!AT15, SPTL!AT15, NGET!AT15)) -> 32.50144458
E17: Total | G17: £m 18/19 prices | AP17: =SUM(AP11:AP16) -> 649.8053719 | AQ17: =SUM(AQ11:AQ16) -> 690.7699416 | AR17: =SUM(AR11:AR16) -> 605.3613875 | AS17: =SUM(AS11:AS16) -> 588.2652995 | AT17: =SUM(AT11:AT16) -> 625.3430765
C19: Variant allowances (including Real Price Effects)
C20: Note: In the table below RPEs are aggregated in three groups: RPE non-variant allowances, PCDs and UMs. This allows to apply the correct capitalisation rate to each group.
E22: =(CHOOSE(m_identity,SHET!E20, SPTL!E20, NGET!E20)) -> Enhancing Pre-existing Infrastructure Projects | G22: £m 18/19 prices | H22: =CHOOSE(m_identity,SHET!H20, SPTL!H20, NGET!H20) -> EPIt | I22: =CHOOSE(m_identity,SHET!I20, SPTL!I20, NGET!I20) -> PCD | AP22: =CHOOSE(m_identity,SHET!AP20, SPTL!AP20, NGET!AP20) -> 30.99354891 | AQ22: =CHOOSE(m_identity,SHET!AQ20, SPTL!AQ20, NGET!AQ20) -> 30.0963809 | AR22: =CHOOSE(m_identity,SHET!AR20, SPTL!AR20, NGET!AR20) -> 53.9111311 | AS22: =CHOOSE(m_identity,SHET!AS20, SPTL!AS20, NGET!AS20) -> 86.23173198 | AT22: =CHOOSE(m_identity,SHET!AT20, SPTL!AT20, NGET!AT20) -> 50.28042346 | BC22: =CHOOSE(m_identity,SHET!BC20, SPTL!BC20, NGET!BC20) -> TIM | BD22: =CHOOSE(m_identity,SHET!BD20, SPTL!BD20, NGET!BD20) -> RPEs Don’t Apply | BE22: =CHOOSE(m_identity,SHET!BE20, SPTL!BE20, NGET!BE20) -> CapRate 1 (Baseline) | BF22: =CHOOSE(m_identity,SHET!BF20, SPTL!BF20, NGET!BF20) -> Fast/Slow Split
E23: =(CHOOSE(m_identity,SHET!E21, SPTL!E21, NGET!E21)) -> Large Onshore Transmission Investment Re-opener Project 1 - Hinckley Sea Bank | G23: £m 18/19 prices | H23: =CHOOSE(m_identity,SHET!H21, SPTL!H21, NGET!H21) -> LOTIAt | I23: =CHOOSE(m_identity,SHET!I21, SPTL!I21, NGET!I21) -> PCD | AP23: =CHOOSE(m_identity,SHET!AP21, SPTL!AP21, NGET!AP21) -> 134.4 | AQ23: =CHOOSE(m_identity,SHET!AQ21, SPTL!AQ21, NGET!AQ21) -> 123.6 | AR23: =CHOOSE(m_identity,SHET!AR21, SPTL!AR21, NGET!AR21) -> 78 | AS23: =CHOOSE(m_identity,SHET!AS21, SPTL!AS21, NGET!AS21) -> 17.9 | AT23: =CHOOSE(m_identity,SHET!AT21, SPTL!AT21, NGET!AT21) -> 14.7 | BC23: =CHOOSE(m_identity,SHET!BC21, SPTL!BC21, NGET!BC21) -> TIM | BD23: =CHOOSE(m_identity,SHET!BD21, SPTL!BD21, NGET!BD21) -> RPEs Apply | BE23: =CHOOSE(m_identity,SHET!BE21, SPTL!BE21, NGET!BE21) -> CapRate 1 (Baseline) | BF23: =CHOOSE(m_identity,SHET!BF21, SPTL!BF21, NGET!BF21) -> Fast/Slow Split
E24: =(CHOOSE(m_identity,SHET!E22, SPTL!E22, NGET!E22)) -> Wider Works Price Control Deliverable | G24: £m 18/19 prices | H24: =CHOOSE(m_identity,SHET!H22, SPTL!H22, NGET!H22) -> WWt | I24: =CHOOSE(m_identity,SHET!I22, SPTL!I22, NGET!I22) -> PCD | AP24: =CHOOSE(m_identity,SHET!AP22, SPTL!AP22, NGET!AP22) -> 225.6655536 | AQ24: =CHOOSE(m_identity,SHET!AQ22, SPTL!AQ22, NGET!AQ22) -> 103.9530529 | AR24: =CHOOSE(m_identity,SHET!AR22, SPTL!AR22, NGET!AR22) -> 39.12936255 | AS24: =CHOOSE(m_identity,SHET!AS22, SPTL!AS22, NGET!AS22) -> 49.23484475 | AT24: =CHOOSE(m_identity,SHET!AT22, SPTL!AT22, NGET!AT22) -> 40.37506716 | BC24: =CHOOSE(m_identity,SHET!BC22, SPTL!BC22, NGET!BC22) -> TIM | BD24: =CHOOSE(m_identity,SHET!BD22, SPTL!BD22, NGET!BD22) -> RPEs Apply | BE24: =CHOOSE(m_identity,SHET!BE22, SPTL!BE22, NGET!BE22) -> CapRate 1 (Baseline) | BF24: =CHOOSE(m_identity,SHET!BF22, SPTL!BF22, NGET!BF22) -> Fast/Slow Split
E25: =(CHOOSE(m_identity,SHET!E23, SPTL!E23, NGET!E23)) -> Physical Security Price Control Deliverable | G25: £m 18/19 prices | H25: =CHOOSE(m_identity,SHET!H23, SPTL!H23, NGET!H23) -> PSUPt | I25: =CHOOSE(m_identity,SHET!I23, SPTL!I23, NGET!I23) -> PCD | AP25: =CHOOSE(m_identity,SHET!AP23, SPTL!AP23, NGET!AP23) -> 0 | AQ25: =CHOOSE(m_identity,SHET!AQ23, SPTL!AQ23, NGET!AQ23) -> 0 | AR25: =CHOOSE(m_identity,SHET!AR23, SPTL!AR23, NGET!AR23) -> 0.3908313969 | AS25: =CHOOSE(m_identity,SHET!AS23, SPTL!AS23, NGET!AS23) -> 20.47972602 | AT25: =CHOOSE(m_identity,SHET!AT23, SPTL!AT23, NGET!AT23) -> 0.6559422667 | BC25: =CHOOSE(m_identity,SHET!BC23, SPTL!BC23, NGET!BC23) -> TIM | BD25: =CHOOSE(m_identity,SHET!BD23, SPTL!BD23, NGET!BD23) -> RPEs Apply | BE25: =CHOOSE(m_identity,SHET!BE23, SPTL!BE23, NGET!BE23) -> CapRate 1 (Baseline) | BF25: =CHOOSE(m_identity,SHET!BF23, SPTL!BF23, NGET!BF23) -> Fast/Slow Split
E26: =(CHOOSE(m_identity,SHET!E24, SPTL!E24, NGET!E24)) -> Cyber Resilience OT Baseline | G26: £m 18/19 prices | H26: =CHOOSE(m_identity,SHET!H24, SPTL!H24, NGET!H24) -> CROTt | I26: =CHOOSE(m_identity,SHET!I24, SPTL!I24, NGET!I24) -> PCD | AP26: =CHOOSE(m_identity,SHET!AP24, SPTL!AP24, NGET!AP24) -> 35.937 | AQ26: =CHOOSE(m_identity,SHET!AQ24, SPTL!AQ24, NGET!AQ24) -> 38.223 | AR26: =CHOOSE(m_identity,SHET!AR24, SPTL!AR24, NGET!AR24) -> 18.946 | AS26: =CHOOSE(m_identity,SHET!AS24, SPTL!AS24, NGET!AS24) -> 0 | AT26: =CHOOSE(m_identity,SHET!AT24, SPTL!AT24, NGET!AT24) -> 0 | BC26: =CHOOSE(m_identity,SHET!BC24, SPTL!BC24, NGET!BC24) -> Non-Tim | BD26: =CHOOSE(m_identity,SHET!BD24, SPTL!BD24, NGET!BD24) -> RPEs Don’t Apply | BE26: =CHOOSE(m_identity,SHET!BE24, SPTL!BE24, NGET!BE24) -> CapRate 1 (Baseline) | BF26: =CHOOSE(m_identity,SHET!BF24, SPTL!BF24, NGET!BF24) -> Fast/Slow Split
E27: =(CHOOSE(m_identity,SHET!E25, SPTL!E25, NGET!E25)) -> Cyber Resilience IT Baseline | G27: £m 18/19 prices | H27: =CHOOSE(m_identity,SHET!H25, SPTL!H25, NGET!H25) -> CRITt | I27: =CHOOSE(m_identity,SHET!I25, SPTL!I25, NGET!I25) -> PCD | AP27: =CHOOSE(m_identity,SHET!AP25, SPTL!AP25, NGET!AP25) -> 11.71255445 | AQ27: =CHOOSE(m_identity,SHET!AQ25, SPTL!AQ25, NGET!AQ25) -> 10.58840738 | AR27: =CHOOSE(m_identity,SHET!AR25, SPTL!AR25, NGET!AR25) -> 9.370257361 | AS27: =CHOOSE(m_identity,SHET!AS25, SPTL!AS25, NGET!AS25) -> 0 | AT27: =CHOOSE(m_identity,SHET!AT25, SPTL!AT25, NGET!AT25) -> 0 | BC27: =CHOOSE(m_identity,SHET!BC25, SPTL!BC25, NGET!BC25) -> TIM | BD27: =CHOOSE(m_identity,SHET!BD25, SPTL!BD25, NGET!BD25) -> RPEs Apply | BE27: =CHOOSE(m_identity,SHET!BE25, SPTL!BE25, NGET!BE25) -> CapRate 1 (Baseline) | BF27: =CHOOSE(m_identity,SHET!BF25, SPTL!BF25, NGET!BF25) -> Fast/Slow Split
E28: =(CHOOSE(m_identity,SHET!E26, SPTL!E26, NGET!E26)) -> Baseline Network Risk Output | G28: £m 18/19 prices | H28: =CHOOSE(m_identity,SHET!H26, SPTL!H26, NGET!H26) -> NARMt | I28: =CHOOSE(m_identity,SHET!I26, SPTL!I26, NGET!I26) -> PCD | AP28: =CHOOSE(m_identity,SHET!AP26, SPTL!AP26, NGET!AP26) -> 111.6340634 | AQ28: =CHOOSE(m_identity,SHET!AQ26, SPTL!AQ26, NGET!AQ26) -> 72.66669402 | AR28: =CHOOSE(m_identity,SHET!AR26, SPTL!AR26, NGET!AR26) -> 71.38473709 | AS28: =CHOOSE(m_identity,SHET!AS26, SPTL!AS26, NGET!AS26) -> 31.49091912 | AT28: =CHOOSE(m_identity,SHET!AT26, SPTL!AT26, NGET!AT26) -> 49.0507656 | BC28: =CHOOSE(m_identity,SHET!BC26, SPTL!BC26, NGET!BC26) -> TIM | BD28: =CHOOSE(m_identity,SHET!BD26, SPTL!BD26, NGET!BD26) -> RPEs Apply | BE28: =CHOOSE(m_identity,SHET!BE26, SPTL!BE26, NGET!BE26) -> CapRate 1 (Baseline) | BF28: =CHOOSE(m_identity,SHET!BF26, SPTL!BF26, NGET!BF26) -> Fast/Slow Split
E29: =(CHOOSE(m_identity,SHET!E27, SPTL!E27, NGET!E27)) -> Generation Related Infrastructure Price Control Deliverable (NGET only) | G29: £m 18/19 prices | H29: =CHOOSE(m_identity,SHET!H27, SPTL!H27, NGET!H27) -> GRIt | I29: =CHOOSE(m_identity,SHET!I27, SPTL!I27, NGET!I27) -> PCD | AP29: =CHOOSE(m_identity,SHET!AP27, SPTL!AP27, NGET!AP27) -> 14.76298986 | AQ29: =CHOOSE(m_identity,SHET!AQ27, SPTL!AQ27, NGET!AQ27) -> 5.340718691 | AR29: =CHOOSE(m_identity,SHET!AR27, SPTL!AR27, NGET!AR27) -> 2.908354858 | AS29: =CHOOSE(m_identity,SHET!AS27, SPTL!AS27, NGET!AS27) -> 1.40917641 | AT29: =CHOOSE(m_identity,SHET!AT27, SPTL!AT27, NGET!AT27) -> 0.7919267877 | BC29: =CHOOSE(m_identity,SHET!BC27, SPTL!BC27, NGET!BC27) -> TIM | BD29: =CHOOSE(m_identity,SHET!BD27, SPTL!BD27, NGET!BD27) -> RPEs Apply | BE29: =CHOOSE(m_identity,SHET!BE27, SPTL!BE27, NGET!BE27) -> CapRate 1 (Baseline) | BF29: =CHOOSE(m_identity,SHET!BF27, SPTL!BF27, NGET!BF27) -> Fast/Slow Split
E30: =(CHOOSE(m_identity,SHET!E28, SPTL!E28, NGET!E28)) -> Resilience and Operability Price Control Deliverable (SHET and SPTL only) | G30: £m 18/19 prices | H30: =CHOOSE(m_identity,SHET!H28, SPTL!H28, NGET!H28) -> ROt | I30: =CHOOSE(m_identity,SHET!I28, SPTL!I28, NGET!I28) -> PCD | AP30: =CHOOSE(m_identity,SHET!AP28, SPTL!AP28, NGET!AP28) -> 0 | AQ30: =CHOOSE(m_identity,SHET!AQ28, SPTL!AQ28, NGET!AQ28) -> 0 | AR30: =CHOOSE(m_identity,SHET!AR28, SPTL!AR28, NGET!AR28) -> 0 | AS30: =CHOOSE(m_identity,SHET!AS28, SPTL!AS28, NGET!AS28) -> 0 | AT30: =CHOOSE(m_identity,SHET!AT28, SPTL!AT28, NGET!AT28) -> 0 | BC30: =CHOOSE(m_identity,SHET!BC28, SPTL!BC28, NGET!BC28) -> TIM | BD30: =CHOOSE(m_identity,SHET!BD28, SPTL!BD28, NGET!BD28) -> RPEs Apply | BE30: =CHOOSE(m_identity,SHET!BE28, SPTL!BE28, NGET!BE28) -> CapRate 1 (Baseline) | BF30: =CHOOSE(m_identity,SHET!BF28, SPTL!BF28, NGET!BF28) -> Fast/Slow Split
E31: =(CHOOSE(m_identity,SHET!E29, SPTL!E29, NGET!E29)) -> Operational transport carbon reduction Price Control Deliverable (NGET only) | G31: £m 18/19 prices | H31: =CHOOSE(m_identity,SHET!H29, SPTL!H29, NGET!H29) -> OTCt | I31: =CHOOSE(m_identity,SHET!I29, SPTL!I29, NGET!I29) -> PCD | AP31: =CHOOSE(m_identity,SHET!AP29, SPTL!AP29, NGET!AP29) -> 3.03 | AQ31: =CHOOSE(m_identity,SHET!AQ29, SPTL!AQ29, NGET!AQ29) -> 4.41 | AR31: =CHOOSE(m_identity,SHET!AR29, SPTL!AR29, NGET!AR29) -> 2.12 | AS31: =CHOOSE(m_identity,SHET!AS29, SPTL!AS29, NGET!AS29) -> 6.28 | AT31: =CHOOSE(m_identity,SHET!AT29, SPTL!AT29, NGET!AT29) -> 8.94 | BC31: =CHOOSE(m_identity,SHET!BC29, SPTL!BC29, NGET!BC29) -> TIM | BD31: =CHOOSE(m_identity,SHET!BD29, SPTL!BD29, NGET!BD29) -> RPEs Apply | BE31: =CHOOSE(m_identity,SHET!BE29, SPTL!BE29, NGET!BE29) -> CapRate 1 (Baseline) | BF31: =CHOOSE(m_identity,SHET!BF29, SPTL!BF29, NGET!BF29) -> Fast/Slow Split
E32: =(CHOOSE(m_identity,SHET!E30, SPTL!E30, NGET!E30)) -> Shared Schemes Price Control Deliverable (SHET and SPTL only) | G32: £m 18/19 prices | H32: =CHOOSE(m_identity,SHET!H30, SPTL!H30, NGET!H30) -> SSt | I32: =CHOOSE(m_identity,SHET!I30, SPTL!I30, NGET!I30) -> PCD | AP32: =CHOOSE(m_identity,SHET!AP30, SPTL!AP30, NGET!AP30) -> 0 | AQ32: =CHOOSE(m_identity,SHET!AQ30, SPTL!AQ30, NGET!AQ30) -> 0 | AR32: =CHOOSE(m_identity,SHET!AR30, SPTL!AR30, NGET!AR30) -> 0 | AS32: =CHOOSE(m_identity,SHET!AS30, SPTL!AS30, NGET!AS30) -> 0 | AT32: =CHOOSE(m_identity,SHET!AT30, SPTL!AT30, NGET!AT30) -> 0 | BC32: =CHOOSE(m_identity,SHET!BC30, SPTL!BC30, NGET!BC30) -> TIM | BD32: =CHOOSE(m_identity,SHET!BD30, SPTL!BD30, NGET!BD30) -> RPEs Apply | BE32: =CHOOSE(m_identity,SHET!BE30, SPTL!BE30, NGET!BE30) -> CapRate 1 (Baseline) | BF32: =CHOOSE(m_identity,SHET!BF30, SPTL!BF30, NGET!BF30) -> Fast/Slow Split
E33: =(CHOOSE(m_identity,SHET!E31, SPTL!E31, NGET!E31)) -> Enhanced Environmental Requirements use it or lose it allowance (SPTL only) | G33: £m 18/19 prices | H33: =CHOOSE(m_identity,SHET!H31, SPTL!H31, NGET!H31) -> EERt | I33: =CHOOSE(m_identity,SHET!I31, SPTL!I31, NGET!I31) -> PCD | AP33: =CHOOSE(m_identity,SHET!AP31, SPTL!AP31, NGET!AP31) -> 0 | AQ33: =CHOOSE(m_identity,SHET!AQ31, SPTL!AQ31, NGET!AQ31) -> 0 | AR33: =CHOOSE(m_identity,SHET!AR31, SPTL!AR31, NGET!AR31) -> 0 | AS33: =CHOOSE(m_identity,SHET!AS31, SPTL!AS31, NGET!AS31) -> 0 | AT33: =CHOOSE(m_identity,SHET!AT31, SPTL!AT31, NGET!AT31) -> 0 | BC33: =CHOOSE(m_identity,SHET!BC31, SPTL!BC31, NGET!BC31) -> Non-Tim | BD33: =CHOOSE(m_identity,SHET!BD31, SPTL!BD31, NGET!BD31) -> RPEs Don’t Apply | BE33: =CHOOSE(m_identity,SHET!BE31, SPTL!BE31, NGET!BE31) -> CapRate 1 (Baseline) | BF33: =CHOOSE(m_identity,SHET!BF31, SPTL!BF31, NGET!BF31) -> Fast/Slow Split
E34: =(CHOOSE(m_identity,SHET!E32, SPTL!E32, NGET!E32)) -> SF6 asset intervention Price Control Deliverable (NGET only) | G34: £m 18/19 prices | H34: =CHOOSE(m_identity,SHET!H32, SPTL!H32, NGET!H32) -> SF6t | I34: =CHOOSE(m_identity,SHET!I32, SPTL!I32, NGET!I32) -> PCD | AP34: =CHOOSE(m_identity,SHET!AP32, SPTL!AP32, NGET!AP32) -> 23.33086431 | AQ34: =CHOOSE(m_identity,SHET!AQ32, SPTL!AQ32, NGET!AQ32) -> 21.63722617 | AR34: =CHOOSE(m_identity,SHET!AR32, SPTL!AR32, NGET!AR32) -> 32.12505986 | AS34: =CHOOSE(m_identity,SHET!AS32, SPTL!AS32, NGET!AS32) -> 6.959668445 | AT34: =CHOOSE(m_identity,SHET!AT32, SPTL!AT32, NGET!AT32) -> 12.46707861 | BC34: =CHOOSE(m_identity,SHET!BC32, SPTL!BC32, NGET!BC32) -> TIM | BD34: =CHOOSE(m_identity,SHET!BD32, SPTL!BD32, NGET!BD32) -> RPEs Apply | BE34: =CHOOSE(m_identity,SHET!BE32, SPTL!BE32, NGET!BE32) -> CapRate 1 (Baseline) | BF34: =CHOOSE(m_identity,SHET!BF32, SPTL!BF32, NGET!BF32) -> Fast/Slow Split
E35: =(CHOOSE(m_identity,SHET!E33, SPTL!E33, NGET!E33)) -> Substation Auxiliary Systems use it or lose it allowance (NGET only) | G35: £m 18/19 prices | H35: =CHOOSE(m_identity,SHET!H33, SPTL!H33, NGET!H33) -> SASt | I35: =CHOOSE(m_identity,SHET!I33, SPTL!I33, NGET!I33) -> PCD | AP35: =CHOOSE(m_identity,SHET!AP33, SPTL!AP33, NGET!AP33) -> 6.999259294 | AQ35: =CHOOSE(m_identity,SHET!AQ33, SPTL!AQ33, NGET!AQ33) -> 6.918569848 | AR35: =CHOOSE(m_identity,SHET!AR33, SPTL!AR33, NGET!AR33) -> 6.838677127 | AS35: =CHOOSE(m_identity,SHET!AS33, SPTL!AS33, NGET!AS33) -> 6.759577977 | AT35: =CHOOSE(m_identity,SHET!AT33, SPTL!AT33, NGET!AT33) -> 6.68063454 | BC35: =CHOOSE(m_identity,SHET!BC33, SPTL!BC33, NGET!BC33) -> Non-Tim | BD35: =CHOOSE(m_identity,SHET!BD33, SPTL!BD33, NGET!BD33) -> RPEs Don’t Apply | BE35: =CHOOSE(m_identity,SHET!BE33, SPTL!BE33, NGET!BE33) -> CapRate 1 (Baseline) | BF35: =CHOOSE(m_identity,SHET!BF33, SPTL!BF33, NGET!BF33) -> Fast/Slow Split
E36: =(CHOOSE(m_identity,SHET!E34, SPTL!E34, NGET!E34)) -> Instrument Transformer Price Control Deliverable (NGET only) | G36: £m 18/19 prices | H36: =CHOOSE(m_identity,SHET!H34, SPTL!H34, NGET!H34) -> InTt | I36: =CHOOSE(m_identity,SHET!I34, SPTL!I34, NGET!I34) -> PCD | AP36: =CHOOSE(m_identity,SHET!AP34, SPTL!AP34, NGET!AP34) -> 8.934189662 | AQ36: =CHOOSE(m_identity,SHET!AQ34, SPTL!AQ34, NGET!AQ34) -> 8.831193791 | AR36: =CHOOSE(m_identity,SHET!AR34, SPTL!AR34, NGET!AR34) -> 8.729214896 | AS36: =CHOOSE(m_identity,SHET!AS34, SPTL!AS34, NGET!AS34) -> 8.628248955 | AT36: =CHOOSE(m_identity,SHET!AT34, SPTL!AT34, NGET!AT34) -> 8.527481772 | BC36: =CHOOSE(m_identity,SHET!BC34, SPTL!BC34, NGET!BC34) -> TIM | BD36: =CHOOSE(m_identity,SHET!BD34, SPTL!BD34, NGET!BD34) -> RPEs Apply | BE36: =CHOOSE(m_identity,SHET!BE34, SPTL!BE34, NGET!BE34) -> CapRate 1 (Baseline) | BF36: =CHOOSE(m_identity,SHET!BF34, SPTL!BF34, NGET!BF34) -> Fast/Slow Split
E37: =(CHOOSE(m_identity,SHET!E35, SPTL!E35, NGET!E35)) -> Bay Assets Price Control Deliverable (NGET only) | G37: £m 18/19 prices | H37: =CHOOSE(m_identity,SHET!H35, SPTL!H35, NGET!H35) -> BAt | I37: =CHOOSE(m_identity,SHET!I35, SPTL!I35, NGET!I35) -> PCD | AP37: =CHOOSE(m_identity,SHET!AP35, SPTL!AP35, NGET!AP35) -> 13.52109163 | AQ37: =CHOOSE(m_identity,SHET!AQ35, SPTL!AQ35, NGET!AQ35) -> 13.36521666 | AR37: =CHOOSE(m_identity,SHET!AR35, SPTL!AR35, NGET!AR35) -> 13.21088078 | AS37: =CHOOSE(m_identity,SHET!AS35, SPTL!AS35, NGET!AS35) -> 13.05807792 | AT37: =CHOOSE(m_identity,SHET!AT35, SPTL!AT35, NGET!AT35) -> 12.90557586 | BC37: =CHOOSE(m_identity,SHET!BC35, SPTL!BC35, NGET!BC35) -> TIM | BD37: =CHOOSE(m_identity,SHET!BD35, SPTL!BD35, NGET!BD35) -> RPEs Apply | BE37: =CHOOSE(m_identity,SHET!BE35, SPTL!BE35, NGET!BE35) -> CapRate 1 (Baseline) | BF37: =CHOOSE(m_identity,SHET!BF35, SPTL!BF35, NGET!BF35) -> Fast/Slow Split
E38: =(CHOOSE(m_identity,SHET!E36, SPTL!E36, NGET!E36)) -> Protection and Control Price Control Deliverable (NGET only) | G38: £m 18/19 prices | H38: =CHOOSE(m_identity,SHET!H36, SPTL!H36, NGET!H36) -> PCt | I38: =CHOOSE(m_identity,SHET!I36, SPTL!I36, NGET!I36) -> PCD | AP38: =CHOOSE(m_identity,SHET!AP36, SPTL!AP36, NGET!AP36) -> 71.59338984 | AQ38: =CHOOSE(m_identity,SHET!AQ36, SPTL!AQ36, NGET!AQ36) -> 68.58355774 | AR38: =CHOOSE(m_identity,SHET!AR36, SPTL!AR36, NGET!AR36) -> 71.56721563 | AS38: =CHOOSE(m_identity,SHET!AS36, SPTL!AS36, NGET!AS36) -> 90.52573204 | AT38: =CHOOSE(m_identity,SHET!AT36, SPTL!AT36, NGET!AT36) -> 66.92331396 | BC38: =CHOOSE(m_identity,SHET!BC36, SPTL!BC36, NGET!BC36) -> TIM | BD38: =CHOOSE(m_identity,SHET!BD36, SPTL!BD36, NGET!BD36) -> RPEs Apply | BE38: =CHOOSE(m_identity,SHET!BE36, SPTL!BE36, NGET!BE36) -> CapRate 1 (Baseline) | BF38: =CHOOSE(m_identity,SHET!BF36, SPTL!BF36, NGET!BF36) -> Fast/Slow Split
E39: =(CHOOSE(m_identity,SHET!E37, SPTL!E37, NGET!E37)) -> Overhead Line Conductor Price Control Deliverable (NGET only) | G39: £m 18/19 prices | H39: =CHOOSE(m_identity,SHET!H37, SPTL!H37, NGET!H37) -> OCt | I39: =CHOOSE(m_identity,SHET!I37, SPTL!I37, NGET!I37) -> PCD | AP39: =CHOOSE(m_identity,SHET!AP37, SPTL!AP37, NGET!AP37) -> 65.73710406 | AQ39: =CHOOSE(m_identity,SHET!AQ37, SPTL!AQ37, NGET!AQ37) -> 112.4320165 | AR39: =CHOOSE(m_identity,SHET!AR37, SPTL!AR37, NGET!AR37) -> 80.98235725 | AS39: =CHOOSE(m_identity,SHET!AS37, SPTL!AS37, NGET!AS37) -> 53.30327308 | AT39: =CHOOSE(m_identity,SHET!AT37, SPTL!AT37, NGET!AT37) -> 34.07853528 | BC39: =CHOOSE(m_identity,SHET!BC37, SPTL!BC37, NGET!BC37) -> TIM | BD39: =CHOOSE(m_identity,SHET!BD37, SPTL!BD37, NGET!BD37) -> RPEs Apply | BE39: =CHOOSE(m_identity,SHET!BE37, SPTL!BE37, NGET!BE37) -> CapRate 1 (Baseline) | BF39: =CHOOSE(m_identity,SHET!BF37, SPTL!BF37, NGET!BF37) -> Fast/Slow Split
E40: =(CHOOSE(m_identity,SHET!E38, SPTL!E38, NGET!E38)) -> Pre-Construction Funding Price Control Deliverable | G40: £m 18/19 prices | H40: =CHOOSE(m_identity,SHET!H38, SPTL!H38, NGET!H38) -> PCFt | I40: =CHOOSE(m_identity,SHET!I38, SPTL!I38, NGET!I38) -> PCD | AP40: =CHOOSE(m_identity,SHET!AP38, SPTL!AP38, NGET!AP38) -> 121.5122373 | AQ40: =CHOOSE(m_identity,SHET!AQ38, SPTL!AQ38, NGET!AQ38) -> 123.9911006 | AR40: =CHOOSE(m_identity,SHET!AR38, SPTL!AR38, NGET!AR38) -> 104.2649937 | AS40: =CHOOSE(m_identity,SHET!AS38, SPTL!AS38, NGET!AS38) -> 84.4274065 | AT40: =CHOOSE(m_identity,SHET!AT38, SPTL!AT38, NGET!AT38) -> 14.55516075 | BC40: =CHOOSE(m_identity,SHET!BC38, SPTL!BC38, NGET!BC38) -> TIM | BD40: =CHOOSE(m_identity,SHET!BD38, SPTL!BD38, NGET!BD38) -> RPEs Apply | BE40: =CHOOSE(m_identity,SHET!BE38, SPTL!BE38, NGET!BE38) -> CapRate 1 (Baseline) | BF40: =CHOOSE(m_identity,SHET!BF38, SPTL!BF38, NGET!BF38) -> Fast/Slow Split
E41: =(CHOOSE(m_identity,SHET!E39, SPTL!E39, NGET!E39)) -> Net Zero And Re-opener Development Fund use it or lose it allowance | G41: £m 18/19 prices | H41: =CHOOSE(m_identity,SHET!H39, SPTL!H39, NGET!H39) -> RDFt | I41: =CHOOSE(m_identity,SHET!I39, SPTL!I39, NGET!I39) -> PCD | AP41: =CHOOSE(m_identity,SHET!AP39, SPTL!AP39, NGET!AP39) -> 3.2 | AQ41: =CHOOSE(m_identity,SHET!AQ39, SPTL!AQ39, NGET!AQ39) -> 3.2 | AR41: =CHOOSE(m_identity,SHET!AR39, SPTL!AR39, NGET!AR39) -> 3.2 | AS41: =CHOOSE(m_identity,SHET!AS39, SPTL!AS39, NGET!AS39) -> 3.2 | AT41: =CHOOSE(m_identity,SHET!AT39, SPTL!AT39, NGET!AT39) -> 3.2 | BC41: =CHOOSE(m_identity,SHET!BC39, SPTL!BC39, NGET!BC39) -> Non-Tim | BD41: =CHOOSE(m_identity,SHET!BD39, SPTL!BD39, NGET!BD39) -> RPEs Don’t Apply | BE41: =CHOOSE(m_identity,SHET!BE39, SPTL!BE39, NGET!BE39) -> CapRate 1 (Baseline) | BF41: =CHOOSE(m_identity,SHET!BF39, SPTL!BF39, NGET!BF39) -> Fast/Slow Split
E42: =(CHOOSE(m_identity,SHET!E40, SPTL!E40, NGET!E40)) -> Spare PCD 1 | G42: £m 18/19 prices | H42: =CHOOSE(m_identity,SHET!H40, SPTL!H40, NGET!H40) -> 0 | I42: =CHOOSE(m_identity,SHET!I40, SPTL!I40, NGET!I40) -> PCD | AP42: =CHOOSE(m_identity,SHET!AP40, SPTL!AP40, NGET!AP40) -> 0 | AQ42: =CHOOSE(m_identity,SHET!AQ40, SPTL!AQ40, NGET!AQ40) -> 0 | AR42: =CHOOSE(m_identity,SHET!AR40, SPTL!AR40, NGET!AR40) -> 0 | AS42: =CHOOSE(m_identity,SHET!AS40, SPTL!AS40, NGET!AS40) -> 0 | AT42: =CHOOSE(m_identity,SHET!AT40, SPTL!AT40, NGET!AT40) -> 0 | BC42: =CHOOSE(m_identity,SHET!BC40, SPTL!BC40, NGET!BC40) -> 0 | BD42: =CHOOSE(m_identity,SHET!BD40, SPTL!BD40, NGET!BD40) -> 0 | BE42: =CHOOSE(m_identity,SHET!BE40, SPTL!BE40, NGET!BE40) -> 0 | BF42: =CHOOSE(m_identity,SHET!BF40, SPTL!BF40, NGET!BF40) -> 0
E43: =(CHOOSE(m_identity,SHET!E41, SPTL!E41, NGET!E41)) -> Spare PCD 2 | G43: £m 18/19 prices | H43: =CHOOSE(m_identity,SHET!H41, SPTL!H41, NGET!H41) -> 0 | I43: =CHOOSE(m_identity,SHET!I41, SPTL!I41, NGET!I41) -> PCD | AP43: =CHOOSE(m_identity,SHET!AP41, SPTL!AP41, NGET!AP41) -> 0 | AQ43: =CHOOSE(m_identity,SHET!AQ41, SPTL!AQ41, NGET!AQ41) -> 0 | AR43: =CHOOSE(m_identity,SHET!AR41, SPTL!AR41, NGET!AR41) -> 0 | AS43: =CHOOSE(m_identity,SHET!AS41, SPTL!AS41, NGET!AS41) -> 0 | AT43: =CHOOSE(m_identity,SHET!AT41, SPTL!AT41, NGET!AT41) -> 0 | BC43: =CHOOSE(m_identity,SHET!BC41, SPTL!BC41, NGET!BC41) -> 0 | BD43: =CHOOSE(m_identity,SHET!BD41, SPTL!BD41, NGET!BD41) -> 0 | BE43: =CHOOSE(m_identity,SHET!BE41, SPTL!BE41, NGET!BE41) -> 0 | BF43: =CHOOSE(m_identity,SHET!BF41, SPTL!BF41, NGET!BF41) -> 0
E44: =(CHOOSE(m_identity,SHET!E42, SPTL!E42, NGET!E42)) -> Spare PCD 3 | G44: £m 18/19 prices | H44: =CHOOSE(m_identity,SHET!H42, SPTL!H42, NGET!H42) -> 0 | I44: =CHOOSE(m_identity,SHET!I42, SPTL!I42, NGET!I42) -> PCD | AP44: =CHOOSE(m_identity,SHET!AP42, SPTL!AP42, NGET!AP42) -> 0 | AQ44: =CHOOSE(m_identity,SHET!AQ42, SPTL!AQ42, NGET!AQ42) -> 0 | AR44: =CHOOSE(m_identity,SHET!AR42, SPTL!AR42, NGET!AR42) -> 0 | AS44: =CHOOSE(m_identity,SHET!AS42, SPTL!AS42, NGET!AS42) -> 0 | AT44: =CHOOSE(m_identity,SHET!AT42, SPTL!AT42, NGET!AT42) -> 0 | BC44: =CHOOSE(m_identity,SHET!BC42, SPTL!BC42, NGET!BC42) -> 0 | BD44: =CHOOSE(m_identity,SHET!BD42, SPTL!BD42, NGET!BD42) -> 0 | BE44: =CHOOSE(m_identity,SHET!BE42, SPTL!BE42, NGET!BE42) -> 0 | BF44: =CHOOSE(m_identity,SHET!BF42, SPTL!BF42, NGET!BF42) -> 0
E45: =(CHOOSE(m_identity,SHET!E43, SPTL!E43, NGET!E43)) -> Visual Impact Mitigation Re-opener | G45: £m 18/19 prices | H45: =CHOOSE(m_identity,SHET!H43, SPTL!H43, NGET!H43) -> VIMREt | I45: =CHOOSE(m_identity,SHET!I43, SPTL!I43, NGET!I43) -> UM | AP45: =CHOOSE(m_identity,SHET!AP43, SPTL!AP43, NGET!AP43) -> 0.83 | AQ45: =CHOOSE(m_identity,SHET!AQ43, SPTL!AQ43, NGET!AQ43) -> 12.5 | AR45: =CHOOSE(m_identity,SHET!AR43, SPTL!AR43, NGET!AR43) -> 31.6 | AS45: =CHOOSE(m_identity,SHET!AS43, SPTL!AS43, NGET!AS43) -> 10.3 | AT45: =CHOOSE(m_identity,SHET!AT43, SPTL!AT43, NGET!AT43) -> 0.5 | BC45: =CHOOSE(m_identity,SHET!BC43, SPTL!BC43, NGET!BC43) -> TIM | BD45: =CHOOSE(m_identity,SHET!BD43, SPTL!BD43, NGET!BD43) -> RPEs Don’t Apply | BE45: =CHOOSE(m_identity,SHET!BE43, SPTL!BE43, NGET!BE43) -> CapRate 2 (UM) | BF45: =CHOOSE(m_identity,SHET!BF43, SPTL!BF43, NGET!BF43) -> Fast/Slow Split
E46: =(CHOOSE(m_identity,SHET!E44, SPTL!E44, NGET!E44)) -> Large Onshore Transmission Investment Re-opener Project 2 - Shetland | G46: £m 18/19 prices | H46: =CHOOSE(m_identity,SHET!H44, SPTL!H44, NGET!H44) -> LOTIREt | I46: =CHOOSE(m_identity,SHET!I44, SPTL!I44, NGET!I44) -> UM | AP46: =CHOOSE(m_identity,SHET!AP44, SPTL!AP44, NGET!AP44) -> 6.867 | AQ46: =CHOOSE(m_identity,SHET!AQ44, SPTL!AQ44, NGET!AQ44) -> 23.664 | AR46: =CHOOSE(m_identity,SHET!AR44, SPTL!AR44, NGET!AR44) -> 31.118 | AS46: =CHOOSE(m_identity,SHET!AS44, SPTL!AS44, NGET!AS44) -> 32.452 | AT46: =CHOOSE(m_identity,SHET!AT44, SPTL!AT44, NGET!AT44) -> 27.974 | BC46: =CHOOSE(m_identity,SHET!BC44, SPTL!BC44, NGET!BC44) -> TIM | BD46: =CHOOSE(m_identity,SHET!BD44, SPTL!BD44, NGET!BD44) -> RPEs Don’t Apply | BE46: =CHOOSE(m_identity,SHET!BE44, SPTL!BE44, NGET!BE44) -> CapRate 2 (UM) | BF46: =CHOOSE(m_identity,SHET!BF44, SPTL!BF44, NGET!BF44) -> Fast/Slow Split
E47: =(CHOOSE(m_identity,SHET!E45, SPTL!E45, NGET!E45)) -> Large Onshore Transmission Investment Re-opener Project 3 | G47: £m 18/19 prices | H47: =CHOOSE(m_identity,SHET!H45, SPTL!H45, NGET!H45) -> LOTIREt | I47: =CHOOSE(m_identity,SHET!I45, SPTL!I45, NGET!I45) -> UM | AP47: =CHOOSE(m_identity,SHET!AP45, SPTL!AP45, NGET!AP45) -> 0 | AQ47: =CHOOSE(m_identity,SHET!AQ45, SPTL!AQ45, NGET!AQ45) -> 0 | AR47: =CHOOSE(m_identity,SHET!AR45, SPTL!AR45, NGET!AR45) -> 0 | AS47: =CHOOSE(m_identity,SHET!AS45, SPTL!AS45, NGET!AS45) -> 52.25835803 | AT47: =CHOOSE(m_identity,SHET!AT45, SPTL!AT45, NGET!AT45) -> 178.9818142 | BC47: =CHOOSE(m_identity,SHET!BC45, SPTL!BC45, NGET!BC45) -> TIM | BD47: =CHOOSE(m_identity,SHET!BD45, SPTL!BD45, NGET!BD45) -> RPEs Don’t Apply | BE47: =CHOOSE(m_identity,SHET!BE45, SPTL!BE45, NGET!BE45) -> CapRate 2 (UM) | BF47: =CHOOSE(m_identity,SHET!BF45, SPTL!BF45, NGET!BF45) -> Fast/Slow Split
E48: =(CHOOSE(m_identity,SHET!E46, SPTL!E46, NGET!E46)) -> Large Onshore Transmission Investment Re-opener Project 4 | G48: £m 18/19 prices | H48: =CHOOSE(m_identity,SHET!H46, SPTL!H46, NGET!H46) -> LOTIREt | I48: =CHOOSE(m_identity,SHET!I46, SPTL!I46, NGET!I46) -> UM | AP48: =CHOOSE(m_identity,SHET!AP46, SPTL!AP46, NGET!AP46) -> 0 | AQ48: =CHOOSE(m_identity,SHET!AQ46, SPTL!AQ46, NGET!AQ46) -> 0 | AR48: =CHOOSE(m_identity,SHET!AR46, SPTL!AR46, NGET!AR46) -> 0 | AS48: =CHOOSE(m_identity,SHET!AS46, SPTL!AS46, NGET!AS46) -> 0 | AT48: =CHOOSE(m_identity,SHET!AT46, SPTL!AT46, NGET!AT46) -> 63.76243593 | BC48: =CHOOSE(m_identity,SHET!BC46, SPTL!BC46, NGET!BC46) -> TIM | BD48: =CHOOSE(m_identity,SHET!BD46, SPTL!BD46, NGET!BD46) -> RPEs Don’t Apply | BE48: =CHOOSE(m_identity,SHET!BE46, SPTL!BE46, NGET!BE46) -> CapRate 2 (UM) | BF48: =CHOOSE(m_identity,SHET!BF46, SPTL!BF46, NGET!BF46) -> Fast/Slow Split
E49: =(CHOOSE(m_identity,SHET!E47, SPTL!E47, NGET!E47)) -> Large Onshore Transmission Investment Re-opener Project 5 | G49: £m 18/19 prices | H49: =CHOOSE(m_identity,SHET!H47, SPTL!H47, NGET!H47) -> LOTIREt | I49: =CHOOSE(m_identity,SHET!I47, SPTL!I47, NGET!I47) -> UM | AP49: =CHOOSE(m_identity,SHET!AP47, SPTL!AP47, NGET!AP47) -> 0 | AQ49: =CHOOSE(m_identity,SHET!AQ47, SPTL!AQ47, NGET!AQ47) -> 0 | AR49: =CHOOSE(m_identity,SHET!AR47, SPTL!AR47, NGET!AR47) -> 2.020803473 | AS49: =CHOOSE(m_identity,SHET!AS47, SPTL!AS47, NGET!AS47) -> 0.3293902128 | AT49: =CHOOSE(m_identity,SHET!AT47, SPTL!AT47, NGET!AT47) -> 24.23959349 | BC49: =CHOOSE(m_identity,SHET!BC47, SPTL!BC47, NGET!BC47) -> TIM | BD49: =CHOOSE(m_identity,SHET!BD47, SPTL!BD47, NGET!BD47) -> RPEs Don’t Apply | BE49: =CHOOSE(m_identity,SHET!BE47, SPTL!BE47, NGET!BE47) -> CapRate 2 (UM) | BF49: =CHOOSE(m_identity,SHET!BF47, SPTL!BF47, NGET!BF47) -> Fast/Slow Split
E50: =(CHOOSE(m_identity,SHET!E48, SPTL!E48, NGET!E48)) -> Large Onshore Transmission Investment Re-opener Project 6 | G50: £m 18/19 prices | H50: =CHOOSE(m_identity,SHET!H48, SPTL!H48, NGET!H48) -> LOTIREt | I50: =CHOOSE(m_identity,SHET!I48, SPTL!I48, NGET!I48) -> UM | AP50: =CHOOSE(m_identity,SHET!AP48, SPTL!AP48, NGET!AP48) -> 0 | AQ50: =CHOOSE(m_identity,SHET!AQ48, SPTL!AQ48, NGET!AQ48) -> 0 | AR50: =CHOOSE(m_identity,SHET!AR48, SPTL!AR48, NGET!AR48) -> 0 | AS50: =CHOOSE(m_identity,SHET!AS48, SPTL!AS48, NGET!AS48) -> 0 | AT50: =CHOOSE(m_identity,SHET!AT48, SPTL!AT48, NGET!AT48) -> 0 | BC50: =CHOOSE(m_identity,SHET!BC48, SPTL!BC48, NGET!BC48) -> TIM | BD50: =CHOOSE(m_identity,SHET!BD48, SPTL!BD48, NGET!BD48) -> RPEs Don’t Apply | BE50: =CHOOSE(m_identity,SHET!BE48, SPTL!BE48, NGET!BE48) -> CapRate 2 (UM) | BF50: =CHOOSE(m_identity,SHET!BF48, SPTL!BF48, NGET!BF48) -> Fast/Slow Split
E51: =(CHOOSE(m_identity,SHET!E49, SPTL!E49, NGET!E49)) -> Large Onshore Transmission Investment Re-opener Project 7 | G51: £m 18/19 prices | H51: =CHOOSE(m_identity,SHET!H49, SPTL!H49, NGET!H49) -> LOTIREt | I51: =CHOOSE(m_identity,SHET!I49, SPTL!I49, NGET!I49) -> UM | AP51: =CHOOSE(m_identity,SHET!AP49, SPTL!AP49, NGET!AP49) -> 0 | AQ51: =CHOOSE(m_identity,SHET!AQ49, SPTL!AQ49, NGET!AQ49) -> 0 | AR51: =CHOOSE(m_identity,SHET!AR49, SPTL!AR49, NGET!AR49) -> 0 | AS51: =CHOOSE(m_identity,SHET!AS49, SPTL!AS49, NGET!AS49) -> 0 | AT51: =CHOOSE(m_identity,SHET!AT49, SPTL!AT49, NGET!AT49) -> 0 | BC51: =CHOOSE(m_identity,SHET!BC49, SPTL!BC49, NGET!BC49) -> TIM | BD51: =CHOOSE(m_identity,SHET!BD49, SPTL!BD49, NGET!BD49) -> RPEs Don’t Apply | BE51: =CHOOSE(m_identity,SHET!BE49, SPTL!BE49, NGET!BE49) -> CapRate 2 (UM) | BF51: =CHOOSE(m_identity,SHET!BF49, SPTL!BF49, NGET!BF49) -> Fast/Slow Split
E52: =(CHOOSE(m_identity,SHET!E50, SPTL!E50, NGET!E50)) -> Large Onshore Transmission Investment Re-opener Project 8 | G52: £m 18/19 prices | H52: =CHOOSE(m_identity,SHET!H50, SPTL!H50, NGET!H50) -> LOTIREt | I52: =CHOOSE(m_identity,SHET!I50, SPTL!I50, NGET!I50) -> UM | AP52: =CHOOSE(m_identity,SHET!AP50, SPTL!AP50, NGET!AP50) -> 0 | AQ52: =CHOOSE(m_identity,SHET!AQ50, SPTL!AQ50, NGET!AQ50) -> 0 | AR52: =CHOOSE(m_identity,SHET!AR50, SPTL!AR50, NGET!AR50) -> 0 | AS52: =CHOOSE(m_identity,SHET!AS50, SPTL!AS50, NGET!AS50) -> 0 | AT52: =CHOOSE(m_identity,SHET!AT50, SPTL!AT50, NGET!AT50) -> 0 | BC52: =CHOOSE(m_identity,SHET!BC50, SPTL!BC50, NGET!BC50) -> TIM | BD52: =CHOOSE(m_identity,SHET!BD50, SPTL!BD50, NGET!BD50) -> RPEs Don’t Apply | BE52: =CHOOSE(m_identity,SHET!BE50, SPTL!BE50, NGET!BE50) -> CapRate 2 (UM) | BF52: =CHOOSE(m_identity,SHET!BF50, SPTL!BF50, NGET!BF50) -> Fast/Slow Split
E53: =(CHOOSE(m_identity,SHET!E51, SPTL!E51, NGET!E51)) -> Large Onshore Transmission Investment Re-opener Project 9 | G53: £m 18/19 prices | H53: =CHOOSE(m_identity,SHET!H51, SPTL!H51, NGET!H51) -> LOTIREt | I53: =CHOOSE(m_identity,SHET!I51, SPTL!I51, NGET!I51) -> UM | AP53: =CHOOSE(m_identity,SHET!AP51, SPTL!AP51, NGET!AP51) -> 0 | AQ53: =CHOOSE(m_identity,SHET!AQ51, SPTL!AQ51, NGET!AQ51) -> 0 | AR53: =CHOOSE(m_identity,SHET!AR51, SPTL!AR51, NGET!AR51) -> 0 | AS53: =CHOOSE(m_identity,SHET!AS51, SPTL!AS51, NGET!AS51) -> 0 | AT53: =CHOOSE(m_identity,SHET!AT51, SPTL!AT51, NGET!AT51) -> 0 | BC53: =CHOOSE(m_identity,SHET!BC51, SPTL!BC51, NGET!BC51) -> TIM | BD53: =CHOOSE(m_identity,SHET!BD51, SPTL!BD51, NGET!BD51) -> RPEs Don’t Apply | BE53: =CHOOSE(m_identity,SHET!BE51, SPTL!BE51, NGET!BE51) -> CapRate 2 (UM) | BF53: =CHOOSE(m_identity,SHET!BF51, SPTL!BF51, NGET!BF51) -> Fast/Slow Split
E54: =(CHOOSE(m_identity,SHET!E52, SPTL!E52, NGET!E52)) -> Large Onshore Transmission Investment Re-opener Project 10 | G54: £m 18/19 prices | H54: =CHOOSE(m_identity,SHET!H52, SPTL!H52, NGET!H52) -> LOTIREt | I54: =CHOOSE(m_identity,SHET!I52, SPTL!I52, NGET!I52) -> UM | AP54: =CHOOSE(m_identity,SHET!AP52, SPTL!AP52, NGET!AP52) -> 0 | AQ54: =CHOOSE(m_identity,SHET!AQ52, SPTL!AQ52, NGET!AQ52) -> 0 | AR54: =CHOOSE(m_identity,SHET!AR52, SPTL!AR52, NGET!AR52) -> 0 | AS54: =CHOOSE(m_identity,SHET!AS52, SPTL!AS52, NGET!AS52) -> 0 | AT54: =CHOOSE(m_identity,SHET!AT52, SPTL!AT52, NGET!AT52) -> 0 | BC54: =CHOOSE(m_identity,SHET!BC52, SPTL!BC52, NGET!BC52) -> TIM | BD54: =CHOOSE(m_identity,SHET!BD52, SPTL!BD52, NGET!BD52) -> RPEs Don’t Apply | BE54: =CHOOSE(m_identity,SHET!BE52, SPTL!BE52, NGET!BE52) -> CapRate 2 (UM) | BF54: =CHOOSE(m_identity,SHET!BF52, SPTL!BF52, NGET!BF52) -> Fast/Slow Split
E55: =(CHOOSE(m_identity,SHET!E53, SPTL!E53, NGET!E53)) -> Generation Connections volume driver | G55: £m 18/19 prices | H55: =CHOOSE(m_identity,SHET!H53, SPTL!H53, NGET!H53) -> GCEt | I55: =CHOOSE(m_identity,SHET!I53, SPTL!I53, NGET!I53) -> UM | AP55: =CHOOSE(m_identity,SHET!AP53, SPTL!AP53, NGET!AP53) -> 6.838515027 | AQ55: =CHOOSE(m_identity,SHET!AQ53, SPTL!AQ53, NGET!AQ53) -> 9.09955053 | AR55: =CHOOSE(m_identity,SHET!AR53, SPTL!AR53, NGET!AR53) -> 31.36364422 | AS55: =CHOOSE(m_identity,SHET!AS53, SPTL!AS53, NGET!AS53) -> 53.06910135 | AT55: =CHOOSE(m_identity,SHET!AT53, SPTL!AT53, NGET!AT53) -> 55.89032879 | BC55: =CHOOSE(m_identity,SHET!BC53, SPTL!BC53, NGET!BC53) -> TIM | BD55: =CHOOSE(m_identity,SHET!BD53, SPTL!BD53, NGET!BD53) -> RPEs Apply | BE55: =CHOOSE(m_identity,SHET!BE53, SPTL!BE53, NGET!BE53) -> CapRate 2 (UM) | BF55: =CHOOSE(m_identity,SHET!BF53, SPTL!BF53, NGET!BF53) -> Fast/Slow Split
E56: =(CHOOSE(m_identity,SHET!E54, SPTL!E54, NGET!E54)) -> Demand Connections volume driver (SPTL and NGET only) | G56: £m 18/19 prices | H56: =CHOOSE(m_identity,SHET!H54, SPTL!H54, NGET!H54) -> DRIt | I56: =CHOOSE(m_identity,SHET!I54, SPTL!I54, NGET!I54) -> UM | AP56: =CHOOSE(m_identity,SHET!AP54, SPTL!AP54, NGET!AP54) -> 18.0703635 | AQ56: =CHOOSE(m_identity,SHET!AQ54, SPTL!AQ54, NGET!AQ54) -> 34.8369285 | AR56: =CHOOSE(m_identity,SHET!AR54, SPTL!AR54, NGET!AR54) -> 52.487143 | AS56: =CHOOSE(m_identity,SHET!AS54, SPTL!AS54, NGET!AS54) -> 52.885555 | AT56: =CHOOSE(m_identity,SHET!AT54, SPTL!AT54, NGET!AT54) -> 36.89982 | BC56: =CHOOSE(m_identity,SHET!BC54, SPTL!BC54, NGET!BC54) -> TIM | BD56: =CHOOSE(m_identity,SHET!BD54, SPTL!BD54, NGET!BD54) -> RPEs Apply | BE56: =CHOOSE(m_identity,SHET!BE54, SPTL!BE54, NGET!BE54) -> CapRate 2 (UM) | BF56: =CHOOSE(m_identity,SHET!BF54, SPTL!BF54, NGET!BF54) -> Fast/Slow Split
E57: =(CHOOSE(m_identity,SHET!E55, SPTL!E55, NGET!E55)) -> Net zero Re-opener | G57: £m 18/19 prices | H57: =CHOOSE(m_identity,SHET!H55, SPTL!H55, NGET!H55) -> NZt | I57: =CHOOSE(m_identity,SHET!I55, SPTL!I55, NGET!I55) -> UM | AP57: =CHOOSE(m_identity,SHET!AP55, SPTL!AP55, NGET!AP55) -> 0 | AQ57: =CHOOSE(m_identity,SHET!AQ55, SPTL!AQ55, NGET!AQ55) -> 0 | AR57: =CHOOSE(m_identity,SHET!AR55, SPTL!AR55, NGET!AR55) -> 0 | AS57: =CHOOSE(m_identity,SHET!AS55, SPTL!AS55, NGET!AS55) -> 0 | AT57: =CHOOSE(m_identity,SHET!AT55, SPTL!AT55, NGET!AT55) -> 0 | BC57: =CHOOSE(m_identity,SHET!BC55, SPTL!BC55, NGET!BC55) -> TIM | BD57: =CHOOSE(m_identity,SHET!BD55, SPTL!BD55, NGET!BD55) -> RPEs Don’t Apply | BE57: =CHOOSE(m_identity,SHET!BE55, SPTL!BE55, NGET!BE55) -> CapRate 2 (UM) | BF57: =CHOOSE(m_identity,SHET!BF55, SPTL!BF55, NGET!BF55) -> Fast/Slow Split
E58: =(CHOOSE(m_identity,SHET!E56, SPTL!E56, NGET!E56)) -> Coordinated adjustment mechanism Re-opener | G58: £m 18/19 prices | H58: =CHOOSE(m_identity,SHET!H56, SPTL!H56, NGET!H56) -> CAMt | I58: =CHOOSE(m_identity,SHET!I56, SPTL!I56, NGET!I56) -> UM | AP58: =CHOOSE(m_identity,SHET!AP56, SPTL!AP56, NGET!AP56) -> 0 | AQ58: =CHOOSE(m_identity,SHET!AQ56, SPTL!AQ56, NGET!AQ56) -> 0 | AR58: =CHOOSE(m_identity,SHET!AR56, SPTL!AR56, NGET!AR56) -> 0 | AS58: =CHOOSE(m_identity,SHET!AS56, SPTL!AS56, NGET!AS56) -> 0 | AT58: =CHOOSE(m_identity,SHET!AT56, SPTL!AT56, NGET!AT56) -> 0 | BC58: =CHOOSE(m_identity,SHET!BC56, SPTL!BC56, NGET!BC56) -> TIM | BD58: =CHOOSE(m_identity,SHET!BD56, SPTL!BD56, NGET!BD56) -> RPEs Don’t Apply | BE58: =CHOOSE(m_identity,SHET!BE56, SPTL!BE56, NGET!BE56) -> CapRate 2 (UM) | BF58: =CHOOSE(m_identity,SHET!BF56, SPTL!BF56, NGET!BF56) -> Fast/Slow Split
E59: =(CHOOSE(m_identity,SHET!E57, SPTL!E57, NGET!E57)) -> Medium Sized Investment Projects Re-opener | G59: £m 18/19 prices | H59: =CHOOSE(m_identity,SHET!H57, SPTL!H57, NGET!H57) -> MSIPREt | I59: =CHOOSE(m_identity,SHET!I57, SPTL!I57, NGET!I57) -> UM | AP59: =CHOOSE(m_identity,SHET!AP57, SPTL!AP57, NGET!AP57) -> 11.01478277 | AQ59: =CHOOSE(m_identity,SHET!AQ57, SPTL!AQ57, NGET!AQ57) -> 28.41388866 | AR59: =CHOOSE(m_identity,SHET!AR57, SPTL!AR57, NGET!AR57) -> 42.21159025 | AS59: =CHOOSE(m_identity,SHET!AS57, SPTL!AS57, NGET!AS57) -> 62.91148998 | AT59: =CHOOSE(m_identity,SHET!AT57, SPTL!AT57, NGET!AT57) -> 47.04661464 | BC59: =CHOOSE(m_identity,SHET!BC57, SPTL!BC57, NGET!BC57) -> TIM | BD59: =CHOOSE(m_identity,SHET!BD57, SPTL!BD57, NGET!BD57) -> RPEs Don’t Apply | BE59: =CHOOSE(m_identity,SHET!BE57, SPTL!BE57, NGET!BE57) -> CapRate 2 (UM) | BF59: =CHOOSE(m_identity,SHET!BF57, SPTL!BF57, NGET!BF57) -> Fast/Slow Split
E60: =(CHOOSE(m_identity,SHET!E58, SPTL!E58, NGET!E58)) -> SF6 asset intervention Re-opener (NGET only) | G60: £m 18/19 prices | H60: =CHOOSE(m_identity,SHET!H58, SPTL!H58, NGET!H58) -> SF6REt | I60: =CHOOSE(m_identity,SHET!I58, SPTL!I58, NGET!I58) -> UM | AP60: =CHOOSE(m_identity,SHET!AP58, SPTL!AP58, NGET!AP58) -> 0 | AQ60: =CHOOSE(m_identity,SHET!AQ58, SPTL!AQ58, NGET!AQ58) -> 0 | AR60: =CHOOSE(m_identity,SHET!AR58, SPTL!AR58, NGET!AR58) -> 0 | AS60: =CHOOSE(m_identity,SHET!AS58, SPTL!AS58, NGET!AS58) -> 0 | AT60: =CHOOSE(m_identity,SHET!AT58, SPTL!AT58, NGET!AT58) -> 0 | BC60: =CHOOSE(m_identity,SHET!BC58, SPTL!BC58, NGET!BC58) -> TIM | BD60: =CHOOSE(m_identity,SHET!BD58, SPTL!BD58, NGET!BD58) -> RPEs Don’t Apply | BE60: =CHOOSE(m_identity,SHET!BE58, SPTL!BE58, NGET!BE58) -> CapRate 2 (UM) | BF60: =CHOOSE(m_identity,SHET!BF58, SPTL!BF58, NGET!BF58) -> Fast/Slow Split
E61: =(CHOOSE(m_identity,SHET!E59, SPTL!E59, NGET!E59)) -> Subsea Cable Re-opener (SHET only) | G61: £m 18/19 prices | H61: =CHOOSE(m_identity,SHET!H59, SPTL!H59, NGET!H59) -> SCRt | I61: =CHOOSE(m_identity,SHET!I59, SPTL!I59, NGET!I59) -> UM | AP61: =CHOOSE(m_identity,SHET!AP59, SPTL!AP59, NGET!AP59) -> 0 | AQ61: =CHOOSE(m_identity,SHET!AQ59, SPTL!AQ59, NGET!AQ59) -> 0 | AR61: =CHOOSE(m_identity,SHET!AR59, SPTL!AR59, NGET!AR59) -> 0 | AS61: =CHOOSE(m_identity,SHET!AS59, SPTL!AS59, NGET!AS59) -> 0 | AT61: =CHOOSE(m_identity,SHET!AT59, SPTL!AT59, NGET!AT59) -> 0 | BC61: =CHOOSE(m_identity,SHET!BC59, SPTL!BC59, NGET!BC59) -> TIM | BD61: =CHOOSE(m_identity,SHET!BD59, SPTL!BD59, NGET!BD59) -> RPEs Don’t Apply | BE61: =CHOOSE(m_identity,SHET!BE59, SPTL!BE59, NGET!BE59) -> CapRate 2 (UM) | BF61: =CHOOSE(m_identity,SHET!BF59, SPTL!BF59, NGET!BF59) -> Fast/Slow Split
E62: =(CHOOSE(m_identity,SHET!E60, SPTL!E60, NGET!E60)) -> Uncertain non-load related projects Re-opener (SPTL only) | G62: £m 18/19 prices | H62: =CHOOSE(m_identity,SHET!H60, SPTL!H60, NGET!H60) -> UNLREt | I62: =CHOOSE(m_identity,SHET!I60, SPTL!I60, NGET!I60) -> UM | AP62: =CHOOSE(m_identity,SHET!AP60, SPTL!AP60, NGET!AP60) -> 0 | AQ62: =CHOOSE(m_identity,SHET!AQ60, SPTL!AQ60, NGET!AQ60) -> 0 | AR62: =CHOOSE(m_identity,SHET!AR60, SPTL!AR60, NGET!AR60) -> 0 | AS62: =CHOOSE(m_identity,SHET!AS60, SPTL!AS60, NGET!AS60) -> 0 | AT62: =CHOOSE(m_identity,SHET!AT60, SPTL!AT60, NGET!AT60) -> 0 | BC62: =CHOOSE(m_identity,SHET!BC60, SPTL!BC60, NGET!BC60) -> TIM | BD62: =CHOOSE(m_identity,SHET!BD60, SPTL!BD60, NGET!BD60) -> RPEs Don’t Apply | BE62: =CHOOSE(m_identity,SHET!BE60, SPTL!BE60, NGET!BE60) -> CapRate 2 (UM) | BF62: =CHOOSE(m_identity,SHET!BF60, SPTL!BF60, NGET!BF60) -> Fast/Slow Split
E63: =(CHOOSE(m_identity,SHET!E61, SPTL!E61, NGET!E61)) -> Non-operational IT Capex Reopener | G63: £m 18/19 prices | H63: =CHOOSE(m_identity,SHET!H61, SPTL!H61, NGET!H61) -> NOITREt | I63: =CHOOSE(m_identity,SHET!I61, SPTL!I61, NGET!I61) -> UM | AP63: =CHOOSE(m_identity,SHET!AP61, SPTL!AP61, NGET!AP61) -> 3.069 | AQ63: =CHOOSE(m_identity,SHET!AQ61, SPTL!AQ61, NGET!AQ61) -> 15.284 | AR63: =CHOOSE(m_identity,SHET!AR61, SPTL!AR61, NGET!AR61) -> 39.47 | AS63: =CHOOSE(m_identity,SHET!AS61, SPTL!AS61, NGET!AS61) -> 25.64 | AT63: =CHOOSE(m_identity,SHET!AT61, SPTL!AT61, NGET!AT61) -> 48.859 | BC63: =CHOOSE(m_identity,SHET!BC61, SPTL!BC61, NGET!BC61) -> TIM | BD63: =CHOOSE(m_identity,SHET!BD61, SPTL!BD61, NGET!BD61) -> RPEs Don’t Apply | BE63: =CHOOSE(m_identity,SHET!BE61, SPTL!BE61, NGET!BE61) -> CapRate 2 (UM) | BF63: =CHOOSE(m_identity,SHET!BF61, SPTL!BF61, NGET!BF61) -> Fast/Slow Split
E64: =(CHOOSE(m_identity,SHET!E62, SPTL!E62, NGET!E62)) -> Tyne Crossing Project Re-opener (NGET only) | G64: £m 18/19 prices | H64: =CHOOSE(m_identity,SHET!H62, SPTL!H62, NGET!H62) -> TCRt | I64: =CHOOSE(m_identity,SHET!I62, SPTL!I62, NGET!I62) -> UM | AP64: =CHOOSE(m_identity,SHET!AP62, SPTL!AP62, NGET!AP62) -> 0 | AQ64: =CHOOSE(m_identity,SHET!AQ62, SPTL!AQ62, NGET!AQ62) -> 0 | AR64: =CHOOSE(m_identity,SHET!AR62, SPTL!AR62, NGET!AR62) -> 0 | AS64: =CHOOSE(m_identity,SHET!AS62, SPTL!AS62, NGET!AS62) -> 0 | AT64: =CHOOSE(m_identity,SHET!AT62, SPTL!AT62, NGET!AT62) -> 0 | BC64: =CHOOSE(m_identity,SHET!BC62, SPTL!BC62, NGET!BC62) -> TIM | BD64: =CHOOSE(m_identity,SHET!BD62, SPTL!BD62, NGET!BD62) -> RPEs Don’t Apply | BE64: =CHOOSE(m_identity,SHET!BE62, SPTL!BE62, NGET!BE62) -> CapRate 2 (UM) | BF64: =CHOOSE(m_identity,SHET!BF62, SPTL!BF62, NGET!BF62) -> Fast/Slow Split
E65: =(CHOOSE(m_identity,SHET!E63, SPTL!E63, NGET!E63)) -> Bengeworth Road GSP Project Price Control Deliverable (NGET only) | G65: £m 18/19 prices | H65: =CHOOSE(m_identity,SHET!H63, SPTL!H63, NGET!H63) -> BRGt | I65: =CHOOSE(m_identity,SHET!I63, SPTL!I63, NGET!I63) -> UM | AP65: =CHOOSE(m_identity,SHET!AP63, SPTL!AP63, NGET!AP63) -> 12.4 | AQ65: =CHOOSE(m_identity,SHET!AQ63, SPTL!AQ63, NGET!AQ63) -> 10.96 | AR65: =CHOOSE(m_identity,SHET!AR63, SPTL!AR63, NGET!AR63) -> 22.09 | AS65: =CHOOSE(m_identity,SHET!AS63, SPTL!AS63, NGET!AS63) -> 18.47 | AT65: =CHOOSE(m_identity,SHET!AT63, SPTL!AT63, NGET!AT63) -> 16.84 | BC65: =CHOOSE(m_identity,SHET!BC63, SPTL!BC63, NGET!BC63) -> TIM | BD65: =CHOOSE(m_identity,SHET!BD63, SPTL!BD63, NGET!BD63) -> RPEs Don’t Apply | BE65: =CHOOSE(m_identity,SHET!BE63, SPTL!BE63, NGET!BE63) -> CapRate 2 (UM) | BF65: =CHOOSE(m_identity,SHET!BF63, SPTL!BF63, NGET!BF63) -> Fast/Slow Split
E66: =(CHOOSE(m_identity,SHET!E64, SPTL!E64, NGET!E64)) -> Civil Related Works Re-opener (NGET only) | G66: £m 18/19 prices | H66: =CHOOSE(m_identity,SHET!H64, SPTL!H64, NGET!H64) -> CWRt | I66: =CHOOSE(m_identity,SHET!I64, SPTL!I64, NGET!I64) -> UM | AP66: =CHOOSE(m_identity,SHET!AP64, SPTL!AP64, NGET!AP64) -> 0 | AQ66: =CHOOSE(m_identity,SHET!AQ64, SPTL!AQ64, NGET!AQ64) -> 8.3 | AR66: =CHOOSE(m_identity,SHET!AR64, SPTL!AR64, NGET!AR64) -> 16.6 | AS66: =CHOOSE(m_identity,SHET!AS64, SPTL!AS64, NGET!AS64) -> 16.6 | AT66: =CHOOSE(m_identity,SHET!AT64, SPTL!AT64, NGET!AT64) -> 16.6 | BC66: =CHOOSE(m_identity,SHET!BC64, SPTL!BC64, NGET!BC64) -> TIM | BD66: =CHOOSE(m_identity,SHET!BD64, SPTL!BD64, NGET!BD64) -> RPEs Don’t Apply | BE66: =CHOOSE(m_identity,SHET!BE64, SPTL!BE64, NGET!BE64) -> CapRate 2 (UM) | BF66: =CHOOSE(m_identity,SHET!BF64, SPTL!BF64, NGET!BF64) -> Fast/Slow Split
E67: =(CHOOSE(m_identity,SHET!E65, SPTL!E65, NGET!E65)) -> Tower Steelworks and Foundations Re-opener (NGET only) | G67: £m 18/19 prices | H67: =CHOOSE(m_identity,SHET!H65, SPTL!H65, NGET!H65) -> TSFt | I67: =CHOOSE(m_identity,SHET!I65, SPTL!I65, NGET!I65) -> UM | AP67: =CHOOSE(m_identity,SHET!AP65, SPTL!AP65, NGET!AP65) -> 0 | AQ67: =CHOOSE(m_identity,SHET!AQ65, SPTL!AQ65, NGET!AQ65) -> 1 | AR67: =CHOOSE(m_identity,SHET!AR65, SPTL!AR65, NGET!AR65) -> 7.2 | AS67: =CHOOSE(m_identity,SHET!AS65, SPTL!AS65, NGET!AS65) -> 8.7 | AT67: =CHOOSE(m_identity,SHET!AT65, SPTL!AT65, NGET!AT65) -> 6.2 | BC67: =CHOOSE(m_identity,SHET!BC65, SPTL!BC65, NGET!BC65) -> TIM | BD67: =CHOOSE(m_identity,SHET!BD65, SPTL!BD65, NGET!BD65) -> RPEs Don’t Apply | BE67: =CHOOSE(m_identity,SHET!BE65, SPTL!BE65, NGET!BE65) -> CapRate 2 (UM) | BF67: =CHOOSE(m_identity,SHET!BF65, SPTL!BF65, NGET!BF65) -> Fast/Slow Split
E68: =(CHOOSE(m_identity,SHET!E66, SPTL!E66, NGET!E66)) -> Wider Works Volume Driver (NGET only) | G68: £m 18/19 prices | H68: =CHOOSE(m_identity,SHET!H66, SPTL!H66, NGET!H66) -> WWVt | I68: =CHOOSE(m_identity,SHET!I66, SPTL!I66, NGET!I66) -> UM | AP68: =CHOOSE(m_identity,SHET!AP66, SPTL!AP66, NGET!AP66) -> 12.50145794 | AQ68: =CHOOSE(m_identity,SHET!AQ66, SPTL!AQ66, NGET!AQ66) -> 19.13099515 | AR68: =CHOOSE(m_identity,SHET!AR66, SPTL!AR66, NGET!AR66) -> 23.78072162 | AS68: =CHOOSE(m_identity,SHET!AS66, SPTL!AS66, NGET!AS66) -> 34.86208283 | AT68: =CHOOSE(m_identity,SHET!AT66, SPTL!AT66, NGET!AT66) -> 55.75931789 | BC68: =CHOOSE(m_identity,SHET!BC66, SPTL!BC66, NGET!BC66) -> TIM | BD68: =CHOOSE(m_identity,SHET!BD66, SPTL!BD66, NGET!BD66) -> RPEs Apply | BE68: =CHOOSE(m_identity,SHET!BE66, SPTL!BE66, NGET!BE66) -> CapRate 2 (UM) | BF68: =CHOOSE(m_identity,SHET!BF66, SPTL!BF66, NGET!BF66) -> Fast/Slow Split
E69: =(CHOOSE(m_identity,SHET!E67, SPTL!E67, NGET!E67)) -> Fibre Wrap Replacement Re-opener (NGET only) | G69: £m 18/19 prices | H69: =CHOOSE(m_identity,SHET!H67, SPTL!H67, NGET!H67) -> FWRt | I69: =CHOOSE(m_identity,SHET!I67, SPTL!I67, NGET!I67) -> UM | AP69: =CHOOSE(m_identity,SHET!AP67, SPTL!AP67, NGET!AP67) -> 0 | AQ69: =CHOOSE(m_identity,SHET!AQ67, SPTL!AQ67, NGET!AQ67) -> 0 | AR69: =CHOOSE(m_identity,SHET!AR67, SPTL!AR67, NGET!AR67) -> 0 | AS69: =CHOOSE(m_identity,SHET!AS67, SPTL!AS67, NGET!AS67) -> 0 | AT69: =CHOOSE(m_identity,SHET!AT67, SPTL!AT67, NGET!AT67) -> 0 | BC69: =CHOOSE(m_identity,SHET!BC67, SPTL!BC67, NGET!BC67) -> TIM | BD69: =CHOOSE(m_identity,SHET!BD67, SPTL!BD67, NGET!BD67) -> RPEs Don’t Apply | BE69: =CHOOSE(m_identity,SHET!BE67, SPTL!BE67, NGET!BE67) -> CapRate 2 (UM) | BF69: =CHOOSE(m_identity,SHET!BF67, SPTL!BF67, NGET!BF67) -> Fast/Slow Split
E70: =(CHOOSE(m_identity,SHET!E68, SPTL!E68, NGET!E68)) -> Access Reform Change Re-Opener | G70: £m 18/19 prices | H70: =CHOOSE(m_identity,SHET!H68, SPTL!H68, NGET!H68) -> ARRt | I70: =CHOOSE(m_identity,SHET!I68, SPTL!I68, NGET!I68) -> UM | AP70: =CHOOSE(m_identity,SHET!AP68, SPTL!AP68, NGET!AP68) -> 0 | AQ70: =CHOOSE(m_identity,SHET!AQ68, SPTL!AQ68, NGET!AQ68) -> 0 | AR70: =CHOOSE(m_identity,SHET!AR68, SPTL!AR68, NGET!AR68) -> 0 | AS70: =CHOOSE(m_identity,SHET!AS68, SPTL!AS68, NGET!AS68) -> 0 | AT70: =CHOOSE(m_identity,SHET!AT68, SPTL!AT68, NGET!AT68) -> 0 | BC70: =CHOOSE(m_identity,SHET!BC68, SPTL!BC68, NGET!BC68) -> TIM | BD70: =CHOOSE(m_identity,SHET!BD68, SPTL!BD68, NGET!BD68) -> RPEs Don’t Apply | BE70: =CHOOSE(m_identity,SHET!BE68, SPTL!BE68, NGET!BE68) -> CapRate 2 (UM) | BF70: =CHOOSE(m_identity,SHET!BF68, SPTL!BF68, NGET!BF68) -> Fast/Slow Split
E71: =(CHOOSE(m_identity,SHET!E69, SPTL!E69, NGET!E69)) -> RIIO-ET1/RIIO-ET2 offset adjustment (NGET only) | G71: £m 18/19 prices | H71: =CHOOSE(m_identity,SHET!H69, SPTL!H69, NGET!H69) -> T1OAt | I71: =CHOOSE(m_identity,SHET!I69, SPTL!I69, NGET!I69) -> UM | AP71: =CHOOSE(m_identity,SHET!AP69, SPTL!AP69, NGET!AP69) -> -9.659725927 | AQ71: =CHOOSE(m_identity,SHET!AQ69, SPTL!AQ69, NGET!AQ69) -> -9.659725927 | AR71: =CHOOSE(m_identity,SHET!AR69, SPTL!AR69, NGET!AR69) -> -9.659725927 | AS71: =CHOOSE(m_identity,SHET!AS69, SPTL!AS69, NGET!AS69) -> -9.659725927 | AT71: =CHOOSE(m_identity,SHET!AT69, SPTL!AT69, NGET!AT69) -> -9.659725927 | BC71: =CHOOSE(m_identity,SHET!BC69, SPTL!BC69, NGET!BC69) -> TIM | BD71: =CHOOSE(m_identity,SHET!BD69, SPTL!BD69, NGET!BD69) -> RPEs Don’t Apply | BE71: =CHOOSE(m_identity,SHET!BE69, SPTL!BE69, NGET!BE69) -> CapRate 2 (UM) | BF71: =CHOOSE(m_identity,SHET!BF69, SPTL!BF69, NGET!BF69) -> Fast/Slow Split
E72: =(CHOOSE(m_identity,SHET!E70, SPTL!E70, NGET!E70)) -> Pre-Construction Funding Re-Opener | G72: £m 18/19 prices | H72: =CHOOSE(m_identity,SHET!H70, SPTL!H70, NGET!H70) -> PCFREt | I72: =CHOOSE(m_identity,SHET!I70, SPTL!I70, NGET!I70) -> UM | AP72: =CHOOSE(m_identity,SHET!AP70, SPTL!AP70, NGET!AP70) -> 1.435 | AQ72: =CHOOSE(m_identity,SHET!AQ70, SPTL!AQ70, NGET!AQ70) -> 13.61805073 | AR72: =CHOOSE(m_identity,SHET!AR70, SPTL!AR70, NGET!AR70) -> 33.9818205 | AS72: =CHOOSE(m_identity,SHET!AS70, SPTL!AS70, NGET!AS70) -> 16.26305715 | AT72: =CHOOSE(m_identity,SHET!AT70, SPTL!AT70, NGET!AT70) -> 6.300284632 | BC72: =CHOOSE(m_identity,SHET!BC70, SPTL!BC70, NGET!BC70) -> TIM | BD72: =CHOOSE(m_identity,SHET!BD70, SPTL!BD70, NGET!BD70) -> RPEs Don’t Apply | BE72: =CHOOSE(m_identity,SHET!BE70, SPTL!BE70, NGET!BE70) -> CapRate 2 (UM) | BF72: =CHOOSE(m_identity,SHET!BF70, SPTL!BF70, NGET!BF70) -> Fast/Slow Split
E73: =(CHOOSE(m_identity,SHET!E71, SPTL!E71, NGET!E71)) -> Physical Security Re-Opener | G73: £m 18/19 prices | H73: =CHOOSE(m_identity,SHET!H71, SPTL!H71, NGET!H71) -> PSUPREt | I73: =CHOOSE(m_identity,SHET!I71, SPTL!I71, NGET!I71) -> UM | AP73: =CHOOSE(m_identity,SHET!AP71, SPTL!AP71, NGET!AP71) -> 0 | AQ73: =CHOOSE(m_identity,SHET!AQ71, SPTL!AQ71, NGET!AQ71) -> 0 | AR73: =CHOOSE(m_identity,SHET!AR71, SPTL!AR71, NGET!AR71) -> 0 | AS73: =CHOOSE(m_identity,SHET!AS71, SPTL!AS71, NGET!AS71) -> 0 | AT73: =CHOOSE(m_identity,SHET!AT71, SPTL!AT71, NGET!AT71) -> 0 | BC73: =CHOOSE(m_identity,SHET!BC71, SPTL!BC71, NGET!BC71) -> TIM | BD73: =CHOOSE(m_identity,SHET!BD71, SPTL!BD71, NGET!BD71) -> RPEs Don’t Apply | BE73: =CHOOSE(m_identity,SHET!BE71, SPTL!BE71, NGET!BE71) -> CapRate 2 (UM) | BF73: =CHOOSE(m_identity,SHET!BF71, SPTL!BF71, NGET!BF71) -> Fast/Slow Split
E74: =(CHOOSE(m_identity,SHET!E72, SPTL!E72, NGET!E72)) -> Cyber Resilience OT Non-Baseline | G74: £m 18/19 prices | H74: =CHOOSE(m_identity,SHET!H72, SPTL!H72, NGET!H72) -> CROTREt | I74: =CHOOSE(m_identity,SHET!I72, SPTL!I72, NGET!I72) -> UM | AP74: =CHOOSE(m_identity,SHET!AP72, SPTL!AP72, NGET!AP72) -> 3.8 | AQ74: =CHOOSE(m_identity,SHET!AQ72, SPTL!AQ72, NGET!AQ72) -> 6.03 | AR74: =CHOOSE(m_identity,SHET!AR72, SPTL!AR72, NGET!AR72) -> 20.45 | AS74: =CHOOSE(m_identity,SHET!AS72, SPTL!AS72, NGET!AS72) -> 64.6 | AT74: =CHOOSE(m_identity,SHET!AT72, SPTL!AT72, NGET!AT72) -> 66 | BC74: =CHOOSE(m_identity,SHET!BC72, SPTL!BC72, NGET!BC72) -> Non-Tim | BD74: =CHOOSE(m_identity,SHET!BD72, SPTL!BD72, NGET!BD72) -> RPEs Don’t Apply | BE74: =CHOOSE(m_identity,SHET!BE72, SPTL!BE72, NGET!BE72) -> CapRate 2 (UM) | BF74: =CHOOSE(m_identity,SHET!BF72, SPTL!BF72, NGET!BF72) -> Fast/Slow Split
E75: =(CHOOSE(m_identity,SHET!E73, SPTL!E73, NGET!E73)) -> Cyber Resilience IT Non-Baseline | G75: £m 18/19 prices | H75: =CHOOSE(m_identity,SHET!H73, SPTL!H73, NGET!H73) -> CRITREt | I75: =CHOOSE(m_identity,SHET!I73, SPTL!I73, NGET!I73) -> UM | AP75: =CHOOSE(m_identity,SHET!AP73, SPTL!AP73, NGET!AP73) -> 0.9570574553 | AQ75: =CHOOSE(m_identity,SHET!AQ73, SPTL!AQ73, NGET!AQ73) -> 2.28677158 | AR75: =CHOOSE(m_identity,SHET!AR73, SPTL!AR73, NGET!AR73) -> 1.299041798 | AS75: =CHOOSE(m_identity,SHET!AS73, SPTL!AS73, NGET!AS73) -> 15.34145264 | AT75: =CHOOSE(m_identity,SHET!AT73, SPTL!AT73, NGET!AT73) -> 15.48582918 | BC75: =CHOOSE(m_identity,SHET!BC73, SPTL!BC73, NGET!BC73) -> TIM | BD75: =CHOOSE(m_identity,SHET!BD73, SPTL!BD73, NGET!BD73) -> RPEs Don’t Apply | BE75: =CHOOSE(m_identity,SHET!BE73, SPTL!BE73, NGET!BE73) -> CapRate 2 (UM) | BF75: =CHOOSE(m_identity,SHET!BF73, SPTL!BF73, NGET!BF73) -> Fast/Slow Split
E76: =(CHOOSE(m_identity,SHET!E74, SPTL!E74, NGET!E74)) -> Opex escalator | G76: £m 18/19 prices | H76: =CHOOSE(m_identity,SHET!H74, SPTL!H74, NGET!H74) -> OEt | I76: =CHOOSE(m_identity,SHET!I74, SPTL!I74, NGET!I74) -> UM | AP76: =CHOOSE(m_identity,SHET!AP74, SPTL!AP74, NGET!AP74) -> 11.3478916 | AQ76: =CHOOSE(m_identity,SHET!AQ74, SPTL!AQ74, NGET!AQ74) -> 22.27373693 | AR76: =CHOOSE(m_identity,SHET!AR74, SPTL!AR74, NGET!AR74) -> 40.65948757 | AS76: =CHOOSE(m_identity,SHET!AS74, SPTL!AS74, NGET!AS74) -> 45.24389073 | AT76: =CHOOSE(m_identity,SHET!AT74, SPTL!AT74, NGET!AT74) -> 41.15128358 | BC76: =CHOOSE(m_identity,SHET!BC74, SPTL!BC74, NGET!BC74) -> TIM | BD76: =CHOOSE(m_identity,SHET!BD74, SPTL!BD74, NGET!BD74) -> RPEs Don’t Apply | BE76: =CHOOSE(m_identity,SHET!BE74, SPTL!BE74, NGET!BE74) -> CapRate 2 (UM) | BF76: =CHOOSE(m_identity,SHET!BF74, SPTL!BF74, NGET!BF74) -> Fast/Slow Split
E77: =(CHOOSE(m_identity,SHET!E75, SPTL!E75, NGET!E75)) -> Entry and Exit Connection Asset Allowance | G77: £m 18/19 prices | H77: =CHOOSE(m_identity,SHET!H75, SPTL!H75, NGET!H75) -> EECAt | I77: =CHOOSE(m_identity,SHET!I75, SPTL!I75, NGET!I75) -> UM | AP77: =CHOOSE(m_identity,SHET!AP75, SPTL!AP75, NGET!AP75) -> -28.85676354 | AQ77: =CHOOSE(m_identity,SHET!AQ75, SPTL!AQ75, NGET!AQ75) -> -6.461718133 | AR77: =CHOOSE(m_identity,SHET!AR75, SPTL!AR75, NGET!AR75) -> -12.02685694 | AS77: =CHOOSE(m_identity,SHET!AS75, SPTL!AS75, NGET!AS75) -> -23.43581581 | AT77: =CHOOSE(m_identity,SHET!AT75, SPTL!AT75, NGET!AT75) -> -31.3109612 | BC77: =CHOOSE(m_identity,SHET!BC75, SPTL!BC75, NGET!BC75) -> Non-Tim | BD77: =CHOOSE(m_identity,SHET!BD75, SPTL!BD75, NGET!BD75) -> RPEs Don’t Apply | BE77: =CHOOSE(m_identity,SHET!BE75, SPTL!BE75, NGET!BE75) -> CapRate 2 (UM) | BF77: =CHOOSE(m_identity,SHET!BF75, SPTL!BF75, NGET!BF75) -> Fast/Slow Split
E78: =(CHOOSE(m_identity,SHET!E76, SPTL!E76, NGET!E76)) -> Legacy Baseline Connections Volume Driver (SHET only) | G78: £m 18/19 prices | H78: =CHOOSE(m_identity,SHET!H76, SPTL!H76, NGET!H76) -> LGCEt | I78: =CHOOSE(m_identity,SHET!I76, SPTL!I76, NGET!I76) -> UM | AP78: =CHOOSE(m_identity,SHET!AP76, SPTL!AP76, NGET!AP76) -> 0 | AQ78: =CHOOSE(m_identity,SHET!AQ76, SPTL!AQ76, NGET!AQ76) -> 0 | AR78: =CHOOSE(m_identity,SHET!AR76, SPTL!AR76, NGET!AR76) -> 0 | AS78: =CHOOSE(m_identity,SHET!AS76, SPTL!AS76, NGET!AS76) -> 0 | AT78: =CHOOSE(m_identity,SHET!AT76, SPTL!AT76, NGET!AT76) -> 0 | BC78: =CHOOSE(m_identity,SHET!BC76, SPTL!BC76, NGET!BC76) -> Non-Tim | BD78: =CHOOSE(m_identity,SHET!BD76, SPTL!BD76, NGET!BD76) -> RPEs Don’t Apply | BE78: =CHOOSE(m_identity,SHET!BE76, SPTL!BE76, NGET!BE76) -> CapRate 2 (UM) | BF78: =CHOOSE(m_identity,SHET!BF76, SPTL!BF76, NGET!BF76) -> Fast/Slow Split
E79: =(CHOOSE(m_identity,SHET!E77, SPTL!E77, NGET!E77)) -> Spare UM 3 | G79: £m 18/19 prices | H79: =CHOOSE(m_identity,SHET!H77, SPTL!H77, NGET!H77) -> 0 | I79: =CHOOSE(m_identity,SHET!I77, SPTL!I77, NGET!I77) -> UM | AP79: =CHOOSE(m_identity,SHET!AP77, SPTL!AP77, NGET!AP77) -> 0 | AQ79: =CHOOSE(m_identity,SHET!AQ77, SPTL!AQ77, NGET!AQ77) -> 0 | AR79: =CHOOSE(m_identity,SHET!AR77, SPTL!AR77, NGET!AR77) -> 0 | AS79: =CHOOSE(m_identity,SHET!AS77, SPTL!AS77, NGET!AS77) -> 0 | AT79: =CHOOSE(m_identity,SHET!AT77, SPTL!AT77, NGET!AT77) -> 0 | BC79: =CHOOSE(m_identity,SHET!BC77, SPTL!BC77, NGET!BC77) -> 0 | BD79: =CHOOSE(m_identity,SHET!BD77, SPTL!BD77, NGET!BD77) -> 0 | BE79: =CHOOSE(m_identity,SHET!BE77, SPTL!BE77, NGET!BE77) -> 0 | BF79: =CHOOSE(m_identity,SHET!BF77, SPTL!BF77, NGET!BF77) -> 0
E80: RPE non-variant allowances | G80: £m 18/19 prices | H80: =CHOOSE(m_identity,SHET!H78, SPTL!H78, NGET!H78) -> RPEAt (non-variant) | I80: =CHOOSE(m_identity,SHET!I78, SPTL!I78, NGET!I78) -> UM | AP80: =SUMPRODUCT((AP$682:AP$699) * ($E$682:$E$699 = $E80)) -> 11.11325399 | AQ80: =SUMPRODUCT((AQ$682:AQ$699) * ($E$682:$E$699 = $E80)) -> 9.515197496 | AR80: =SUMPRODUCT((AR$682:AR$699) * ($E$682:$E$699 = $E80)) -> -0.7944105319 | AS80: =SUMPRODUCT((AS$682:AS$699) * ($E$682:$E$699 = $E80)) -> 7.603206948 | AT80: =SUMPRODUCT((AT$682:AT$699) * ($E$682:$E$699 = $E80)) -> 21.38190069 | BC80: =CHOOSE(m_identity,SHET!BC78, SPTL!BC78, NGET!BC78) -> TIM | BD80: =CHOOSE(m_identity,SHET!BD78, SPTL!BD78, NGET!BD78) -> 0 | BE80: =CHOOSE(m_identity,SHET!BE78, SPTL!BE78, NGET!BE78) -> CapRate 1 (Baseline) | BF80: =CHOOSE(m_identity,SHET!BF78, SPTL!BF78, NGET!BF78) -> Fast/Slow Split
E81: RPE PCDs | G81: £m 18/19 prices | H81: =CHOOSE(m_identity,SHET!H79, SPTL!H79, NGET!H79) -> RPEAt (PCD) | I81: =CHOOSE(m_identity,SHET!I79, SPTL!I79, NGET!I79) -> UM | AP81: =SUMPRODUCT((AP$682:AP$699) * ($E$682:$E$699 = $E81)) -> 13.78172408 | AQ81: =SUMPRODUCT((AQ$682:AQ$699) * ($E$682:$E$699 = $E81)) -> 9.220820218 | AR81: =SUMPRODUCT((AR$682:AR$699) * ($E$682:$E$699 = $E81)) -> -0.674758268 | AS81: =SUMPRODUCT((AS$682:AS$699) * ($E$682:$E$699 = $E81)) -> 4.959205066 | AT81: =SUMPRODUCT((AT$682:AT$699) * ($E$682:$E$699 = $E81)) -> 9.02576309 | BC81: =CHOOSE(m_identity,SHET!BC79, SPTL!BC79, NGET!BC79) -> TIM | BD81: =CHOOSE(m_identity,SHET!BD79, SPTL!BD79, NGET!BD79) -> 0 | BE81: =CHOOSE(m_identity,SHET!BE79, SPTL!BE79, NGET!BE79) -> CapRate 1 (Baseline) | BF81: =CHOOSE(m_identity,SHET!BF79, SPTL!BF79, NGET!BF79) -> Fast/Slow Split
E82: RPE UMs | G82: £m 18/19 prices | H82: =CHOOSE(m_identity,SHET!H80, SPTL!H80, NGET!H80) -> RPEAt (UM) | I82: =CHOOSE(m_identity,SHET!I80, SPTL!I80, NGET!I80) -> UM | AP82: =SUMPRODUCT((AP$682:AP$699) * ($E$682:$E$699 = $E82)) -> 0.6398078396 | AQ82: =SUMPRODUCT((AQ$682:AQ$699) * ($E$682:$E$699 = $E82)) -> 0.8687399904 | AR82: =SUMPRODUCT((AR$682:AR$699) * ($E$682:$E$699 = $E82)) -> -0.1412439015 | AS82: =SUMPRODUCT((AS$682:AS$699) * ($E$682:$E$699 = $E82)) -> 1.820027139 | AT82: =SUMPRODUCT((AT$682:AT$699) * ($E$682:$E$699 = $E82)) -> 5.0792438 | BC82: =CHOOSE(m_identity,SHET!BC80, SPTL!BC80, NGET!BC80) -> TIM | BD82: =CHOOSE(m_identity,SHET!BD80, SPTL!BD80, NGET!BD80) -> 0 | BE82: =CHOOSE(m_identity,SHET!BE80, SPTL!BE80, NGET!BE80) -> CapRate 2 (UM) | BF82: =CHOOSE(m_identity,SHET!BF80, SPTL!BF80, NGET!BF80) -> Fast/Slow Split
E83: Total | G83: £m 18/19 prices | AP83: =SUM(AP22:AP82) -> 959.1132111 | AQ83: =SUM(AQ22:AQ82) -> 958.7183708 | AR83: =SUM(AR22:AR82) -> 970.1143305 | AS83: =SUM(AS22:AS82) -> 971.1016586 | AT83: =SUM(AT22:AT82) -> 1027.138449
B85: Actual totex
E87: Capitalisation rate 1:
E88: Actual load related capex expenditure | G88: £m 18/19 prices | H88: =CHOOSE(m_identity,SHET!H85, SPTL!H85, NGET!H85) -> ALC | J88: > | AH88: =CHOOSE(m_identity,SHET!AH85, SPTL!AH85, NGET!AH85) -> 744.9014198 | AI88: =CHOOSE(m_identity,SHET!AI85, SPTL!AI85, NGET!AI85) -> 573.6810902 | AJ88: =CHOOSE(m_identity,SHET!AJ85, SPTL!AJ85, NGET!AJ85) -> 524.2886155 | AK88: =CHOOSE(m_identity,SHET!AK85, SPTL!AK85, NGET!AK85) -> 391.624681 | AL88: =CHOOSE(m_identity,SHET!AL85, SPTL!AL85, NGET!AL85) -> 264.538026 | AM88: =CHOOSE(m_identity,SHET!AM85, SPTL!AM85, NGET!AM85) -> 237.0780912 | AN88: =CHOOSE(m_identity,SHET!AN85, SPTL!AN85, NGET!AN85) -> 260.4356733 | AO88: =CHOOSE(m_identity,SHET!AO85, SPTL!AO85, NGET!AO85) -> 304.45764 | AP88: =CHOOSE(m_identity,SHET!AP85, SPTL!AP85, NGET!AP85) -> 334.1619869 | AQ88: =CHOOSE(m_identity,SHET!AQ85, SPTL!AQ85, NGET!AQ85) -> 418.2794018 | AR88: =CHOOSE(m_identity,SHET!AR85, SPTL!AR85, NGET!AR85) -> 427.1212529 | AS88: =CHOOSE(m_identity,SHET!AS85, SPTL!AS85, NGET!AS85) -> 415.6470206 | AT88: =CHOOSE(m_identity,SHET!AT85, SPTL!AT85, NGET!AT85) -> 392.090086
E89: Actual asset replacement capex expenditure | G89: £m 18/19 prices | H89: =CHOOSE(m_identity,SHET!H86, SPTL!H86, NGET!H86) -> ARC | J89: > | AH89: =CHOOSE(m_identity,SHET!AH86, SPTL!AH86, NGET!AH86) -> 288.8880685 | AI89: =CHOOSE(m_identity,SHET!AI86, SPTL!AI86, NGET!AI86) -> 208.9894961 | AJ89: =CHOOSE(m_identity,SHET!AJ86, SPTL!AJ86, NGET!AJ86) -> 240.1428953 | AK89: =CHOOSE(m_identity,SHET!AK86, SPTL!AK86, NGET!AK86) -> 331.0694606 | AL89: =CHOOSE(m_identity,SHET!AL86, SPTL!AL86, NGET!AL86) -> 365.8258197 | AM89: =CHOOSE(m_identity,SHET!AM86, SPTL!AM86, NGET!AM86) -> 282.4538096 | AN89: =CHOOSE(m_identity,SHET!AN86, SPTL!AN86, NGET!AN86) -> 219.8813015 | AO89: =CHOOSE(m_identity,SHET!AO86, SPTL!AO86, NGET!AO86) -> 217.8123856 | AP89: =CHOOSE(m_identity,SHET!AP86, SPTL!AP86, NGET!AP86) -> 522.5764918 | AQ89: =CHOOSE(m_identity,SHET!AQ86, SPTL!AQ86, NGET!AQ86) -> 690.2344703 | AR89: =CHOOSE(m_identity,SHET!AR86, SPTL!AR86, NGET!AR86) -> 605.1368272 | AS89: =CHOOSE(m_identity,SHET!AS86, SPTL!AS86, NGET!AS86) -> 456.6679692 | AT89: =CHOOSE(m_identity,SHET!AT86, SPTL!AT86, NGET!AT86) -> 402.1389708
E90: Actual other capex expenditure | G90: £m 18/19 prices | H90: =CHOOSE(m_identity,SHET!H87, SPTL!H87, NGET!H87) -> AOC | J90: > | AH90: =CHOOSE(m_identity,SHET!AH87, SPTL!AH87, NGET!AH87) -> 237.8867872 | AI90: =CHOOSE(m_identity,SHET!AI87, SPTL!AI87, NGET!AI87) -> 76.99508328 | AJ90: =CHOOSE(m_identity,SHET!AJ87, SPTL!AJ87, NGET!AJ87) -> 169.0565214 | AK90: =CHOOSE(m_identity,SHET!AK87, SPTL!AK87, NGET!AK87) -> 141.4552033 | AL90: =CHOOSE(m_identity,SHET!AL87, SPTL!AL87, NGET!AL87) -> 144.0514993 | AM90: =CHOOSE(m_identity,SHET!AM87, SPTL!AM87, NGET!AM87) -> 181.5539498 | AN90: =CHOOSE(m_identity,SHET!AN87, SPTL!AN87, NGET!AN87) -> 285.1446933 | AO90: =CHOOSE(m_identity,SHET!AO87, SPTL!AO87, NGET!AO87) -> 264.3547066 | AP90: =CHOOSE(m_identity,SHET!AP87, SPTL!AP87, NGET!AP87) -> 83.36316634 | AQ90: =CHOOSE(m_identity,SHET!AQ87, SPTL!AQ87, NGET!AQ87) -> 82.62206336 | AR90: =CHOOSE(m_identity,SHET!AR87, SPTL!AR87, NGET!AR87) -> 69.83220551 | AS90: =CHOOSE(m_identity,SHET!AS87, SPTL!AS87, NGET!AS87) -> 21.77672889 | AT90: =CHOOSE(m_identity,SHET!AT87, SPTL!AT87, NGET!AT87) -> 22.98528758
E91: Actual network operating costs (opex) | G91: £m 18/19 prices | H91: =CHOOSE(m_identity,SHET!H88, SPTL!H88, NGET!H88) -> ACO | J91: > | AH91: =CHOOSE(m_identity,SHET!AH88, SPTL!AH88, NGET!AH88) -> 270.2186993 | AI91: =CHOOSE(m_identity,SHET!AI88, SPTL!AI88, NGET!AI88) -> 296.1908932 | AJ91: =CHOOSE(m_identity,SHET!AJ88, SPTL!AJ88, NGET!AJ88) -> 301.3839118 | AK91: =CHOOSE(m_identity,SHET!AK88, SPTL!AK88, NGET!AK88) -> 276.4936467 | AL91: =CHOOSE(m_identity,SHET!AL88, SPTL!AL88, NGET!AL88) -> 284.8621835 | AM91: =CHOOSE(m_identity,SHET!AM88, SPTL!AM88, NGET!AM88) -> 302.9219154 | AN91: =CHOOSE(m_identity,SHET!AN88, SPTL!AN88, NGET!AN88) -> 293.7280709 | AO91: =CHOOSE(m_identity,SHET!AO88, SPTL!AO88, NGET!AO88) -> 257.9566874 | AP91: =CHOOSE(m_identity,SHET!AP88, SPTL!AP88, NGET!AP88) -> 106.8974157 | AQ91: =CHOOSE(m_identity,SHET!AQ88, SPTL!AQ88, NGET!AQ88) -> 117.8015916 | AR91: =CHOOSE(m_identity,SHET!AR88, SPTL!AR88, NGET!AR88) -> 107.4896507 | AS91: =CHOOSE(m_identity,SHET!AS88, SPTL!AS88, NGET!AS88) -> 98.06895851 | AT91: =CHOOSE(m_identity,SHET!AT88, SPTL!AT88, NGET!AT88) -> 99.15199716
E92: Actual indirects (opex) | G92: £m 18/19 prices | H92: =CHOOSE(m_identity,SHET!H89, SPTL!H89, NGET!H89) -> AIO | AP92: =CHOOSE(m_identity,SHET!AP89, SPTL!AP89, NGET!AP89) -> 166.7320697 | AQ92: =CHOOSE(m_identity,SHET!AQ89, SPTL!AQ89, NGET!AQ89) -> 157.8607881 | AR92: =CHOOSE(m_identity,SHET!AR89, SPTL!AR89, NGET!AR89) -> 130.9077228 | AS92: =CHOOSE(m_identity,SHET!AS89, SPTL!AS89, NGET!AS89) -> 136.1453145 | AT92: =CHOOSE(m_identity,SHET!AT89, SPTL!AT89, NGET!AT89) -> 138.2189553
E93: Actual non-operational capex | G93: £m 18/19 prices | H93: =CHOOSE(m_identity,SHET!H90, SPTL!H90, NGET!H90) -> ANC | J93: > | AH93: =CHOOSE(m_identity,SHET!AH90, SPTL!AH90, NGET!AH90) -> 39.9222542 | AI93: =CHOOSE(m_identity,SHET!AI90, SPTL!AI90, NGET!AI90) -> 31.81974989 | AJ93: =CHOOSE(m_identity,SHET!AJ90, SPTL!AJ90, NGET!AJ90) -> 41.20745293 | AK93: =CHOOSE(m_identity,SHET!AK90, SPTL!AK90, NGET!AK90) -> 53.87424302 | AL93: =CHOOSE(m_identity,SHET!AL90, SPTL!AL90, NGET!AL90) -> 40.35485527 | AM93: =CHOOSE(m_identity,SHET!AM90, SPTL!AM90, NGET!AM90) -> 52.14654349 | AN93: =CHOOSE(m_identity,SHET!AN90, SPTL!AN90, NGET!AN90) -> 62.75864564 | AO93: =CHOOSE(m_identity,SHET!AO90, SPTL!AO90, NGET!AO90) -> 70.52950955 | AP93: =CHOOSE(m_identity,SHET!AP90, SPTL!AP90, NGET!AP90) -> 66.4664904 | AQ93: =CHOOSE(m_identity,SHET!AQ90, SPTL!AQ90, NGET!AQ90) -> 98.21355856 | AR93: =CHOOSE(m_identity,SHET!AR90, SPTL!AR90, NGET!AR90) -> 91.94138534 | AS93: =CHOOSE(m_identity,SHET!AS90, SPTL!AS90, NGET!AS90) -> 65.71415953 | AT93: =CHOOSE(m_identity,SHET!AT90, SPTL!AT90, NGET!AT90) -> 74.95477014
E94: Total | G94: £m 18/19 prices | J94: > | AH94: =SUM(AH88:AH93) -> 1581.817229 | AI94: 1187.676313 | AJ94: 1276.079397 | AK94: 1194.517235 | AL94: 1099.632384 | AM94: 1056.15431 | AN94: 1121.948385 | AO94: 1115.110929 | AP94: 1280.197621 | AQ94: 1565.011874 | AR94: 1432.429044 | AS94: 1194.020151 | AT94: 1129.540067
E96: Capitalisation rate 2:
E97: Actual load related capex expenditure | G97: £m 18/19 prices | H97: =CHOOSE(m_identity,SHET!H93, SPTL!H93, NGET!H93) -> ALCU | AP97: =CHOOSE(m_identity,SHET!AP93, SPTL!AP93, NGET!AP93) -> 42.14972126 | AQ97: =CHOOSE(m_identity,SHET!AQ93, SPTL!AQ93, NGET!AQ93) -> 114.6931475 | AR97: =CHOOSE(m_identity,SHET!AR93, SPTL!AR93, NGET!AR93) -> 193.8079299 | AS97: =CHOOSE(m_identity,SHET!AS93, SPTL!AS93, NGET!AS93) -> 264.152693 | AT97: =CHOOSE(m_identity,SHET!AT93, SPTL!AT93, NGET!AT93) -> 426.7920339
E98: Actual asset replacement capex expenditure | G98: £m 18/19 prices | H98: =CHOOSE(m_identity,SHET!H94, SPTL!H94, NGET!H94) -> ARCU | AP98: =CHOOSE(m_identity,SHET!AP94, SPTL!AP94, NGET!AP94) -> 0 | AQ98: =CHOOSE(m_identity,SHET!AQ94, SPTL!AQ94, NGET!AQ94) -> 1.543013607 | AR98: =CHOOSE(m_identity,SHET!AR94, SPTL!AR94, NGET!AR94) -> 3.771955534 | AS98: =CHOOSE(m_identity,SHET!AS94, SPTL!AS94, NGET!AS94) -> 1.451167296 | AT98: =CHOOSE(m_identity,SHET!AT94, SPTL!AT94, NGET!AT94) -> 0.9118742526
E99: Actual other capex expenditure | G99: £m 18/19 prices | H99: =CHOOSE(m_identity,SHET!H95, SPTL!H95, NGET!H95) -> AOCU | AP99: =CHOOSE(m_identity,SHET!AP95, SPTL!AP95, NGET!AP95) -> 0 | AQ99: =CHOOSE(m_identity,SHET!AQ95, SPTL!AQ95, NGET!AQ95) -> 0.1806600461 | AR99: =CHOOSE(m_identity,SHET!AR95, SPTL!AR95, NGET!AR95) -> 0.4416303639 | AS99: =CHOOSE(m_identity,SHET!AS95, SPTL!AS95, NGET!AS95) -> 12.91990644 | AT99: =CHOOSE(m_identity,SHET!AT95, SPTL!AT95, NGET!AT95) -> 12.97676461
E100: Actual network operating costs (opex) | G100: £m 18/19 prices | H100: =CHOOSE(m_identity,SHET!H96, SPTL!H96, NGET!H96) -> ACOU | AP100: =CHOOSE(m_identity,SHET!AP96, SPTL!AP96, NGET!AP96) -> 0 | AQ100: =CHOOSE(m_identity,SHET!AQ96, SPTL!AQ96, NGET!AQ96) -> 0.001650881491 | AR100: =CHOOSE(m_identity,SHET!AR96, SPTL!AR96, NGET!AR96) -> 0.004035642684 | AS100: =CHOOSE(m_identity,SHET!AS96, SPTL!AS96, NGET!AS96) -> 0.001552614454 | AT100: =CHOOSE(m_identity,SHET!AT96, SPTL!AT96, NGET!AT96) -> 0.0009756209009
E101: Actual indirects (opex) | G101: £m 18/19 prices | H101: =CHOOSE(m_identity,SHET!H97, SPTL!H97, NGET!H97) -> AIOU | AP101: =CHOOSE(m_identity,SHET!AP97, SPTL!AP97, NGET!AP97) -> 0.3 | AQ101: =CHOOSE(m_identity,SHET!AQ97, SPTL!AQ97, NGET!AQ97) -> 8.77220316 | AR101: =CHOOSE(m_identity,SHET!AR97, SPTL!AR97, NGET!AR97) -> 20.07209069 | AS101: =CHOOSE(m_identity,SHET!AS97, SPTL!AS97, NGET!AS97) -> 29.27134438 | AT101: =CHOOSE(m_identity,SHET!AT97, SPTL!AT97, NGET!AT97) -> 21.85566164
E102: Actual non-operational capex | G102: £m 18/19 prices | H102: =CHOOSE(m_identity,SHET!H98, SPTL!H98, NGET!H98) -> ANCU | AP102: =CHOOSE(m_identity,SHET!AP98, SPTL!AP98, NGET!AP98) -> 0 | AQ102: =CHOOSE(m_identity,SHET!AQ98, SPTL!AQ98, NGET!AQ98) -> 0.0256031362 | AR102: =CHOOSE(m_identity,SHET!AR98, SPTL!AR98, NGET!AR98) -> 0.06258784164 | AS102: =CHOOSE(m_identity,SHET!AS98, SPTL!AS98, NGET!AS98) -> 0.02407913564 | AT102: =CHOOSE(m_identity,SHET!AT98, SPTL!AT98, NGET!AT98) -> 0.01513067713
E103: Total | G103: £m 18/19 prices | AP103: =SUM(AP97:AP102) -> 42.44972126 | AQ103: =SUM(AQ97:AQ102) -> 125.2162783 | AR103: =SUM(AR97:AR102) -> 218.16023 | AS103: =SUM(AS97:AS102) -> 307.8207429 | AT103: =SUM(AT97:AT102) -> 462.5524407
B105: Pass-through costs
E107: =CHOOSE(m_identity,SHET!E102, SPTL!E102, NGET!E102) -> Prescribed Rates | G107: £m 18/19 prices | H107: =CHOOSE(m_identity,SHET!H102, SPTL!H102, NGET!H102) -> RBt | AP107: =CHOOSE(m_identity,SHET!AP102, SPTL!AP102, NGET!AP102) -> 113.4376183 | AQ107: =CHOOSE(m_identity,SHET!AQ102, SPTL!AQ102, NGET!AQ102) -> 111.1303106 | AR107: =CHOOSE(m_identity,SHET!AR102, SPTL!AR102, NGET!AR102) -> 109.1409788 | AS107: =CHOOSE(m_identity,SHET!AS102, SPTL!AS102, NGET!AS102) -> 110.6346452 | AT107: =CHOOSE(m_identity,SHET!AT102, SPTL!AT102, NGET!AT102) -> 113.2590413
E108: =CHOOSE(m_identity,SHET!E103, SPTL!E103, NGET!E103) -> Pension Scheme Established Deficit repair | G108: £m 18/19 prices | H108: =CHOOSE(m_identity,SHET!H103, SPTL!H103, NGET!H103) -> EDEt | AP108: =CHOOSE(m_identity,SHET!AP103, SPTL!AP103, NGET!AP103) -> 31.5 | AQ108: =CHOOSE(m_identity,SHET!AQ103, SPTL!AQ103, NGET!AQ103) -> 31.1 | AR108: =CHOOSE(m_identity,SHET!AR103, SPTL!AR103, NGET!AR103) -> 12.6 | AS108: =CHOOSE(m_identity,SHET!AS103, SPTL!AS103, NGET!AS103) -> 0 | AT108: =CHOOSE(m_identity,SHET!AT103, SPTL!AT103, NGET!AT103) -> 0
E109: =CHOOSE(m_identity,SHET!E104, SPTL!E104, NGET!E104) -> Temporary physical disconnection costs | G109: £m 18/19 prices | H109: =CHOOSE(m_identity,SHET!H104, SPTL!H104, NGET!H104) -> TPDt | AP109: =CHOOSE(m_identity,SHET!AP104, SPTL!AP104, NGET!AP104) -> 0 | AQ109: =CHOOSE(m_identity,SHET!AQ104, SPTL!AQ104, NGET!AQ104) -> 0 | AR109: =CHOOSE(m_identity,SHET!AR104, SPTL!AR104, NGET!AR104) -> 0 | AS109: =CHOOSE(m_identity,SHET!AS104, SPTL!AS104, NGET!AS104) -> 0 | AT109: =CHOOSE(m_identity,SHET!AT104, SPTL!AT104, NGET!AT104) -> 0
E110: =CHOOSE(m_identity,SHET!E105, SPTL!E105, NGET!E105) -> Energy not supplied compensatory scheme (SHET only) | G110: £m 18/19 prices | H110: =CHOOSE(m_identity,SHET!H105, SPTL!H105, NGET!H105) -> SHCPt | AP110: =CHOOSE(m_identity,SHET!AP105, SPTL!AP105, NGET!AP105) -> 0 | AQ110: =CHOOSE(m_identity,SHET!AQ105, SPTL!AQ105, NGET!AQ105) -> 0 | AR110: =CHOOSE(m_identity,SHET!AR105, SPTL!AR105, NGET!AR105) -> 0 | AS110: =CHOOSE(m_identity,SHET!AS105, SPTL!AS105, NGET!AS105) -> 0 | AT110: =CHOOSE(m_identity,SHET!AT105, SPTL!AT105, NGET!AT105) -> 0
E111: Pass-through expenditure | G111: £m 18/19 prices | H111: PTt | AP111: =SUM(AP107:AP110) -> 144.9376183 | AQ111: =SUM(AQ107:AQ110) -> 142.2303106 | AR111: =SUM(AR107:AR110) -> 121.7409788 | AS111: =SUM(AS107:AS110) -> 110.6346452 | AT111: =SUM(AT107:AT110) -> 113.2590413
B113: Incentive revenue
E115: =(CHOOSE(m_identity,SHET!E109, SPTL!E109, NGET!E109)) -> Business plan incentive | G115: £m 18/19 prices | H115: =(CHOOSE(m_identity,SHET!H109, SPTL!H109, NGET!H109)) -> BPIt | AP115: =(CHOOSE(m_identity,SHET!AP109, SPTL!AP109, NGET!AP109)) -> -13 | AQ115: =(CHOOSE(m_identity,SHET!AQ109, SPTL!AQ109, NGET!AQ109)) -> -13 | AR115: =(CHOOSE(m_identity,SHET!AR109, SPTL!AR109, NGET!AR109)) -> -13 | AS115: =(CHOOSE(m_identity,SHET!AS109, SPTL!AS109, NGET!AS109)) -> -13 | AT115: =(CHOOSE(m_identity,SHET!AT109, SPTL!AT109, NGET!AT109)) -> -13
E117: =CHOOSE(m_identity,SHET!E111, SPTL!E111, NGET!E111) -> Energy not supplied ODI | G117: £m 18/19 prices | H117: =CHOOSE(m_identity,SHET!H111, SPTL!H111, NGET!H111) -> ENSIt | AP117: =CHOOSE(m_identity,SHET!AP111, SPTL!AP111, NGET!AP111) -> 0.833996592 | AQ117: =CHOOSE(m_identity,SHET!AQ111, SPTL!AQ111, NGET!AQ111) -> 0.833996592 | AR117: =CHOOSE(m_identity,SHET!AR111, SPTL!AR111, NGET!AR111) -> 0.833996592 | AS117: =CHOOSE(m_identity,SHET!AS111, SPTL!AS111, NGET!AS111) -> 0.833996592 | AT117: =CHOOSE(m_identity,SHET!AT111, SPTL!AT111, NGET!AT111) -> 0.833996592
E118: =CHOOSE(m_identity,SHET!E112, SPTL!E112, NGET!E112) -> Insulation And Interruption Gas emissions ODI | G118: £m 18/19 prices | H118: =CHOOSE(m_identity,SHET!H112, SPTL!H112, NGET!H112) -> IIGIt | AP118: =CHOOSE(m_identity,SHET!AP112, SPTL!AP112, NGET!AP112) -> 1.667856017 | AQ118: =CHOOSE(m_identity,SHET!AQ112, SPTL!AQ112, NGET!AQ112) -> 0.9379451046 | AR118: =CHOOSE(m_identity,SHET!AR112, SPTL!AR112, NGET!AR112) -> 0.9141090681 | AS118: =CHOOSE(m_identity,SHET!AS112, SPTL!AS112, NGET!AS112) -> -0.6036639837 | AT118: =CHOOSE(m_identity,SHET!AT112, SPTL!AT112, NGET!AT112) -> -0.4138176239
E119: =CHOOSE(m_identity,SHET!E113, SPTL!E113, NGET!E113) -> Timely Connections ODI | G119: £m 18/19 prices | H119: =CHOOSE(m_identity,SHET!H113, SPTL!H113, NGET!H113) -> CONADJt | AP119: =CHOOSE(m_identity,SHET!AP113, SPTL!AP113, NGET!AP113) -> -0.2627083333 | AQ119: =CHOOSE(m_identity,SHET!AQ113, SPTL!AQ113, NGET!AQ113) -> -0.2627083333 | AR119: =CHOOSE(m_identity,SHET!AR113, SPTL!AR113, NGET!AR113) -> -0.2627083333 | AS119: =CHOOSE(m_identity,SHET!AS113, SPTL!AS113, NGET!AS113) -> -0.2627083333 | AT119: =CHOOSE(m_identity,SHET!AT113, SPTL!AT113, NGET!AT113) -> -0.2627083333
E120: =CHOOSE(m_identity,SHET!E114, SPTL!E114, NGET!E114) -> Quality of connections satisfaction survey ODI | G120: £m 18/19 prices | H120: =CHOOSE(m_identity,SHET!H114, SPTL!H114, NGET!H114) -> QCSt | AP120: =CHOOSE(m_identity,SHET!AP114, SPTL!AP114, NGET!AP114) -> 0.2353260417 | AQ120: =CHOOSE(m_identity,SHET!AQ114, SPTL!AQ114, NGET!AQ114) -> 0 | AR120: =CHOOSE(m_identity,SHET!AR114, SPTL!AR114, NGET!AR114) -> 0 | AS120: =CHOOSE(m_identity,SHET!AS114, SPTL!AS114, NGET!AS114) -> 0 | AT120: =CHOOSE(m_identity,SHET!AT114, SPTL!AT114, NGET!AT114) -> 0
E121: =CHOOSE(m_identity,SHET!E115, SPTL!E115, NGET!E115) -> SO-TO Optimisation ODI | G121: £m 18/19 prices | H121: =CHOOSE(m_identity,SHET!H115, SPTL!H115, NGET!H115) -> SOTOt | AP121: =CHOOSE(m_identity,SHET!AP115, SPTL!AP115, NGET!AP115) -> 4.948448 | AQ121: =CHOOSE(m_identity,SHET!AQ115, SPTL!AQ115, NGET!AQ115) -> 0 | AR121: =CHOOSE(m_identity,SHET!AR115, SPTL!AR115, NGET!AR115) -> 0 | AS121: =CHOOSE(m_identity,SHET!AS115, SPTL!AS115, NGET!AS115) -> 0 | AT121: =CHOOSE(m_identity,SHET!AT115, SPTL!AT115, NGET!AT115) -> 0
E122: =CHOOSE(m_identity,SHET!E116, SPTL!E116, NGET!E116) -> Environmental scorecard ODI | G122: £m 18/19 prices | H122: =CHOOSE(m_identity,SHET!H116, SPTL!H116, NGET!H116) -> ESIt | AP122: =CHOOSE(m_identity,SHET!AP116, SPTL!AP116, NGET!AP116) -> 0.51351564 | AQ122: =CHOOSE(m_identity,SHET!AQ116, SPTL!AQ116, NGET!AQ116) -> 1.115445375 | AR122: =CHOOSE(m_identity,SHET!AR116, SPTL!AR116, NGET!AR116) -> 1.115463195 | AS122: =CHOOSE(m_identity,SHET!AS116, SPTL!AS116, NGET!AS116) -> 1.116039375 | AT122: =CHOOSE(m_identity,SHET!AT116, SPTL!AT116, NGET!AT116) -> 1.116087555
E123: Output delivery incentives | G123: £m 18/19 prices | H123: ODIt | AP123: =SUM(AP117:AP122) -> 7.936433957 | AQ123: =SUM(AQ117:AQ122) -> 2.624678738 | AR123: =SUM(AR117:AR122) -> 2.600860522 | AS123: =SUM(AS117:AS122) -> 1.08366365 | AT123: =SUM(AT117:AT122) -> 1.27355819
B125: Other revenue allowances
E127: =(CHOOSE(m_identity,SHET!E128, SPTL!E128, NGET!E128)) -> Transmission investment for renewable generation (SHET and SPTL only) | G127: £m nominal | H127: =(CHOOSE(m_identity,SHET!H128, SPTL!H128, NGET!H128)) -> LTIRGt | AP127: =(CHOOSE(m_identity,SHET!AP128, SPTL!AP128, NGET!AP128)) -> 0 | AQ127: =(CHOOSE(m_identity,SHET!AQ128, SPTL!AQ128, NGET!AQ128)) -> 0 | AR127: =(CHOOSE(m_identity,SHET!AR128, SPTL!AR128, NGET!AR128)) -> 0 | AS127: =(CHOOSE(m_identity,SHET!AS128, SPTL!AS128, NGET!AS128)) -> 0 | AT127: =(CHOOSE(m_identity,SHET!AT128, SPTL!AT128, NGET!AT128)) -> 0
E128: =(CHOOSE(m_identity,SHET!E129, SPTL!E129, NGET!E129)) -> Pre-RIIO-1 pension true-up | G128: £m 18/19 prices | H128: PRPNt | I128: =(CHOOSE(m_identity,SHET!I129, SPTL!I129, NGET!I129)) -> 18.40284909 | AP128: =($I$128/9)*(1+$AH$218)*(1+$AI$218)*(1+$AJ$218)*(1+$AK$218)*(1+$AL$218)*(1+$AM$218)*(1+$AN$218)*(1+$AO$218)*(1+$AP$218) * (AP$4 = $I$223) -> 2.90613299 | AQ128: =($I$128/9)*(1+$AH$218)*(1+$AI$218)*(1+$AJ$218)*(1+$AK$218)*(1+$AL$218)*(1+$AM$218)*(1+$AN$218)*(1+$AO$218)*(1+$AP$218) * (AQ$4 = $I$223) -> 0 | AR128: =($I$128/9)*(1+$AH$218)*(1+$AI$218)*(1+$AJ$218)*(1+$AK$218)*(1+$AL$218)*(1+$AM$218)*(1+$AN$218)*(1+$AO$218)*(1+$AP$218) * (AR$4 = $I$223) -> 0 | AS128: =($I$128/9)*(1+$AH$218)*(1+$AI$218)*(1+$AJ$218)*(1+$AK$218)*(1+$AL$218)*(1+$AM$218)*(1+$AN$218)*(1+$AO$218)*(1+$AP$218) * (AS$4 = $I$223) -> 0 | AT128: =($I$128/9)*(1+$AH$218)*(1+$AI$218)*(1+$AJ$218)*(1+$AK$218)*(1+$AL$218)*(1+$AM$218)*(1+$AN$218)*(1+$AO$218)*(1+$AP$218) * (AT$4 = $I$223) -> 0
I129: Assumed cost multipliers:
E130: =CHOOSE(m_identity,SHET!E120, SPTL!E120, NGET!E120) -> RIIO-2 network innovation allowance | G130: £m 18/19 prices | H130: =CHOOSE(m_identity,SHET!H120, SPTL!H120, NGET!H120) -> NIAt | I130: =(CHOOSE(m_identity,SHET!I593, SPTL!I593, NGET!I593)) -> 1.111111111 | AP130: =CHOOSE(m_identity,SHET!AP120, SPTL!AP120, NGET!AP120) -> 2.125792783 | AQ130: =CHOOSE(m_identity,SHET!AQ120, SPTL!AQ120, NGET!AQ120) -> 4.977968276 | AR130: =CHOOSE(m_identity,SHET!AR120, SPTL!AR120, NGET!AR120) -> 15.373599 | AS130: =CHOOSE(m_identity,SHET!AS120, SPTL!AS120, NGET!AS120) -> 15.59758194 | AT130: =CHOOSE(m_identity,SHET!AT120, SPTL!AT120, NGET!AT120) -> 11.21532514
E131: =CHOOSE(m_identity,SHET!E121, SPTL!E121, NGET!E121) -> Carry-over Network Innovation Allowance | G131: £m 18/19 prices | H131: =CHOOSE(m_identity,SHET!H121, SPTL!H121, NGET!H121) -> CNIAt | I131: =(CHOOSE(m_identity,SHET!I594, SPTL!I594, NGET!I594)) -> 1.111111111 | AP131: =CHOOSE(m_identity,SHET!AP121, SPTL!AP121, NGET!AP121) -> 0.6531321506 | AQ131: =CHOOSE(m_identity,SHET!AQ121, SPTL!AQ121, NGET!AQ121) -> 0 | AR131: =CHOOSE(m_identity,SHET!AR121, SPTL!AR121, NGET!AR121) -> 0 | AS131: =CHOOSE(m_identity,SHET!AS121, SPTL!AS121, NGET!AS121) -> 0 | AT131: =CHOOSE(m_identity,SHET!AT121, SPTL!AT121, NGET!AT121) -> 0
E132: =CHOOSE(m_identity,SHET!E122, SPTL!E122, NGET!E122) -> Net Zero Fund use it or lose it allowance (SHET and SPTL only) | G132: £m 18/19 prices | H132: =CHOOSE(m_identity,SHET!H122, SPTL!H122, NGET!H122) -> NZFt | I132: =(CHOOSE(m_identity,SHET!I595, SPTL!I595, NGET!I595)) -> 1 | AP132: =CHOOSE(m_identity,SHET!AP122, SPTL!AP122, NGET!AP122) -> 0 | AQ132: =CHOOSE(m_identity,SHET!AQ122, SPTL!AQ122, NGET!AQ122) -> 0 | AR132: =CHOOSE(m_identity,SHET!AR122, SPTL!AR122, NGET!AR122) -> 0 | AS132: =CHOOSE(m_identity,SHET!AS122, SPTL!AS122, NGET!AS122) -> 0 | AT132: =CHOOSE(m_identity,SHET!AT122, SPTL!AT122, NGET!AT122) -> 0
E133: =CHOOSE(m_identity,SHET!E123, SPTL!E123, NGET!E123) -> Net zero carbon Capital Construction use it or lose it allowance (NGET only) | G133: £m 18/19 prices | H133: =CHOOSE(m_identity,SHET!H123, SPTL!H123, NGET!H123) -> NZ3Ct | I133: =(CHOOSE(m_identity,SHET!I596, SPTL!I596, NGET!I596)) -> 1 | AP133: =CHOOSE(m_identity,SHET!AP123, SPTL!AP123, NGET!AP123) -> 0 | AQ133: =CHOOSE(m_identity,SHET!AQ123, SPTL!AQ123, NGET!AQ123) -> 0 | AR133: =CHOOSE(m_identity,SHET!AR123, SPTL!AR123, NGET!AR123) -> 0 | AS133: =CHOOSE(m_identity,SHET!AS123, SPTL!AS123, NGET!AS123) -> 0 | AT133: =CHOOSE(m_identity,SHET!AT123, SPTL!AT123, NGET!AT123) -> 2.5
E134: =CHOOSE(m_identity,SHET!E124, SPTL!E124, NGET!E124) -> Non-Technical Mitigation Projects allowance | G134: £m 18/19 prices | H134: =CHOOSE(m_identity,SHET!H124, SPTL!H124, NGET!H124) -> NTMPt | I134: =(CHOOSE(m_identity,SHET!I597, SPTL!I597, NGET!I597)) -> 1 | AP134: =CHOOSE(m_identity,SHET!AP124, SPTL!AP124, NGET!AP124) -> 0 | AQ134: =CHOOSE(m_identity,SHET!AQ124, SPTL!AQ124, NGET!AQ124) -> 0 | AR134: =CHOOSE(m_identity,SHET!AR124, SPTL!AR124, NGET!AR124) -> 0 | AS134: =CHOOSE(m_identity,SHET!AS124, SPTL!AS124, NGET!AS124) -> 0 | AT134: =CHOOSE(m_identity,SHET!AT124, SPTL!AT124, NGET!AT124) -> 0
E135: =CHOOSE(m_identity,SHET!E125, SPTL!E125, NGET!E125) -> Spare 1 | G135: £m 18/19 prices | H135: =CHOOSE(m_identity,SHET!H125, SPTL!H125, NGET!H125) -> 0 | I135: =(CHOOSE(m_identity,SHET!I598, SPTL!I598, NGET!I598)) -> 0 | AP135: =CHOOSE(m_identity,SHET!AP125, SPTL!AP125, NGET!AP125) -> 0 | AQ135: =CHOOSE(m_identity,SHET!AQ125, SPTL!AQ125, NGET!AQ125) -> 0 | AR135: =CHOOSE(m_identity,SHET!AR125, SPTL!AR125, NGET!AR125) -> 0 | AS135: =CHOOSE(m_identity,SHET!AS125, SPTL!AS125, NGET!AS125) -> 0 | AT135: =CHOOSE(m_identity,SHET!AT125, SPTL!AT125, NGET!AT125) -> 0
E136: =CHOOSE(m_identity,SHET!E126, SPTL!E126, NGET!E126) -> Spare 2 | G136: £m 18/19 prices | H136: =CHOOSE(m_identity,SHET!H126, SPTL!H126, NGET!H126) -> 0 | I136: =(CHOOSE(m_identity,SHET!I599, SPTL!I599, NGET!I599)) -> 0 | AP136: =CHOOSE(m_identity,SHET!AP126, SPTL!AP126, NGET!AP126) -> 0 | AQ136: =CHOOSE(m_identity,SHET!AQ126, SPTL!AQ126, NGET!AQ126) -> 0 | AR136: =CHOOSE(m_identity,SHET!AR126, SPTL!AR126, NGET!AR126) -> 0 | AS136: =CHOOSE(m_identity,SHET!AS126, SPTL!AS126, NGET!AS126) -> 0 | AT136: =CHOOSE(m_identity,SHET!AT126, SPTL!AT126, NGET!AT126) -> 0
E137: =CHOOSE(m_identity,SHET!E127, SPTL!E127, NGET!E127) -> Spare 3 | G137: £m 18/19 prices | H137: =CHOOSE(m_identity,SHET!H127, SPTL!H127, NGET!H127) -> 0 | I137: =(CHOOSE(m_identity,SHET!I600, SPTL!I600, NGET!I600)) -> 0 | AP137: =CHOOSE(m_identity,SHET!AP127, SPTL!AP127, NGET!AP127) -> 0 | AQ137: =CHOOSE(m_identity,SHET!AQ127, SPTL!AQ127, NGET!AQ127) -> 0 | AR137: =CHOOSE(m_identity,SHET!AR127, SPTL!AR127, NGET!AR127) -> 0 | AS137: =CHOOSE(m_identity,SHET!AS127, SPTL!AS127, NGET!AS127) -> 0 | AT137: =CHOOSE(m_identity,SHET!AT127, SPTL!AT127, NGET!AT127) -> 0
E138: Transmission investment for renewable generation | G138: £m 18/19 prices | H138: TIRGt | I138: =(CHOOSE(m_identity,SHET!I601, SPTL!I601, NGET!I601)) -> 0 | AP138: =AP127/TOpf -> 0 | AQ138: =AQ127/TOpf -> 0 | AR138: =AR127/TOpf -> 0 | AS138: =AS127/TOpf -> 0 | AT138: =AT127/TOpf -> 0
E139: Pre-RIIO-1 pension true-up | G139: £m 18/19 prices | H139: =H128 -> PRPNt | I139: =(CHOOSE(m_identity,SHET!I602, SPTL!I602, NGET!I602)) -> 0 | AP139: =AP128 -> 2.90613299 | AQ139: =AQ128 -> 0 | AR139: =AR128 -> 0 | AS139: =AS128 -> 0 | AT139: =AT128 -> 0
E140: Other revenue allowance | G140: £m 18/19 prices | H140: ORAt | AP140: =SUM(AP130:AP139) -> 5.685057924 | AQ140: =SUM(AQ130:AQ139) -> 4.977968276 | AR140: =SUM(AR130:AR139) -> 15.373599 | AS140: =SUM(AS130:AS139) -> 15.59758194 | AT140: =SUM(AT130:AT139) -> 13.71532514
E142: Costs associated with "Other revenue" | G142: £m 18/19 prices | AP142: =SUMPRODUCT((AP130:AP139*$I$130:$I$139)) -> 3.087694371 | AQ142: =SUMPRODUCT((AQ130:AQ139*$I$130:$I$139)) -> 5.531075862 | AR142: =SUMPRODUCT((AR130:AR139*$I$130:$I$139)) -> 17.08177667 | AS142: =SUMPRODUCT((AS130:AS139*$I$130:$I$139)) -> 17.3306466 | AT142: =SUMPRODUCT((AT130:AT139*$I$130:$I$139)) -> 14.96147238
B144: Legacy adjustments
E146: =CHOOSE(m_identity,SHET!E133, SPTL!E133, NGET!E133) -> Close-out of RIIO-ET1 pass-through items | G146: £m nominal | H146: =CHOOSE(m_identity,SHET!H133, SPTL!H133, NGET!H133) -> LPTt | AP146: =CHOOSE(m_identity,SHET!AP133, SPTL!AP133, NGET!AP133) -> 3.309423173 | AQ146: =CHOOSE(m_identity,SHET!AQ133, SPTL!AQ133, NGET!AQ133) -> 3.84216644 | AR146: =CHOOSE(m_identity,SHET!AR133, SPTL!AR133, NGET!AR133) -> 0 | AS146: =CHOOSE(m_identity,SHET!AS133, SPTL!AS133, NGET!AS133) -> 0 | AT146: =CHOOSE(m_identity,SHET!AT133, SPTL!AT133, NGET!AT133) -> 0
E147: =CHOOSE(m_identity,SHET!E134, SPTL!E134, NGET!E134) -> Legacy MOD | G147: £m nominal | H147: =CHOOSE(m_identity,SHET!H134, SPTL!H134, NGET!H134) -> LMODt | AP147: =CHOOSE(m_identity,SHET!AP134, SPTL!AP134, NGET!AP134) -> -41.85165644 | AQ147: =CHOOSE(m_identity,SHET!AQ134, SPTL!AQ134, NGET!AQ134) -> -177.6565005 | AR147: =$AP$157/3*AR158*AR240 -> -54.69151554 | AS147: =$AP$157/3*AS158*AS240 -> -56.65893104 | AT147: -58.2816865
E148: =CHOOSE(m_identity,SHET!E135, SPTL!E135, NGET!E135) -> Legacy K correction | G148: £m nominal | H148: =CHOOSE(m_identity,SHET!H135, SPTL!H135, NGET!H135) -> LKt | AP148: =CHOOSE(m_identity,SHET!AP135, SPTL!AP135, NGET!AP135) -> -12.09310488 | AQ148: =CHOOSE(m_identity,SHET!AQ135, SPTL!AQ135, NGET!AQ135) -> 0 | AR148: =CHOOSE(m_identity,SHET!AR135, SPTL!AR135, NGET!AR135) -> 0 | AS148: =CHOOSE(m_identity,SHET!AS135, SPTL!AS135, NGET!AS135) -> 0 | AT148: =CHOOSE(m_identity,SHET!AT135, SPTL!AT135, NGET!AT135) -> 0
E149: =CHOOSE(m_identity,SHET!E136, SPTL!E136, NGET!E136) -> Legacy TRU term | G149: £m nominal | H149: =CHOOSE(m_identity,SHET!H136, SPTL!H136, NGET!H136) -> LTRUt | AP149: =CHOOSE(m_identity,SHET!AP136, SPTL!AP136, NGET!AP136) -> -15.27212532 | AQ149: =CHOOSE(m_identity,SHET!AQ136, SPTL!AQ136, NGET!AQ136) -> -23.66624402 | AR149: =((AP162-AP161)/AP162)*AP160*(1+AP219)*(1+AQ219)*AR163 -> -1.633338164 | AS149: =((AQ162-AQ161)/AQ162)*AQ160*(1+AQ219)*(1+AR219)*AS163 -> -11.52459467
E150: =CHOOSE(m_identity,SHET!E137, SPTL!E137, NGET!E137) -> Close-out of RIIO-ET1 network outputs | G150: £m nominal | H150: =CHOOSE(m_identity,SHET!H137, SPTL!H137, NGET!H137) -> NOCOt | AP150: =CHOOSE(m_identity,SHET!AP137, SPTL!AP137, NGET!AP137) -> 0 | AQ150: =CHOOSE(m_identity,SHET!AQ137, SPTL!AQ137, NGET!AQ137) -> 0 | AR150: =CHOOSE(m_identity,SHET!AR137, SPTL!AR137, NGET!AR137) -> 0 | AS150: =CHOOSE(m_identity,SHET!AS137, SPTL!AS137, NGET!AS137) -> 0 | AT150: =CHOOSE(m_identity,SHET!AT137, SPTL!AT137, NGET!AT137) -> 0
E151: =CHOOSE(m_identity,SHET!E138, SPTL!E138, NGET!E138) -> Close-out of RIIO-ET1 stakeholder satisfaction output | G151: £m nominal | H151: =CHOOSE(m_identity,SHET!H138, SPTL!H138, NGET!H138) -> LSSOt | AP151: =CHOOSE(m_identity,SHET!AP138, SPTL!AP138, NGET!AP138) -> 16.51563674 | AQ151: =CHOOSE(m_identity,SHET!AQ138, SPTL!AQ138, NGET!AQ138) -> 17.55051843 | AR151: =CHOOSE(m_identity,SHET!AR138, SPTL!AR138, NGET!AR138) -> 0 | AS151: =CHOOSE(m_identity,SHET!AS138, SPTL!AS138, NGET!AS138) -> 0 | AT151: =CHOOSE(m_identity,SHET!AT138, SPTL!AT138, NGET!AT138) -> 0
E152: =CHOOSE(m_identity,SHET!E139, SPTL!E139, NGET!E139) -> Close-out of RIIO-ET1 environmental discretionary reward scheme adjustment | G152: £m nominal | H152: =CHOOSE(m_identity,SHET!H139, SPTL!H139, NGET!H139) -> LEDRt | AP152: =CHOOSE(m_identity,SHET!AP139, SPTL!AP139, NGET!AP139) -> 2.0164144 | AQ152: =CHOOSE(m_identity,SHET!AQ139, SPTL!AQ139, NGET!AQ139) -> 1.33266133 | AR152: =CHOOSE(m_identity,SHET!AR139, SPTL!AR139, NGET!AR139) -> 0 | AS152: =CHOOSE(m_identity,SHET!AS139, SPTL!AS139, NGET!AS139) -> 0 | AT152: =CHOOSE(m_identity,SHET!AT139, SPTL!AT139, NGET!AT139) -> 0
E153: =CHOOSE(m_identity,SHET!E140, SPTL!E140, NGET!E140) -> Close-out of RIIO-ET1 sulphur hexaflouride gas emissions incentive | G153: £m nominal | H153: =CHOOSE(m_identity,SHET!H140, SPTL!H140, NGET!H140) -> LSFIt | AP153: =CHOOSE(m_identity,SHET!AP140, SPTL!AP140, NGET!AP140) -> -0.03196627089 | AQ153: =CHOOSE(m_identity,SHET!AQ140, SPTL!AQ140, NGET!AQ140) -> 0.854299119 | AR153: =CHOOSE(m_identity,SHET!AR140, SPTL!AR140, NGET!AR140) -> 0 | AS153: =CHOOSE(m_identity,SHET!AS140, SPTL!AS140, NGET!AS140) -> 0 | AT153: =CHOOSE(m_identity,SHET!AT140, SPTL!AT140, NGET!AT140) -> 0
E154: =CHOOSE(m_identity,SHET!E141, SPTL!E141, NGET!E141) -> Close-out of RIIO-ET1 energy not supplied reliability incentive | G154: £m nominal | H154: =CHOOSE(m_identity,SHET!H141, SPTL!H141, NGET!H141) -> LRIt | AP154: =CHOOSE(m_identity,SHET!AP141, SPTL!AP141, NGET!AP141) -> 3.651296194 | AQ154: =CHOOSE(m_identity,SHET!AQ141, SPTL!AQ141, NGET!AQ141) -> 4.554098905 | AR154: =CHOOSE(m_identity,SHET!AR141, SPTL!AR141, NGET!AR141) -> 0 | AS154: =CHOOSE(m_identity,SHET!AS141, SPTL!AS141, NGET!AS141) -> 0 | AT154: =CHOOSE(m_identity,SHET!AT141, SPTL!AT141, NGET!AT141) -> 0
E155: Legacy adjustments | G155: £m nominal | H155: LARt | AP155: =SUM(AP146:AP154) -> -43.75608241 | AQ155: =SUM(AQ146:AQ154) -> -173.1890003 | AR155: =SUM(AR146:AR154) -> -56.3248537 | AS155: =SUM(AS146:AS154) -> -68.18352571 | AT155: =SUM(AT146:AT154) -> -58.2816865
E157: Closeout adjustment | G157: £m 18/19 prices | H157: COAt | AP157: =CHOOSE(m_identity,SHET!AP143, SPTL!AP143, NGET!AP143) -> -124.6023443
E158: Compound WACC | G158: % | H158: CWACC | AP158: 1 | AQ158: =PRODUCT(1+$AP$219:AP219) -> 1.030372752 | AR158: =PRODUCT(1+$AP$219:AQ219) -> 1.060899855 | AS158: =PRODUCT(1+$AP$219:AR219) -> 1.095542031 | AT158: =PRODUCT(1+$AP$219:AS219) -> 1.132024091
E160: =CHOOSE(m_identity,SHET!E145, SPTL!E145, NGET!E145) -> Revenue for TRU term | G160: =CHOOSE(m_identity,SHET!G145, SPTL!G145, NGET!G145) -> £m 09/10 prices | H160: =CHOOSE(m_identity,SHET!H145, SPTL!H145, NGET!H145) -> REVt | AP160: =CHOOSE(m_identity,SHET!AP145, SPTL!AP145, NGET!AP145) -> -35.75144492 | AQ160: =CHOOSE(m_identity,SHET!AQ145, SPTL!AQ145, NGET!AQ145) -> -67.69432084
E161: =CHOOSE(m_identity,SHET!E146, SPTL!E146, NGET!E146) -> RIIO-1 RPI forecast term | G161: =CHOOSE(m_identity,SHET!G146, SPTL!G146, NGET!G146) -> scalar | H161: =CHOOSE(m_identity,SHET!H146, SPTL!H146, NGET!H146) -> RPIFt | AP161: =CHOOSE(m_identity,SHET!AP146, SPTL!AP146, NGET!AP146) -> 1.404 | AQ161: =CHOOSE(m_identity,SHET!AQ146, SPTL!AQ146, NGET!AQ146) -> 1.465
E162: Actual RPI term (09/10 inflation factor) | G162: scalar | AP162: ='Annual Inflation'!AP23/'Annual Inflation'!$AD$23 -> 1.44210567 | AQ162: ='Annual Inflation'!AQ23/'Annual Inflation'!$AD$23 -> 1.62404801
E163: Combined RPI-CPIH real to nominal prices conversion factor (09/10 prices) | G163: scalar | AP163: ='Annual Inflation'!AP29/'Annual Inflation'!$AD$29 -> 1.42435446 | AQ163: ='Annual Inflation'!AQ29/'Annual Inflation'!$AD$29 -> 1.549206087 | AR163: ='Annual Inflation'!AR29/'Annual Inflation'!$AD$29 -> 1.629729798 | AS163: ='Annual Inflation'!AS29/'Annual Inflation'!$AD$29 -> 1.634968428 | AT163: ='Annual Inflation'!AT29/'Annual Inflation'!$AD$29 -> 1.627595497
B165: Directly remunerated services
E167: =(CHOOSE(m_identity,SHET!E150, SPTL!E150, NGET!E150)) -> Pre-vesting directly remunerated services | G167: £m 18/19 prices | H167: =(CHOOSE(m_identity,SHET!H150, SPTL!H150, NGET!H150)) -> PREDRSt | AP167: =(CHOOSE(m_identity,SHET!AP150, SPTL!AP150, NGET!AP150)) -> 21.41072329 | AQ167: =(CHOOSE(m_identity,SHET!AQ150, SPTL!AQ150, NGET!AQ150)) -> 25 | AR167: =(CHOOSE(m_identity,SHET!AR150, SPTL!AR150, NGET!AR150)) -> 23.9 | AS167: =(CHOOSE(m_identity,SHET!AS150, SPTL!AS150, NGET!AS150)) -> 23.5 | AT167: =(CHOOSE(m_identity,SHET!AT150, SPTL!AT150, NGET!AT150)) -> 22.8
E168: =(CHOOSE(m_identity,SHET!E151, SPTL!E151, NGET!E151)) -> Post-vesting directly remunerated services | G168: £m 18/19 prices | H168: =(CHOOSE(m_identity,SHET!H151, SPTL!H151, NGET!H151)) -> POSDRSt | AP168: =(CHOOSE(m_identity,SHET!AP151, SPTL!AP151, NGET!AP151)) -> 123.3001758 | AQ168: =(CHOOSE(m_identity,SHET!AQ151, SPTL!AQ151, NGET!AQ151)) -> 126.9 | AR168: =(CHOOSE(m_identity,SHET!AR151, SPTL!AR151, NGET!AR151)) -> 123.4 | AS168: =(CHOOSE(m_identity,SHET!AS151, SPTL!AS151, NGET!AS151)) -> 120.2 | AT168: =(CHOOSE(m_identity,SHET!AT151, SPTL!AT151, NGET!AT151)) -> 119.4
E169: =(CHOOSE(m_identity,SHET!E152, SPTL!E152, NGET!E152)) -> Other Income directly remunerated services | G169: £m 18/19 prices | H169: =(CHOOSE(m_identity,SHET!H152, SPTL!H152, NGET!H152)) -> OIDRSt | AP169: =(CHOOSE(m_identity,SHET!AP152, SPTL!AP152, NGET!AP152)) -> 29.41629068 | AQ169: =(CHOOSE(m_identity,SHET!AQ152, SPTL!AQ152, NGET!AQ152)) -> 16.737744 | AR169: =(CHOOSE(m_identity,SHET!AR152, SPTL!AR152, NGET!AR152)) -> 13.488448 | AS169: =(CHOOSE(m_identity,SHET!AS152, SPTL!AS152, NGET!AS152)) -> 13.603438 | AT169: =(CHOOSE(m_identity,SHET!AT152, SPTL!AT152, NGET!AT152)) -> 13.671925
E170: =(CHOOSE(m_identity,SHET!E153, SPTL!E153, NGET!E153)) -> Identified directly remunerated services costs | G170: £m 18/19 prices | H170: =(CHOOSE(m_identity,SHET!H153, SPTL!H153, NGET!H153)) -> IDRSt | AP170: =(CHOOSE(m_identity,SHET!AP153, SPTL!AP153, NGET!AP153)) -> -22.22648506 | AQ170: =(CHOOSE(m_identity,SHET!AQ153, SPTL!AQ153, NGET!AQ153)) -> -13.531 | AR170: =(CHOOSE(m_identity,SHET!AR153, SPTL!AR153, NGET!AR153)) -> -9.529471 | AS170: =(CHOOSE(m_identity,SHET!AS153, SPTL!AS153, NGET!AS153)) -> -9.573419 | AT170: =(CHOOSE(m_identity,SHET!AT153, SPTL!AT153, NGET!AT153)) -> -9.578127
E171: Directly remunerated services net position | G171: £m 18/19 prices | AP171: =SUM(AP167:AP170) -> 151.9007047 | AQ171: =SUM(AQ167:AQ170) -> 155.106744 | AR171: =SUM(AR167:AR170) -> 151.258977 | AS171: =SUM(AS167:AS170) -> 147.730019 | AT171: =SUM(AT167:AT170) -> 146.293798
E173: Directly remunerated services adjustment | G173: £m 18/19 prices | H173: DRSt | AP173: =- AP171 -> -151.9007047 | AQ173: =- AQ171 -> -155.106744 | AR173: =- AR171 -> -151.258977 | AS173: =- AS171 -> -147.730019 | AT173: =- AT171 -> -146.293798
B175: Finance inputs
C177: Allowed return on debt
C178: Note: RAV calculations below are for use in the SHET weighted average allowed return on debt calculation and therefore are not applicable to the other operators.
E180: =CHOOSE(m_identity,SHET!E157, SPTL!E157, NGET!E157) -> iBoxx trailing average | G180: annual real % | H180: =CHOOSE(m_identity,SHET!H157, SPTL!H157, NGET!H157) -> iBTAt | AH180: =CHOOSE(m_identity,SHET!AH157, SPTL!AH157, NGET!AH157) -> 0.0375 | AI180: =CHOOSE(m_identity,SHET!AI157, SPTL!AI157, NGET!AI157) -> 0.0363 | AJ180: =CHOOSE(m_identity,SHET!AJ157, SPTL!AJ157, NGET!AJ157) -> 0.0351 | AK180: =CHOOSE(m_identity,SHET!AK157, SPTL!AK157, NGET!AK157) -> 0.0337 | AL180: =CHOOSE(m_identity,SHET!AL157, SPTL!AL157, NGET!AL157) -> 0.0323 | AM180: =CHOOSE(m_identity,SHET!AM157, SPTL!AM157, NGET!AM157) -> 0.0298 | AN180: =CHOOSE(m_identity,SHET!AN157, SPTL!AN157, NGET!AN157) -> 0.0268 | AO180: =CHOOSE(m_identity,SHET!AO157, SPTL!AO157, NGET!AO157) -> 0.0235 | AP180: =CHOOSE(m_identity,SHET!AP157, SPTL!AP157, NGET!AP157) -> 0.0205 | AQ180: =CHOOSE(m_identity,SHET!AQ157, SPTL!AQ157, NGET!AQ157) -> 0.019 | AR180: =CHOOSE(m_identity,SHET!AR157, SPTL!AR157, NGET!AR157) -> 0.0192 | AS180: =CHOOSE(m_identity,SHET!AS157, SPTL!AS157, NGET!AS157) -> 0.0206 | AT180: =CHOOSE(m_identity,SHET!AT157, SPTL!AT157, NGET!AT157) -> 0.022
E181: =CHOOSE(m_identity,SHET!E158, SPTL!E158, NGET!E158) -> iBoxx average (Financial Year) | G181: annual real % | H181: =CHOOSE(m_identity,SHET!H158, SPTL!H158, NGET!H158) -> iBAFYt | AH181: =CHOOSE(m_identity,SHET!AH158, SPTL!AH158, NGET!AH158) -> 0.0281 | AI181: =CHOOSE(m_identity,SHET!AI158, SPTL!AI158, NGET!AI158) -> 0.0238 | AJ181: =CHOOSE(m_identity,SHET!AJ158, SPTL!AJ158, NGET!AJ158) -> 0.0233 | AK181: =CHOOSE(m_identity,SHET!AK158, SPTL!AK158, NGET!AK158) -> 0.0142 | AL181: =CHOOSE(m_identity,SHET!AL158, SPTL!AL158, NGET!AL158) -> 0.0126 | AM181: =CHOOSE(m_identity,SHET!AM158, SPTL!AM158, NGET!AM158) -> 0.0158 | AN181: =CHOOSE(m_identity,SHET!AN158, SPTL!AN158, NGET!AN158) -> 0.0085 | AO181: =CHOOSE(m_identity,SHET!AO158, SPTL!AO158, NGET!AO158) -> 0.0039 | AP181: =CHOOSE(m_identity,SHET!AP158, SPTL!AP158, NGET!AP158) -> 0.0071 | AQ181: =CHOOSE(m_identity,SHET!AQ158, SPTL!AQ158, NGET!AQ158) -> 0.033 | AR181: =CHOOSE(m_identity,SHET!AR158, SPTL!AR158, NGET!AR158) -> 0.0393 | AS181: =CHOOSE(m_identity,SHET!AS158, SPTL!AS158, NGET!AS158) -> 0.0399 | AT181: =CHOOSE(m_identity,SHET!AT158, SPTL!AT158, NGET!AT158) -> 0.0405
E182: =CHOOSE(m_identity,SHET!E159, SPTL!E159, NGET!E159) -> iBoxx average (April - October) | G182: annual real % | H182: =CHOOSE(m_identity,SHET!H159, SPTL!H159, NGET!H159) -> iBAAOt | AH182: =CHOOSE(m_identity,SHET!AH159, SPTL!AH159, NGET!AH159) -> 0.0276 | AI182: =CHOOSE(m_identity,SHET!AI159, SPTL!AI159, NGET!AI159) -> 0.0267 | AJ182: =CHOOSE(m_identity,SHET!AJ159, SPTL!AJ159, NGET!AJ159) -> 0.0227 | AK182: =CHOOSE(m_identity,SHET!AK159, SPTL!AK159, NGET!AK159) -> 0.0142 | AL182: =CHOOSE(m_identity,SHET!AL159, SPTL!AL159, NGET!AL159) -> 0.012 | AM182: =CHOOSE(m_identity,SHET!AM159, SPTL!AM159, NGET!AM159) -> 0.0158 | AN182: =CHOOSE(m_identity,SHET!AN159, SPTL!AN159, NGET!AN159) -> 0.0094 | AO182: =CHOOSE(m_identity,SHET!AO159, SPTL!AO159, NGET!AO159) -> 0.0035 | AP182: =CHOOSE(m_identity,SHET!AP159, SPTL!AP159, NGET!AP159) -> 0.0055 | AQ182: =CHOOSE(m_identity,SHET!AQ159, SPTL!AQ159, NGET!AQ159) -> 0.0294 | AR182: =CHOOSE(m_identity,SHET!AR159, SPTL!AR159, NGET!AR159) -> 0.0392 | AS182: =CHOOSE(m_identity,SHET!AS159, SPTL!AS159, NGET!AS159) -> 0.0398 | AT182: =CHOOSE(m_identity,SHET!AT159, SPTL!AT159, NGET!AT159) -> 0.0404
E184: Opening RAV (after transfers), core and non-core (for SHET CoD weighted average only) | G184: £m 18/19 prices | AH184: =IF(m_identity = 1, SUM('Return&RAV'!AH41, NonCore!AH29), "NA") -> NA | AI184: =IF(m_identity = 1, SUM('Return&RAV'!AI41, NonCore!AI29), "NA") -> NA | AJ184: =IF(m_identity = 1, SUM('Return&RAV'!AJ41, NonCore!AJ29), "NA") -> NA | AK184: =IF(m_identity = 1, SUM('Return&RAV'!AK41, NonCore!AK29), "NA") -> NA | AL184: =IF(m_identity = 1, SUM('Return&RAV'!AL41, NonCore!AL29), "NA") -> NA | AM184: =IF(m_identity = 1, SUM('Return&RAV'!AM41, NonCore!AM29), "NA") -> NA | AN184: =IF(m_identity = 1, SUM('Return&RAV'!AN41, NonCore!AN29), "NA") -> NA | AO184: =IF(m_identity = 1, SUM('Return&RAV'!AO41, NonCore!AO29), "NA") -> NA | AP184: =IF(m_identity = 1, SUM('Return&RAV'!AP41, NonCore!AP29), "NA") -> NA | AQ184: =IF(m_identity = 1, SUM('Return&RAV'!AQ41, NonCore!AQ29), "NA") -> NA | AR184: =IF(m_identity = 1, SUM('Return&RAV'!AR41, NonCore!AR29), "NA") -> NA | AS184: =IF(m_identity = 1, SUM('Return&RAV'!AS41, NonCore!AS29), "NA") -> NA | AT184: =IF(m_identity = 1, SUM('Return&RAV'!AT41, NonCore!AT29), "NA") -> NA
E185: Closing RAV, core and non-core | G185: £m 18/19 prices | AH185: =IF(m_identity = 1, SUM('Return&RAV'!AH44, NonCore!AH32),"NA") -> NA | AI185: =IF(m_identity = 1, SUM('Return&RAV'!AI44, NonCore!AI32),"NA") -> NA | AJ185: =IF(m_identity = 1, SUM('Return&RAV'!AJ44, NonCore!AJ32),"NA") -> NA | AK185: =IF(m_identity = 1, SUM('Return&RAV'!AK44, NonCore!AK32),"NA") -> NA | AL185: =IF(m_identity = 1, SUM('Return&RAV'!AL44, NonCore!AL32),"NA") -> NA | AM185: =IF(m_identity = 1, SUM('Return&RAV'!AM44, NonCore!AM32),"NA") -> NA | AN185: =IF(m_identity = 1, SUM('Return&RAV'!AN44, NonCore!AN32),"NA") -> NA | AO185: =IF(m_identity = 1, SUM('Return&RAV'!AO44, NonCore!AO32),"NA") -> NA | AP185: =IF(m_identity = 1, SUM('Return&RAV'!AP44, NonCore!AP32),"NA") -> NA | AQ185: =IF(m_identity = 1, SUM('Return&RAV'!AQ44, NonCore!AQ32),"NA") -> NA | AR185: =IF(m_identity = 1, SUM('Return&RAV'!AR44, NonCore!AR32),"NA") -> NA | AS185: =IF(m_identity = 1, SUM('Return&RAV'!AS44, NonCore!AS32),"NA") -> NA | AT185: =IF(m_identity = 1, SUM('Return&RAV'!AT44, NonCore!AT32),"NA") -> NA
E187: Opening RAV (after transfers) | G187: £m nominal (FY start) | AH187: =IFERROR(AH184 * AH242, "NA") -> NA | AI187: =IFERROR(AI184 * AI242, "NA") -> NA | AJ187: NA | AK187: NA | AL187: NA | AM187: NA | AN187: =IFERROR(AN184 * AN242, "NA") -> NA | AO187: NA | AP187: NA | AQ187: NA | AR187: NA | AS187: NA | AT187: NA
E188: Closing RAV | G188: £m nominal (FY end) | AH188: =IFERROR(AH185 * AH243, "NA") -> NA | AI188: =IFERROR(AI185 * AI243, "NA") -> NA | AJ188: NA | AK188: NA | AL188: NA | AM188: NA | AN188: NA | AO188: NA | AP188: NA | AQ188: NA | AR188: NA | AS188: NA | AT188: NA
E189: RAV change in year | G189: £m nominal | AH189: =IFERROR(AH188 - AH187, "NA") -> NA | AI189: =IFERROR(AI188 - AI187, "NA") -> NA | AJ189: NA | AK189: NA | AL189: NA | AM189: NA | AN189: =IFERROR(AN188 - AN187, "NA") -> NA | AO189: NA | AP189: NA | AQ189: NA | AR189: NA | AS189: NA | AT189: NA
E191: iBoxx trailing average (rounded to 5 d.p.) - for derivation of WACC at 60% gearing | G191: annual real % | AP191: =AP180 -> 0.0205 | AQ191: =AQ180 -> 0.019 | AR191: 0.0192 | AS191: 0.0206 | AT191: 0.022
E192: Allowed return on debt | G192: annual real % | H192: CDEt | AP192: =IFERROR((($AH187 * AP180) + SUMPRODUCT(($AH181:AN181) * ($AH189:AN189)) + (AO189 * AO182)) / AO188, AP191) -> 0.0205 | AQ192: =IFERROR((($AH187 * AQ180) + SUMPRODUCT(($AH181:AO181) * ($AH189:AO189)) + (AP189 * AP182)) / AP188, AQ191) -> 0.019 | AR192: =IFERROR((($AH187 * AR180) + SUMPRODUCT(($AH181:AP181) * ($AH189:AP189)) + (AQ189 * AQ182)) / AQ188, AR191) -> 0.0192 | AS192: =IFERROR((($AH187 * AS180) + SUMPRODUCT(($AH181:AQ181) * ($AH189:AQ189)) + (AR189 * AR182)) / AR188, AS191) -> 0.0206 | AT192: =IFERROR((($AH187 * AT180) + SUMPRODUCT(($AH181:AR181) * ($AH189:AR189)) + (AS189 * AS182)) / AS188, AT191) -> 0.022
C194: Allowed return on equity
E196: =(CHOOSE(m_identity,SHET!E160, SPTL!E160, NGET!E160)) -> Risk-free rate | G196: annual real % | AP196: =(CHOOSE(m_identity,SHET!AP160, SPTL!AP160, NGET!AP160)) -> -0.0171 | AQ196: =(CHOOSE(m_identity,SHET!AQ160, SPTL!AQ160, NGET!AQ160)) -> -0.0155 | AR196: =(CHOOSE(m_identity,SHET!AR160, SPTL!AR160, NGET!AR160)) -> 0.0146 | AS196: =(CHOOSE(m_identity,SHET!AS160, SPTL!AS160, NGET!AS160)) -> 0.0126 | AT196: =(CHOOSE(m_identity,SHET!AT160, SPTL!AT160, NGET!AT160)) -> 0.0133
E197: Equity Beta | G197: scalar | AP197: =(CHOOSE(m_identity,SHET!AP212, SPTL!AP212, NGET!AP212)) -> 0.75861 | AQ197: =(CHOOSE(m_identity,SHET!AQ212, SPTL!AQ212, NGET!AQ212)) -> 0.75861 | AR197: =(CHOOSE(m_identity,SHET!AR212, SPTL!AR212, NGET!AR212)) -> 0.75861 | AS197: =(CHOOSE(m_identity,SHET!AS212, SPTL!AS212, NGET!AS212)) -> 0.75861 | AT197: =(CHOOSE(m_identity,SHET!AT212, SPTL!AT212, NGET!AT212)) -> 0.75861
E198: Total Market Return | G198: annual real % | AP198: =(CHOOSE(m_identity,SHET!AP213, SPTL!AP213, NGET!AP213)) -> 0.065 | AQ198: =(CHOOSE(m_identity,SHET!AQ213, SPTL!AQ213, NGET!AQ213)) -> 0.065 | AR198: =(CHOOSE(m_identity,SHET!AR213, SPTL!AR213, NGET!AR213)) -> 0.065 | AS198: =(CHOOSE(m_identity,SHET!AS213, SPTL!AS213, NGET!AS213)) -> 0.065 | AT198: =(CHOOSE(m_identity,SHET!AT213, SPTL!AT213, NGET!AT213)) -> 0.065
E200: Cost of equity at 60% gearing | G200: annual real % | AP200: =AP196 + AP197 * (AP198 - AP196) -> 0.045181881 | AQ200: =AQ196 + AQ197 * (AQ198 - AQ196) -> 0.045568105 | AR200: 0.052833944 | AS200: 0.052351164 | AT200: 0.052520137
E201: Not used | G201: Not used
E202: Allowed return on equity at 60% gearing | G202: annual real % | AP202: =AP200 -> 0.045181881 | AQ202: =AQ200 -> 0.045568105 | AR202: 0.052833944 | AS202: 0.052351164 | AT202: 0.052520137
E203: Benchmark gearing (60%) | G203: % | AP203: =(CHOOSE(m_identity,SHET!AP214, SPTL!AP214, NGET!AP214)) -> 0.6 | AQ203: =(CHOOSE(m_identity,SHET!AQ214, SPTL!AQ214, NGET!AQ214)) -> 0.6 | AR203: =(CHOOSE(m_identity,SHET!AR214, SPTL!AR214, NGET!AR214)) -> 0.6 | AS203: =(CHOOSE(m_identity,SHET!AS214, SPTL!AS214, NGET!AS214)) -> 0.6 | AT203: =(CHOOSE(m_identity,SHET!AT214, SPTL!AT214, NGET!AT214)) -> 0.6
E204: Vanilla WACC at 60% gearing | G204: annual real % | AP204: =(AP191 * AP203) + (AP200 * (1 - AP203)) -> 0.0303727524 | AQ204: =(AQ191 * AQ203) + (AQ200 * (1 - AQ203)) -> 0.029627242 | AR204: =(AR191 * AR203) + (AR200 * (1 - AR203)) -> 0.0326535776 | AS204: =(AS191 * AS203) + (AS200 * (1 - AS203)) -> 0.0333004656 | AT204: =(AT191 * AT203) + (AT200 * (1 - AT203)) -> 0.0342080548
E205: Allowed return on capital at 60% gearing | G205: annual real % | AP205: =(AP191* AP203) + (AP202 * (1 - AP203)) -> 0.0303727524 | AQ205: =(AQ191* AQ203) + (AQ202 * (1 - AQ203)) -> 0.029627242 | AR205: =(AR191* AR203) + (AR202 * (1 - AR203)) -> 0.0326535776 | AS205: =(AS191* AS203) + (AS202 * (1 - AS203)) -> 0.0333004656 | AT205: =(AT191* AT203) + (AT202 * (1 - AT203)) -> 0.0342080548
E207: Notional gearing | G207: % | AO207: =(CHOOSE(m_identity,SHET!AO216, SPTL!AO216, NGET!AO216)) -> 0.6 | AP207: =(CHOOSE(m_identity,SHET!AP216, SPTL!AP216, NGET!AP216)) -> 0.55 | AQ207: =(CHOOSE(m_identity,SHET!AQ216, SPTL!AQ216, NGET!AQ216)) -> 0.55 | AR207: =(CHOOSE(m_identity,SHET!AR216, SPTL!AR216, NGET!AR216)) -> 0.55 | AS207: =(CHOOSE(m_identity,SHET!AS216, SPTL!AS216, NGET!AS216)) -> 0.55 | AT207: =(CHOOSE(m_identity,SHET!AT216, SPTL!AT216, NGET!AT216)) -> 0.55
E208: Cost of equity at notional gearing | G208: annual real % | AP208: =(AP204 - (AP207 * AP191)) / (1 - AP207) -> 0.04243944978 | AQ208: =(AQ204 - (AQ207 * AQ191)) / (1 - AQ207) -> 0.04261609333 | AR208: 0.04909683911 | AS208: 0.04882325689 | AT208: 0.04912901067
E209: Allowed return on equity | G209: annual real % | AP209: =(AP205 - (AP191 * AP207)) / (1 - AP207) -> 0.04243944978 | AQ209: =(AQ205 - (AQ191 * AQ207)) / (1 - AQ207) -> 0.04261609333 | AR209: 0.04909683911 | AS209: 0.04882325689 | AT209: =(AT205 - (AT191 * AT207)) / (1 - AT207) -> 0.04912901067
E210: Not used | G210: Not used
C212: Vanilla allowed return on capital
E214: Allowed return on debt | G214: annual real % | AP214: =AP192 -> 0.0205 | AQ214: =AQ192 -> 0.019 | AR214: =AR192 -> 0.0192 | AS214: =AS192 -> 0.0206 | AT214: =AT192 -> 0.022
E215: Allowed return on equity | G215: annual real % | AP215: =AP209 -> 0.04243944978 | AQ215: =AQ209 -> 0.04261609333 | AR215: =AR209 -> 0.04909683911 | AS215: =AS209 -> 0.04882325689 | AT215: =AT209 -> 0.04912901067
E216: Notional gearing | G216: % | J216: > | AO216: =AO207 -> 0.6 | AP216: 0.55 | AQ216: 0.55 | AR216: 0.55 | AS216: 0.55 | AT216: 0.55
E218: Vanilla allowed return on capital | G218: annual real % | AH218: =(CHOOSE(m_identity,SHET!AH220, SPTL!AH220, NGET!AH220)) -> 0.04552 | AI218: =(CHOOSE(m_identity,SHET!AI220, SPTL!AI220, NGET!AI220)) -> 0.04432 | AJ218: =(CHOOSE(m_identity,SHET!AJ220, SPTL!AJ220, NGET!AJ220)) -> 0.0433 | AK218: =(CHOOSE(m_identity,SHET!AK220, SPTL!AK220, NGET!AK220)) -> 0.04228 | AL218: =(CHOOSE(m_identity,SHET!AL220, SPTL!AL220, NGET!AL220)) -> 0.04132 | AM218: =(CHOOSE(m_identity,SHET!AM220, SPTL!AM220, NGET!AM220)) -> 0.03946 | AN218: =(CHOOSE(m_identity,SHET!AN220, SPTL!AN220, NGET!AN220)) -> 0.03748 | AO218: =(CHOOSE(m_identity,SHET!AO220, SPTL!AO220, NGET!AO220)) -> 0.03454 | AP218: =(AP214 * AP216) + AP215 * (1 - AP216) -> 0.0303727524 | AQ218: =(AQ214 * AQ216) + AQ215 * (1 - AQ216) -> 0.029627242 | AR218: =(AR214 * AR216) + AR215 * (1 - AR216) -> 0.0326535776 | AS218: =(AS214 * AS216) + AS215 * (1 - AS216) -> 0.0333004656 | AT218: =(AT214 * AT216) + AT215 * (1 - AT216) -> 0.0342080548
E219: Vanilla weighted average cost of capital | G219: annual real % | AP219: =(AP214 * AP216) + AP208 * (1 - AP216) -> 0.0303727524 | AQ219: =(AQ214 * AQ216) + AQ208 * (1 - AQ216) -> 0.029627242 | AR219: 0.0326535776 | AS219: 0.0333004656 | AT219: 0.0342080548
C221: Inflation and price conversion
E223: Start of RIIO-2 | G223: year ending | I223: ='Annual Inflation'!I15 -> 2022-03-31
D225: Inflation rates
E227: Retail Prices Index (financial year average) | G227: index value | H227: RPIt | J227: > | V227: ='Annual Inflation'!V23 -> 173.875 | W227: ='Annual Inflation'!W23 -> 177.5166667 | X227: ='Annual Inflation'!X23 -> 182.475 | Y227: ='Annual Inflation'!Y23 -> 188.15 | Z227: ='Annual Inflation'!Z23 -> 193.1083333 | AA227: ='Annual Inflation'!AA23 -> 200.3166667 | AB227: ='Annual Inflation'!AB23 -> 208.5916667 | AC227: ='Annual Inflation'!AC23 -> 214.7833333 | AD227: ='Annual Inflation'!AD23 -> 215.7666667 | AE227: ='Annual Inflation'!AE23 -> 226.475 | AF227: ='Annual Inflation'!AF23 -> 237.3416667 | AG227: ='Annual Inflation'!AG23 -> 244.675 | AH227: ='Annual Inflation'!AH23 -> 251.7333333 | AI227: ='Annual Inflation'!AI23 -> 256.6666667 | AJ227: ='Annual Inflation'!AJ23 -> 259.4333333 | AK227: ='Annual Inflation'!AK23 -> 264.9916667 | AL227: ='Annual Inflation'!AL23 -> 274.9083333 | AM227: ='Annual Inflation'!AM23 -> 283.3083333 | AN227: ='Annual Inflation'!AN23 -> 290.6416667 | AO227: ='Annual Inflation'!AO23 -> 294.1666667 | AP227: ='Annual Inflation'!AP23 -> 311.1583333 | AQ227: ='Annual Inflation'!AQ23 -> 350.4154255 | AR227: ='Annual Inflation'!AR23 -> 377.3768672 | AS227: ='Annual Inflation'!AS23 -> 381.5056211 | AT227: ='Annual Inflation'!AT23 -> 381.8754221
E228: RPI inflation (financial year average) | G228: annual % | J228: > | W228: ='Annual Inflation'!W24 -> 0.02094416487 | X228: ='Annual Inflation'!X24 -> 0.02793164961 | Y228: ='Annual Inflation'!Y24 -> 0.03110015071 | Z228: ='Annual Inflation'!Z24 -> 0.02635308708 | AA228: ='Annual Inflation'!AA24 -> 0.03732792474 | AB228: ='Annual Inflation'!AB24 -> 0.04130959314 | AC228: ='Annual Inflation'!AC24 -> 0.02968319284 | AD228: ='Annual Inflation'!AD24 -> 0.004578257158 | AE228: ='Annual Inflation'!AE24 -> 0.04962922911 | AF228: ='Annual Inflation'!AF24 -> 0.04798174927 | AG228: ='Annual Inflation'!AG24 -> 0.03089779151 | AH228: ='Annual Inflation'!AH24 -> 0.02884779129 | AI228: ='Annual Inflation'!AI24 -> 0.01959745763 | AJ228: ='Annual Inflation'!AJ24 -> 0.01077922078 | AK228: ='Annual Inflation'!AK24 -> 0.02142490042 | AL228: ='Annual Inflation'!AL24 -> 0.03742256046 | AM228: ='Annual Inflation'!AM24 -> 0.03055563976 | AN228: ='Annual Inflation'!AN24 -> 0.02588463688 | AO228: ='Annual Inflation'!AO24 -> 0.01212833673 | AP228: ='Annual Inflation'!AP24 -> 0.05776203966 | AQ228: ='Annual Inflation'!AQ24 -> 0.1261643607 | AR228: ='Annual Inflation'!AR24 -> 0.07694136654 | AS228: ='Annual Inflation'!AS24 -> 0.01094066485 | AT228: ='Annual Inflation'!AT24 -> 0.0009693199577
E230: Consumer Prices Index incl. housing costs (financial year average) | G230: index value | H230: CPIHt | J230: > | V230: ='Annual Inflation'!V26 -> 74.86666667 | W230: ='Annual Inflation'!W26 -> 75.95833333 | X230: ='Annual Inflation'!X26 -> 76.975 | Y230: ='Annual Inflation'!Y26 -> 78.125 | Z230: ='Annual Inflation'!Z26 -> 79.825 | AA230: ='Annual Inflation'!AA26 -> 81.91666667 | AB230: ='Annual Inflation'!AB26 -> 83.825 | AC230: ='Annual Inflation'!AC26 -> 86.85833333 | AD230: ='Annual Inflation'!AD26 -> 88.43333333 | AE230: ='Annual Inflation'!AE26 -> 90.90833333 | AF230: ='Annual Inflation'!AF26 -> 94.30833333 | AG230: ='Annual Inflation'!AG26 -> 96.58333333 | AH230: ='Annual Inflation'!AH26 -> 98.6 | AI230: ='Annual Inflation'!AI26 -> 99.725 | AJ230: ='Annual Inflation'!AJ26 -> 100.1666667 | AK230: ='Annual Inflation'!AK26 -> 101.5416667 | AL230: ='Annual Inflation'!AL26 -> 104.2166667 | AM230: ='Annual Inflation'!AM26 -> 106.4333333 | AN230: ='Annual Inflation'!AN26 -> 108.2416667 | AO230: ='Annual Inflation'!AO26 -> 109.1083333 | AP230: ='Annual Inflation'!AP26 -> 113.1166667 | AQ230: ='Annual Inflation'!AQ26 -> 123.0318951 | AR230: ='Annual Inflation'!AR26 -> 129.4267737 | AS230: ='Annual Inflation'!AS26 -> 129.8428052 | AT230: ='Annual Inflation'!AT26 -> 129.2572758
E231: CPIH inflation (financial year average) | G231: annual % | J231: > | W231: ='Annual Inflation'!W27 -> 0.01458147818 | X231: ='Annual Inflation'!X27 -> 0.01338453099 | Y231: ='Annual Inflation'!Y27 -> 0.01493991556 | Z231: ='Annual Inflation'!Z27 -> 0.02176 | AA231: ='Annual Inflation'!AA27 -> 0.02620315273 | AB231: ='Annual Inflation'!AB27 -> 0.02329603255 | AC231: ='Annual Inflation'!AC27 -> 0.03618649965 | AD231: ='Annual Inflation'!AD27 -> 0.01813297515 | AE231: ='Annual Inflation'!AE27 -> 0.02798718432 | AF231: ='Annual Inflation'!AF27 -> 0.03740031167 | AG231: ='Annual Inflation'!AG27 -> 0.0241230008 | AH231: ='Annual Inflation'!AH27 -> 0.02088006903 | AI231: ='Annual Inflation'!AI27 -> 0.01140973631 | AJ231: ='Annual Inflation'!AJ27 -> 0.004428845993 | AK231: ='Annual Inflation'!AK27 -> 0.01372712146 | AL231: ='Annual Inflation'!AL27 -> 0.02634386541 | AM231: ='Annual Inflation'!AM27 -> 0.0212697905 | AN231: ='Annual Inflation'!AN27 -> 0.01699029126 | AO231: ='Annual Inflation'!AO27 -> 0.008006774963 | AP231: ='Annual Inflation'!AP27 -> 0.03673718781 | AQ231: ='Annual Inflation'!AQ27 -> 0.08765488534 | AR231: ='Annual Inflation'!AR27 -> 0.05197740429 | AS231: ='Annual Inflation'!AS27 -> 0.003214416562 | AT231: ='Annual Inflation'!AT27 -> -0.004509525488
E233: Combined RPI-CPIH price index (financial year average) | G233: index value | H233: PIt | J233: > | V233: ='Annual Inflation'!V29 -> 173.875 | W233: ='Annual Inflation'!W29 -> 177.5166667 | X233: ='Annual Inflation'!X29 -> 182.475 | Y233: ='Annual Inflation'!Y29 -> 188.15 | Z233: ='Annual Inflation'!Z29 -> 193.1083333 | AA233: ='Annual Inflation'!AA29 -> 200.3166667 | AB233: ='Annual Inflation'!AB29 -> 208.5916667 | AC233: ='Annual Inflation'!AC29 -> 214.7833333 | AD233: ='Annual Inflation'!AD29 -> 215.7666667 | AE233: ='Annual Inflation'!AE29 -> 226.475 | AF233: ='Annual Inflation'!AF29 -> 237.3416667 | AG233: ='Annual Inflation'!AG29 -> 244.675 | AH233: ='Annual Inflation'!AH29 -> 251.7333333 | AI233: ='Annual Inflation'!AI29 -> 256.6666667 | AJ233: ='Annual Inflation'!AJ29 -> 259.4333333 | AK233: ='Annual Inflation'!AK29 -> 264.9916667 | AL233: ='Annual Inflation'!AL29 -> 274.9083333 | AM233: ='Annual Inflation'!AM29 -> 283.3083333 | AN233: ='Annual Inflation'!AN29 -> 290.6416667 | AO233: ='Annual Inflation'!AO29 -> 294.1666667 | AP233: ='Annual Inflation'!AP29 -> 307.328214 | AQ233: ='Annual Inflation'!AQ29 -> 334.2670333 | AR233: ='Annual Inflation'!AR29 -> 351.6413661 | AS233: ='Annual Inflation'!AS29 -> 352.7716879 | AT233: ='Annual Inflation'!AT29 -> 351.180855
E234: Combined RPI-CPIH inflation (financial year average) | G234: annual % | J234: > | W234: ='Annual Inflation'!W30 -> 0.02094416487 | X234: ='Annual Inflation'!X30 -> 0.02793164961 | Y234: ='Annual Inflation'!Y30 -> 0.03110015071 | Z234: ='Annual Inflation'!Z30 -> 0.02635308708 | AA234: ='Annual Inflation'!AA30 -> 0.03732792474 | AB234: ='Annual Inflation'!AB30 -> 0.04130959314 | AC234: ='Annual Inflation'!AC30 -> 0.02968319284 | AD234: ='Annual Inflation'!AD30 -> 0.004578257158 | AE234: ='Annual Inflation'!AE30 -> 0.04962922911 | AF234: ='Annual Inflation'!AF30 -> 0.04798174927 | AG234: ='Annual Inflation'!AG30 -> 0.03089779151 | AH234: ='Annual Inflation'!AH30 -> 0.02884779129 | AI234: ='Annual Inflation'!AI30 -> 0.01959745763 | AJ234: ='Annual Inflation'!AJ30 -> 0.01077922078 | AK234: ='Annual Inflation'!AK30 -> 0.02142490042 | AL234: ='Annual Inflation'!AL30 -> 0.03742256046 | AM234: ='Annual Inflation'!AM30 -> 0.03055563976 | AN234: ='Annual Inflation'!AN30 -> 0.02588463688 | AO234: ='Annual Inflation'!AO30 -> 0.01212833673 | AP234: ='Annual Inflation'!AP30 -> 0.04474180389 | AQ234: ='Annual Inflation'!AQ30 -> 0.08765488534 | AR234: ='Annual Inflation'!AR30 -> 0.05197740429 | AS234: ='Annual Inflation'!AS30 -> 0.003214416562 | AT234: ='Annual Inflation'!AT30 -> -0.004509525488
E236: Forecast Debt inflation (CPIH long term forecast) | G236: annual % | AP236: ='Annual Inflation'!AP$34 -> 0.02 | AQ236: ='Annual Inflation'!AQ$34 -> 0.02 | AR236: ='Annual Inflation'!AR$34 -> 0.02 | AS236: ='Annual Inflation'!AS$34 -> 0.02 | AT236: ='Annual Inflation'!AT$34 -> 0.02
D238: Price conversion factors
E240: Real to nominal prices conversion factor (financial year average) | G240: scalar | V240: ='Annual Inflation'!V32 -> 0.6137306233 | W240: ='Annual Inflation'!W32 -> 0.6265846986 | X240: ='Annual Inflation'!X32 -> 0.6440862429 | Y240: ='Annual Inflation'!Y32 -> 0.6641174221 | Z240: ='Annual Inflation'!Z32 -> 0.6816189664 | AA240: ='Annual Inflation'!AA32 -> 0.7070623879 | AB240: ='Annual Inflation'!AB32 -> 0.7362708474 | AC240: ='Annual Inflation'!AC32 -> 0.758125717 | AD240: ='Annual Inflation'!AD32 -> 0.7615966115 | AE240: ='Annual Inflation'!AE32 -> 0.7993940642 | AF240: ='Annual Inflation'!AF32 -> 0.8377503897 | AG240: ='Annual Inflation'!AG32 -> 0.8636350266 | AH240: ='Annual Inflation'!AH32 -> 0.8885489896 | AI240: ='Annual Inflation'!AI32 -> 0.9059622908 | AJ240: ='Annual Inflation'!AJ32 -> 0.9157278583 | AK240: ='Annual Inflation'!AK32 -> 0.9353472365 | AL240: ='Annual Inflation'!AL32 -> 0.970350325 | AM240: ='Annual Inflation'!AM32 -> 1 | AN240: ='Annual Inflation'!AN32 -> 1.025884637 | AO240: ='Annual Inflation'!AO32 -> 1.038326911 | AP240: ='Annual Inflation'!AP32 -> 1.08478353 | AQ240: ='Annual Inflation'!AQ32 -> 1.179870106 | AR240: ='Annual Inflation'!AR32 -> 1.241196692 | AS240: ='Annual Inflation'!AS32 -> 1.245186415 | AT240: ='Annual Inflation'!AT32 -> 1.239571215
AP241: Adjacent named range: TOpf
E242: Real to nominal prices conversion factor (financial year start) | G242: scalar | V242: ='Annual Inflation'!V44 -> 0.6094067124 | W242: ='Annual Inflation'!W44 -> 0.6180545342 | X242: ='Annual Inflation'!X44 -> 0.6372915257 | Y242: ='Annual Inflation'!Y44 -> 0.6535282525 | Z242: ='Annual Inflation'!Z44 -> 0.6743536194 | AA242: ='Annual Inflation'!AA44 -> 0.6909433185 | AB242: ='Annual Inflation'!AB44 -> 0.7232402859 | AC242: ='Annual Inflation'!AC44 -> 0.7520075301 | AD242: ='Annual Inflation'!AD44 -> 0.7461834868 | AE242: ='Annual Inflation'!AE44 -> 0.782716122 | AF242: ='Annual Inflation'!AF44 -> 0.8240138836 | AG242: ='Annual Inflation'!AG44 -> 0.8529576139 | AH242: ='Annual Inflation'!AH44 -> 0.8792540518 | AI242: ='Annual Inflation'!AI44 -> 0.9009618496 | AJ242: ='Annual Inflation'!AJ44 -> 0.909080213 | AK242: ='Annual Inflation'!AK44 -> 0.9221401888 | AL242: ='Annual Inflation'!AL44 -> 0.9528487808 | AM242: ='Annual Inflation'!AM44 -> 0.9847927758 | AN242: ='Annual Inflation'!AN44 -> 1.011795158 | AO242: ='Annual Inflation'!AO44 -> 1.032797012 | AP242: ='Annual Inflation'!AP44 -> 1.053352823 | AQ242: ='Annual Inflation'!AQ44 -> 1.12921698 | AR242: ='Annual Inflation'!AR44 -> 1.222387949 | AS242: ='Annual Inflation'!AS44 -> 1.246752725 | AT242: ='Annual Inflation'!AT44 -> 1.240711341
E243: Real to nominal prices conversion factor (financial year end) | G243: scalar | V243: ='Annual Inflation'!V45 -> 0.6180545342 | W243: ='Annual Inflation'!W45 -> 0.6372915257 | X243: ='Annual Inflation'!X45 -> 0.6535282525 | Y243: ='Annual Inflation'!Y45 -> 0.6743536194 | Z243: ='Annual Inflation'!Z45 -> 0.6909433185 | AA243: ='Annual Inflation'!AA45 -> 0.7232402859 | AB243: ='Annual Inflation'!AB45 -> 0.7520075301 | AC243: ='Annual Inflation'!AC45 -> 0.7461834868 | AD243: ='Annual Inflation'!AD45 -> 0.782716122 | AE243: ='Annual Inflation'!AE45 -> 0.8240138836 | AF243: ='Annual Inflation'!AF45 -> 0.8529576139 | AG243: ='Annual Inflation'!AG45 -> 0.8792540518 | AH243: ='Annual Inflation'!AH45 -> 0.9009618496 | AI243: ='Annual Inflation'!AI45 -> 0.909080213 | AJ243: ='Annual Inflation'!AJ45 -> 0.9221401888 | AK243: ='Annual Inflation'!AK45 -> 0.9528487808 | AL243: ='Annual Inflation'!AL45 -> 0.9847927758 | AM243: ='Annual Inflation'!AM45 -> 1.011795158 | AN243: ='Annual Inflation'!AN45 -> 1.032797012 | AO243: ='Annual Inflation'!AO45 -> 1.053352823 | AP243: ='Annual Inflation'!AP45 -> 1.12921698 | AQ243: ='Annual Inflation'!AQ45 -> 1.222387949 | AR243: ='Annual Inflation'!AR45 -> 1.246752725 | AS243: ='Annual Inflation'!AS45 -> 1.240711341 | AT243: ='Annual Inflation'!AT45 -> 1.240307102
C245: Real Price Effects indexation
E247: RPE index | G247: index value | H247: RPEIt | J247: > | AN247: =PRODUCT(1 + $AN248:AN248) -> 1.002275005 | AO247: =PRODUCT(1 + $AN248:AO248) -> 0.9958257129 | AP247: =PRODUCT(1 + $AN248:AP248) -> 1.017102435 | AQ247: =PRODUCT(1 + $AN248:AQ248) -> 1.013774771 | AR247: =PRODUCT(1 + $AN248:AR248) -> 0.9986877086 | AS247: =PRODUCT(1 + $AN248:AS248) -> 1.012924793 | AT247: =PRODUCT(1 + $AN248:AT248) -> 1.034192272
... 491 more rows

Sheet Totex
A1: Totex
B2: =UserInterface!G17 -> NGET
E3: Parameter | G3: Units | I3: Constant | AP3: Annual values
E4: PCFM year ending | I4: =UserInterface!$G$10 -> 2024-03-31 | K4: 1991-03-31 | L4: 1992-03-31 | M4: 1993-03-31 | N4: 1994-03-31 | O4: 1995-03-31 | P4: 1996-03-31 | Q4: 1997-03-31 | R4: 1998-03-31 | S4: 1999-03-31 | T4: 2000-03-31 | U4: 2001-03-31 | V4: 2002-03-31 | W4: 2003-03-31 | X4: 2004-03-31 | Y4: 2005-03-31 | Z4: 2006-03-31 | AA4: 2007-03-31 | AB4: 2008-03-31 | AC4: 2009-03-31 | AD4: 2010-03-31 | AE4: 2011-03-31 | AF4: 2012-03-31 | AG4: 2013-03-31 | AH4: 2014-03-31 | AI4: 2015-03-31 | AJ4: 2016-03-31 | AK4: 2017-03-31 | AL4: 2018-03-31 | AM4: 2019-03-31 | AN4: 2020-03-31 | AO4: 2021-03-31 | AP4: 2022-03-31 | AQ4: 2023-03-31 | AR4: 2024-03-31 | AS4: 2025-03-31 | AT4: 2026-03-31
B6: Totex
C8: Allowed totex aggregated by sub-category
C9: Note: Totex is the sum of a number of cost categories, with all totex allowances falling under one (or more) of them. They have significance in the model as each sub-category can have its own set of tax pool allocation rules.
D11: Capitalisation rate 1 totex
E14: Load related capex | G14: £m 18/19 prices | AP14: =Input!AP11 + SUMPRODUCT((Input!AP$334:AP$699) * (Input!$H$334:$H$699 = $E14) * (Input!$BE$334:$BE$699 = "CapRate 1 (Baseline)")) -> 490.8639532 | AQ14: =Input!AQ11 + SUMPRODUCT((Input!AQ$334:AQ$699) * (Input!$H$334:$H$699 = $E14) * (Input!$BE$334:$BE$699 = "CapRate 1 (Baseline)")) -> 488.1314788 | AR14: =Input!AR11 + SUMPRODUCT((Input!AR$334:AR$699) * (Input!$H$334:$H$699 = $E14) * (Input!$BE$334:$BE$699 = "CapRate 1 (Baseline)")) -> 380.4003845 | AS14: =Input!AS11 + SUMPRODUCT((Input!AS$334:AS$699) * (Input!$H$334:$H$699 = $E14) * (Input!$BE$334:$BE$699 = "CapRate 1 (Baseline)")) -> 395.0899478 | AT14: =Input!AT11 + SUMPRODUCT((Input!AT$334:AT$699) * (Input!$H$334:$H$699 = $E14) * (Input!$BE$334:$BE$699 = "CapRate 1 (Baseline)")) -> 350.4259812 | AU14: =Input!AU11 + SUMPRODUCT((Input!AU$334:AU$699) * (Input!$H$334:$H$699 = $E14) * (Input!$BE$334:$BE$699 = "CapRate 1 (Baseline)")) -> 0
E15: Asset replacement capex | G15: £m 18/19 prices | AP15: =Input!AP12 + SUMPRODUCT((Input!AP$334:AP$699) * (Input!$H$334:$H$699 = $E15) * (Input!$BE$334:$BE$699 = "CapRate 1 (Baseline)")) -> 604.481495 | AQ15: =Input!AQ12 + SUMPRODUCT((Input!AQ$334:AQ$699) * (Input!$H$334:$H$699 = $E15) * (Input!$BE$334:$BE$699 = "CapRate 1 (Baseline)")) -> 543.6818389 | AR15: =Input!AR12 + SUMPRODUCT((Input!AR$334:AR$699) * (Input!$H$334:$H$699 = $E15) * (Input!$BE$334:$BE$699 = "CapRate 1 (Baseline)")) -> 433.5255748 | AS15: =Input!AS12 + SUMPRODUCT((Input!AS$334:AS$699) * (Input!$H$334:$H$699 = $E15) * (Input!$BE$334:$BE$699 = "CapRate 1 (Baseline)")) -> 345.1509206 | AT15: =Input!AT12 + SUMPRODUCT((Input!AT$334:AT$699) * (Input!$H$334:$H$699 = $E15) * (Input!$BE$334:$BE$699 = "CapRate 1 (Baseline)")) -> 270.9331024 | AU15: =Input!AU12 + SUMPRODUCT((Input!AU$334:AU$699) * (Input!$H$334:$H$699 = $E15) * (Input!$BE$334:$BE$699 = "CapRate 1 (Baseline)")) -> 0
E16: Other capex | G16: £m 18/19 prices | AP16: =Input!AP13 + SUMPRODUCT((Input!AP$334:AP$699) * (Input!$H$334:$H$699 = $E16) * (Input!$BE$334:$BE$699 = "CapRate 1 (Baseline)")) -> 84.28356758 | AQ16: =Input!AQ13 + SUMPRODUCT((Input!AQ$334:AQ$699) * (Input!$H$334:$H$699 = $E16) * (Input!$BE$334:$BE$699 = "CapRate 1 (Baseline)")) -> 74.12261818 | AR16: =Input!AR13 + SUMPRODUCT((Input!AR$334:AR$699) * (Input!$H$334:$H$699 = $E16) * (Input!$BE$334:$BE$699 = "CapRate 1 (Baseline)")) -> 68.74699388 | AS16: =Input!AS13 + SUMPRODUCT((Input!AS$334:AS$699) * (Input!$H$334:$H$699 = $E16) * (Input!$BE$334:$BE$699 = "CapRate 1 (Baseline)")) -> 54.74180642 | AT16: =Input!AT13 + SUMPRODUCT((Input!AT$334:AT$699) * (Input!$H$334:$H$699 = $E16) * (Input!$BE$334:$BE$699 = "CapRate 1 (Baseline)")) -> 53.62642531 | AU16: =Input!AU13 + SUMPRODUCT((Input!AU$334:AU$699) * (Input!$H$334:$H$699 = $E16) * (Input!$BE$334:$BE$699 = "CapRate 1 (Baseline)")) -> 0
E17: Network operating costs (opex) | G17: £m 18/19 prices | AP17: =Input!AP14 + SUMPRODUCT((Input!AP$334:AP$699) * (Input!$H$334:$H$699 = $E17) * (Input!$BE$334:$BE$699 = "CapRate 1 (Baseline)")) -> 116.1223299 | AQ17: =Input!AQ14 + SUMPRODUCT((Input!AQ$334:AQ$699) * (Input!$H$334:$H$699 = $E17) * (Input!$BE$334:$BE$699 = "CapRate 1 (Baseline)")) -> 113.1498008 | AR17: =Input!AR14 + SUMPRODUCT((Input!AR$334:AR$699) * (Input!$H$334:$H$699 = $E17) * (Input!$BE$334:$BE$699 = "CapRate 1 (Baseline)")) -> 109.4339007 | AS17: =Input!AS14 + SUMPRODUCT((Input!AS$334:AS$699) * (Input!$H$334:$H$699 = $E17) * (Input!$BE$334:$BE$699 = "CapRate 1 (Baseline)")) -> 98.09642328 | AT17: =Input!AT14 + SUMPRODUCT((Input!AT$334:AT$699) * (Input!$H$334:$H$699 = $E17) * (Input!$BE$334:$BE$699 = "CapRate 1 (Baseline)")) -> 102.6741479 | AU17: =Input!AU14 + SUMPRODUCT((Input!AU$334:AU$699) * (Input!$H$334:$H$699 = $E17) * (Input!$BE$334:$BE$699 = "CapRate 1 (Baseline)")) -> 0
E18: Indirects (opex) | G18: £m 18/19 prices | AP18: =Input!AP15 + SUMPRODUCT((Input!AP$334:AP$699) * (Input!$H$334:$H$699 = $E18) * (Input!$BE$334:$BE$699 = "CapRate 1 (Baseline)")) -> 187.3527327 | AQ18: =Input!AQ15 + SUMPRODUCT((Input!AQ$334:AQ$699) * (Input!$H$334:$H$699 = $E18) * (Input!$BE$334:$BE$699 = "CapRate 1 (Baseline)")) -> 173.6536259 | AR18: =Input!AR15 + SUMPRODUCT((Input!AR$334:AR$699) * (Input!$H$334:$H$699 = $E18) * (Input!$BE$334:$BE$699 = "CapRate 1 (Baseline)")) -> 156.2040335 | AS18: =Input!AS15 + SUMPRODUCT((Input!AS$334:AS$699) * (Input!$H$334:$H$699 = $E18) * (Input!$BE$334:$BE$699 = "CapRate 1 (Baseline)")) -> 151.9051245 | AT18: =Input!AT15 + SUMPRODUCT((Input!AT$334:AT$699) * (Input!$H$334:$H$699 = $E18) * (Input!$BE$334:$BE$699 = "CapRate 1 (Baseline)")) -> 166.1682529 | AU18: =Input!AU15 + SUMPRODUCT((Input!AU$334:AU$699) * (Input!$H$334:$H$699 = $E18) * (Input!$BE$334:$BE$699 = "CapRate 1 (Baseline)")) -> 0
E19: Non-operational capex | G19: £m 18/19 prices | AP19: =Input!AP16 + SUMPRODUCT((Input!AP$334:AP$699) * (Input!$H$334:$H$699 = $E19) * (Input!$BE$334:$BE$699 = "CapRate 1 (Baseline)")) -> 74.56011794 | AQ19: =Input!AQ16 + SUMPRODUCT((Input!AQ$334:AQ$699) * (Input!$H$334:$H$699 = $E19) * (Input!$BE$334:$BE$699 = "CapRate 1 (Baseline)")) -> 64.60373186 | AR19: =Input!AR16 + SUMPRODUCT((Input!AR$334:AR$699) * (Input!$H$334:$H$699 = $E19) * (Input!$BE$334:$BE$699 = "CapRate 1 (Baseline)")) -> 52.66040491 | AS19: =Input!AS16 + SUMPRODUCT((Input!AS$334:AS$699) * (Input!$H$334:$H$699 = $E19) * (Input!$BE$334:$BE$699 = "CapRate 1 (Baseline)")) -> 35.73187214 | AT19: =Input!AT16 + SUMPRODUCT((Input!AT$334:AT$699) * (Input!$H$334:$H$699 = $E19) * (Input!$BE$334:$BE$699 = "CapRate 1 (Baseline)")) -> 36.05473668 | AU19: =Input!AU16 + SUMPRODUCT((Input!AU$334:AU$699) * (Input!$H$334:$H$699 = $E19) * (Input!$BE$334:$BE$699 = "CapRate 1 (Baseline)")) -> 0
D21: Capitalisation rate 2 totex
E24: Load related capex | G24: =Input!G321 -> £m 18/19 prices | AP24: =SUMPRODUCT((Input!AP$334:AP$699) * (Input!$H$334:$H$699 = $E24) * (Input!$BE$334:$BE$699 = "CapRate 2 (UM)")) -> 35.20252576 | AQ24: =SUMPRODUCT((Input!AQ$334:AQ$699) * (Input!$H$334:$H$699 = $E24) * (Input!$BE$334:$BE$699 = "CapRate 2 (UM)")) -> 144.5958416 | AR24: =SUMPRODUCT((Input!AR$334:AR$699) * (Input!$H$334:$H$699 = $E24) * (Input!$BE$334:$BE$699 = "CapRate 2 (UM)")) -> 269.2929213 | AS24: =SUMPRODUCT((Input!AS$334:AS$699) * (Input!$H$334:$H$699 = $E24) * (Input!$BE$334:$BE$699 = "CapRate 2 (UM)")) -> 385.3332775 | AT24: =SUMPRODUCT((Input!AT$334:AT$699) * (Input!$H$334:$H$699 = $E24) * (Input!$BE$334:$BE$699 = "CapRate 2 (UM)")) -> 566.3203206
E25: Asset replacement capex | G25: =Input!G322 -> £m 18/19 prices | AP25: =SUMPRODUCT((Input!AP$334:AP$699) * (Input!$H$334:$H$699 = $E25) * (Input!$BE$334:$BE$699 = "CapRate 2 (UM)")) -> 0.798525995 | AQ25: =SUMPRODUCT((Input!AQ$334:AQ$699) * (Input!$H$334:$H$699 = $E25) * (Input!$BE$334:$BE$699 = "CapRate 2 (UM)")) -> 7.577956451 | AR25: =SUMPRODUCT((Input!AR$334:AR$699) * (Input!$H$334:$H$699 = $E25) * (Input!$BE$334:$BE$699 = "CapRate 2 (UM)")) -> 18.90966344 | AS25: =SUMPRODUCT((Input!AS$334:AS$699) * (Input!$H$334:$H$699 = $E25) * (Input!$BE$334:$BE$699 = "CapRate 2 (UM)")) -> 9.049807589 | AT25: =SUMPRODUCT((Input!AT$334:AT$699) * (Input!$H$334:$H$699 = $E25) * (Input!$BE$334:$BE$699 = "CapRate 2 (UM)")) -> 3.505882268
E26: Other capex | G26: =Input!G323 -> £m 18/19 prices | AP26: =SUMPRODUCT((Input!AP$334:AP$699) * (Input!$H$334:$H$699 = $E26) * (Input!$BE$334:$BE$699 = "CapRate 2 (UM)")) -> 0.09349350028 | AQ26: =SUMPRODUCT((Input!AQ$334:AQ$699) * (Input!$H$334:$H$699 = $E26) * (Input!$BE$334:$BE$699 = "CapRate 2 (UM)")) -> 0.8872468498 | AR26: =SUMPRODUCT((Input!AR$334:AR$699) * (Input!$H$334:$H$699 = $E26) * (Input!$BE$334:$BE$699 = "CapRate 2 (UM)")) -> 2.213992575 | AS26: =SUMPRODUCT((Input!AS$334:AS$699) * (Input!$H$334:$H$699 = $E26) * (Input!$BE$334:$BE$699 = "CapRate 2 (UM)")) -> 1.059575009 | AT26: =SUMPRODUCT((Input!AT$334:AT$699) * (Input!$H$334:$H$699 = $E26) * (Input!$BE$334:$BE$699 = "CapRate 2 (UM)")) -> 0.4104778139
E27: Network operating costs (opex) | G27: =Input!G324 -> £m 18/19 prices | AP27: =SUMPRODUCT((Input!AP$334:AP$699) * (Input!$H$334:$H$699 = $E27) * (Input!$BE$334:$BE$699 = "CapRate 2 (UM)")) -> 0.000854348775 | AQ27: =SUMPRODUCT((Input!AQ$334:AQ$699) * (Input!$H$334:$H$699 = $E27) * (Input!$BE$334:$BE$699 = "CapRate 2 (UM)")) -> 0.008107710771 | AR27: =SUMPRODUCT((Input!AR$334:AR$699) * (Input!$H$334:$H$699 = $E27) * (Input!$BE$334:$BE$699 = "CapRate 2 (UM)")) -> 0.02023158656 | AS27: =SUMPRODUCT((Input!AS$334:AS$699) * (Input!$H$334:$H$699 = $E27) * (Input!$BE$334:$BE$699 = "CapRate 2 (UM)")) -> 0.009682455019 | AT27: =SUMPRODUCT((Input!AT$334:AT$699) * (Input!$H$334:$H$699 = $E27) * (Input!$BE$334:$BE$699 = "CapRate 2 (UM)")) -> 0.00375096896
E28: Indirects (opex) | G28: =Input!G325 -> £m 18/19 prices | AP28: =SUMPRODUCT((Input!AP$334:AP$699) * (Input!$H$334:$H$699 = $E28) * (Input!$BE$334:$BE$699 = "CapRate 2 (UM)")) -> 12.07673718 | AQ28: =SUMPRODUCT((Input!AQ$334:AQ$699) * (Input!$H$334:$H$699 = $E28) * (Input!$BE$334:$BE$699 = "CapRate 2 (UM)")) -> 23.66632483 | AR28: =SUMPRODUCT((Input!AR$334:AR$699) * (Input!$H$334:$H$699 = $E28) * (Input!$BE$334:$BE$699 = "CapRate 2 (UM)")) -> 44.28384987 | AS28: =SUMPRODUCT((Input!AS$334:AS$699) * (Input!$H$334:$H$699 = $E28) * (Input!$BE$334:$BE$699 = "CapRate 2 (UM)")) -> 57.40835787 | AT28: =SUMPRODUCT((Input!AT$334:AT$699) * (Input!$H$334:$H$699 = $E28) * (Input!$BE$334:$BE$699 = "CapRate 2 (UM)")) -> 53.44127446
E29: Non-operational capex | G29: =Input!G326 -> £m 18/19 prices | AP29: =SUMPRODUCT((Input!AP$334:AP$699) * (Input!$H$334:$H$699 = $E29) * (Input!$BE$334:$BE$699 = "CapRate 2 (UM)")) -> 3.082249896 | AQ29: =SUMPRODUCT((Input!AQ$334:AQ$699) * (Input!$H$334:$H$699 = $E29) * (Input!$BE$334:$BE$699 = "CapRate 2 (UM)")) -> 15.4097406 | AR29: =SUMPRODUCT((Input!AR$334:AR$699) * (Input!$H$334:$H$699 = $E29) * (Input!$BE$334:$BE$699 = "CapRate 2 (UM)")) -> 39.78376696 | AS29: =SUMPRODUCT((Input!AS$334:AS$699) * (Input!$H$334:$H$699 = $E29) * (Input!$BE$334:$BE$699 = "CapRate 2 (UM)")) -> 25.79016294 | AT29: =SUMPRODUCT((Input!AT$334:AT$699) * (Input!$H$334:$H$699 = $E29) * (Input!$BE$334:$BE$699 = "CapRate 2 (UM)")) -> 48.9171729
D31: Allowance
E34: Allowed load related capex expenditure | G34: £m 18/19 prices | AP34: =AP14 + AP24 -> 526.0664789 | AQ34: 632.7273203 | AR34: 649.6933058 | AS34: 780.4232253 | AT34: 916.7463018
E35: Allowed asset replacement capex expenditure | G35: £m 18/19 prices | AP35: 605.280021 | AQ35: 551.2597954 | AR35: 452.4352383 | AS35: 354.2007281 | AT35: 274.4389847
E36: Allowed other capex expenditure | G36: £m 18/19 prices | AP36: 84.37706108 | AQ36: 75.00986503 | AR36: 70.96098646 | AS36: 55.80138143 | AT36: 54.03690312
E37: Allowed network operating costs (opex) | G37: £m 18/19 prices | AP37: 116.1231842 | AQ37: 113.1579085 | AR37: 109.4541323 | AS37: 98.10610573 | AT37: 102.6778988
E38: Allowed indirects (opex) | G38: £m 18/19 prices | AP38: 199.4294698 | AQ38: 197.3199507 | AR38: 200.4878834 | AS38: 209.3134824 | AT38: 219.6095273
E39: Allowed non-operational capex | G39: £m 18/19 prices | AP39: 77.64236784 | AQ39: 80.01347245 | AR39: 92.44417187 | AS39: 61.52203507 | AT39: 84.97190959
E40: Allowed totex | G40: £m 18/19 prices | AP40: =SUM(AP34:AP39) -> 1608.918583 | AQ40: =SUM(AQ34:AQ39) -> 1649.488312 | AR40: =SUM(AR34:AR39) -> 1575.475718 | AS40: =SUM(AS34:AS39) -> 1559.366958 | AT40: =SUM(AT34:AT39) -> 1652.481525
C42: Actual totex
D44: Source of actuals
D45: Note: The model assumes that there is a time lag from year t until actual expenditure data becomes available for the model. After the lag, actual expenditure inputs are used. Up to that point the model generates a forecast actual expenditure.
D46: When required in the model, forecasts assume that actuals are equal to their corresponding allowance.
D47: In a year where actual totex is assumed to be available, values must be inputted to the model as it will not generate a forecast and the empty input cell will be read as an actual spend of zero.
E49: Years from t until normal reporting of actual costs | G49: years | I49: =Input!I302 -> 2
E50: Historic totex (FYI only) | G50: text | AP50: =YEAR($I$4) >= YEAR(AP$4) + $I49 -> TRUE | AQ50: =YEAR($I$4) >= YEAR(AQ$4) + $I49 -> FALSE | AR50: =YEAR($I$4) >= YEAR(AR$4) + $I49 -> FALSE | AS50: =YEAR($I$4) >= YEAR(AS$4) + $I49 -> FALSE | AT50: =YEAR($I$4) >= YEAR(AT$4) + $I49 -> FALSE
E51: Forecasted totex (FYI only) | G51: text | AP51: =IF(AP50, FALSE, TRUE) -> FALSE | AQ51: =IF(AQ50, FALSE, TRUE) -> TRUE | AR51: =IF(AR50, FALSE, TRUE) -> TRUE | AS51: =IF(AS50, FALSE, TRUE) -> TRUE | AT51: =IF(AT50, FALSE, TRUE) -> TRUE
D53: Actual totex (historic and forecasted)
D54: Note: Actuals are exported both to identify performance against the allowance and to generate writing down allowances used in the tax calculation.
E56: Capitalisation rate 1 totex
E58: Load related capex | G58: £m 18/19 prices | AP58: =Input!AP88 -> 334.1619869 | AQ58: =Input!AQ88 -> 418.2794018 | AR58: =Input!AR88 -> 427.1212529 | AS58: =Input!AS88 -> 415.6470206 | AT58: =Input!AT88 -> 392.090086
E59: Asset replacement capex | G59: £m 18/19 prices | AP59: =Input!AP89 -> 522.5764918 | AQ59: =Input!AQ89 -> 690.2344703 | AR59: =Input!AR89 -> 605.1368272 | AS59: =Input!AS89 -> 456.6679692 | AT59: =Input!AT89 -> 402.1389708
E60: Other capex | G60: £m 18/19 prices | AP60: =Input!AP90 -> 83.36316634 | AQ60: =Input!AQ90 -> 82.62206336 | AR60: =Input!AR90 -> 69.83220551 | AS60: =Input!AS90 -> 21.77672889 | AT60: =Input!AT90 -> 22.98528758
E61: Network operating costs (opex) | G61: £m 18/19 prices | AP61: =Input!AP91 -> 106.8974157 | AQ61: =Input!AQ91 -> 117.8015916 | AR61: =Input!AR91 -> 107.4896507 | AS61: =Input!AS91 -> 98.06895851 | AT61: =Input!AT91 -> 99.15199716
E62: Indirects (opex) | G62: £m 18/19 prices | AP62: =Input!AP92 -> 166.7320697 | AQ62: =Input!AQ92 -> 157.8607881 | AR62: =Input!AR92 -> 130.9077228 | AS62: =Input!AS92 -> 136.1453145 | AT62: =Input!AT92 -> 138.2189553
E63: Non-operational capex | G63: £m 18/19 prices | AP63: =Input!AP93 -> 66.4664904 | AQ63: =Input!AQ93 -> 98.21355856 | AR63: =Input!AR93 -> 91.94138534 | AS63: =Input!AS93 -> 65.71415953 | AT63: =Input!AT93 -> 74.95477014
E65: Capitalisation rate 2 totex
E67: Load related capex | G67: £m 18/19 prices | AP67: =Input!AP97 -> 42.14972126 | AQ67: =Input!AQ97 -> 114.6931475 | AR67: =Input!AR97 -> 193.8079299 | AS67: =Input!AS97 -> 264.152693 | AT67: =Input!AT97 -> 426.7920339
E68: Asset replacement capex | G68: £m 18/19 prices | AP68: =Input!AP98 -> 0 | AQ68: =Input!AQ98 -> 1.543013607 | AR68: =Input!AR98 -> 3.771955534 | AS68: =Input!AS98 -> 1.451167296 | AT68: =Input!AT98 -> 0.9118742526
E69: Other capex | G69: £m 18/19 prices | AP69: =Input!AP99 -> 0 | AQ69: =Input!AQ99 -> 0.1806600461 | AR69: =Input!AR99 -> 0.4416303639 | AS69: =Input!AS99 -> 12.91990644 | AT69: =Input!AT99 -> 12.97676461
E70: Network operating costs (opex) | G70: £m 18/19 prices | AP70: =Input!AP100 -> 0 | AQ70: =Input!AQ100 -> 0.001650881491 | AR70: =Input!AR100 -> 0.004035642684 | AS70: =Input!AS100 -> 0.001552614454 | AT70: =Input!AT100 -> 0.0009756209009
E71: Indirects (opex) | G71: £m 18/19 prices | AP71: =Input!AP101 -> 0.3 | AQ71: =Input!AQ101 -> 8.77220316 | AR71: =Input!AR101 -> 20.07209069 | AS71: =Input!AS101 -> 29.27134438 | AT71: =Input!AT101 -> 21.85566164
E72: Non-operational capex | G72: £m 18/19 prices | AP72: =Input!AP102 -> 0 | AQ72: =Input!AQ102 -> 0.0256031362 | AR72: =Input!AR102 -> 0.06258784164 | AS72: =Input!AS102 -> 0.02407913564 | AT72: =Input!AT102 -> 0.01513067713
E74: Total actual
E76: Actual load related capex expenditure | G76: £m 18/19 prices | AP76: =SUM(AP58, AP67) -> 376.3117082 | AQ76: =SUM(AQ58, AQ67) -> 532.9725493 | AR76: 620.9291828 | AS76: 679.7997136 | AT76: 818.8821199
E77: Actual asset replacement capex expenditure | G77: £m 18/19 prices | AP77: =SUM(AP59, AP68) -> 522.5764918 | AQ77: 691.7774839 | AR77: 608.9087827 | AS77: 458.1191365 | AT77: 403.0508451
E78: Actual other capex expenditure | G78: £m 18/19 prices | AP78: =SUM(AP60, AP69) -> 83.36316634 | AQ78: 82.80272341 | AR78: 70.27383587 | AS78: 34.69663533 | AT78: 35.96205219
E79: Actual network operating costs (opex) | G79: £m 18/19 prices | AP79: =SUM(AP61, AP70) -> 106.8974157 | AQ79: 117.8032425 | AR79: 107.4936864 | AS79: 98.07051113 | AT79: 99.15297278
E80: Actual actual indirects (opex) | G80: £m 18/19 prices | AP80: =SUM(AP62, AP71) -> 167.0320697 | AQ80: 166.6329913 | AR80: 150.9798135 | AS80: 165.4166589 | AT80: 160.074617
E81: Actual non-operational capex | G81: £m 18/19 prices | AP81: =SUM(AP63, AP72) -> 66.4664904 | AQ81: 98.23916169 | AR81: 92.00397319 | AS81: 65.73823866 | AT81: 74.96990082
E82: Actual totex | G82: £m 18/19 prices | AP82: =SUM(AP76:AP81) -> 1322.647342 | AQ82: =SUM(AQ76:AQ81) -> 1690.228152 | AR82: =SUM(AR76:AR81) -> 1650.589274 | AS82: =SUM(AS76:AS81) -> 1501.840894 | AT82: =SUM(AT76:AT81) -> 1592.092508
B84: End of sheet

Sheet TIM
A1: Totex Incentive Mechanism (TIM)
B2: =UserInterface!G17 -> NGET
E3: Parameter | G3: Units | I3: Constant | AP3: Annual values
E4: PCFM year ending | I4: =UserInterface!$G$10 -> 2024-03-31 | K4: 1991-03-31 | L4: 1992-03-31 | M4: 1993-03-31 | N4: 1994-03-31 | O4: 1995-03-31 | P4: 1996-03-31 | Q4: 1997-03-31 | R4: 1998-03-31 | S4: 1999-03-31 | T4: 2000-03-31 | U4: 2001-03-31 | V4: 2002-03-31 | W4: 2003-03-31 | X4: 2004-03-31 | Y4: 2005-03-31 | Z4: 2006-03-31 | AA4: 2007-03-31 | AB4: 2008-03-31 | AC4: 2009-03-31 | AD4: 2010-03-31 | AE4: 2011-03-31 | AF4: 2012-03-31 | AG4: 2013-03-31 | AH4: 2014-03-31 | AI4: 2015-03-31 | AJ4: 2016-03-31 | AK4: 2017-03-31 | AL4: 2018-03-31 | AM4: 2019-03-31 | AN4: 2020-03-31 | AO4: 2021-03-31 | AP4: 2022-03-31 | AQ4: 2023-03-31 | AR4: 2024-03-31 | AS4: 2025-03-31 | AT4: 2026-03-31
B6: Efficiency incentive
C8: Post-TIM overspend (underspend)
C9: Note: Totex overspend (underspend) is identified and subject to the "efficiency incentive rate."
D11: Capitalisation 1 totex
E13: Actual totex | G13: £m 18/19 prices | AP13: =SUM(Totex!AP58:AP63) -> 1280.197621 | AQ13: =SUM(Totex!AQ58:AQ63) -> 1565.011874 | AR13: =SUM(Totex!AR58:AR63) -> 1432.429044 | AS13: =SUM(Totex!AS58:AS63) -> 1194.020151 | AT13: =SUM(Totex!AT58:AT63) -> 1129.540067
E14: Less allowed totex | G14: £m 18/19 prices | AP14: =- SUM(Totex!AP14:AP19) -> -1557.664196 | AQ14: =- SUM(Totex!AQ14:AQ19) -> -1457.343094 | AR14: =- SUM(Totex!AR14:AR19) -> -1200.971292 | AS14: =- SUM(Totex!AS14:AS19) -> -1080.716095 | AT14: =- SUM(Totex!AT14:AT19) -> -979.8826463
E15: Pre-TIM overspend (underspend) | G15: £m 18/19 prices | AP15: =SUM(AP13:AP14) -> -277.4665753 | AQ15: =SUM(AQ13:AQ14) -> 107.6687794 | AR15: =SUM(AR13:AR14) -> 231.4577522 | AS15: =SUM(AS13:AS14) -> 113.3040565 | AT15: =SUM(AT13:AT14) -> 149.6574206
E17: Funding Adjustment Rate (often referred to as 'sharing factor') | G17: % | AP17: =Input!$I$307 -> 0.67 | AQ17: =Input!$I$307 -> 0.67 | AR17: =Input!$I$307 -> 0.67 | AS17: =Input!$I$307 -> 0.67 | AT17: =Input!$I$307 -> 0.67
E19: Post-TIM overspend (underspend) | G19: £m 18/19 prices | AP19: =AP$17 * AP15 -> -185.9026055 | AQ19: =AQ$17 * AQ15 -> 72.13808219 | AR19: =AR$17 * AR15 -> 155.076694 | AS19: =AS$17 * AS15 -> 75.91371784 | AT19: =AT$17 * AT15 -> 100.2704718
D21: Capitalisation 2 totex
E23: Actual totex | G23: £m 18/19 prices | AP23: =SUM(Totex!AP67:AP72) -> 42.44972126 | AQ23: =SUM(Totex!AQ67:AQ72) -> 125.2162783 | AR23: =SUM(Totex!AR67:AR72) -> 218.16023 | AS23: =SUM(Totex!AS67:AS72) -> 307.8207429 | AT23: =SUM(Totex!AT67:AT72) -> 462.5524407
E24: Less allowed totex | G24: £m 18/19 prices | AP24: =- SUM(Totex!AP24:AP29) -> -51.25438668 | AQ24: =- SUM(Totex!AQ24:AQ29) -> -192.145218 | AR24: =- SUM(Totex!AR24:AR29) -> -374.5044257 | AS24: =- SUM(Totex!AS24:AS29) -> -478.6508633 | AT24: =- SUM(Totex!AT24:AT29) -> -672.598879
E25: Pre-TIM overspend (underspend) | G25: £m 18/19 prices | AP25: =SUM(AP23:AP24) -> -8.804665413 | AQ25: =SUM(AQ23:AQ24) -> -66.92893969 | AR25: =SUM(AR23:AR24) -> -156.3441957 | AS25: =SUM(AS23:AS24) -> -170.8301204 | AT25: =SUM(AT23:AT24) -> -210.0464384
E27: Funding Adjustment Rate (often referred to as 'sharing factor') | G27: % | AP27: =AP$17 -> 0.67 | AQ27: =AQ$17 -> 0.67 | AR27: =AR$17 -> 0.67 | AS27: =AS$17 -> 0.67 | AT27: =AT$17 -> 0.67
E29: Post-TIM overspend (underspend) | G29: £m 18/19 prices | AP29: =AP$27 * AP25 -> -5.899125827 | AQ29: =AQ$27 * AQ25 -> -44.84238959 | AR29: =AR$27 * AR25 -> -104.7506111 | AS29: =AS$27 * AS25 -> -114.4561807 | AT29: =AT$27 * AT25 -> -140.7311137
C31: Post-TIM totex
C32: Note: "Post-TIM overspend (underspend)" is added to the allowed totex value to give the Post-TIM totex allowance to be split into fast and slow money.
D34: Capitalisation 1 totex
E36: Allowed totex | G36: £m 18/19 prices | AP36: =-AP14 -> 1557.664196 | AQ36: =-AQ14 -> 1457.343094 | AR36: =-AR14 -> 1200.971292 | AS36: =-AS14 -> 1080.716095 | AT36: =-AT14 -> 979.8826463
E37: Post-TIM overspend (underspend) | G37: £m 18/19 prices | AP37: =AP19 -> -185.9026055 | AQ37: =AQ19 -> 72.13808219 | AR37: =AR19 -> 155.076694 | AS37: =AS19 -> 75.91371784 | AT37: =AT19 -> 100.2704718
E38: Post-TIM totex | G38: £m 18/19 prices | AP38: =SUM(AP36:AP37) -> 1371.761591 | AQ38: =SUM(AQ36:AQ37) -> 1529.481177 | AR38: =SUM(AR36:AR37) -> 1356.047986 | AS38: =SUM(AS36:AS37) -> 1156.629813 | AT38: =SUM(AT36:AT37) -> 1080.153118
D40: Capitalisation 2 totex
E42: Allowed totex | G42: £m 18/19 prices | AP42: =-AP24 -> 51.25438668 | AQ42: =-AQ24 -> 192.145218 | AR42: =-AR24 -> 374.5044257 | AS42: =-AS24 -> 478.6508633 | AT42: =-AT24 -> 672.598879
E43: Post-TIM overspend (underspend) | G43: £m 18/19 prices | AP43: =AP29 -> -5.899125827 | AQ43: =AQ29 -> -44.84238959 | AR43: =AR29 -> -104.7506111 | AS43: =AS29 -> -114.4561807 | AT43: =AT29 -> -140.7311137
E44: Post-TIM totex | G44: £m 18/19 prices | AP44: =SUM(AP42:AP43) -> 45.35526085 | AQ44: =SUM(AQ42:AQ43) -> 147.3028284 | AR44: =SUM(AR42:AR43) -> 269.7538146 | AS44: =SUM(AS42:AS43) -> 364.1946826 | AT44: =SUM(AT42:AT43) -> 531.8677653
B46: Capitalisation
B47: Note: The weighted capitalised share of totex (the weightings only apply to transmission operators, where the weights are based on the relative share of allowance to totex, wider works and entry & exit).
B48: Post-TIM totex is allocated into "fast" and "slow" elements based on a pre-set percentage split:
B49: - "fast money " is exported to the "Revenue" sheet where it is included as an element of "recalculated base revenue;" and
B50: - "slow money " is exported to the "Depn" sheet where it is added to RAV. Slow money is recovered over the life of the RAV through regulatory depreciation and return allowances.
C52: Separate capitalisation
D54: Capitalisation 1 totex
E56: Post-TIM totex | G56: £m 18/19 prices | AP56: =AP38 -> 1371.761591 | AQ56: =AQ38 -> 1529.481177 | AR56: =AR38 -> 1356.047986 | AS56: =AS38 -> 1156.629813 | AT56: =AT38 -> 1080.153118
E57: Capitalisation rate 1 | G57: % | AP57: =Input!AP304 -> 0.78 | AQ57: =Input!AQ304 -> 0.78 | AR57: =Input!AR304 -> 0.78 | AS57: =Input!AS304 -> 0.78 | AT57: =Input!AT304 -> 0.78
E58: Fast pot expenditure | G58: £m 18/19 prices | AP58: =AP56-AP59 -> 301.78755 | AQ58: =AQ56-AQ59 -> 336.4858589 | AR58: =AR56-AR59 -> 298.330557 | AS58: =AS56-AS59 -> 254.4585588 | AT58: =AT56-AT59 -> 237.633686
E59: Slow pot expenditure | G59: £m 18/19 prices | AP59: =AP56 * AP57 -> 1069.974041 | AQ59: =AQ56 * AQ57 -> 1192.995318 | AR59: =AR56 * AR57 -> 1057.717429 | AS59: =AS56 * AS57 -> 902.1712538 | AT59: =AT56 * AT57 -> 842.5194322
D61: Capitalisation 2 totex
E63: Post-TIM totex | G63: £m 18/19 prices | AP63: =AP44 -> 45.35526085 | AQ63: =AQ44 -> 147.3028284 | AR63: =AR44 -> 269.7538146 | AS63: =AS44 -> 364.1946826 | AT63: =AT44 -> 531.8677653
E64: Capitalisation rate 2 | G64: % | AP64: =Input!AP305 -> 0.85 | AQ64: =Input!AQ305 -> 0.85 | AR64: =Input!AR305 -> 0.85 | AS64: =Input!AS305 -> 0.85 | AT64: =Input!AT305 -> 0.85
E65: Fast pot expenditure | G65: £m 18/19 prices | AP65: =AP63 - AP66 -> 6.803289127 | AQ65: =AQ63 - AQ66 -> 22.09542426 | AR65: =AR63 - AR66 -> 40.46307218 | AS65: =AS63 - AS66 -> 54.6292024 | AT65: =AT63 - AT66 -> 79.7801648
E66: Slow pot expenditure | G66: £m 18/19 prices | AP66: =AP63 * AP64 -> 38.55197172 | AQ66: =AQ63 * AQ64 -> 125.2074041 | AR66: =AR63 * AR64 -> 229.2907424 | AS66: =AS63 * AS64 -> 309.5654802 | AT66: =AT63 * AT64 -> 452.0876005
C68: Totex
E70: Fast pot expenditure | G70: £m 18/19 prices | AP70: =AP58+AP65 -> 308.5908391 | AQ70: =AQ58+AQ65 -> 358.5812831 | AR70: =AR58+AR65 -> 338.7936292 | AS70: =AS58+AS65 -> 309.0877611 | AT70: =AT58+AT65 -> 317.4138508
E72: Slow pot expenditure | G72: £m 18/19 prices | AP72: =AP59+AP66 -> 1108.526013 | AQ72: =AQ59+AQ66 -> 1318.202722 | AR72: =AR59+AR66 -> 1287.008172 | AS72: =AS59+AS66 -> 1211.736734 | AT72: =AT59+AT66 -> 1294.607033
B74: End of sheet

Sheet Depn
A1: Regulatory Depreciation
B2: =UserInterface!G17 -> NGET
E3: Parameter | G3: Units | I3: Constant | AP3: Annual values
E4: PCFM year ending | I4: =UserInterface!$G$10 -> 2024-03-31 | K4: 1991-03-31 | L4: 1992-03-31 | M4: 1993-03-31 | N4: 1994-03-31 | O4: 1995-03-31 | P4: 1996-03-31 | Q4: 1997-03-31 | R4: 1998-03-31 | S4: 1999-03-31 | T4: 2000-03-31 | U4: 2001-03-31 | V4: 2002-03-31 | W4: 2003-03-31 | X4: 2004-03-31 | Y4: 2005-03-31 | Z4: 2006-03-31 | AA4: 2007-03-31 | AB4: 2008-03-31 | AC4: 2009-03-31 | AD4: 2010-03-31 | AE4: 2011-03-31 | AF4: 2012-03-31 | AG4: 2013-03-31 | AH4: 2014-03-31 | AI4: 2015-03-31 | AJ4: 2016-03-31 | AK4: 2017-03-31 | AL4: 2018-03-31 | AM4: 2019-03-31 | AN4: 2020-03-31 | AO4: 2021-03-31 | AP4: 2022-03-31 | AQ4: 2023-03-31 | AR4: 2024-03-31 | AS4: 2025-03-31 | AT4: 2026-03-31
B6: Regulatory depreciation
C8: Net RAV additions (after disposals)
C9: Note: Additions to RAV are combined before feeding into the depreciation calculations. Disposals are treated as negative additions. Pre-RIIO values are used to build up the post-vesting RAV from vesting.
C10: Logged-up and security costs are retrospectively added to RAV to provide the updated opening RAV and align depreciation with expenditure.
E12: Slow money | G12: £m 18/19 prices | AP12: =TIM!AP72 -> 1108.526013 | AQ12: =TIM!AQ72 -> 1318.202722 | AR12: =TIM!AR72 -> 1287.008172 | AS12: =TIM!AS72 -> 1211.736734 | AT12: =TIM!AT72 -> 1294.607033
E13: RIIO-1 net RAV additions (incl. adjustments) | G13: £m 18/19 prices | J13: > | AH13: =Input!AH718 -> 1247.42538 | AI13: =Input!AI718 -> 1170.059191 | AJ13: =Input!AJ718 -> 1116.836618 | AK13: =Input!AK718 -> 1105.284162 | AL13: =Input!AL718 -> 1027.809278 | AM13: =Input!AM718 -> 1084.140649 | AN13: =Input!AN718 -> 1105.598144 | AO13: =Input!AO718 -> 1096.212691
E14: Net adjustments | G14: £m 18/19 prices | AP14: =SUM(Input!AP719:AP720) -> 0 | AQ14: =SUM(Input!AQ719:AQ720) -> 0 | AR14: =SUM(Input!AR719:AR720) -> 0 | AS14: =SUM(Input!AS719:AS720) -> 0 | AT14: =SUM(Input!AT719:AT720) -> 0
E15: Pre-RIIO net RAV additions (after disposals) | G15: £m 18/19 prices | J15: > | K15: =Input!K716 -> 498.2206097 | L15: =Input!L716 -> 617.2478868 | M15: =Input!M716 -> 728.482898 | N15: =Input!N716 -> 524.6443634 | O15: =Input!O716 -> 341.6847934 | P15: =Input!P716 -> 345.4054363 | Q15: =Input!Q716 -> 334.5503842 | R15: =Input!R716 -> 295.9747477 | S15: =Input!S716 -> 512.8254519 | T15: =Input!T716 -> 455.5743295 | U15: =Input!U716 -> 386.8379217 | V15: =Input!V716 -> 535.3336432 | W15: =Input!W716 -> 496.4789124 | X15: =Input!X716 -> 421.9214617 | Y15: =Input!Y716 -> 554.8815574 | Z15: =Input!Z716 -> 762.043947 | AA15: =Input!AA716 -> 730.910484 | AB15: =Input!AB716 -> 913.9605522 | AC15: =Input!AC716 -> 873.2122119 | AD15: =Input!AD716 -> 1066.431805 | AE15: =Input!AE716 -> 862.2930842 | AF15: =Input!AF716 -> 1218.161431 | AG15: =Input!AG716 -> 1185.615065
E16: Net RAV additions (after Pre-RIIO2 disposals) | G16: £m 18/19 prices | J16: > | K16: =SUM(K12:K15) -> 498.2206097 | L16: 617.2478868 | M16: 728.482898 | N16: 524.6443634 | O16: 341.6847934 | P16: 345.4054363 | Q16: 334.5503842 | R16: 295.9747477 | S16: 512.8254519 | T16: 455.5743295 | U16: 386.8379217 | V16: 535.3336432 | W16: 496.4789124 | X16: 421.9214617 | Y16: 554.8815574 | Z16: 762.043947 | AA16: 730.910484 | AB16: 913.9605522 | AC16: 873.2122119 | AD16: 1066.431805 | AE16: 862.2930842 | AF16: 1218.161431 | AG16: 1185.615065 | AH16: 1247.42538 | AI16: 1170.059191 | AJ16: 1116.836618 | AK16: 1105.284162 | AL16: 1027.809278 | AM16: 1084.140649 | AN16: 1105.598144 | AO16: 1096.212691 | AP16: 1108.526013 | AQ16: 1318.202722 | AR16: 1287.008172 | AS16: 1211.736734 | AT16: 1294.607033
C18: Net depreciation additions (after disposals)
C19: Note:
E21: Pre-RIIO transfers to depreciation | G21: £m 18/19 prices | J21: > | K21: =Input!K717 -> 0 | L21: =Input!L717 -> 0 | M21: =Input!M717 -> 0 | N21: =Input!N717 -> 0 | O21: =Input!O717 -> 0 | P21: =Input!P717 -> 0 | Q21: =Input!Q717 -> 0 | R21: =Input!R717 -> 0 | S21: =Input!S717 -> 0 | T21: =Input!T717 -> 0 | U21: =Input!U717 -> 0 | V21: =Input!V717 -> 0 | W21: =Input!W717 -> 0 | X21: =Input!X717 -> -53.09486601 | Y21: =Input!Y717 -> 0 | Z21: =Input!Z717 -> 0 | AA21: =Input!AA717 -> 0 | AB21: =Input!AB717 -> 0 | AC21: =Input!AC717 -> 0 | AD21: =Input!AD717 -> 0 | AE21: =Input!AE717 -> 0 | AF21: =Input!AF717 -> 0 | AG21: =Input!AG717 -> 0
C23: Pre-vesting depreciation
C24: Note: The following depreciation factor is used to depreciate the pre-vesting balance on the "Return&RAV" sheet.
E26: Vesting year | G26: year ending | I26: =Input!I715 -> 1991-03-31
E27: Pre-vesting asset life | G27: years | I27: =Input!I705 -> 20
E28: Pre-vesting straight line depreciation factor | G28: scalar | AH28: =1 / $I27 -> 0.05 | AI28: 0.05 | AJ28: 0.05 | AK28: 0.05 | AL28: 0.05 | AM28: 0.05 | AN28: 0.05 | AO28: 0.05 | AP28: 0.05 | AQ28: 0.05 | AR28: 0.05 | AS28: 0.05 | AT28: 0.05
C30: Accelerated post-vesting depreciation
C31: Note: Accelerated depreciation calculations provide the allowed depreciation after full depreciation of pre-vesting assets, but are also used to establish the "RAV differential" generated before that point.
D33: Depreciation parameters
E35: Post-vesting asset life | G35: years | J35: > | K35: =Input!K713 -> 20 | L35: =Input!L713 -> 20 | M35: =Input!M713 -> 20 | N35: =Input!N713 -> 20 | O35: =Input!O713 -> 20 | P35: =Input!P713 -> 20 | Q35: =Input!Q713 -> 20 | R35: =Input!R713 -> 20 | S35: =Input!S713 -> 20 | T35: =Input!T713 -> 20 | U35: =Input!U713 -> 20 | V35: =Input!V713 -> 20 | W35: =Input!W713 -> 20 | X35: =Input!X713 -> 20 | Y35: =Input!Y713 -> 20 | Z35: =Input!Z713 -> 20 | AA35: =Input!AA713 -> 20 | AB35: =Input!AB713 -> 20 | AC35: =Input!AC713 -> 20 | AD35: =Input!AD713 -> 20 | AE35: =Input!AE713 -> 20 | AF35: =Input!AF713 -> 20 | AG35: =Input!AG713 -> 20 | AH35: =Input!AH713 -> 23.125 | AI35: =Input!AI713 -> 26.25 | AJ35: =Input!AJ713 -> 29.375 | AK35: =Input!AK713 -> 32.5 | AL35: =Input!AL713 -> 35.625 | AM35: =Input!AM713 -> 38.75 | AN35: =Input!AN713 -> 41.875 | AO35: =Input!AO713 -> 45 | AP35: =Input!AP713 -> 45 | AQ35: =Input!AQ713 -> 45 | AR35: =Input!AR713 -> 45 | AS35: =Input!AS713 -> 45 | AT35: =Input!AT713 -> 45
E36: Accelerated post-vesting depreciation applied | G36: text | J36: > | L36: =YEAR(L$4) >= YEAR($I$26) + $I$27 -> FALSE | M36: FALSE | N36: FALSE | O36: FALSE | P36: FALSE | Q36: FALSE | R36: FALSE | S36: FALSE | T36: FALSE | U36: FALSE | V36: FALSE | W36: FALSE | X36: FALSE | Y36: FALSE | Z36: FALSE | AA36: FALSE | AB36: FALSE | AC36: FALSE | AD36: FALSE | AE36: TRUE | AF36: TRUE | AG36: TRUE | AH36: TRUE | AI36: TRUE | AJ36: TRUE | AK36: TRUE | AL36: TRUE | AM36: TRUE | AN36: TRUE | AO36: TRUE | AP36: TRUE | AQ36: TRUE | AR36: TRUE | AS36: TRUE | AT36: TRUE
D38: Depreciation schedule
E40: Accelerated depreciation of additions from year ending | I40: Net additions
E41: 1991-03-31 | G41: £m 18/19 prices | I41: =I89 -> 498.2206097 | J41: > | L41: =$I41/$K$35 -> 24.91103048 | M41: =IF($I41 >0, MIN(L41,$I41-SUM($L41:L41)), MAX(L41,$I41-SUM($L41:L41))) -> 24.91103048 | N41: =IF($I41 >0, MIN(M41,$I41-SUM($L41:M41)), MAX(M41,$I41-SUM($L41:M41))) -> 24.91103048 | O41: =IF($I41 >0, MIN(N41,$I41-SUM($L41:N41)), MAX(N41,$I41-SUM($L41:N41))) -> 24.91103048 | P41: =IF($I41 >0, MIN(O41,$I41-SUM($L41:O41)), MAX(O41,$I41-SUM($L41:O41))) -> 24.91103048 | Q41: =IF($I41 >0, MIN(P41,$I41-SUM($L41:P41)), MAX(P41,$I41-SUM($L41:P41))) -> 24.91103048 | R41: =IF($I41 >0, MIN(Q41,$I41-SUM($L41:Q41)), MAX(Q41,$I41-SUM($L41:Q41))) -> 24.91103048 | S41: =IF($I41 >0, MIN(R41,$I41-SUM($L41:R41)), MAX(R41,$I41-SUM($L41:R41))) -> 24.91103048 | T41: =IF($I41 >0, MIN(S41,$I41-SUM($L41:S41)), MAX(S41,$I41-SUM($L41:S41))) -> 24.91103048 | U41: =IF($I41 >0, MIN(T41,$I41-SUM($L41:T41)), MAX(T41,$I41-SUM($L41:T41))) -> 24.91103048 | V41: =IF($I41 >0, MIN(U41,$I41-SUM($L41:U41)), MAX(U41,$I41-SUM($L41:U41))) -> 24.91103048 | W41: =IF($I41 >0, MIN(V41,$I41-SUM($L41:V41)), MAX(V41,$I41-SUM($L41:V41))) -> 24.91103048 | X41: =IF($I41 >0, MIN(W41,$I41-SUM($L41:W41)), MAX(W41,$I41-SUM($L41:W41))) -> 24.91103048 | Y41: =IF($I41 >0, MIN(X41,$I41-SUM($L41:X41)), MAX(X41,$I41-SUM($L41:X41))) -> 24.91103048 | Z41: =IF($I41 >0, MIN(Y41,$I41-SUM($L41:Y41)), MAX(Y41,$I41-SUM($L41:Y41))) -> 24.91103048 | AA41: =IF($I41 >0, MIN(Z41,$I41-SUM($L41:Z41)), MAX(Z41,$I41-SUM($L41:Z41))) -> 24.91103048 | AB41: =IF($I41 >0, MIN(AA41,$I41-SUM($L41:AA41)), MAX(AA41,$I41-SUM($L41:AA41))) -> 24.91103048 | AC41: =IF($I41 >0, MIN(AB41,$I41-SUM($L41:AB41)), MAX(AB41,$I41-SUM($L41:AB41))) -> 24.91103048 | AD41: =IF($I41 >0, MIN(AC41,$I41-SUM($L41:AC41)), MAX(AC41,$I41-SUM($L41:AC41))) -> 24.91103048 | AE41: =IF($I41 >0, MIN(AD41,$I41-SUM($L41:AD41)), MAX(AD41,$I41-SUM($L41:AD41))) -> 24.91103048 | AF41: =IF($I41 >0, MIN(AE41,$I41-SUM($L41:AE41)), MAX(AE41,$I41-SUM($L41:AE41))) -> 0 | AG41: =IF($I41 >0, MIN(AF41,$I41-SUM($L41:AF41)), MAX(AF41,$I41-SUM($L41:AF41))) -> 0 | AH41: =IF($I41 >0, MIN(AG41,$I41-SUM($L41:AG41)), MAX(AG41,$I41-SUM($L41:AG41))) -> 0 | AI41: =IF($I41 >0, MIN(AH41,$I41-SUM($L41:AH41)), MAX(AH41,$I41-SUM($L41:AH41))) -> 0 | AJ41: =IF($I41 >0, MIN(AI41,$I41-SUM($L41:AI41)), MAX(AI41,$I41-SUM($L41:AI41))) -> 0 | AK41: =IF($I41 >0, MIN(AJ41,$I41-SUM($L41:AJ41)), MAX(AJ41,$I41-SUM($L41:AJ41))) -> 0 | AL41: =IF($I41 >0, MIN(AK41,$I41-SUM($L41:AK41)), MAX(AK41,$I41-SUM($L41:AK41))) -> 0 | AM41: =IF($I41 >0, MIN(AL41,$I41-SUM($L41:AL41)), MAX(AL41,$I41-SUM($L41:AL41))) -> 0 | AN41: =IF($I41 >0, MIN(AM41,$I41-SUM($L41:AM41)), MAX(AM41,$I41-SUM($L41:AM41))) -> 0 | AO41: =IF($I41 >0, MIN(AN41,$I41-SUM($L41:AN41)), MAX(AN41,$I41-SUM($L41:AN41))) -> 0 | AP41: =IF($I41 >0, MIN(AO41,$I41-SUM($L41:AO41)), MAX(AO41,$I41-SUM($L41:AO41))) -> 0 | AQ41: =IF($I41 >0, MIN(AP41,$I41-SUM($L41:AP41)), MAX(AP41,$I41-SUM($L41:AP41))) -> 0 | AR41: =IF($I41 >0, MIN(AQ41,$I41-SUM($L41:AQ41)), MAX(AQ41,$I41-SUM($L41:AQ41))) -> 0 | AS41: =IF($I41 >0, MIN(AR41,$I41-SUM($L41:AR41)), MAX(AR41,$I41-SUM($L41:AR41))) -> 0 | AT41: =IF($I41 >0, MIN(AS41,$I41-SUM($L41:AS41)), MAX(AS41,$I41-SUM($L41:AS41))) -> 0
E42: 1992-03-31 | G42: £m 18/19 prices | I42: 617.2478868 | J42: > | M42: =$I42/L$35 -> 30.86239434 | N42: =IF($I42 >0, MIN(M42,$I42-SUM($L42:M42)), MAX(M42,$I42-SUM($L42:M42))) -> 30.86239434 | O42: =IF($I42 >0, MIN(N42,$I42-SUM($L42:N42)), MAX(N42,$I42-SUM($L42:N42))) -> 30.86239434 | P42: =IF($I42 >0, MIN(O42,$I42-SUM($L42:O42)), MAX(O42,$I42-SUM($L42:O42))) -> 30.86239434 | Q42: =IF($I42 >0, MIN(P42,$I42-SUM($L42:P42)), MAX(P42,$I42-SUM($L42:P42))) -> 30.86239434 | R42: =IF($I42 >0, MIN(Q42,$I42-SUM($L42:Q42)), MAX(Q42,$I42-SUM($L42:Q42))) -> 30.86239434 | S42: =IF($I42 >0, MIN(R42,$I42-SUM($L42:R42)), MAX(R42,$I42-SUM($L42:R42))) -> 30.86239434 | T42: =IF($I42 >0, MIN(S42,$I42-SUM($L42:S42)), MAX(S42,$I42-SUM($L42:S42))) -> 30.86239434 | U42: =IF($I42 >0, MIN(T42,$I42-SUM($L42:T42)), MAX(T42,$I42-SUM($L42:T42))) -> 30.86239434 | V42: =IF($I42 >0, MIN(U42,$I42-SUM($L42:U42)), MAX(U42,$I42-SUM($L42:U42))) -> 30.86239434 | W42: =IF($I42 >0, MIN(V42,$I42-SUM($L42:V42)), MAX(V42,$I42-SUM($L42:V42))) -> 30.86239434 | X42: =IF($I42 >0, MIN(W42,$I42-SUM($L42:W42)), MAX(W42,$I42-SUM($L42:W42))) -> 30.86239434 | Y42: =IF($I42 >0, MIN(X42,$I42-SUM($L42:X42)), MAX(X42,$I42-SUM($L42:X42))) -> 30.86239434 | Z42: =IF($I42 >0, MIN(Y42,$I42-SUM($L42:Y42)), MAX(Y42,$I42-SUM($L42:Y42))) -> 30.86239434 | AA42: =IF($I42 >0, MIN(Z42,$I42-SUM($L42:Z42)), MAX(Z42,$I42-SUM($L42:Z42))) -> 30.86239434 | AB42: =IF($I42 >0, MIN(AA42,$I42-SUM($L42:AA42)), MAX(AA42,$I42-SUM($L42:AA42))) -> 30.86239434 | AC42: =IF($I42 >0, MIN(AB42,$I42-SUM($L42:AB42)), MAX(AB42,$I42-SUM($L42:AB42))) -> 30.86239434 | AD42: =IF($I42 >0, MIN(AC42,$I42-SUM($L42:AC42)), MAX(AC42,$I42-SUM($L42:AC42))) -> 30.86239434 | AE42: =IF($I42 >0, MIN(AD42,$I42-SUM($L42:AD42)), MAX(AD42,$I42-SUM($L42:AD42))) -> 30.86239434 | AF42: =IF($I42 >0, MIN(AE42,$I42-SUM($L42:AE42)), MAX(AE42,$I42-SUM($L42:AE42))) -> 30.86239434 | AG42: =IF($I42 >0, MIN(AF42,$I42-SUM($L42:AF42)), MAX(AF42,$I42-SUM($L42:AF42))) -> 0 | AH42: =IF($I42 >0, MIN(AG42,$I42-SUM($L42:AG42)), MAX(AG42,$I42-SUM($L42:AG42))) -> 0 | AI42: =IF($I42 >0, MIN(AH42,$I42-SUM($L42:AH42)), MAX(AH42,$I42-SUM($L42:AH42))) -> 0 | AJ42: =IF($I42 >0, MIN(AI42,$I42-SUM($L42:AI42)), MAX(AI42,$I42-SUM($L42:AI42))) -> 0 | AK42: =IF($I42 >0, MIN(AJ42,$I42-SUM($L42:AJ42)), MAX(AJ42,$I42-SUM($L42:AJ42))) -> 0 | AL42: =IF($I42 >0, MIN(AK42,$I42-SUM($L42:AK42)), MAX(AK42,$I42-SUM($L42:AK42))) -> 0 | AM42: =IF($I42 >0, MIN(AL42,$I42-SUM($L42:AL42)), MAX(AL42,$I42-SUM($L42:AL42))) -> 0 | AN42: =IF($I42 >0, MIN(AM42,$I42-SUM($L42:AM42)), MAX(AM42,$I42-SUM($L42:AM42))) -> 0 | AO42: =IF($I42 >0, MIN(AN42,$I42-SUM($L42:AN42)), MAX(AN42,$I42-SUM($L42:AN42))) -> 0 | AP42: =IF($I42 >0, MIN(AO42,$I42-SUM($L42:AO42)), MAX(AO42,$I42-SUM($L42:AO42))) -> 0 | AQ42: =IF($I42 >0, MIN(AP42,$I42-SUM($L42:AP42)), MAX(AP42,$I42-SUM($L42:AP42))) -> 0 | AR42: =IF($I42 >0, MIN(AQ42,$I42-SUM($L42:AQ42)), MAX(AQ42,$I42-SUM($L42:AQ42))) -> 0 | AS42: =IF($I42 >0, MIN(AR42,$I42-SUM($L42:AR42)), MAX(AR42,$I42-SUM($L42:AR42))) -> 0 | AT42: =IF($I42 >0, MIN(AS42,$I42-SUM($L42:AS42)), MAX(AS42,$I42-SUM($L42:AS42))) -> 0
E43: 1993-03-31 | G43: £m 18/19 prices | I43: 728.482898 | J43: > | N43: =$I43/M$35 -> 36.4241449 | O43: =IF($I43 >0, MIN(N43,$I43-SUM($L43:N43)), MAX(N43,$I43-SUM($L43:N43))) -> 36.4241449 | P43: =IF($I43 >0, MIN(O43,$I43-SUM($L43:O43)), MAX(O43,$I43-SUM($L43:O43))) -> 36.4241449 | Q43: =IF($I43 >0, MIN(P43,$I43-SUM($L43:P43)), MAX(P43,$I43-SUM($L43:P43))) -> 36.4241449 | R43: =IF($I43 >0, MIN(Q43,$I43-SUM($L43:Q43)), MAX(Q43,$I43-SUM($L43:Q43))) -> 36.4241449 | S43: =IF($I43 >0, MIN(R43,$I43-SUM($L43:R43)), MAX(R43,$I43-SUM($L43:R43))) -> 36.4241449 | T43: =IF($I43 >0, MIN(S43,$I43-SUM($L43:S43)), MAX(S43,$I43-SUM($L43:S43))) -> 36.4241449 | U43: =IF($I43 >0, MIN(T43,$I43-SUM($L43:T43)), MAX(T43,$I43-SUM($L43:T43))) -> 36.4241449 | V43: =IF($I43 >0, MIN(U43,$I43-SUM($L43:U43)), MAX(U43,$I43-SUM($L43:U43))) -> 36.4241449 | W43: =IF($I43 >0, MIN(V43,$I43-SUM($L43:V43)), MAX(V43,$I43-SUM($L43:V43))) -> 36.4241449 | X43: =IF($I43 >0, MIN(W43,$I43-SUM($L43:W43)), MAX(W43,$I43-SUM($L43:W43))) -> 36.4241449 | Y43: =IF($I43 >0, MIN(X43,$I43-SUM($L43:X43)), MAX(X43,$I43-SUM($L43:X43))) -> 36.4241449 | Z43: =IF($I43 >0, MIN(Y43,$I43-SUM($L43:Y43)), MAX(Y43,$I43-SUM($L43:Y43))) -> 36.4241449 | AA43: =IF($I43 >0, MIN(Z43,$I43-SUM($L43:Z43)), MAX(Z43,$I43-SUM($L43:Z43))) -> 36.4241449 | AB43: =IF($I43 >0, MIN(AA43,$I43-SUM($L43:AA43)), MAX(AA43,$I43-SUM($L43:AA43))) -> 36.4241449 | AC43: =IF($I43 >0, MIN(AB43,$I43-SUM($L43:AB43)), MAX(AB43,$I43-SUM($L43:AB43))) -> 36.4241449 | AD43: =IF($I43 >0, MIN(AC43,$I43-SUM($L43:AC43)), MAX(AC43,$I43-SUM($L43:AC43))) -> 36.4241449 | AE43: =IF($I43 >0, MIN(AD43,$I43-SUM($L43:AD43)), MAX(AD43,$I43-SUM($L43:AD43))) -> 36.4241449 | AF43: =IF($I43 >0, MIN(AE43,$I43-SUM($L43:AE43)), MAX(AE43,$I43-SUM($L43:AE43))) -> 36.4241449 | AG43: =IF($I43 >0, MIN(AF43,$I43-SUM($L43:AF43)), MAX(AF43,$I43-SUM($L43:AF43))) -> 36.4241449 | AH43: =IF($I43 >0, MIN(AG43,$I43-SUM($L43:AG43)), MAX(AG43,$I43-SUM($L43:AG43))) -> 0 | AI43: =IF($I43 >0, MIN(AH43,$I43-SUM($L43:AH43)), MAX(AH43,$I43-SUM($L43:AH43))) -> 0 | AJ43: =IF($I43 >0, MIN(AI43,$I43-SUM($L43:AI43)), MAX(AI43,$I43-SUM($L43:AI43))) -> 0 | AK43: =IF($I43 >0, MIN(AJ43,$I43-SUM($L43:AJ43)), MAX(AJ43,$I43-SUM($L43:AJ43))) -> 0 | AL43: =IF($I43 >0, MIN(AK43,$I43-SUM($L43:AK43)), MAX(AK43,$I43-SUM($L43:AK43))) -> 0 | AM43: =IF($I43 >0, MIN(AL43,$I43-SUM($L43:AL43)), MAX(AL43,$I43-SUM($L43:AL43))) -> 0 | AN43: =IF($I43 >0, MIN(AM43,$I43-SUM($L43:AM43)), MAX(AM43,$I43-SUM($L43:AM43))) -> 0 | AO43: =IF($I43 >0, MIN(AN43,$I43-SUM($L43:AN43)), MAX(AN43,$I43-SUM($L43:AN43))) -> 0 | AP43: =IF($I43 >0, MIN(AO43,$I43-SUM($L43:AO43)), MAX(AO43,$I43-SUM($L43:AO43))) -> 0 | AQ43: =IF($I43 >0, MIN(AP43,$I43-SUM($L43:AP43)), MAX(AP43,$I43-SUM($L43:AP43))) -> 0 | AR43: =IF($I43 >0, MIN(AQ43,$I43-SUM($L43:AQ43)), MAX(AQ43,$I43-SUM($L43:AQ43))) -> 0 | AS43: =IF($I43 >0, MIN(AR43,$I43-SUM($L43:AR43)), MAX(AR43,$I43-SUM($L43:AR43))) -> 0 | AT43: =IF($I43 >0, MIN(AS43,$I43-SUM($L43:AS43)), MAX(AS43,$I43-SUM($L43:AS43))) -> 0
E44: 1994-03-31 | G44: £m 18/19 prices | I44: 524.6443634 | J44: > | O44: =$I44/N$35 -> 26.23221817 | P44: =IF($I44 >0, MIN(O44,$I44-SUM($L44:O44)), MAX(O44,$I44-SUM($L44:O44))) -> 26.23221817 | Q44: =IF($I44 >0, MIN(P44,$I44-SUM($L44:P44)), MAX(P44,$I44-SUM($L44:P44))) -> 26.23221817 | R44: =IF($I44 >0, MIN(Q44,$I44-SUM($L44:Q44)), MAX(Q44,$I44-SUM($L44:Q44))) -> 26.23221817 | S44: =IF($I44 >0, MIN(R44,$I44-SUM($L44:R44)), MAX(R44,$I44-SUM($L44:R44))) -> 26.23221817 | T44: =IF($I44 >0, MIN(S44,$I44-SUM($L44:S44)), MAX(S44,$I44-SUM($L44:S44))) -> 26.23221817 | U44: =IF($I44 >0, MIN(T44,$I44-SUM($L44:T44)), MAX(T44,$I44-SUM($L44:T44))) -> 26.23221817 | V44: =IF($I44 >0, MIN(U44,$I44-SUM($L44:U44)), MAX(U44,$I44-SUM($L44:U44))) -> 26.23221817 | W44: =IF($I44 >0, MIN(V44,$I44-SUM($L44:V44)), MAX(V44,$I44-SUM($L44:V44))) -> 26.23221817 | X44: =IF($I44 >0, MIN(W44,$I44-SUM($L44:W44)), MAX(W44,$I44-SUM($L44:W44))) -> 26.23221817 | Y44: =IF($I44 >0, MIN(X44,$I44-SUM($L44:X44)), MAX(X44,$I44-SUM($L44:X44))) -> 26.23221817 | Z44: =IF($I44 >0, MIN(Y44,$I44-SUM($L44:Y44)), MAX(Y44,$I44-SUM($L44:Y44))) -> 26.23221817 | AA44: =IF($I44 >0, MIN(Z44,$I44-SUM($L44:Z44)), MAX(Z44,$I44-SUM($L44:Z44))) -> 26.23221817 | AB44: =IF($I44 >0, MIN(AA44,$I44-SUM($L44:AA44)), MAX(AA44,$I44-SUM($L44:AA44))) -> 26.23221817 | AC44: =IF($I44 >0, MIN(AB44,$I44-SUM($L44:AB44)), MAX(AB44,$I44-SUM($L44:AB44))) -> 26.23221817 | AD44: =IF($I44 >0, MIN(AC44,$I44-SUM($L44:AC44)), MAX(AC44,$I44-SUM($L44:AC44))) -> 26.23221817 | AE44: =IF($I44 >0, MIN(AD44,$I44-SUM($L44:AD44)), MAX(AD44,$I44-SUM($L44:AD44))) -> 26.23221817 | AF44: =IF($I44 >0, MIN(AE44,$I44-SUM($L44:AE44)), MAX(AE44,$I44-SUM($L44:AE44))) -> 26.23221817 | AG44: =IF($I44 >0, MIN(AF44,$I44-SUM($L44:AF44)), MAX(AF44,$I44-SUM($L44:AF44))) -> 26.23221817 | AH44: =IF($I44 >0, MIN(AG44,$I44-SUM($L44:AG44)), MAX(AG44,$I44-SUM($L44:AG44))) -> 26.23221817 | AI44: =IF($I44 >0, MIN(AH44,$I44-SUM($L44:AH44)), MAX(AH44,$I44-SUM($L44:AH44))) -> 0 | AJ44: =IF($I44 >0, MIN(AI44,$I44-SUM($L44:AI44)), MAX(AI44,$I44-SUM($L44:AI44))) -> 0 | AK44: =IF($I44 >0, MIN(AJ44,$I44-SUM($L44:AJ44)), MAX(AJ44,$I44-SUM($L44:AJ44))) -> 0 | AL44: =IF($I44 >0, MIN(AK44,$I44-SUM($L44:AK44)), MAX(AK44,$I44-SUM($L44:AK44))) -> 0 | AM44: =IF($I44 >0, MIN(AL44,$I44-SUM($L44:AL44)), MAX(AL44,$I44-SUM($L44:AL44))) -> 0 | AN44: =IF($I44 >0, MIN(AM44,$I44-SUM($L44:AM44)), MAX(AM44,$I44-SUM($L44:AM44))) -> 0 | AO44: =IF($I44 >0, MIN(AN44,$I44-SUM($L44:AN44)), MAX(AN44,$I44-SUM($L44:AN44))) -> 0 | AP44: =IF($I44 >0, MIN(AO44,$I44-SUM($L44:AO44)), MAX(AO44,$I44-SUM($L44:AO44))) -> 0 | AQ44: =IF($I44 >0, MIN(AP44,$I44-SUM($L44:AP44)), MAX(AP44,$I44-SUM($L44:AP44))) -> 0 | AR44: =IF($I44 >0, MIN(AQ44,$I44-SUM($L44:AQ44)), MAX(AQ44,$I44-SUM($L44:AQ44))) -> 0 | AS44: =IF($I44 >0, MIN(AR44,$I44-SUM($L44:AR44)), MAX(AR44,$I44-SUM($L44:AR44))) -> 0 | AT44: =IF($I44 >0, MIN(AS44,$I44-SUM($L44:AS44)), MAX(AS44,$I44-SUM($L44:AS44))) -> 0
E45: 1995-03-31 | G45: £m 18/19 prices | I45: 341.6847934 | J45: > | P45: =$I45/O$35 -> 17.08423967 | Q45: =IF($I45 >0, MIN(P45,$I45-SUM($L45:P45)), MAX(P45,$I45-SUM($L45:P45))) -> 17.08423967 | R45: =IF($I45 >0, MIN(Q45,$I45-SUM($L45:Q45)), MAX(Q45,$I45-SUM($L45:Q45))) -> 17.08423967 | S45: =IF($I45 >0, MIN(R45,$I45-SUM($L45:R45)), MAX(R45,$I45-SUM($L45:R45))) -> 17.08423967 | T45: =IF($I45 >0, MIN(S45,$I45-SUM($L45:S45)), MAX(S45,$I45-SUM($L45:S45))) -> 17.08423967 | U45: =IF($I45 >0, MIN(T45,$I45-SUM($L45:T45)), MAX(T45,$I45-SUM($L45:T45))) -> 17.08423967 | V45: =IF($I45 >0, MIN(U45,$I45-SUM($L45:U45)), MAX(U45,$I45-SUM($L45:U45))) -> 17.08423967 | W45: =IF($I45 >0, MIN(V45,$I45-SUM($L45:V45)), MAX(V45,$I45-SUM($L45:V45))) -> 17.08423967 | X45: =IF($I45 >0, MIN(W45,$I45-SUM($L45:W45)), MAX(W45,$I45-SUM($L45:W45))) -> 17.08423967 | Y45: =IF($I45 >0, MIN(X45,$I45-SUM($L45:X45)), MAX(X45,$I45-SUM($L45:X45))) -> 17.08423967 | Z45: =IF($I45 >0, MIN(Y45,$I45-SUM($L45:Y45)), MAX(Y45,$I45-SUM($L45:Y45))) -> 17.08423967 | AA45: =IF($I45 >0, MIN(Z45,$I45-SUM($L45:Z45)), MAX(Z45,$I45-SUM($L45:Z45))) -> 17.08423967 | AB45: =IF($I45 >0, MIN(AA45,$I45-SUM($L45:AA45)), MAX(AA45,$I45-SUM($L45:AA45))) -> 17.08423967 | AC45: =IF($I45 >0, MIN(AB45,$I45-SUM($L45:AB45)), MAX(AB45,$I45-SUM($L45:AB45))) -> 17.08423967 | AD45: =IF($I45 >0, MIN(AC45,$I45-SUM($L45:AC45)), MAX(AC45,$I45-SUM($L45:AC45))) -> 17.08423967 | AE45: =IF($I45 >0, MIN(AD45,$I45-SUM($L45:AD45)), MAX(AD45,$I45-SUM($L45:AD45))) -> 17.08423967 | AF45: =IF($I45 >0, MIN(AE45,$I45-SUM($L45:AE45)), MAX(AE45,$I45-SUM($L45:AE45))) -> 17.08423967 | AG45: =IF($I45 >0, MIN(AF45,$I45-SUM($L45:AF45)), MAX(AF45,$I45-SUM($L45:AF45))) -> 17.08423967 | AH45: =IF($I45 >0, MIN(AG45,$I45-SUM($L45:AG45)), MAX(AG45,$I45-SUM($L45:AG45))) -> 17.08423967 | AI45: =IF($I45 >0, MIN(AH45,$I45-SUM($L45:AH45)), MAX(AH45,$I45-SUM($L45:AH45))) -> 17.08423967 | AJ45: =IF($I45 >0, MIN(AI45,$I45-SUM($L45:AI45)), MAX(AI45,$I45-SUM($L45:AI45))) -> 1.136868377e-13 | AK45: =IF($I45 >0, MIN(AJ45,$I45-SUM($L45:AJ45)), MAX(AJ45,$I45-SUM($L45:AJ45))) -> 0 | AL45: =IF($I45 >0, MIN(AK45,$I45-SUM($L45:AK45)), MAX(AK45,$I45-SUM($L45:AK45))) -> 0 | AM45: =IF($I45 >0, MIN(AL45,$I45-SUM($L45:AL45)), MAX(AL45,$I45-SUM($L45:AL45))) -> 0 | AN45: =IF($I45 >0, MIN(AM45,$I45-SUM($L45:AM45)), MAX(AM45,$I45-SUM($L45:AM45))) -> 0 | AO45: =IF($I45 >0, MIN(AN45,$I45-SUM($L45:AN45)), MAX(AN45,$I45-SUM($L45:AN45))) -> 0 | AP45: =IF($I45 >0, MIN(AO45,$I45-SUM($L45:AO45)), MAX(AO45,$I45-SUM($L45:AO45))) -> 0 | AQ45: =IF($I45 >0, MIN(AP45,$I45-SUM($L45:AP45)), MAX(AP45,$I45-SUM($L45:AP45))) -> 0 | AR45: =IF($I45 >0, MIN(AQ45,$I45-SUM($L45:AQ45)), MAX(AQ45,$I45-SUM($L45:AQ45))) -> 0 | AS45: =IF($I45 >0, MIN(AR45,$I45-SUM($L45:AR45)), MAX(AR45,$I45-SUM($L45:AR45))) -> 0 | AT45: =IF($I45 >0, MIN(AS45,$I45-SUM($L45:AS45)), MAX(AS45,$I45-SUM($L45:AS45))) -> 0
E46: 1996-03-31 | G46: £m 18/19 prices | I46: 345.4054363 | J46: > | Q46: =$I46/P$35 -> 17.27027182 | R46: =IF($I46 >0, MIN(Q46,$I46-SUM($L46:Q46)), MAX(Q46,$I46-SUM($L46:Q46))) -> 17.27027182 | S46: =IF($I46 >0, MIN(R46,$I46-SUM($L46:R46)), MAX(R46,$I46-SUM($L46:R46))) -> 17.27027182 | T46: =IF($I46 >0, MIN(S46,$I46-SUM($L46:S46)), MAX(S46,$I46-SUM($L46:S46))) -> 17.27027182 | U46: =IF($I46 >0, MIN(T46,$I46-SUM($L46:T46)), MAX(T46,$I46-SUM($L46:T46))) -> 17.27027182 | V46: =IF($I46 >0, MIN(U46,$I46-SUM($L46:U46)), MAX(U46,$I46-SUM($L46:U46))) -> 17.27027182 | W46: =IF($I46 >0, MIN(V46,$I46-SUM($L46:V46)), MAX(V46,$I46-SUM($L46:V46))) -> 17.27027182 | X46: =IF($I46 >0, MIN(W46,$I46-SUM($L46:W46)), MAX(W46,$I46-SUM($L46:W46))) -> 17.27027182 | Y46: =IF($I46 >0, MIN(X46,$I46-SUM($L46:X46)), MAX(X46,$I46-SUM($L46:X46))) -> 17.27027182 | Z46: =IF($I46 >0, MIN(Y46,$I46-SUM($L46:Y46)), MAX(Y46,$I46-SUM($L46:Y46))) -> 17.27027182 | AA46: =IF($I46 >0, MIN(Z46,$I46-SUM($L46:Z46)), MAX(Z46,$I46-SUM($L46:Z46))) -> 17.27027182 | AB46: =IF($I46 >0, MIN(AA46,$I46-SUM($L46:AA46)), MAX(AA46,$I46-SUM($L46:AA46))) -> 17.27027182 | AC46: =IF($I46 >0, MIN(AB46,$I46-SUM($L46:AB46)), MAX(AB46,$I46-SUM($L46:AB46))) -> 17.27027182 | AD46: =IF($I46 >0, MIN(AC46,$I46-SUM($L46:AC46)), MAX(AC46,$I46-SUM($L46:AC46))) -> 17.27027182 | AE46: =IF($I46 >0, MIN(AD46,$I46-SUM($L46:AD46)), MAX(AD46,$I46-SUM($L46:AD46))) -> 17.27027182 | AF46: =IF($I46 >0, MIN(AE46,$I46-SUM($L46:AE46)), MAX(AE46,$I46-SUM($L46:AE46))) -> 17.27027182 | AG46: =IF($I46 >0, MIN(AF46,$I46-SUM($L46:AF46)), MAX(AF46,$I46-SUM($L46:AF46))) -> 17.27027182 | AH46: =IF($I46 >0, MIN(AG46,$I46-SUM($L46:AG46)), MAX(AG46,$I46-SUM($L46:AG46))) -> 17.27027182 | AI46: =IF($I46 >0, MIN(AH46,$I46-SUM($L46:AH46)), MAX(AH46,$I46-SUM($L46:AH46))) -> 17.27027182 | AJ46: =IF($I46 >0, MIN(AI46,$I46-SUM($L46:AI46)), MAX(AI46,$I46-SUM($L46:AI46))) -> 17.27027182 | AK46: =IF($I46 >0, MIN(AJ46,$I46-SUM($L46:AJ46)), MAX(AJ46,$I46-SUM($L46:AJ46))) -> 0 | AL46: =IF($I46 >0, MIN(AK46,$I46-SUM($L46:AK46)), MAX(AK46,$I46-SUM($L46:AK46))) -> 0 | AM46: =IF($I46 >0, MIN(AL46,$I46-SUM($L46:AL46)), MAX(AL46,$I46-SUM($L46:AL46))) -> 0 | AN46: =IF($I46 >0, MIN(AM46,$I46-SUM($L46:AM46)), MAX(AM46,$I46-SUM($L46:AM46))) -> 0 | AO46: =IF($I46 >0, MIN(AN46,$I46-SUM($L46:AN46)), MAX(AN46,$I46-SUM($L46:AN46))) -> 0 | AP46: =IF($I46 >0, MIN(AO46,$I46-SUM($L46:AO46)), MAX(AO46,$I46-SUM($L46:AO46))) -> 0 | AQ46: =IF($I46 >0, MIN(AP46,$I46-SUM($L46:AP46)), MAX(AP46,$I46-SUM($L46:AP46))) -> 0 | AR46: =IF($I46 >0, MIN(AQ46,$I46-SUM($L46:AQ46)), MAX(AQ46,$I46-SUM($L46:AQ46))) -> 0 | AS46: =IF($I46 >0, MIN(AR46,$I46-SUM($L46:AR46)), MAX(AR46,$I46-SUM($L46:AR46))) -> 0 | AT46: =IF($I46 >0, MIN(AS46,$I46-SUM($L46:AS46)), MAX(AS46,$I46-SUM($L46:AS46))) -> 0
E47: 1997-03-31 | G47: £m 18/19 prices | I47: 334.5503842 | J47: > | R47: =$I47/Q$35 -> 16.72751921 | S47: =IF($I47 >0, MIN(R47,$I47-SUM($L47:R47)), MAX(R47,$I47-SUM($L47:R47))) -> 16.72751921 | T47: =IF($I47 >0, MIN(S47,$I47-SUM($L47:S47)), MAX(S47,$I47-SUM($L47:S47))) -> 16.72751921 | U47: =IF($I47 >0, MIN(T47,$I47-SUM($L47:T47)), MAX(T47,$I47-SUM($L47:T47))) -> 16.72751921 | V47: =IF($I47 >0, MIN(U47,$I47-SUM($L47:U47)), MAX(U47,$I47-SUM($L47:U47))) -> 16.72751921 | W47: =IF($I47 >0, MIN(V47,$I47-SUM($L47:V47)), MAX(V47,$I47-SUM($L47:V47))) -> 16.72751921 | X47: =IF($I47 >0, MIN(W47,$I47-SUM($L47:W47)), MAX(W47,$I47-SUM($L47:W47))) -> 16.72751921 | Y47: =IF($I47 >0, MIN(X47,$I47-SUM($L47:X47)), MAX(X47,$I47-SUM($L47:X47))) -> 16.72751921 | Z47: =IF($I47 >0, MIN(Y47,$I47-SUM($L47:Y47)), MAX(Y47,$I47-SUM($L47:Y47))) -> 16.72751921 | AA47: =IF($I47 >0, MIN(Z47,$I47-SUM($L47:Z47)), MAX(Z47,$I47-SUM($L47:Z47))) -> 16.72751921 | AB47: =IF($I47 >0, MIN(AA47,$I47-SUM($L47:AA47)), MAX(AA47,$I47-SUM($L47:AA47))) -> 16.72751921 | AC47: =IF($I47 >0, MIN(AB47,$I47-SUM($L47:AB47)), MAX(AB47,$I47-SUM($L47:AB47))) -> 16.72751921 | AD47: =IF($I47 >0, MIN(AC47,$I47-SUM($L47:AC47)), MAX(AC47,$I47-SUM($L47:AC47))) -> 16.72751921 | AE47: =IF($I47 >0, MIN(AD47,$I47-SUM($L47:AD47)), MAX(AD47,$I47-SUM($L47:AD47))) -> 16.72751921 | AF47: =IF($I47 >0, MIN(AE47,$I47-SUM($L47:AE47)), MAX(AE47,$I47-SUM($L47:AE47))) -> 16.72751921 | AG47: =IF($I47 >0, MIN(AF47,$I47-SUM($L47:AF47)), MAX(AF47,$I47-SUM($L47:AF47))) -> 16.72751921 | AH47: =IF($I47 >0, MIN(AG47,$I47-SUM($L47:AG47)), MAX(AG47,$I47-SUM($L47:AG47))) -> 16.72751921 | AI47: =IF($I47 >0, MIN(AH47,$I47-SUM($L47:AH47)), MAX(AH47,$I47-SUM($L47:AH47))) -> 16.72751921 | AJ47: =IF($I47 >0, MIN(AI47,$I47-SUM($L47:AI47)), MAX(AI47,$I47-SUM($L47:AI47))) -> 16.72751921 | AK47: =IF($I47 >0, MIN(AJ47,$I47-SUM($L47:AJ47)), MAX(AJ47,$I47-SUM($L47:AJ47))) -> 16.72751921 | AL47: =IF($I47 >0, MIN(AK47,$I47-SUM($L47:AK47)), MAX(AK47,$I47-SUM($L47:AK47))) -> 0 | AM47: =IF($I47 >0, MIN(AL47,$I47-SUM($L47:AL47)), MAX(AL47,$I47-SUM($L47:AL47))) -> 0 | AN47: =IF($I47 >0, MIN(AM47,$I47-SUM($L47:AM47)), MAX(AM47,$I47-SUM($L47:AM47))) -> 0 | AO47: =IF($I47 >0, MIN(AN47,$I47-SUM($L47:AN47)), MAX(AN47,$I47-SUM($L47:AN47))) -> 0 | AP47: =IF($I47 >0, MIN(AO47,$I47-SUM($L47:AO47)), MAX(AO47,$I47-SUM($L47:AO47))) -> 0 | AQ47: =IF($I47 >0, MIN(AP47,$I47-SUM($L47:AP47)), MAX(AP47,$I47-SUM($L47:AP47))) -> 0 | AR47: =IF($I47 >0, MIN(AQ47,$I47-SUM($L47:AQ47)), MAX(AQ47,$I47-SUM($L47:AQ47))) -> 0 | AS47: =IF($I47 >0, MIN(AR47,$I47-SUM($L47:AR47)), MAX(AR47,$I47-SUM($L47:AR47))) -> 0 | AT47: =IF($I47 >0, MIN(AS47,$I47-SUM($L47:AS47)), MAX(AS47,$I47-SUM($L47:AS47))) -> 0
E48: 1998-03-31 | G48: £m 18/19 prices | I48: 295.9747477 | J48: > | S48: =$I48/R$35 -> 14.79873739 | T48: =IF($I48 >0, MIN(S48,$I48-SUM($L48:S48)), MAX(S48,$I48-SUM($L48:S48))) -> 14.79873739 | U48: =IF($I48 >0, MIN(T48,$I48-SUM($L48:T48)), MAX(T48,$I48-SUM($L48:T48))) -> 14.79873739 | V48: =IF($I48 >0, MIN(U48,$I48-SUM($L48:U48)), MAX(U48,$I48-SUM($L48:U48))) -> 14.79873739 | W48: =IF($I48 >0, MIN(V48,$I48-SUM($L48:V48)), MAX(V48,$I48-SUM($L48:V48))) -> 14.79873739 | X48: =IF($I48 >0, MIN(W48,$I48-SUM($L48:W48)), MAX(W48,$I48-SUM($L48:W48))) -> 14.79873739 | Y48: =IF($I48 >0, MIN(X48,$I48-SUM($L48:X48)), MAX(X48,$I48-SUM($L48:X48))) -> 14.79873739 | Z48: =IF($I48 >0, MIN(Y48,$I48-SUM($L48:Y48)), MAX(Y48,$I48-SUM($L48:Y48))) -> 14.79873739 | AA48: =IF($I48 >0, MIN(Z48,$I48-SUM($L48:Z48)), MAX(Z48,$I48-SUM($L48:Z48))) -> 14.79873739 | AB48: =IF($I48 >0, MIN(AA48,$I48-SUM($L48:AA48)), MAX(AA48,$I48-SUM($L48:AA48))) -> 14.79873739 | AC48: =IF($I48 >0, MIN(AB48,$I48-SUM($L48:AB48)), MAX(AB48,$I48-SUM($L48:AB48))) -> 14.79873739 | AD48: =IF($I48 >0, MIN(AC48,$I48-SUM($L48:AC48)), MAX(AC48,$I48-SUM($L48:AC48))) -> 14.79873739 | AE48: =IF($I48 >0, MIN(AD48,$I48-SUM($L48:AD48)), MAX(AD48,$I48-SUM($L48:AD48))) -> 14.79873739 | AF48: =IF($I48 >0, MIN(AE48,$I48-SUM($L48:AE48)), MAX(AE48,$I48-SUM($L48:AE48))) -> 14.79873739 | AG48: =IF($I48 >0, MIN(AF48,$I48-SUM($L48:AF48)), MAX(AF48,$I48-SUM($L48:AF48))) -> 14.79873739 | AH48: =IF($I48 >0, MIN(AG48,$I48-SUM($L48:AG48)), MAX(AG48,$I48-SUM($L48:AG48))) -> 14.79873739 | AI48: =IF($I48 >0, MIN(AH48,$I48-SUM($L48:AH48)), MAX(AH48,$I48-SUM($L48:AH48))) -> 14.79873739 | AJ48: =IF($I48 >0, MIN(AI48,$I48-SUM($L48:AI48)), MAX(AI48,$I48-SUM($L48:AI48))) -> 14.79873739 | AK48: =IF($I48 >0, MIN(AJ48,$I48-SUM($L48:AJ48)), MAX(AJ48,$I48-SUM($L48:AJ48))) -> 14.79873739 | AL48: =IF($I48 >0, MIN(AK48,$I48-SUM($L48:AK48)), MAX(AK48,$I48-SUM($L48:AK48))) -> 14.79873739 | AM48: =IF($I48 >0, MIN(AL48,$I48-SUM($L48:AL48)), MAX(AL48,$I48-SUM($L48:AL48))) -> 0 | AN48: =IF($I48 >0, MIN(AM48,$I48-SUM($L48:AM48)), MAX(AM48,$I48-SUM($L48:AM48))) -> 0 | AO48: =IF($I48 >0, MIN(AN48,$I48-SUM($L48:AN48)), MAX(AN48,$I48-SUM($L48:AN48))) -> 0 | AP48: =IF($I48 >0, MIN(AO48,$I48-SUM($L48:AO48)), MAX(AO48,$I48-SUM($L48:AO48))) -> 0 | AQ48: =IF($I48 >0, MIN(AP48,$I48-SUM($L48:AP48)), MAX(AP48,$I48-SUM($L48:AP48))) -> 0 | AR48: =IF($I48 >0, MIN(AQ48,$I48-SUM($L48:AQ48)), MAX(AQ48,$I48-SUM($L48:AQ48))) -> 0 | AS48: =IF($I48 >0, MIN(AR48,$I48-SUM($L48:AR48)), MAX(AR48,$I48-SUM($L48:AR48))) -> 0 | AT48: =IF($I48 >0, MIN(AS48,$I48-SUM($L48:AS48)), MAX(AS48,$I48-SUM($L48:AS48))) -> 0
E49: 1999-03-31 | G49: £m 18/19 prices | I49: 512.8254519 | J49: > | T49: =$I49/S$35 -> 25.6412726 | U49: =IF($I49 >0, MIN(T49,$I49-SUM($L49:T49)), MAX(T49,$I49-SUM($L49:T49))) -> 25.6412726 | V49: =IF($I49 >0, MIN(U49,$I49-SUM($L49:U49)), MAX(U49,$I49-SUM($L49:U49))) -> 25.6412726 | W49: =IF($I49 >0, MIN(V49,$I49-SUM($L49:V49)), MAX(V49,$I49-SUM($L49:V49))) -> 25.6412726 | X49: =IF($I49 >0, MIN(W49,$I49-SUM($L49:W49)), MAX(W49,$I49-SUM($L49:W49))) -> 25.6412726 | Y49: =IF($I49 >0, MIN(X49,$I49-SUM($L49:X49)), MAX(X49,$I49-SUM($L49:X49))) -> 25.6412726 | Z49: =IF($I49 >0, MIN(Y49,$I49-SUM($L49:Y49)), MAX(Y49,$I49-SUM($L49:Y49))) -> 25.6412726 | AA49: =IF($I49 >0, MIN(Z49,$I49-SUM($L49:Z49)), MAX(Z49,$I49-SUM($L49:Z49))) -> 25.6412726 | AB49: =IF($I49 >0, MIN(AA49,$I49-SUM($L49:AA49)), MAX(AA49,$I49-SUM($L49:AA49))) -> 25.6412726 | AC49: =IF($I49 >0, MIN(AB49,$I49-SUM($L49:AB49)), MAX(AB49,$I49-SUM($L49:AB49))) -> 25.6412726 | AD49: =IF($I49 >0, MIN(AC49,$I49-SUM($L49:AC49)), MAX(AC49,$I49-SUM($L49:AC49))) -> 25.6412726 | AE49: =IF($I49 >0, MIN(AD49,$I49-SUM($L49:AD49)), MAX(AD49,$I49-SUM($L49:AD49))) -> 25.6412726 | AF49: =IF($I49 >0, MIN(AE49,$I49-SUM($L49:AE49)), MAX(AE49,$I49-SUM($L49:AE49))) -> 25.6412726 | AG49: =IF($I49 >0, MIN(AF49,$I49-SUM($L49:AF49)), MAX(AF49,$I49-SUM($L49:AF49))) -> 25.6412726 | AH49: =IF($I49 >0, MIN(AG49,$I49-SUM($L49:AG49)), MAX(AG49,$I49-SUM($L49:AG49))) -> 25.6412726 | AI49: =IF($I49 >0, MIN(AH49,$I49-SUM($L49:AH49)), MAX(AH49,$I49-SUM($L49:AH49))) -> 25.6412726 | AJ49: =IF($I49 >0, MIN(AI49,$I49-SUM($L49:AI49)), MAX(AI49,$I49-SUM($L49:AI49))) -> 25.6412726 | AK49: =IF($I49 >0, MIN(AJ49,$I49-SUM($L49:AJ49)), MAX(AJ49,$I49-SUM($L49:AJ49))) -> 25.6412726 | AL49: =IF($I49 >0, MIN(AK49,$I49-SUM($L49:AK49)), MAX(AK49,$I49-SUM($L49:AK49))) -> 25.6412726 | AM49: =IF($I49 >0, MIN(AL49,$I49-SUM($L49:AL49)), MAX(AL49,$I49-SUM($L49:AL49))) -> 25.6412726 | AN49: =IF($I49 >0, MIN(AM49,$I49-SUM($L49:AM49)), MAX(AM49,$I49-SUM($L49:AM49))) -> 0 | AO49: =IF($I49 >0, MIN(AN49,$I49-SUM($L49:AN49)), MAX(AN49,$I49-SUM($L49:AN49))) -> 0 | AP49: =IF($I49 >0, MIN(AO49,$I49-SUM($L49:AO49)), MAX(AO49,$I49-SUM($L49:AO49))) -> 0 | AQ49: =IF($I49 >0, MIN(AP49,$I49-SUM($L49:AP49)), MAX(AP49,$I49-SUM($L49:AP49))) -> 0 | AR49: =IF($I49 >0, MIN(AQ49,$I49-SUM($L49:AQ49)), MAX(AQ49,$I49-SUM($L49:AQ49))) -> 0 | AS49: =IF($I49 >0, MIN(AR49,$I49-SUM($L49:AR49)), MAX(AR49,$I49-SUM($L49:AR49))) -> 0 | AT49: =IF($I49 >0, MIN(AS49,$I49-SUM($L49:AS49)), MAX(AS49,$I49-SUM($L49:AS49))) -> 0
E50: 2000-03-31 | G50: £m 18/19 prices | I50: 455.5743295 | J50: > | U50: =$I50/T$35 -> 22.77871647 | V50: =IF($I50 >0, MIN(U50,$I50-SUM($L50:U50)), MAX(U50,$I50-SUM($L50:U50))) -> 22.77871647 | W50: =IF($I50 >0, MIN(V50,$I50-SUM($L50:V50)), MAX(V50,$I50-SUM($L50:V50))) -> 22.77871647 | X50: =IF($I50 >0, MIN(W50,$I50-SUM($L50:W50)), MAX(W50,$I50-SUM($L50:W50))) -> 22.77871647 | Y50: =IF($I50 >0, MIN(X50,$I50-SUM($L50:X50)), MAX(X50,$I50-SUM($L50:X50))) -> 22.77871647 | Z50: =IF($I50 >0, MIN(Y50,$I50-SUM($L50:Y50)), MAX(Y50,$I50-SUM($L50:Y50))) -> 22.77871647 | AA50: =IF($I50 >0, MIN(Z50,$I50-SUM($L50:Z50)), MAX(Z50,$I50-SUM($L50:Z50))) -> 22.77871647 | AB50: =IF($I50 >0, MIN(AA50,$I50-SUM($L50:AA50)), MAX(AA50,$I50-SUM($L50:AA50))) -> 22.77871647 | AC50: =IF($I50 >0, MIN(AB50,$I50-SUM($L50:AB50)), MAX(AB50,$I50-SUM($L50:AB50))) -> 22.77871647 | AD50: =IF($I50 >0, MIN(AC50,$I50-SUM($L50:AC50)), MAX(AC50,$I50-SUM($L50:AC50))) -> 22.77871647 | AE50: =IF($I50 >0, MIN(AD50,$I50-SUM($L50:AD50)), MAX(AD50,$I50-SUM($L50:AD50))) -> 22.77871647 | AF50: =IF($I50 >0, MIN(AE50,$I50-SUM($L50:AE50)), MAX(AE50,$I50-SUM($L50:AE50))) -> 22.77871647 | AG50: =IF($I50 >0, MIN(AF50,$I50-SUM($L50:AF50)), MAX(AF50,$I50-SUM($L50:AF50))) -> 22.77871647 | AH50: =IF($I50 >0, MIN(AG50,$I50-SUM($L50:AG50)), MAX(AG50,$I50-SUM($L50:AG50))) -> 22.77871647 | AI50: =IF($I50 >0, MIN(AH50,$I50-SUM($L50:AH50)), MAX(AH50,$I50-SUM($L50:AH50))) -> 22.77871647 | AJ50: =IF($I50 >0, MIN(AI50,$I50-SUM($L50:AI50)), MAX(AI50,$I50-SUM($L50:AI50))) -> 22.77871647 | AK50: =IF($I50 >0, MIN(AJ50,$I50-SUM($L50:AJ50)), MAX(AJ50,$I50-SUM($L50:AJ50))) -> 22.77871647 | AL50: =IF($I50 >0, MIN(AK50,$I50-SUM($L50:AK50)), MAX(AK50,$I50-SUM($L50:AK50))) -> 22.77871647 | AM50: =IF($I50 >0, MIN(AL50,$I50-SUM($L50:AL50)), MAX(AL50,$I50-SUM($L50:AL50))) -> 22.77871647 | AN50: =IF($I50 >0, MIN(AM50,$I50-SUM($L50:AM50)), MAX(AM50,$I50-SUM($L50:AM50))) -> 22.77871647 | AO50: =IF($I50 >0, MIN(AN50,$I50-SUM($L50:AN50)), MAX(AN50,$I50-SUM($L50:AN50))) -> 2.273736754e-13 | AP50: =IF($I50 >0, MIN(AO50,$I50-SUM($L50:AO50)), MAX(AO50,$I50-SUM($L50:AO50))) -> 0 | AQ50: =IF($I50 >0, MIN(AP50,$I50-SUM($L50:AP50)), MAX(AP50,$I50-SUM($L50:AP50))) -> 0 | AR50: =IF($I50 >0, MIN(AQ50,$I50-SUM($L50:AQ50)), MAX(AQ50,$I50-SUM($L50:AQ50))) -> 0 | AS50: =IF($I50 >0, MIN(AR50,$I50-SUM($L50:AR50)), MAX(AR50,$I50-SUM($L50:AR50))) -> 0 | AT50: =IF($I50 >0, MIN(AS50,$I50-SUM($L50:AS50)), MAX(AS50,$I50-SUM($L50:AS50))) -> 0
E51: 2001-03-31 | G51: £m 18/19 prices | I51: 386.8379217 | J51: > | V51: =$I51/U$35 -> 19.34189608 | W51: =IF($I51 >0, MIN(V51,$I51-SUM($L51:V51)), MAX(V51,$I51-SUM($L51:V51))) -> 19.34189608 | X51: =IF($I51 >0, MIN(W51,$I51-SUM($L51:W51)), MAX(W51,$I51-SUM($L51:W51))) -> 19.34189608 | Y51: =IF($I51 >0, MIN(X51,$I51-SUM($L51:X51)), MAX(X51,$I51-SUM($L51:X51))) -> 19.34189608 | Z51: =IF($I51 >0, MIN(Y51,$I51-SUM($L51:Y51)), MAX(Y51,$I51-SUM($L51:Y51))) -> 19.34189608 | AA51: =IF($I51 >0, MIN(Z51,$I51-SUM($L51:Z51)), MAX(Z51,$I51-SUM($L51:Z51))) -> 19.34189608 | AB51: =IF($I51 >0, MIN(AA51,$I51-SUM($L51:AA51)), MAX(AA51,$I51-SUM($L51:AA51))) -> 19.34189608 | AC51: =IF($I51 >0, MIN(AB51,$I51-SUM($L51:AB51)), MAX(AB51,$I51-SUM($L51:AB51))) -> 19.34189608 | AD51: =IF($I51 >0, MIN(AC51,$I51-SUM($L51:AC51)), MAX(AC51,$I51-SUM($L51:AC51))) -> 19.34189608 | AE51: =IF($I51 >0, MIN(AD51,$I51-SUM($L51:AD51)), MAX(AD51,$I51-SUM($L51:AD51))) -> 19.34189608 | AF51: =IF($I51 >0, MIN(AE51,$I51-SUM($L51:AE51)), MAX(AE51,$I51-SUM($L51:AE51))) -> 19.34189608 | AG51: =IF($I51 >0, MIN(AF51,$I51-SUM($L51:AF51)), MAX(AF51,$I51-SUM($L51:AF51))) -> 19.34189608 | AH51: =IF($I51 >0, MIN(AG51,$I51-SUM($L51:AG51)), MAX(AG51,$I51-SUM($L51:AG51))) -> 19.34189608 | AI51: =IF($I51 >0, MIN(AH51,$I51-SUM($L51:AH51)), MAX(AH51,$I51-SUM($L51:AH51))) -> 19.34189608 | AJ51: =IF($I51 >0, MIN(AI51,$I51-SUM($L51:AI51)), MAX(AI51,$I51-SUM($L51:AI51))) -> 19.34189608 | AK51: =IF($I51 >0, MIN(AJ51,$I51-SUM($L51:AJ51)), MAX(AJ51,$I51-SUM($L51:AJ51))) -> 19.34189608 | AL51: =IF($I51 >0, MIN(AK51,$I51-SUM($L51:AK51)), MAX(AK51,$I51-SUM($L51:AK51))) -> 19.34189608 | AM51: =IF($I51 >0, MIN(AL51,$I51-SUM($L51:AL51)), MAX(AL51,$I51-SUM($L51:AL51))) -> 19.34189608 | AN51: =IF($I51 >0, MIN(AM51,$I51-SUM($L51:AM51)), MAX(AM51,$I51-SUM($L51:AM51))) -> 19.34189608 | AO51: =IF($I51 >0, MIN(AN51,$I51-SUM($L51:AN51)), MAX(AN51,$I51-SUM($L51:AN51))) -> 19.34189608 | AP51: =IF($I51 >0, MIN(AO51,$I51-SUM($L51:AO51)), MAX(AO51,$I51-SUM($L51:AO51))) -> 0 | AQ51: =IF($I51 >0, MIN(AP51,$I51-SUM($L51:AP51)), MAX(AP51,$I51-SUM($L51:AP51))) -> 0 | AR51: =IF($I51 >0, MIN(AQ51,$I51-SUM($L51:AQ51)), MAX(AQ51,$I51-SUM($L51:AQ51))) -> 0 | AS51: =IF($I51 >0, MIN(AR51,$I51-SUM($L51:AR51)), MAX(AR51,$I51-SUM($L51:AR51))) -> 0 | AT51: =IF($I51 >0, MIN(AS51,$I51-SUM($L51:AS51)), MAX(AS51,$I51-SUM($L51:AS51))) -> 0
E52: 2002-03-31 | G52: £m 18/19 prices | I52: 535.3336432 | J52: > | W52: =$I52/V$35 -> 26.76668216 | X52: =IF($I52 >0, MIN(W52,$I52-SUM($L52:W52)), MAX(W52,$I52-SUM($L52:W52))) -> 26.76668216 | Y52: =IF($I52 >0, MIN(X52,$I52-SUM($L52:X52)), MAX(X52,$I52-SUM($L52:X52))) -> 26.76668216 | Z52: =IF($I52 >0, MIN(Y52,$I52-SUM($L52:Y52)), MAX(Y52,$I52-SUM($L52:Y52))) -> 26.76668216 | AA52: =IF($I52 >0, MIN(Z52,$I52-SUM($L52:Z52)), MAX(Z52,$I52-SUM($L52:Z52))) -> 26.76668216 | AB52: =IF($I52 >0, MIN(AA52,$I52-SUM($L52:AA52)), MAX(AA52,$I52-SUM($L52:AA52))) -> 26.76668216 | AC52: =IF($I52 >0, MIN(AB52,$I52-SUM($L52:AB52)), MAX(AB52,$I52-SUM($L52:AB52))) -> 26.76668216 | AD52: =IF($I52 >0, MIN(AC52,$I52-SUM($L52:AC52)), MAX(AC52,$I52-SUM($L52:AC52))) -> 26.76668216 | AE52: =IF($I52 >0, MIN(AD52,$I52-SUM($L52:AD52)), MAX(AD52,$I52-SUM($L52:AD52))) -> 26.76668216 | AF52: =IF($I52 >0, MIN(AE52,$I52-SUM($L52:AE52)), MAX(AE52,$I52-SUM($L52:AE52))) -> 26.76668216 | AG52: =IF($I52 >0, MIN(AF52,$I52-SUM($L52:AF52)), MAX(AF52,$I52-SUM($L52:AF52))) -> 26.76668216 | AH52: =IF($I52 >0, MIN(AG52,$I52-SUM($L52:AG52)), MAX(AG52,$I52-SUM($L52:AG52))) -> 26.76668216 | AI52: =IF($I52 >0, MIN(AH52,$I52-SUM($L52:AH52)), MAX(AH52,$I52-SUM($L52:AH52))) -> 26.76668216 | AJ52: =IF($I52 >0, MIN(AI52,$I52-SUM($L52:AI52)), MAX(AI52,$I52-SUM($L52:AI52))) -> 26.76668216 | AK52: =IF($I52 >0, MIN(AJ52,$I52-SUM($L52:AJ52)), MAX(AJ52,$I52-SUM($L52:AJ52))) -> 26.76668216 | AL52: =IF($I52 >0, MIN(AK52,$I52-SUM($L52:AK52)), MAX(AK52,$I52-SUM($L52:AK52))) -> 26.76668216 | AM52: =IF($I52 >0, MIN(AL52,$I52-SUM($L52:AL52)), MAX(AL52,$I52-SUM($L52:AL52))) -> 26.76668216 | AN52: =IF($I52 >0, MIN(AM52,$I52-SUM($L52:AM52)), MAX(AM52,$I52-SUM($L52:AM52))) -> 26.76668216 | AO52: =IF($I52 >0, MIN(AN52,$I52-SUM($L52:AN52)), MAX(AN52,$I52-SUM($L52:AN52))) -> 26.76668216 | AP52: =IF($I52 >0, MIN(AO52,$I52-SUM($L52:AO52)), MAX(AO52,$I52-SUM($L52:AO52))) -> 26.76668216 | AQ52: =IF($I52 >0, MIN(AP52,$I52-SUM($L52:AP52)), MAX(AP52,$I52-SUM($L52:AP52))) -> 0 | AR52: =IF($I52 >0, MIN(AQ52,$I52-SUM($L52:AQ52)), MAX(AQ52,$I52-SUM($L52:AQ52))) -> 0 | AS52: =IF($I52 >0, MIN(AR52,$I52-SUM($L52:AR52)), MAX(AR52,$I52-SUM($L52:AR52))) -> 0 | AT52: =IF($I52 >0, MIN(AS52,$I52-SUM($L52:AS52)), MAX(AS52,$I52-SUM($L52:AS52))) -> 0
E53: 2003-03-31 | G53: £m 18/19 prices | I53: 496.4789124 | J53: > | X53: =$I53/W$35 -> 24.82394562 | Y53: =IF($I53 >0, MIN(X53,$I53-SUM($L53:X53)), MAX(X53,$I53-SUM($L53:X53))) -> 24.82394562 | Z53: =IF($I53 >0, MIN(Y53,$I53-SUM($L53:Y53)), MAX(Y53,$I53-SUM($L53:Y53))) -> 24.82394562 | AA53: =IF($I53 >0, MIN(Z53,$I53-SUM($L53:Z53)), MAX(Z53,$I53-SUM($L53:Z53))) -> 24.82394562 | AB53: =IF($I53 >0, MIN(AA53,$I53-SUM($L53:AA53)), MAX(AA53,$I53-SUM($L53:AA53))) -> 24.82394562 | AC53: =IF($I53 >0, MIN(AB53,$I53-SUM($L53:AB53)), MAX(AB53,$I53-SUM($L53:AB53))) -> 24.82394562 | AD53: =IF($I53 >0, MIN(AC53,$I53-SUM($L53:AC53)), MAX(AC53,$I53-SUM($L53:AC53))) -> 24.82394562 | AE53: =IF($I53 >0, MIN(AD53,$I53-SUM($L53:AD53)), MAX(AD53,$I53-SUM($L53:AD53))) -> 24.82394562 | AF53: =IF($I53 >0, MIN(AE53,$I53-SUM($L53:AE53)), MAX(AE53,$I53-SUM($L53:AE53))) -> 24.82394562 | AG53: =IF($I53 >0, MIN(AF53,$I53-SUM($L53:AF53)), MAX(AF53,$I53-SUM($L53:AF53))) -> 24.82394562 | AH53: =IF($I53 >0, MIN(AG53,$I53-SUM($L53:AG53)), MAX(AG53,$I53-SUM($L53:AG53))) -> 24.82394562 | AI53: =IF($I53 >0, MIN(AH53,$I53-SUM($L53:AH53)), MAX(AH53,$I53-SUM($L53:AH53))) -> 24.82394562 | AJ53: =IF($I53 >0, MIN(AI53,$I53-SUM($L53:AI53)), MAX(AI53,$I53-SUM($L53:AI53))) -> 24.82394562 | AK53: =IF($I53 >0, MIN(AJ53,$I53-SUM($L53:AJ53)), MAX(AJ53,$I53-SUM($L53:AJ53))) -> 24.82394562 | AL53: =IF($I53 >0, MIN(AK53,$I53-SUM($L53:AK53)), MAX(AK53,$I53-SUM($L53:AK53))) -> 24.82394562 | AM53: =IF($I53 >0, MIN(AL53,$I53-SUM($L53:AL53)), MAX(AL53,$I53-SUM($L53:AL53))) -> 24.82394562 | AN53: =IF($I53 >0, MIN(AM53,$I53-SUM($L53:AM53)), MAX(AM53,$I53-SUM($L53:AM53))) -> 24.82394562 | AO53: =IF($I53 >0, MIN(AN53,$I53-SUM($L53:AN53)), MAX(AN53,$I53-SUM($L53:AN53))) -> 24.82394562 | AP53: =IF($I53 >0, MIN(AO53,$I53-SUM($L53:AO53)), MAX(AO53,$I53-SUM($L53:AO53))) -> 24.82394562 | AQ53: =IF($I53 >0, MIN(AP53,$I53-SUM($L53:AP53)), MAX(AP53,$I53-SUM($L53:AP53))) -> 24.82394562 | AR53: =IF($I53 >0, MIN(AQ53,$I53-SUM($L53:AQ53)), MAX(AQ53,$I53-SUM($L53:AQ53))) -> 0 | AS53: =IF($I53 >0, MIN(AR53,$I53-SUM($L53:AR53)), MAX(AR53,$I53-SUM($L53:AR53))) -> 0 | AT53: =IF($I53 >0, MIN(AS53,$I53-SUM($L53:AS53)), MAX(AS53,$I53-SUM($L53:AS53))) -> 0
E54: 2004-03-31 | G54: £m 18/19 prices | I54: 421.9214617 | J54: > | Y54: =$I54/X$35 -> 21.09607309 | Z54: =IF($I54 >0, MIN(Y54,$I54-SUM($L54:Y54)), MAX(Y54,$I54-SUM($L54:Y54))) -> 21.09607309 | AA54: =IF($I54 >0, MIN(Z54,$I54-SUM($L54:Z54)), MAX(Z54,$I54-SUM($L54:Z54))) -> 21.09607309 | AB54: =IF($I54 >0, MIN(AA54,$I54-SUM($L54:AA54)), MAX(AA54,$I54-SUM($L54:AA54))) -> 21.09607309 | AC54: =IF($I54 >0, MIN(AB54,$I54-SUM($L54:AB54)), MAX(AB54,$I54-SUM($L54:AB54))) -> 21.09607309 | AD54: =IF($I54 >0, MIN(AC54,$I54-SUM($L54:AC54)), MAX(AC54,$I54-SUM($L54:AC54))) -> 21.09607309 | AE54: =IF($I54 >0, MIN(AD54,$I54-SUM($L54:AD54)), MAX(AD54,$I54-SUM($L54:AD54))) -> 21.09607309 | AF54: =IF($I54 >0, MIN(AE54,$I54-SUM($L54:AE54)), MAX(AE54,$I54-SUM($L54:AE54))) -> 21.09607309 | AG54: =IF($I54 >0, MIN(AF54,$I54-SUM($L54:AF54)), MAX(AF54,$I54-SUM($L54:AF54))) -> 21.09607309 | AH54: =IF($I54 >0, MIN(AG54,$I54-SUM($L54:AG54)), MAX(AG54,$I54-SUM($L54:AG54))) -> 21.09607309 | AI54: =IF($I54 >0, MIN(AH54,$I54-SUM($L54:AH54)), MAX(AH54,$I54-SUM($L54:AH54))) -> 21.09607309 | AJ54: =IF($I54 >0, MIN(AI54,$I54-SUM($L54:AI54)), MAX(AI54,$I54-SUM($L54:AI54))) -> 21.09607309 | AK54: =IF($I54 >0, MIN(AJ54,$I54-SUM($L54:AJ54)), MAX(AJ54,$I54-SUM($L54:AJ54))) -> 21.09607309 | AL54: =IF($I54 >0, MIN(AK54,$I54-SUM($L54:AK54)), MAX(AK54,$I54-SUM($L54:AK54))) -> 21.09607309 | AM54: =IF($I54 >0, MIN(AL54,$I54-SUM($L54:AL54)), MAX(AL54,$I54-SUM($L54:AL54))) -> 21.09607309 | AN54: =IF($I54 >0, MIN(AM54,$I54-SUM($L54:AM54)), MAX(AM54,$I54-SUM($L54:AM54))) -> 21.09607309 | AO54: =IF($I54 >0, MIN(AN54,$I54-SUM($L54:AN54)), MAX(AN54,$I54-SUM($L54:AN54))) -> 21.09607309 | AP54: =IF($I54 >0, MIN(AO54,$I54-SUM($L54:AO54)), MAX(AO54,$I54-SUM($L54:AO54))) -> 21.09607309 | AQ54: =IF($I54 >0, MIN(AP54,$I54-SUM($L54:AP54)), MAX(AP54,$I54-SUM($L54:AP54))) -> 21.09607309 | AR54: =IF($I54 >0, MIN(AQ54,$I54-SUM($L54:AQ54)), MAX(AQ54,$I54-SUM($L54:AQ54))) -> 21.09607309 | AS54: =IF($I54 >0, MIN(AR54,$I54-SUM($L54:AR54)), MAX(AR54,$I54-SUM($L54:AR54))) -> 0 | AT54: =IF($I54 >0, MIN(AS54,$I54-SUM($L54:AS54)), MAX(AS54,$I54-SUM($L54:AS54))) -> 0
E55: 2005-03-31 | G55: £m 18/19 prices | I55: 554.8815574 | J55: > | Z55: =$I55/Y$35 -> 27.74407787 | AA55: =IF($I55 >0, MIN(Z55,$I55-SUM($L55:Z55)), MAX(Z55,$I55-SUM($L55:Z55))) -> 27.74407787 | AB55: =IF($I55 >0, MIN(AA55,$I55-SUM($L55:AA55)), MAX(AA55,$I55-SUM($L55:AA55))) -> 27.74407787 | AC55: =IF($I55 >0, MIN(AB55,$I55-SUM($L55:AB55)), MAX(AB55,$I55-SUM($L55:AB55))) -> 27.74407787 | AD55: =IF($I55 >0, MIN(AC55,$I55-SUM($L55:AC55)), MAX(AC55,$I55-SUM($L55:AC55))) -> 27.74407787 | AE55: =IF($I55 >0, MIN(AD55,$I55-SUM($L55:AD55)), MAX(AD55,$I55-SUM($L55:AD55))) -> 27.74407787 | AF55: =IF($I55 >0, MIN(AE55,$I55-SUM($L55:AE55)), MAX(AE55,$I55-SUM($L55:AE55))) -> 27.74407787 | AG55: =IF($I55 >0, MIN(AF55,$I55-SUM($L55:AF55)), MAX(AF55,$I55-SUM($L55:AF55))) -> 27.74407787 | AH55: =IF($I55 >0, MIN(AG55,$I55-SUM($L55:AG55)), MAX(AG55,$I55-SUM($L55:AG55))) -> 27.74407787 | AI55: =IF($I55 >0, MIN(AH55,$I55-SUM($L55:AH55)), MAX(AH55,$I55-SUM($L55:AH55))) -> 27.74407787 | AJ55: =IF($I55 >0, MIN(AI55,$I55-SUM($L55:AI55)), MAX(AI55,$I55-SUM($L55:AI55))) -> 27.74407787 | AK55: =IF($I55 >0, MIN(AJ55,$I55-SUM($L55:AJ55)), MAX(AJ55,$I55-SUM($L55:AJ55))) -> 27.74407787 | AL55: =IF($I55 >0, MIN(AK55,$I55-SUM($L55:AK55)), MAX(AK55,$I55-SUM($L55:AK55))) -> 27.74407787 | AM55: =IF($I55 >0, MIN(AL55,$I55-SUM($L55:AL55)), MAX(AL55,$I55-SUM($L55:AL55))) -> 27.74407787 | AN55: =IF($I55 >0, MIN(AM55,$I55-SUM($L55:AM55)), MAX(AM55,$I55-SUM($L55:AM55))) -> 27.74407787 | AO55: =IF($I55 >0, MIN(AN55,$I55-SUM($L55:AN55)), MAX(AN55,$I55-SUM($L55:AN55))) -> 27.74407787 | AP55: =IF($I55 >0, MIN(AO55,$I55-SUM($L55:AO55)), MAX(AO55,$I55-SUM($L55:AO55))) -> 27.74407787 | AQ55: =IF($I55 >0, MIN(AP55,$I55-SUM($L55:AP55)), MAX(AP55,$I55-SUM($L55:AP55))) -> 27.74407787 | AR55: =IF($I55 >0, MIN(AQ55,$I55-SUM($L55:AQ55)), MAX(AQ55,$I55-SUM($L55:AQ55))) -> 27.74407787 | AS55: =IF($I55 >0, MIN(AR55,$I55-SUM($L55:AR55)), MAX(AR55,$I55-SUM($L55:AR55))) -> 27.74407787 | AT55: =IF($I55 >0, MIN(AS55,$I55-SUM($L55:AS55)), MAX(AS55,$I55-SUM($L55:AS55))) -> 0
E56: 2006-03-31 | G56: £m 18/19 prices | I56: 762.043947 | J56: > | AA56: =$I56/Z$35 -> 38.10219735 | AB56: =IF($I56 >0, MIN(AA56,$I56-SUM($L56:AA56)), MAX(AA56,$I56-SUM($L56:AA56))) -> 38.10219735 | AC56: =IF($I56 >0, MIN(AB56,$I56-SUM($L56:AB56)), MAX(AB56,$I56-SUM($L56:AB56))) -> 38.10219735 | AD56: =IF($I56 >0, MIN(AC56,$I56-SUM($L56:AC56)), MAX(AC56,$I56-SUM($L56:AC56))) -> 38.10219735 | AE56: =IF($I56 >0, MIN(AD56,$I56-SUM($L56:AD56)), MAX(AD56,$I56-SUM($L56:AD56))) -> 38.10219735 | AF56: =IF($I56 >0, MIN(AE56,$I56-SUM($L56:AE56)), MAX(AE56,$I56-SUM($L56:AE56))) -> 38.10219735 | AG56: =IF($I56 >0, MIN(AF56,$I56-SUM($L56:AF56)), MAX(AF56,$I56-SUM($L56:AF56))) -> 38.10219735 | AH56: =IF($I56 >0, MIN(AG56,$I56-SUM($L56:AG56)), MAX(AG56,$I56-SUM($L56:AG56))) -> 38.10219735 | AI56: =IF($I56 >0, MIN(AH56,$I56-SUM($L56:AH56)), MAX(AH56,$I56-SUM($L56:AH56))) -> 38.10219735 | AJ56: =IF($I56 >0, MIN(AI56,$I56-SUM($L56:AI56)), MAX(AI56,$I56-SUM($L56:AI56))) -> 38.10219735 | AK56: =IF($I56 >0, MIN(AJ56,$I56-SUM($L56:AJ56)), MAX(AJ56,$I56-SUM($L56:AJ56))) -> 38.10219735 | AL56: =IF($I56 >0, MIN(AK56,$I56-SUM($L56:AK56)), MAX(AK56,$I56-SUM($L56:AK56))) -> 38.10219735 | AM56: =IF($I56 >0, MIN(AL56,$I56-SUM($L56:AL56)), MAX(AL56,$I56-SUM($L56:AL56))) -> 38.10219735 | AN56: =IF($I56 >0, MIN(AM56,$I56-SUM($L56:AM56)), MAX(AM56,$I56-SUM($L56:AM56))) -> 38.10219735 | AO56: =IF($I56 >0, MIN(AN56,$I56-SUM($L56:AN56)), MAX(AN56,$I56-SUM($L56:AN56))) -> 38.10219735 | AP56: =IF($I56 >0, MIN(AO56,$I56-SUM($L56:AO56)), MAX(AO56,$I56-SUM($L56:AO56))) -> 38.10219735 | AQ56: =IF($I56 >0, MIN(AP56,$I56-SUM($L56:AP56)), MAX(AP56,$I56-SUM($L56:AP56))) -> 38.10219735 | AR56: =IF($I56 >0, MIN(AQ56,$I56-SUM($L56:AQ56)), MAX(AQ56,$I56-SUM($L56:AQ56))) -> 38.10219735 | AS56: =IF($I56 >0, MIN(AR56,$I56-SUM($L56:AR56)), MAX(AR56,$I56-SUM($L56:AR56))) -> 38.10219735 | AT56: =IF($I56 >0, MIN(AS56,$I56-SUM($L56:AS56)), MAX(AS56,$I56-SUM($L56:AS56))) -> 38.10219735
E57: 2007-03-31 | G57: £m 18/19 prices | I57: 730.910484 | J57: > | AB57: =$I57/AA$35 -> 36.5455242 | AC57: =IF($I57 >0, MIN(AB57,$I57-SUM($L57:AB57)), MAX(AB57,$I57-SUM($L57:AB57))) -> 36.5455242 | AD57: =IF($I57 >0, MIN(AC57,$I57-SUM($L57:AC57)), MAX(AC57,$I57-SUM($L57:AC57))) -> 36.5455242 | AE57: =IF($I57 >0, MIN(AD57,$I57-SUM($L57:AD57)), MAX(AD57,$I57-SUM($L57:AD57))) -> 36.5455242 | AF57: =IF($I57 >0, MIN(AE57,$I57-SUM($L57:AE57)), MAX(AE57,$I57-SUM($L57:AE57))) -> 36.5455242 | AG57: =IF($I57 >0, MIN(AF57,$I57-SUM($L57:AF57)), MAX(AF57,$I57-SUM($L57:AF57))) -> 36.5455242 | AH57: =IF($I57 >0, MIN(AG57,$I57-SUM($L57:AG57)), MAX(AG57,$I57-SUM($L57:AG57))) -> 36.5455242 | AI57: =IF($I57 >0, MIN(AH57,$I57-SUM($L57:AH57)), MAX(AH57,$I57-SUM($L57:AH57))) -> 36.5455242 | AJ57: =IF($I57 >0, MIN(AI57,$I57-SUM($L57:AI57)), MAX(AI57,$I57-SUM($L57:AI57))) -> 36.5455242 | AK57: =IF($I57 >0, MIN(AJ57,$I57-SUM($L57:AJ57)), MAX(AJ57,$I57-SUM($L57:AJ57))) -> 36.5455242 | AL57: =IF($I57 >0, MIN(AK57,$I57-SUM($L57:AK57)), MAX(AK57,$I57-SUM($L57:AK57))) -> 36.5455242 | AM57: =IF($I57 >0, MIN(AL57,$I57-SUM($L57:AL57)), MAX(AL57,$I57-SUM($L57:AL57))) -> 36.5455242 | AN57: =IF($I57 >0, MIN(AM57,$I57-SUM($L57:AM57)), MAX(AM57,$I57-SUM($L57:AM57))) -> 36.5455242 | AO57: =IF($I57 >0, MIN(AN57,$I57-SUM($L57:AN57)), MAX(AN57,$I57-SUM($L57:AN57))) -> 36.5455242 | AP57: =IF($I57 >0, MIN(AO57,$I57-SUM($L57:AO57)), MAX(AO57,$I57-SUM($L57:AO57))) -> 36.5455242 | AQ57: =IF($I57 >0, MIN(AP57,$I57-SUM($L57:AP57)), MAX(AP57,$I57-SUM($L57:AP57))) -> 36.5455242 | AR57: =IF($I57 >0, MIN(AQ57,$I57-SUM($L57:AQ57)), MAX(AQ57,$I57-SUM($L57:AQ57))) -> 36.5455242 | AS57: =IF($I57 >0, MIN(AR57,$I57-SUM($L57:AR57)), MAX(AR57,$I57-SUM($L57:AR57))) -> 36.5455242 | AT57: =IF($I57 >0, MIN(AS57,$I57-SUM($L57:AS57)), MAX(AS57,$I57-SUM($L57:AS57))) -> 36.5455242
E58: 2008-03-31 | G58: £m 18/19 prices | I58: 913.9605522 | J58: > | AC58: =$I58/AB$35 -> 45.69802761 | AD58: =IF($I58 >0, MIN(AC58,$I58-SUM($L58:AC58)), MAX(AC58,$I58-SUM($L58:AC58))) -> 45.69802761 | AE58: =IF($I58 >0, MIN(AD58,$I58-SUM($L58:AD58)), MAX(AD58,$I58-SUM($L58:AD58))) -> 45.69802761 | AF58: =IF($I58 >0, MIN(AE58,$I58-SUM($L58:AE58)), MAX(AE58,$I58-SUM($L58:AE58))) -> 45.69802761 | AG58: =IF($I58 >0, MIN(AF58,$I58-SUM($L58:AF58)), MAX(AF58,$I58-SUM($L58:AF58))) -> 45.69802761 | AH58: =IF($I58 >0, MIN(AG58,$I58-SUM($L58:AG58)), MAX(AG58,$I58-SUM($L58:AG58))) -> 45.69802761 | AI58: =IF($I58 >0, MIN(AH58,$I58-SUM($L58:AH58)), MAX(AH58,$I58-SUM($L58:AH58))) -> 45.69802761 | AJ58: =IF($I58 >0, MIN(AI58,$I58-SUM($L58:AI58)), MAX(AI58,$I58-SUM($L58:AI58))) -> 45.69802761 | AK58: =IF($I58 >0, MIN(AJ58,$I58-SUM($L58:AJ58)), MAX(AJ58,$I58-SUM($L58:AJ58))) -> 45.69802761 | AL58: =IF($I58 >0, MIN(AK58,$I58-SUM($L58:AK58)), MAX(AK58,$I58-SUM($L58:AK58))) -> 45.69802761 | AM58: =IF($I58 >0, MIN(AL58,$I58-SUM($L58:AL58)), MAX(AL58,$I58-SUM($L58:AL58))) -> 45.69802761 | AN58: =IF($I58 >0, MIN(AM58,$I58-SUM($L58:AM58)), MAX(AM58,$I58-SUM($L58:AM58))) -> 45.69802761 | AO58: =IF($I58 >0, MIN(AN58,$I58-SUM($L58:AN58)), MAX(AN58,$I58-SUM($L58:AN58))) -> 45.69802761 | AP58: =IF($I58 >0, MIN(AO58,$I58-SUM($L58:AO58)), MAX(AO58,$I58-SUM($L58:AO58))) -> 45.69802761 | AQ58: =IF($I58 >0, MIN(AP58,$I58-SUM($L58:AP58)), MAX(AP58,$I58-SUM($L58:AP58))) -> 45.69802761 | AR58: =IF($I58 >0, MIN(AQ58,$I58-SUM($L58:AQ58)), MAX(AQ58,$I58-SUM($L58:AQ58))) -> 45.69802761 | AS58: =IF($I58 >0, MIN(AR58,$I58-SUM($L58:AR58)), MAX(AR58,$I58-SUM($L58:AR58))) -> 45.69802761 | AT58: =IF($I58 >0, MIN(AS58,$I58-SUM($L58:AS58)), MAX(AS58,$I58-SUM($L58:AS58))) -> 45.69802761
E59: 2009-03-31 | G59: £m 18/19 prices | I59: 873.2122119 | J59: > | AD59: =$I59/AC$35 -> 43.6606106 | AE59: =IF($I59 >0, MIN(AD59,$I59-SUM($L59:AD59)), MAX(AD59,$I59-SUM($L59:AD59))) -> 43.6606106 | AF59: =IF($I59 >0, MIN(AE59,$I59-SUM($L59:AE59)), MAX(AE59,$I59-SUM($L59:AE59))) -> 43.6606106 | AG59: =IF($I59 >0, MIN(AF59,$I59-SUM($L59:AF59)), MAX(AF59,$I59-SUM($L59:AF59))) -> 43.6606106 | AH59: =IF($I59 >0, MIN(AG59,$I59-SUM($L59:AG59)), MAX(AG59,$I59-SUM($L59:AG59))) -> 43.6606106 | AI59: =IF($I59 >0, MIN(AH59,$I59-SUM($L59:AH59)), MAX(AH59,$I59-SUM($L59:AH59))) -> 43.6606106 | AJ59: =IF($I59 >0, MIN(AI59,$I59-SUM($L59:AI59)), MAX(AI59,$I59-SUM($L59:AI59))) -> 43.6606106 | AK59: =IF($I59 >0, MIN(AJ59,$I59-SUM($L59:AJ59)), MAX(AJ59,$I59-SUM($L59:AJ59))) -> 43.6606106 | AL59: =IF($I59 >0, MIN(AK59,$I59-SUM($L59:AK59)), MAX(AK59,$I59-SUM($L59:AK59))) -> 43.6606106 | AM59: =IF($I59 >0, MIN(AL59,$I59-SUM($L59:AL59)), MAX(AL59,$I59-SUM($L59:AL59))) -> 43.6606106 | AN59: =IF($I59 >0, MIN(AM59,$I59-SUM($L59:AM59)), MAX(AM59,$I59-SUM($L59:AM59))) -> 43.6606106 | AO59: =IF($I59 >0, MIN(AN59,$I59-SUM($L59:AN59)), MAX(AN59,$I59-SUM($L59:AN59))) -> 43.6606106 | AP59: =IF($I59 >0, MIN(AO59,$I59-SUM($L59:AO59)), MAX(AO59,$I59-SUM($L59:AO59))) -> 43.6606106 | AQ59: =IF($I59 >0, MIN(AP59,$I59-SUM($L59:AP59)), MAX(AP59,$I59-SUM($L59:AP59))) -> 43.6606106 | AR59: =IF($I59 >0, MIN(AQ59,$I59-SUM($L59:AQ59)), MAX(AQ59,$I59-SUM($L59:AQ59))) -> 43.6606106 | AS59: =IF($I59 >0, MIN(AR59,$I59-SUM($L59:AR59)), MAX(AR59,$I59-SUM($L59:AR59))) -> 43.6606106 | AT59: =IF($I59 >0, MIN(AS59,$I59-SUM($L59:AS59)), MAX(AS59,$I59-SUM($L59:AS59))) -> 43.6606106
E60: 2010-03-31 | G60: £m 18/19 prices | I60: 1066.431805 | J60: > | AE60: =$I60/AD$35 -> 53.32159024 | AF60: =IF($I60 >0, MIN(AE60,$I60-SUM($L60:AE60)), MAX(AE60,$I60-SUM($L60:AE60))) -> 53.32159024 | AG60: =IF($I60 >0, MIN(AF60,$I60-SUM($L60:AF60)), MAX(AF60,$I60-SUM($L60:AF60))) -> 53.32159024 | AH60: =IF($I60 >0, MIN(AG60,$I60-SUM($L60:AG60)), MAX(AG60,$I60-SUM($L60:AG60))) -> 53.32159024 | AI60: =IF($I60 >0, MIN(AH60,$I60-SUM($L60:AH60)), MAX(AH60,$I60-SUM($L60:AH60))) -> 53.32159024 | AJ60: =IF($I60 >0, MIN(AI60,$I60-SUM($L60:AI60)), MAX(AI60,$I60-SUM($L60:AI60))) -> 53.32159024 | AK60: =IF($I60 >0, MIN(AJ60,$I60-SUM($L60:AJ60)), MAX(AJ60,$I60-SUM($L60:AJ60))) -> 53.32159024 | AL60: =IF($I60 >0, MIN(AK60,$I60-SUM($L60:AK60)), MAX(AK60,$I60-SUM($L60:AK60))) -> 53.32159024 | AM60: =IF($I60 >0, MIN(AL60,$I60-SUM($L60:AL60)), MAX(AL60,$I60-SUM($L60:AL60))) -> 53.32159024 | AN60: =IF($I60 >0, MIN(AM60,$I60-SUM($L60:AM60)), MAX(AM60,$I60-SUM($L60:AM60))) -> 53.32159024 | AO60: =IF($I60 >0, MIN(AN60,$I60-SUM($L60:AN60)), MAX(AN60,$I60-SUM($L60:AN60))) -> 53.32159024 | AP60: =IF($I60 >0, MIN(AO60,$I60-SUM($L60:AO60)), MAX(AO60,$I60-SUM($L60:AO60))) -> 53.32159024 | AQ60: =IF($I60 >0, MIN(AP60,$I60-SUM($L60:AP60)), MAX(AP60,$I60-SUM($L60:AP60))) -> 53.32159024 | AR60: =IF($I60 >0, MIN(AQ60,$I60-SUM($L60:AQ60)), MAX(AQ60,$I60-SUM($L60:AQ60))) -> 53.32159024 | AS60: =IF($I60 >0, MIN(AR60,$I60-SUM($L60:AR60)), MAX(AR60,$I60-SUM($L60:AR60))) -> 53.32159024 | AT60: =IF($I60 >0, MIN(AS60,$I60-SUM($L60:AS60)), MAX(AS60,$I60-SUM($L60:AS60))) -> 53.32159024
E61: 2011-03-31 | G61: £m 18/19 prices | I61: 862.2930842 | J61: > | AF61: =$I61/AE$35 -> 43.11465421 | AG61: =IF($I61 >0, MIN(AF61,$I61-SUM($L61:AF61)), MAX(AF61,$I61-SUM($L61:AF61))) -> 43.11465421 | AH61: =IF($I61 >0, MIN(AG61,$I61-SUM($L61:AG61)), MAX(AG61,$I61-SUM($L61:AG61))) -> 43.11465421 | AI61: =IF($I61 >0, MIN(AH61,$I61-SUM($L61:AH61)), MAX(AH61,$I61-SUM($L61:AH61))) -> 43.11465421 | AJ61: =IF($I61 >0, MIN(AI61,$I61-SUM($L61:AI61)), MAX(AI61,$I61-SUM($L61:AI61))) -> 43.11465421 | AK61: =IF($I61 >0, MIN(AJ61,$I61-SUM($L61:AJ61)), MAX(AJ61,$I61-SUM($L61:AJ61))) -> 43.11465421 | AL61: =IF($I61 >0, MIN(AK61,$I61-SUM($L61:AK61)), MAX(AK61,$I61-SUM($L61:AK61))) -> 43.11465421 | AM61: =IF($I61 >0, MIN(AL61,$I61-SUM($L61:AL61)), MAX(AL61,$I61-SUM($L61:AL61))) -> 43.11465421 | AN61: =IF($I61 >0, MIN(AM61,$I61-SUM($L61:AM61)), MAX(AM61,$I61-SUM($L61:AM61))) -> 43.11465421 | AO61: =IF($I61 >0, MIN(AN61,$I61-SUM($L61:AN61)), MAX(AN61,$I61-SUM($L61:AN61))) -> 43.11465421 | AP61: =IF($I61 >0, MIN(AO61,$I61-SUM($L61:AO61)), MAX(AO61,$I61-SUM($L61:AO61))) -> 43.11465421 | AQ61: =IF($I61 >0, MIN(AP61,$I61-SUM($L61:AP61)), MAX(AP61,$I61-SUM($L61:AP61))) -> 43.11465421 | AR61: =IF($I61 >0, MIN(AQ61,$I61-SUM($L61:AQ61)), MAX(AQ61,$I61-SUM($L61:AQ61))) -> 43.11465421 | AS61: =IF($I61 >0, MIN(AR61,$I61-SUM($L61:AR61)), MAX(AR61,$I61-SUM($L61:AR61))) -> 43.11465421 | AT61: =IF($I61 >0, MIN(AS61,$I61-SUM($L61:AS61)), MAX(AS61,$I61-SUM($L61:AS61))) -> 43.11465421
E62: 2012-03-31 | G62: £m 18/19 prices | I62: 1218.161431 | J62: > | AG62: =$I62/AF$35 -> 60.90807154 | AH62: =IF($I62 >0, MIN(AG62,$I62-SUM($L62:AG62)), MAX(AG62,$I62-SUM($L62:AG62))) -> 60.90807154 | AI62: =IF($I62 >0, MIN(AH62,$I62-SUM($L62:AH62)), MAX(AH62,$I62-SUM($L62:AH62))) -> 60.90807154 | AJ62: =IF($I62 >0, MIN(AI62,$I62-SUM($L62:AI62)), MAX(AI62,$I62-SUM($L62:AI62))) -> 60.90807154 | AK62: =IF($I62 >0, MIN(AJ62,$I62-SUM($L62:AJ62)), MAX(AJ62,$I62-SUM($L62:AJ62))) -> 60.90807154 | AL62: =IF($I62 >0, MIN(AK62,$I62-SUM($L62:AK62)), MAX(AK62,$I62-SUM($L62:AK62))) -> 60.90807154 | AM62: =IF($I62 >0, MIN(AL62,$I62-SUM($L62:AL62)), MAX(AL62,$I62-SUM($L62:AL62))) -> 60.90807154 | AN62: =IF($I62 >0, MIN(AM62,$I62-SUM($L62:AM62)), MAX(AM62,$I62-SUM($L62:AM62))) -> 60.90807154 | AO62: =IF($I62 >0, MIN(AN62,$I62-SUM($L62:AN62)), MAX(AN62,$I62-SUM($L62:AN62))) -> 60.90807154 | AP62: =IF($I62 >0, MIN(AO62,$I62-SUM($L62:AO62)), MAX(AO62,$I62-SUM($L62:AO62))) -> 60.90807154 | AQ62: =IF($I62 >0, MIN(AP62,$I62-SUM($L62:AP62)), MAX(AP62,$I62-SUM($L62:AP62))) -> 60.90807154 | AR62: =IF($I62 >0, MIN(AQ62,$I62-SUM($L62:AQ62)), MAX(AQ62,$I62-SUM($L62:AQ62))) -> 60.90807154 | AS62: =IF($I62 >0, MIN(AR62,$I62-SUM($L62:AR62)), MAX(AR62,$I62-SUM($L62:AR62))) -> 60.90807154 | AT62: =IF($I62 >0, MIN(AS62,$I62-SUM($L62:AS62)), MAX(AS62,$I62-SUM($L62:AS62))) -> 60.90807154
E63: 2013-03-31 | G63: £m 18/19 prices | I63: 1185.615065 | AH63: =$I63/AG$35 -> 59.28075326 | AI63: =IF($I63 >0, MIN(AH63,$I63-SUM($L63:AH63)), MAX(AH63,$I63-SUM($L63:AH63))) -> 59.28075326 | AJ63: =IF($I63 >0, MIN(AI63,$I63-SUM($L63:AI63)), MAX(AI63,$I63-SUM($L63:AI63))) -> 59.28075326 | AK63: =IF($I63 >0, MIN(AJ63,$I63-SUM($L63:AJ63)), MAX(AJ63,$I63-SUM($L63:AJ63))) -> 59.28075326 | AL63: =IF($I63 >0, MIN(AK63,$I63-SUM($L63:AK63)), MAX(AK63,$I63-SUM($L63:AK63))) -> 59.28075326 | AM63: =IF($I63 >0, MIN(AL63,$I63-SUM($L63:AL63)), MAX(AL63,$I63-SUM($L63:AL63))) -> 59.28075326 | AN63: =IF($I63 >0, MIN(AM63,$I63-SUM($L63:AM63)), MAX(AM63,$I63-SUM($L63:AM63))) -> 59.28075326 | AO63: =IF($I63 >0, MIN(AN63,$I63-SUM($L63:AN63)), MAX(AN63,$I63-SUM($L63:AN63))) -> 59.28075326 | AP63: =IF($I63 >0, MIN(AO63,$I63-SUM($L63:AO63)), MAX(AO63,$I63-SUM($L63:AO63))) -> 59.28075326 | AQ63: =IF($I63 >0, MIN(AP63,$I63-SUM($L63:AP63)), MAX(AP63,$I63-SUM($L63:AP63))) -> 59.28075326 | AR63: =IF($I63 >0, MIN(AQ63,$I63-SUM($L63:AQ63)), MAX(AQ63,$I63-SUM($L63:AQ63))) -> 59.28075326 | AS63: =IF($I63 >0, MIN(AR63,$I63-SUM($L63:AR63)), MAX(AR63,$I63-SUM($L63:AR63))) -> 59.28075326 | AT63: =IF($I63 >0, MIN(AS63,$I63-SUM($L63:AS63)), MAX(AS63,$I63-SUM($L63:AS63))) -> 59.28075326
E64: 2014-03-31 | G64: £m 18/19 prices | I64: 1247.42538 | AI64: =$I64/AH$35 -> 53.94271915 | AJ64: =IF($I64 >0, MIN(AI64,$I64-SUM($L64:AI64)), MAX(AI64,$I64-SUM($L64:AI64))) -> 53.94271915 | AK64: =IF($I64 >0, MIN(AJ64,$I64-SUM($L64:AJ64)), MAX(AJ64,$I64-SUM($L64:AJ64))) -> 53.94271915 | AL64: =IF($I64 >0, MIN(AK64,$I64-SUM($L64:AK64)), MAX(AK64,$I64-SUM($L64:AK64))) -> 53.94271915 | AM64: =IF($I64 >0, MIN(AL64,$I64-SUM($L64:AL64)), MAX(AL64,$I64-SUM($L64:AL64))) -> 53.94271915 | AN64: =IF($I64 >0, MIN(AM64,$I64-SUM($L64:AM64)), MAX(AM64,$I64-SUM($L64:AM64))) -> 53.94271915 | AO64: =IF($I64 >0, MIN(AN64,$I64-SUM($L64:AN64)), MAX(AN64,$I64-SUM($L64:AN64))) -> 53.94271915 | AP64: =IF($I64 >0, MIN(AO64,$I64-SUM($L64:AO64)), MAX(AO64,$I64-SUM($L64:AO64))) -> 53.94271915 | AQ64: =IF($I64 >0, MIN(AP64,$I64-SUM($L64:AP64)), MAX(AP64,$I64-SUM($L64:AP64))) -> 53.94271915 | AR64: =IF($I64 >0, MIN(AQ64,$I64-SUM($L64:AQ64)), MAX(AQ64,$I64-SUM($L64:AQ64))) -> 53.94271915 | AS64: =IF($I64 >0, MIN(AR64,$I64-SUM($L64:AR64)), MAX(AR64,$I64-SUM($L64:AR64))) -> 53.94271915 | AT64: =IF($I64 >0, MIN(AS64,$I64-SUM($L64:AS64)), MAX(AS64,$I64-SUM($L64:AS64))) -> 53.94271915
E65: 2015-03-31 | G65: £m 18/19 prices | I65: 1170.059191 | AJ65: =$I65/AI$35 -> 44.57368348 | AK65: =IF($I65 >0, MIN(AJ65,$I65-SUM($L65:AJ65)), MAX(AJ65,$I65-SUM($L65:AJ65))) -> 44.57368348 | AL65: =IF($I65 >0, MIN(AK65,$I65-SUM($L65:AK65)), MAX(AK65,$I65-SUM($L65:AK65))) -> 44.57368348 | AM65: =IF($I65 >0, MIN(AL65,$I65-SUM($L65:AL65)), MAX(AL65,$I65-SUM($L65:AL65))) -> 44.57368348 | AN65: =IF($I65 >0, MIN(AM65,$I65-SUM($L65:AM65)), MAX(AM65,$I65-SUM($L65:AM65))) -> 44.57368348 | AO65: =IF($I65 >0, MIN(AN65,$I65-SUM($L65:AN65)), MAX(AN65,$I65-SUM($L65:AN65))) -> 44.57368348 | AP65: =IF($I65 >0, MIN(AO65,$I65-SUM($L65:AO65)), MAX(AO65,$I65-SUM($L65:AO65))) -> 44.57368348 | AQ65: =IF($I65 >0, MIN(AP65,$I65-SUM($L65:AP65)), MAX(AP65,$I65-SUM($L65:AP65))) -> 44.57368348 | AR65: =IF($I65 >0, MIN(AQ65,$I65-SUM($L65:AQ65)), MAX(AQ65,$I65-SUM($L65:AQ65))) -> 44.57368348 | AS65: =IF($I65 >0, MIN(AR65,$I65-SUM($L65:AR65)), MAX(AR65,$I65-SUM($L65:AR65))) -> 44.57368348 | AT65: =IF($I65 >0, MIN(AS65,$I65-SUM($L65:AS65)), MAX(AS65,$I65-SUM($L65:AS65))) -> 44.57368348
E66: 2016-03-31 | G66: £m 18/19 prices | I66: 1116.836618 | AK66: =$I66/AJ$35 -> 38.01996999 | AL66: =IF($I66 >0, MIN(AK66,$I66-SUM($L66:AK66)), MAX(AK66,$I66-SUM($L66:AK66))) -> 38.01996999 | AM66: =IF($I66 >0, MIN(AL66,$I66-SUM($L66:AL66)), MAX(AL66,$I66-SUM($L66:AL66))) -> 38.01996999 | AN66: =IF($I66 >0, MIN(AM66,$I66-SUM($L66:AM66)), MAX(AM66,$I66-SUM($L66:AM66))) -> 38.01996999 | AO66: =IF($I66 >0, MIN(AN66,$I66-SUM($L66:AN66)), MAX(AN66,$I66-SUM($L66:AN66))) -> 38.01996999 | AP66: =IF($I66 >0, MIN(AO66,$I66-SUM($L66:AO66)), MAX(AO66,$I66-SUM($L66:AO66))) -> 38.01996999 | AQ66: =IF($I66 >0, MIN(AP66,$I66-SUM($L66:AP66)), MAX(AP66,$I66-SUM($L66:AP66))) -> 38.01996999 | AR66: =IF($I66 >0, MIN(AQ66,$I66-SUM($L66:AQ66)), MAX(AQ66,$I66-SUM($L66:AQ66))) -> 38.01996999 | AS66: =IF($I66 >0, MIN(AR66,$I66-SUM($L66:AR66)), MAX(AR66,$I66-SUM($L66:AR66))) -> 38.01996999 | AT66: =IF($I66 >0, MIN(AS66,$I66-SUM($L66:AS66)), MAX(AS66,$I66-SUM($L66:AS66))) -> 38.01996999
E67: 2017-03-31 | G67: £m 18/19 prices | I67: 1105.284162 | AL67: =$I67/AK$35 -> 34.00874343 | AM67: =IF($I67 >0, MIN(AL67,$I67-SUM($L67:AL67)), MAX(AL67,$I67-SUM($L67:AL67))) -> 34.00874343 | AN67: =IF($I67 >0, MIN(AM67,$I67-SUM($L67:AM67)), MAX(AM67,$I67-SUM($L67:AM67))) -> 34.00874343 | AO67: =IF($I67 >0, MIN(AN67,$I67-SUM($L67:AN67)), MAX(AN67,$I67-SUM($L67:AN67))) -> 34.00874343 | AP67: =IF($I67 >0, MIN(AO67,$I67-SUM($L67:AO67)), MAX(AO67,$I67-SUM($L67:AO67))) -> 34.00874343 | AQ67: =IF($I67 >0, MIN(AP67,$I67-SUM($L67:AP67)), MAX(AP67,$I67-SUM($L67:AP67))) -> 34.00874343 | AR67: =IF($I67 >0, MIN(AQ67,$I67-SUM($L67:AQ67)), MAX(AQ67,$I67-SUM($L67:AQ67))) -> 34.00874343 | AS67: =IF($I67 >0, MIN(AR67,$I67-SUM($L67:AR67)), MAX(AR67,$I67-SUM($L67:AR67))) -> 34.00874343 | AT67: =IF($I67 >0, MIN(AS67,$I67-SUM($L67:AS67)), MAX(AS67,$I67-SUM($L67:AS67))) -> 34.00874343
E68: 2018-03-31 | G68: £m 18/19 prices | I68: 1027.809278 | AM68: =$I68/AL$35 -> 28.85078674 | AN68: =IF($I68 >0, MIN(AM68,$I68-SUM($L68:AM68)), MAX(AM68,$I68-SUM($L68:AM68))) -> 28.85078674 | AO68: =IF($I68 >0, MIN(AN68,$I68-SUM($L68:AN68)), MAX(AN68,$I68-SUM($L68:AN68))) -> 28.85078674 | AP68: =IF($I68 >0, MIN(AO68,$I68-SUM($L68:AO68)), MAX(AO68,$I68-SUM($L68:AO68))) -> 28.85078674 | AQ68: =IF($I68 >0, MIN(AP68,$I68-SUM($L68:AP68)), MAX(AP68,$I68-SUM($L68:AP68))) -> 28.85078674 | AR68: =IF($I68 >0, MIN(AQ68,$I68-SUM($L68:AQ68)), MAX(AQ68,$I68-SUM($L68:AQ68))) -> 28.85078674 | AS68: =IF($I68 >0, MIN(AR68,$I68-SUM($L68:AR68)), MAX(AR68,$I68-SUM($L68:AR68))) -> 28.85078674 | AT68: =IF($I68 >0, MIN(AS68,$I68-SUM($L68:AS68)), MAX(AS68,$I68-SUM($L68:AS68))) -> 28.85078674
E69: 2019-03-31 | G69: £m 18/19 prices | I69: 1084.140649 | AN69: =$I69/AM$35 -> 27.97782319 | AO69: =IF($I69 >0, MIN(AN69,$I69-SUM($L69:AN69)), MAX(AN69,$I69-SUM($L69:AN69))) -> 27.97782319 | AP69: =IF($I69 >0, MIN(AO69,$I69-SUM($L69:AO69)), MAX(AO69,$I69-SUM($L69:AO69))) -> 27.97782319 | AQ69: =IF($I69 >0, MIN(AP69,$I69-SUM($L69:AP69)), MAX(AP69,$I69-SUM($L69:AP69))) -> 27.97782319 | AR69: =IF($I69 >0, MIN(AQ69,$I69-SUM($L69:AQ69)), MAX(AQ69,$I69-SUM($L69:AQ69))) -> 27.97782319 | AS69: =IF($I69 >0, MIN(AR69,$I69-SUM($L69:AR69)), MAX(AR69,$I69-SUM($L69:AR69))) -> 27.97782319 | AT69: =IF($I69 >0, MIN(AS69,$I69-SUM($L69:AS69)), MAX(AS69,$I69-SUM($L69:AS69))) -> 27.97782319
E70: 2020-03-31 | G70: £m 18/19 prices | I70: 1105.598144 | AO70: =$I70/AN$35 -> 26.40234373 | AP70: =IF($I70 >0, MIN(AO70,$I70-SUM($L70:AO70)), MAX(AO70,$I70-SUM($L70:AO70))) -> 26.40234373 | AQ70: =IF($I70 >0, MIN(AP70,$I70-SUM($L70:AP70)), MAX(AP70,$I70-SUM($L70:AP70))) -> 26.40234373 | AR70: =IF($I70 >0, MIN(AQ70,$I70-SUM($L70:AQ70)), MAX(AQ70,$I70-SUM($L70:AQ70))) -> 26.40234373 | AS70: =IF($I70 >0, MIN(AR70,$I70-SUM($L70:AR70)), MAX(AR70,$I70-SUM($L70:AR70))) -> 26.40234373 | AT70: =IF($I70 >0, MIN(AS70,$I70-SUM($L70:AS70)), MAX(AS70,$I70-SUM($L70:AS70))) -> 26.40234373
E71: 2021-03-31 | G71: £m 18/19 prices | I71: 1096.212691 | AP71: =$I71/AO$35 -> 24.36028202 | AQ71: =IF($I71 >0, MIN(AP71,$I71-SUM($L71:AP71)), MAX(AP71,$I71-SUM($L71:AP71))) -> 24.36028202 | AR71: =IF($I71 >0, MIN(AQ71,$I71-SUM($L71:AQ71)), MAX(AQ71,$I71-SUM($L71:AQ71))) -> 24.36028202 | AS71: =IF($I71 >0, MIN(AR71,$I71-SUM($L71:AR71)), MAX(AR71,$I71-SUM($L71:AR71))) -> 24.36028202 | AT71: =IF($I71 >0, MIN(AS71,$I71-SUM($L71:AS71)), MAX(AS71,$I71-SUM($L71:AS71))) -> 24.36028202
E72: 2022-03-31 | G72: £m 18/19 prices | I72: 1108.526013 | AQ72: =$I72/AP$35 -> 24.63391139 | AR72: =IF($I72 >0, MIN(AQ72,$I72-SUM($L72:AQ72)), MAX(AQ72,$I72-SUM($L72:AQ72))) -> 24.63391139 | AS72: =IF($I72 >0, MIN(AR72,$I72-SUM($L72:AR72)), MAX(AR72,$I72-SUM($L72:AR72))) -> 24.63391139 | AT72: =IF($I72 >0, MIN(AS72,$I72-SUM($L72:AS72)), MAX(AS72,$I72-SUM($L72:AS72))) -> 24.63391139
E73: 2023-03-31 | G73: £m 18/19 prices | I73: 1318.202722 | AR73: =$I73/AQ$35 -> 29.29339382 | AS73: =IF($I73 >0, MIN(AR73,$I73-SUM($L73:AR73)), MAX(AR73,$I73-SUM($L73:AR73))) -> 29.29339382 | AT73: =IF($I73 >0, MIN(AS73,$I73-SUM($L73:AS73)), MAX(AS73,$I73-SUM($L73:AS73))) -> 29.29339382
E74: 2024-03-31 | G74: £m 18/19 prices | I74: 1287.008172 | AS74: =$I74/AR$35 -> 28.60018159 | AT74: =IF($I74 >0, MIN(AS74,$I74-SUM($L74:AS74)), MAX(AS74,$I74-SUM($L74:AS74))) -> 28.60018159
E75: 2025-03-31 | G75: £m 18/19 prices | I75: 1211.736734 | AT75: =$I75/AS$35 -> 26.92748298
E76: 2026-03-31 | G76: £m 18/19 prices | I76: 1294.607033
C78: Non-accelerated post-vesting depreciation
C79: Note: Non-accelerated depreciation calculations are used to establish the "RAV differential" accumulated as the difference between non-accelerated and accelerated depreciation before full depreciation of vesting assets.
D81: Depreciation parameters
E83: Non-accelerated post-vesting asset life | G83: years | J83: > | K83: =Input!K712 -> 40 | L83: =Input!L712 -> 40 | M83: =Input!M712 -> 40 | N83: =Input!N712 -> 40 | O83: =Input!O712 -> 40 | P83: =Input!P712 -> 40 | Q83: =Input!Q712 -> 40 | R83: =Input!R712 -> 40 | S83: =Input!S712 -> 40 | T83: =Input!T712 -> 40 | U83: =Input!U712 -> 40 | V83: =Input!V712 -> 40 | W83: =Input!W712 -> 40 | X83: =Input!X712 -> 40 | Y83: =Input!Y712 -> 40 | Z83: =Input!Z712 -> 40 | AA83: =Input!AA712 -> 40 | AB83: =Input!AB712 -> 40 | AC83: =Input!AC712 -> 40 | AD83: =Input!AD712 -> 40 | AE83: =Input!AE712 -> 40 | AF83: =Input!AF712 -> 40 | AG83: =Input!AG712 -> 40 | AH83: =Input!AH712 -> 23.125 | AI83: =Input!AI712 -> 26.25 | AJ83: =Input!AJ712 -> 29.375 | AK83: =Input!AK712 -> 32.5 | AL83: =Input!AL712 -> 35.625 | AM83: =Input!AM712 -> 38.75 | AN83: =Input!AN712 -> 41.875 | AO83: =Input!AO712 -> 45 | AP83: =Input!AP712 -> 45 | AQ83: =Input!AQ712 -> 45 | AR83: =Input!AR712 -> 45 | AS83: =Input!AS712 -> 45 | AT83: =Input!AT712 -> 45
E84: Non-accelerated post-vesting depreciation applied | G84: text | J84: > | L84: =YEAR(L$4) < YEAR($I$26) + $I$27 -> TRUE | M84: TRUE | N84: TRUE | O84: TRUE | P84: TRUE | Q84: TRUE | R84: TRUE | S84: TRUE | T84: TRUE | U84: TRUE | V84: TRUE | W84: TRUE | X84: TRUE | Y84: TRUE | Z84: TRUE | AA84: TRUE | AB84: TRUE | AC84: TRUE | AD84: TRUE | AE84: FALSE | AF84: FALSE | AG84: FALSE | AH84: FALSE | AI84: FALSE | AJ84: FALSE | AK84: FALSE | AL84: FALSE | AM84: FALSE | AN84: FALSE | AO84: FALSE | AP84: FALSE | AQ84: FALSE | AR84: FALSE | AS84: FALSE | AT84: FALSE
D86: Depreciation schedule
E88: Non-accelerated depreciation of additions from year ending | I88: Net additions
E89: 1991-03-31 | G89: £m 18/19 prices | I89: =TRANSPOSE(K16:AT16) -> 498.2206097 | J89: > | L89: =$I89/K$83 -> 12.45551524 | M89: =IF($I89 >0, MIN(L89,$I89-SUM($L89:L89)), MAX(L89,$I89-SUM($L89:L89))) -> 12.45551524 | N89: =IF($I89 >0, MIN(M89,$I89-SUM($L89:M89)), MAX(M89,$I89-SUM($L89:M89))) -> 12.45551524 | O89: =IF($I89 >0, MIN(N89,$I89-SUM($L89:N89)), MAX(N89,$I89-SUM($L89:N89))) -> 12.45551524 | P89: =IF($I89 >0, MIN(O89,$I89-SUM($L89:O89)), MAX(O89,$I89-SUM($L89:O89))) -> 12.45551524 | Q89: =IF($I89 >0, MIN(P89,$I89-SUM($L89:P89)), MAX(P89,$I89-SUM($L89:P89))) -> 12.45551524 | R89: =IF($I89 >0, MIN(Q89,$I89-SUM($L89:Q89)), MAX(Q89,$I89-SUM($L89:Q89))) -> 12.45551524 | S89: =IF($I89 >0, MIN(R89,$I89-SUM($L89:R89)), MAX(R89,$I89-SUM($L89:R89))) -> 12.45551524 | T89: =IF($I89 >0, MIN(S89,$I89-SUM($L89:S89)), MAX(S89,$I89-SUM($L89:S89))) -> 12.45551524 | U89: =IF($I89 >0, MIN(T89,$I89-SUM($L89:T89)), MAX(T89,$I89-SUM($L89:T89))) -> 12.45551524 | V89: =IF($I89 >0, MIN(U89,$I89-SUM($L89:U89)), MAX(U89,$I89-SUM($L89:U89))) -> 12.45551524 | W89: =IF($I89 >0, MIN(V89,$I89-SUM($L89:V89)), MAX(V89,$I89-SUM($L89:V89))) -> 12.45551524 | X89: =IF($I89 >0, MIN(W89,$I89-SUM($L89:W89)), MAX(W89,$I89-SUM($L89:W89))) -> 12.45551524 | Y89: =IF($I89 >0, MIN(X89,$I89-SUM($L89:X89)), MAX(X89,$I89-SUM($L89:X89))) -> 12.45551524 | Z89: =IF($I89 >0, MIN(Y89,$I89-SUM($L89:Y89)), MAX(Y89,$I89-SUM($L89:Y89))) -> 12.45551524 | AA89: =IF($I89 >0, MIN(Z89,$I89-SUM($L89:Z89)), MAX(Z89,$I89-SUM($L89:Z89))) -> 12.45551524 | AB89: =IF($I89 >0, MIN(AA89,$I89-SUM($L89:AA89)), MAX(AA89,$I89-SUM($L89:AA89))) -> 12.45551524 | AC89: =IF($I89 >0, MIN(AB89,$I89-SUM($L89:AB89)), MAX(AB89,$I89-SUM($L89:AB89))) -> 12.45551524 | AD89: =IF($I89 >0, MIN(AC89,$I89-SUM($L89:AC89)), MAX(AC89,$I89-SUM($L89:AC89))) -> 12.45551524 | AE89: =IF($I89 >0, MIN(AD89,$I89-SUM($L89:AD89)), MAX(AD89,$I89-SUM($L89:AD89))) -> 12.45551524 | AF89: =IF($I89 >0, MIN(AE89,$I89-SUM($L89:AE89)), MAX(AE89,$I89-SUM($L89:AE89))) -> 12.45551524 | AG89: =IF($I89 >0, MIN(AF89,$I89-SUM($L89:AF89)), MAX(AF89,$I89-SUM($L89:AF89))) -> 12.45551524 | AH89: =IF($I89 >0, MIN(AG89,$I89-SUM($L89:AG89)), MAX(AG89,$I89-SUM($L89:AG89))) -> 12.45551524 | AI89: =IF($I89 >0, MIN(AH89,$I89-SUM($L89:AH89)), MAX(AH89,$I89-SUM($L89:AH89))) -> 12.45551524 | AJ89: =IF($I89 >0, MIN(AI89,$I89-SUM($L89:AI89)), MAX(AI89,$I89-SUM($L89:AI89))) -> 12.45551524 | AK89: =IF($I89 >0, MIN(AJ89,$I89-SUM($L89:AJ89)), MAX(AJ89,$I89-SUM($L89:AJ89))) -> 12.45551524 | AL89: =IF($I89 >0, MIN(AK89,$I89-SUM($L89:AK89)), MAX(AK89,$I89-SUM($L89:AK89))) -> 12.45551524 | AM89: =IF($I89 >0, MIN(AL89,$I89-SUM($L89:AL89)), MAX(AL89,$I89-SUM($L89:AL89))) -> 12.45551524 | AN89: =IF($I89 >0, MIN(AM89,$I89-SUM($L89:AM89)), MAX(AM89,$I89-SUM($L89:AM89))) -> 12.45551524 | AO89: =IF($I89 >0, MIN(AN89,$I89-SUM($L89:AN89)), MAX(AN89,$I89-SUM($L89:AN89))) -> 12.45551524 | AP89: =IF($I89 >0, MIN(AO89,$I89-SUM($L89:AO89)), MAX(AO89,$I89-SUM($L89:AO89))) -> 12.45551524 | AQ89: =IF($I89 >0, MIN(AP89,$I89-SUM($L89:AP89)), MAX(AP89,$I89-SUM($L89:AP89))) -> 12.45551524 | AR89: =IF($I89 >0, MIN(AQ89,$I89-SUM($L89:AQ89)), MAX(AQ89,$I89-SUM($L89:AQ89))) -> 12.45551524 | AS89: =IF($I89 >0, MIN(AR89,$I89-SUM($L89:AR89)), MAX(AR89,$I89-SUM($L89:AR89))) -> 12.45551524 | AT89: =IF($I89 >0, MIN(AS89,$I89-SUM($L89:AS89)), MAX(AS89,$I89-SUM($L89:AS89))) -> 12.45551524
E90: 1992-03-31 | G90: £m 18/19 prices | I90: 617.2478868 | J90: > | M90: =$I90/L$83 -> 15.43119717 | N90: =IF($I90 >0, MIN(M90,$I90-SUM($L90:M90)), MAX(M90,$I90-SUM($L90:M90))) -> 15.43119717 | O90: =IF($I90 >0, MIN(N90,$I90-SUM($L90:N90)), MAX(N90,$I90-SUM($L90:N90))) -> 15.43119717 | P90: =IF($I90 >0, MIN(O90,$I90-SUM($L90:O90)), MAX(O90,$I90-SUM($L90:O90))) -> 15.43119717 | Q90: =IF($I90 >0, MIN(P90,$I90-SUM($L90:P90)), MAX(P90,$I90-SUM($L90:P90))) -> 15.43119717 | R90: =IF($I90 >0, MIN(Q90,$I90-SUM($L90:Q90)), MAX(Q90,$I90-SUM($L90:Q90))) -> 15.43119717 | S90: =IF($I90 >0, MIN(R90,$I90-SUM($L90:R90)), MAX(R90,$I90-SUM($L90:R90))) -> 15.43119717 | T90: =IF($I90 >0, MIN(S90,$I90-SUM($L90:S90)), MAX(S90,$I90-SUM($L90:S90))) -> 15.43119717 | U90: =IF($I90 >0, MIN(T90,$I90-SUM($L90:T90)), MAX(T90,$I90-SUM($L90:T90))) -> 15.43119717 | V90: =IF($I90 >0, MIN(U90,$I90-SUM($L90:U90)), MAX(U90,$I90-SUM($L90:U90))) -> 15.43119717 | W90: =IF($I90 >0, MIN(V90,$I90-SUM($L90:V90)), MAX(V90,$I90-SUM($L90:V90))) -> 15.43119717 | X90: =IF($I90 >0, MIN(W90,$I90-SUM($L90:W90)), MAX(W90,$I90-SUM($L90:W90))) -> 15.43119717 | Y90: =IF($I90 >0, MIN(X90,$I90-SUM($L90:X90)), MAX(X90,$I90-SUM($L90:X90))) -> 15.43119717 | Z90: =IF($I90 >0, MIN(Y90,$I90-SUM($L90:Y90)), MAX(Y90,$I90-SUM($L90:Y90))) -> 15.43119717 | AA90: =IF($I90 >0, MIN(Z90,$I90-SUM($L90:Z90)), MAX(Z90,$I90-SUM($L90:Z90))) -> 15.43119717 | AB90: =IF($I90 >0, MIN(AA90,$I90-SUM($L90:AA90)), MAX(AA90,$I90-SUM($L90:AA90))) -> 15.43119717 | AC90: =IF($I90 >0, MIN(AB90,$I90-SUM($L90:AB90)), MAX(AB90,$I90-SUM($L90:AB90))) -> 15.43119717 | AD90: =IF($I90 >0, MIN(AC90,$I90-SUM($L90:AC90)), MAX(AC90,$I90-SUM($L90:AC90))) -> 15.43119717 | AE90: =IF($I90 >0, MIN(AD90,$I90-SUM($L90:AD90)), MAX(AD90,$I90-SUM($L90:AD90))) -> 15.43119717 | AF90: =IF($I90 >0, MIN(AE90,$I90-SUM($L90:AE90)), MAX(AE90,$I90-SUM($L90:AE90))) -> 15.43119717 | AG90: =IF($I90 >0, MIN(AF90,$I90-SUM($L90:AF90)), MAX(AF90,$I90-SUM($L90:AF90))) -> 15.43119717 | AH90: =IF($I90 >0, MIN(AG90,$I90-SUM($L90:AG90)), MAX(AG90,$I90-SUM($L90:AG90))) -> 15.43119717 | AI90: =IF($I90 >0, MIN(AH90,$I90-SUM($L90:AH90)), MAX(AH90,$I90-SUM($L90:AH90))) -> 15.43119717 | AJ90: =IF($I90 >0, MIN(AI90,$I90-SUM($L90:AI90)), MAX(AI90,$I90-SUM($L90:AI90))) -> 15.43119717 | AK90: =IF($I90 >0, MIN(AJ90,$I90-SUM($L90:AJ90)), MAX(AJ90,$I90-SUM($L90:AJ90))) -> 15.43119717 | AL90: =IF($I90 >0, MIN(AK90,$I90-SUM($L90:AK90)), MAX(AK90,$I90-SUM($L90:AK90))) -> 15.43119717 | AM90: =IF($I90 >0, MIN(AL90,$I90-SUM($L90:AL90)), MAX(AL90,$I90-SUM($L90:AL90))) -> 15.43119717 | AN90: =IF($I90 >0, MIN(AM90,$I90-SUM($L90:AM90)), MAX(AM90,$I90-SUM($L90:AM90))) -> 15.43119717 | AO90: =IF($I90 >0, MIN(AN90,$I90-SUM($L90:AN90)), MAX(AN90,$I90-SUM($L90:AN90))) -> 15.43119717 | AP90: =IF($I90 >0, MIN(AO90,$I90-SUM($L90:AO90)), MAX(AO90,$I90-SUM($L90:AO90))) -> 15.43119717 | AQ90: =IF($I90 >0, MIN(AP90,$I90-SUM($L90:AP90)), MAX(AP90,$I90-SUM($L90:AP90))) -> 15.43119717 | AR90: =IF($I90 >0, MIN(AQ90,$I90-SUM($L90:AQ90)), MAX(AQ90,$I90-SUM($L90:AQ90))) -> 15.43119717 | AS90: =IF($I90 >0, MIN(AR90,$I90-SUM($L90:AR90)), MAX(AR90,$I90-SUM($L90:AR90))) -> 15.43119717 | AT90: =IF($I90 >0, MIN(AS90,$I90-SUM($L90:AS90)), MAX(AS90,$I90-SUM($L90:AS90))) -> 15.43119717
E91: 1993-03-31 | G91: £m 18/19 prices | I91: 728.482898 | J91: > | N91: =$I91/M$83 -> 18.21207245 | O91: =IF($I91 >0, MIN(N91,$I91-SUM($L91:N91)), MAX(N91,$I91-SUM($L91:N91))) -> 18.21207245 | P91: =IF($I91 >0, MIN(O91,$I91-SUM($L91:O91)), MAX(O91,$I91-SUM($L91:O91))) -> 18.21207245 | Q91: =IF($I91 >0, MIN(P91,$I91-SUM($L91:P91)), MAX(P91,$I91-SUM($L91:P91))) -> 18.21207245 | R91: =IF($I91 >0, MIN(Q91,$I91-SUM($L91:Q91)), MAX(Q91,$I91-SUM($L91:Q91))) -> 18.21207245 | S91: =IF($I91 >0, MIN(R91,$I91-SUM($L91:R91)), MAX(R91,$I91-SUM($L91:R91))) -> 18.21207245 | T91: =IF($I91 >0, MIN(S91,$I91-SUM($L91:S91)), MAX(S91,$I91-SUM($L91:S91))) -> 18.21207245 | U91: =IF($I91 >0, MIN(T91,$I91-SUM($L91:T91)), MAX(T91,$I91-SUM($L91:T91))) -> 18.21207245 | V91: =IF($I91 >0, MIN(U91,$I91-SUM($L91:U91)), MAX(U91,$I91-SUM($L91:U91))) -> 18.21207245 | W91: =IF($I91 >0, MIN(V91,$I91-SUM($L91:V91)), MAX(V91,$I91-SUM($L91:V91))) -> 18.21207245 | X91: =IF($I91 >0, MIN(W91,$I91-SUM($L91:W91)), MAX(W91,$I91-SUM($L91:W91))) -> 18.21207245 | Y91: =IF($I91 >0, MIN(X91,$I91-SUM($L91:X91)), MAX(X91,$I91-SUM($L91:X91))) -> 18.21207245 | Z91: =IF($I91 >0, MIN(Y91,$I91-SUM($L91:Y91)), MAX(Y91,$I91-SUM($L91:Y91))) -> 18.21207245 | AA91: =IF($I91 >0, MIN(Z91,$I91-SUM($L91:Z91)), MAX(Z91,$I91-SUM($L91:Z91))) -> 18.21207245 | AB91: =IF($I91 >0, MIN(AA91,$I91-SUM($L91:AA91)), MAX(AA91,$I91-SUM($L91:AA91))) -> 18.21207245 | AC91: =IF($I91 >0, MIN(AB91,$I91-SUM($L91:AB91)), MAX(AB91,$I91-SUM($L91:AB91))) -> 18.21207245 | AD91: =IF($I91 >0, MIN(AC91,$I91-SUM($L91:AC91)), MAX(AC91,$I91-SUM($L91:AC91))) -> 18.21207245 | AE91: =IF($I91 >0, MIN(AD91,$I91-SUM($L91:AD91)), MAX(AD91,$I91-SUM($L91:AD91))) -> 18.21207245 | AF91: =IF($I91 >0, MIN(AE91,$I91-SUM($L91:AE91)), MAX(AE91,$I91-SUM($L91:AE91))) -> 18.21207245 | AG91: =IF($I91 >0, MIN(AF91,$I91-SUM($L91:AF91)), MAX(AF91,$I91-SUM($L91:AF91))) -> 18.21207245 | AH91: =IF($I91 >0, MIN(AG91,$I91-SUM($L91:AG91)), MAX(AG91,$I91-SUM($L91:AG91))) -> 18.21207245 | AI91: =IF($I91 >0, MIN(AH91,$I91-SUM($L91:AH91)), MAX(AH91,$I91-SUM($L91:AH91))) -> 18.21207245 | AJ91: =IF($I91 >0, MIN(AI91,$I91-SUM($L91:AI91)), MAX(AI91,$I91-SUM($L91:AI91))) -> 18.21207245 | AK91: =IF($I91 >0, MIN(AJ91,$I91-SUM($L91:AJ91)), MAX(AJ91,$I91-SUM($L91:AJ91))) -> 18.21207245 | AL91: =IF($I91 >0, MIN(AK91,$I91-SUM($L91:AK91)), MAX(AK91,$I91-SUM($L91:AK91))) -> 18.21207245 | AM91: =IF($I91 >0, MIN(AL91,$I91-SUM($L91:AL91)), MAX(AL91,$I91-SUM($L91:AL91))) -> 18.21207245 | AN91: =IF($I91 >0, MIN(AM91,$I91-SUM($L91:AM91)), MAX(AM91,$I91-SUM($L91:AM91))) -> 18.21207245 | AO91: =IF($I91 >0, MIN(AN91,$I91-SUM($L91:AN91)), MAX(AN91,$I91-SUM($L91:AN91))) -> 18.21207245 | AP91: =IF($I91 >0, MIN(AO91,$I91-SUM($L91:AO91)), MAX(AO91,$I91-SUM($L91:AO91))) -> 18.21207245 | AQ91: =IF($I91 >0, MIN(AP91,$I91-SUM($L91:AP91)), MAX(AP91,$I91-SUM($L91:AP91))) -> 18.21207245 | AR91: =IF($I91 >0, MIN(AQ91,$I91-SUM($L91:AQ91)), MAX(AQ91,$I91-SUM($L91:AQ91))) -> 18.21207245 | AS91: =IF($I91 >0, MIN(AR91,$I91-SUM($L91:AR91)), MAX(AR91,$I91-SUM($L91:AR91))) -> 18.21207245 | AT91: =IF($I91 >0, MIN(AS91,$I91-SUM($L91:AS91)), MAX(AS91,$I91-SUM($L91:AS91))) -> 18.21207245
E92: 1994-03-31 | G92: £m 18/19 prices | I92: 524.6443634 | J92: > | O92: =$I92/N$83 -> 13.11610908 | P92: =IF($I92 >0, MIN(O92,$I92-SUM($L92:O92)), MAX(O92,$I92-SUM($L92:O92))) -> 13.11610908 | Q92: =IF($I92 >0, MIN(P92,$I92-SUM($L92:P92)), MAX(P92,$I92-SUM($L92:P92))) -> 13.11610908 | R92: =IF($I92 >0, MIN(Q92,$I92-SUM($L92:Q92)), MAX(Q92,$I92-SUM($L92:Q92))) -> 13.11610908 | S92: =IF($I92 >0, MIN(R92,$I92-SUM($L92:R92)), MAX(R92,$I92-SUM($L92:R92))) -> 13.11610908 | T92: =IF($I92 >0, MIN(S92,$I92-SUM($L92:S92)), MAX(S92,$I92-SUM($L92:S92))) -> 13.11610908 | U92: =IF($I92 >0, MIN(T92,$I92-SUM($L92:T92)), MAX(T92,$I92-SUM($L92:T92))) -> 13.11610908 | V92: =IF($I92 >0, MIN(U92,$I92-SUM($L92:U92)), MAX(U92,$I92-SUM($L92:U92))) -> 13.11610908 | W92: =IF($I92 >0, MIN(V92,$I92-SUM($L92:V92)), MAX(V92,$I92-SUM($L92:V92))) -> 13.11610908 | X92: =IF($I92 >0, MIN(W92,$I92-SUM($L92:W92)), MAX(W92,$I92-SUM($L92:W92))) -> 13.11610908 | Y92: =IF($I92 >0, MIN(X92,$I92-SUM($L92:X92)), MAX(X92,$I92-SUM($L92:X92))) -> 13.11610908 | Z92: =IF($I92 >0, MIN(Y92,$I92-SUM($L92:Y92)), MAX(Y92,$I92-SUM($L92:Y92))) -> 13.11610908 | AA92: =IF($I92 >0, MIN(Z92,$I92-SUM($L92:Z92)), MAX(Z92,$I92-SUM($L92:Z92))) -> 13.11610908 | AB92: =IF($I92 >0, MIN(AA92,$I92-SUM($L92:AA92)), MAX(AA92,$I92-SUM($L92:AA92))) -> 13.11610908 | AC92: =IF($I92 >0, MIN(AB92,$I92-SUM($L92:AB92)), MAX(AB92,$I92-SUM($L92:AB92))) -> 13.11610908 | AD92: =IF($I92 >0, MIN(AC92,$I92-SUM($L92:AC92)), MAX(AC92,$I92-SUM($L92:AC92))) -> 13.11610908 | AE92: =IF($I92 >0, MIN(AD92,$I92-SUM($L92:AD92)), MAX(AD92,$I92-SUM($L92:AD92))) -> 13.11610908 | AF92: =IF($I92 >0, MIN(AE92,$I92-SUM($L92:AE92)), MAX(AE92,$I92-SUM($L92:AE92))) -> 13.11610908 | AG92: =IF($I92 >0, MIN(AF92,$I92-SUM($L92:AF92)), MAX(AF92,$I92-SUM($L92:AF92))) -> 13.11610908 | AH92: =IF($I92 >0, MIN(AG92,$I92-SUM($L92:AG92)), MAX(AG92,$I92-SUM($L92:AG92))) -> 13.11610908 | AI92: =IF($I92 >0, MIN(AH92,$I92-SUM($L92:AH92)), MAX(AH92,$I92-SUM($L92:AH92))) -> 13.11610908 | AJ92: =IF($I92 >0, MIN(AI92,$I92-SUM($L92:AI92)), MAX(AI92,$I92-SUM($L92:AI92))) -> 13.11610908 | AK92: =IF($I92 >0, MIN(AJ92,$I92-SUM($L92:AJ92)), MAX(AJ92,$I92-SUM($L92:AJ92))) -> 13.11610908 | AL92: =IF($I92 >0, MIN(AK92,$I92-SUM($L92:AK92)), MAX(AK92,$I92-SUM($L92:AK92))) -> 13.11610908 | AM92: =IF($I92 >0, MIN(AL92,$I92-SUM($L92:AL92)), MAX(AL92,$I92-SUM($L92:AL92))) -> 13.11610908 | AN92: =IF($I92 >0, MIN(AM92,$I92-SUM($L92:AM92)), MAX(AM92,$I92-SUM($L92:AM92))) -> 13.11610908 | AO92: =IF($I92 >0, MIN(AN92,$I92-SUM($L92:AN92)), MAX(AN92,$I92-SUM($L92:AN92))) -> 13.11610908 | AP92: =IF($I92 >0, MIN(AO92,$I92-SUM($L92:AO92)), MAX(AO92,$I92-SUM($L92:AO92))) -> 13.11610908 | AQ92: =IF($I92 >0, MIN(AP92,$I92-SUM($L92:AP92)), MAX(AP92,$I92-SUM($L92:AP92))) -> 13.11610908 | AR92: =IF($I92 >0, MIN(AQ92,$I92-SUM($L92:AQ92)), MAX(AQ92,$I92-SUM($L92:AQ92))) -> 13.11610908 | AS92: =IF($I92 >0, MIN(AR92,$I92-SUM($L92:AR92)), MAX(AR92,$I92-SUM($L92:AR92))) -> 13.11610908 | AT92: =IF($I92 >0, MIN(AS92,$I92-SUM($L92:AS92)), MAX(AS92,$I92-SUM($L92:AS92))) -> 13.11610908
E93: 1995-03-31 | G93: £m 18/19 prices | I93: 341.6847934 | J93: > | P93: =$I93/O$83 -> 8.542119836 | Q93: =IF($I93 >0, MIN(P93,$I93-SUM($L93:P93)), MAX(P93,$I93-SUM($L93:P93))) -> 8.542119836 | R93: =IF($I93 >0, MIN(Q93,$I93-SUM($L93:Q93)), MAX(Q93,$I93-SUM($L93:Q93))) -> 8.542119836 | S93: =IF($I93 >0, MIN(R93,$I93-SUM($L93:R93)), MAX(R93,$I93-SUM($L93:R93))) -> 8.542119836 | T93: =IF($I93 >0, MIN(S93,$I93-SUM($L93:S93)), MAX(S93,$I93-SUM($L93:S93))) -> 8.542119836 | U93: =IF($I93 >0, MIN(T93,$I93-SUM($L93:T93)), MAX(T93,$I93-SUM($L93:T93))) -> 8.542119836 | V93: =IF($I93 >0, MIN(U93,$I93-SUM($L93:U93)), MAX(U93,$I93-SUM($L93:U93))) -> 8.542119836 | W93: =IF($I93 >0, MIN(V93,$I93-SUM($L93:V93)), MAX(V93,$I93-SUM($L93:V93))) -> 8.542119836 | X93: =IF($I93 >0, MIN(W93,$I93-SUM($L93:W93)), MAX(W93,$I93-SUM($L93:W93))) -> 8.542119836 | Y93: =IF($I93 >0, MIN(X93,$I93-SUM($L93:X93)), MAX(X93,$I93-SUM($L93:X93))) -> 8.542119836 | Z93: =IF($I93 >0, MIN(Y93,$I93-SUM($L93:Y93)), MAX(Y93,$I93-SUM($L93:Y93))) -> 8.542119836 | AA93: =IF($I93 >0, MIN(Z93,$I93-SUM($L93:Z93)), MAX(Z93,$I93-SUM($L93:Z93))) -> 8.542119836 | AB93: =IF($I93 >0, MIN(AA93,$I93-SUM($L93:AA93)), MAX(AA93,$I93-SUM($L93:AA93))) -> 8.542119836 | AC93: =IF($I93 >0, MIN(AB93,$I93-SUM($L93:AB93)), MAX(AB93,$I93-SUM($L93:AB93))) -> 8.542119836 | AD93: =IF($I93 >0, MIN(AC93,$I93-SUM($L93:AC93)), MAX(AC93,$I93-SUM($L93:AC93))) -> 8.542119836 | AE93: =IF($I93 >0, MIN(AD93,$I93-SUM($L93:AD93)), MAX(AD93,$I93-SUM($L93:AD93))) -> 8.542119836 | AF93: =IF($I93 >0, MIN(AE93,$I93-SUM($L93:AE93)), MAX(AE93,$I93-SUM($L93:AE93))) -> 8.542119836 | AG93: =IF($I93 >0, MIN(AF93,$I93-SUM($L93:AF93)), MAX(AF93,$I93-SUM($L93:AF93))) -> 8.542119836 | AH93: =IF($I93 >0, MIN(AG93,$I93-SUM($L93:AG93)), MAX(AG93,$I93-SUM($L93:AG93))) -> 8.542119836 | AI93: =IF($I93 >0, MIN(AH93,$I93-SUM($L93:AH93)), MAX(AH93,$I93-SUM($L93:AH93))) -> 8.542119836 | AJ93: =IF($I93 >0, MIN(AI93,$I93-SUM($L93:AI93)), MAX(AI93,$I93-SUM($L93:AI93))) -> 8.542119836 | AK93: =IF($I93 >0, MIN(AJ93,$I93-SUM($L93:AJ93)), MAX(AJ93,$I93-SUM($L93:AJ93))) -> 8.542119836 | AL93: =IF($I93 >0, MIN(AK93,$I93-SUM($L93:AK93)), MAX(AK93,$I93-SUM($L93:AK93))) -> 8.542119836 | AM93: =IF($I93 >0, MIN(AL93,$I93-SUM($L93:AL93)), MAX(AL93,$I93-SUM($L93:AL93))) -> 8.542119836 | AN93: =IF($I93 >0, MIN(AM93,$I93-SUM($L93:AM93)), MAX(AM93,$I93-SUM($L93:AM93))) -> 8.542119836 | AO93: =IF($I93 >0, MIN(AN93,$I93-SUM($L93:AN93)), MAX(AN93,$I93-SUM($L93:AN93))) -> 8.542119836 | AP93: =IF($I93 >0, MIN(AO93,$I93-SUM($L93:AO93)), MAX(AO93,$I93-SUM($L93:AO93))) -> 8.542119836 | AQ93: =IF($I93 >0, MIN(AP93,$I93-SUM($L93:AP93)), MAX(AP93,$I93-SUM($L93:AP93))) -> 8.542119836 | AR93: =IF($I93 >0, MIN(AQ93,$I93-SUM($L93:AQ93)), MAX(AQ93,$I93-SUM($L93:AQ93))) -> 8.542119836 | AS93: =IF($I93 >0, MIN(AR93,$I93-SUM($L93:AR93)), MAX(AR93,$I93-SUM($L93:AR93))) -> 8.542119836 | AT93: =IF($I93 >0, MIN(AS93,$I93-SUM($L93:AS93)), MAX(AS93,$I93-SUM($L93:AS93))) -> 8.542119836
E94: 1996-03-31 | G94: £m 18/19 prices | I94: 345.4054363 | J94: > | Q94: =$I94/P$83 -> 8.635135908 | R94: =IF($I94 >0, MIN(Q94,$I94-SUM($L94:Q94)), MAX(Q94,$I94-SUM($L94:Q94))) -> 8.635135908 | S94: =IF($I94 >0, MIN(R94,$I94-SUM($L94:R94)), MAX(R94,$I94-SUM($L94:R94))) -> 8.635135908 | T94: =IF($I94 >0, MIN(S94,$I94-SUM($L94:S94)), MAX(S94,$I94-SUM($L94:S94))) -> 8.635135908 | U94: =IF($I94 >0, MIN(T94,$I94-SUM($L94:T94)), MAX(T94,$I94-SUM($L94:T94))) -> 8.635135908 | V94: =IF($I94 >0, MIN(U94,$I94-SUM($L94:U94)), MAX(U94,$I94-SUM($L94:U94))) -> 8.635135908 | W94: =IF($I94 >0, MIN(V94,$I94-SUM($L94:V94)), MAX(V94,$I94-SUM($L94:V94))) -> 8.635135908 | X94: =IF($I94 >0, MIN(W94,$I94-SUM($L94:W94)), MAX(W94,$I94-SUM($L94:W94))) -> 8.635135908 | Y94: =IF($I94 >0, MIN(X94,$I94-SUM($L94:X94)), MAX(X94,$I94-SUM($L94:X94))) -> 8.635135908 | Z94: =IF($I94 >0, MIN(Y94,$I94-SUM($L94:Y94)), MAX(Y94,$I94-SUM($L94:Y94))) -> 8.635135908 | AA94: =IF($I94 >0, MIN(Z94,$I94-SUM($L94:Z94)), MAX(Z94,$I94-SUM($L94:Z94))) -> 8.635135908 | AB94: =IF($I94 >0, MIN(AA94,$I94-SUM($L94:AA94)), MAX(AA94,$I94-SUM($L94:AA94))) -> 8.635135908 | AC94: =IF($I94 >0, MIN(AB94,$I94-SUM($L94:AB94)), MAX(AB94,$I94-SUM($L94:AB94))) -> 8.635135908 | AD94: =IF($I94 >0, MIN(AC94,$I94-SUM($L94:AC94)), MAX(AC94,$I94-SUM($L94:AC94))) -> 8.635135908 | AE94: =IF($I94 >0, MIN(AD94,$I94-SUM($L94:AD94)), MAX(AD94,$I94-SUM($L94:AD94))) -> 8.635135908 | AF94: =IF($I94 >0, MIN(AE94,$I94-SUM($L94:AE94)), MAX(AE94,$I94-SUM($L94:AE94))) -> 8.635135908 | AG94: =IF($I94 >0, MIN(AF94,$I94-SUM($L94:AF94)), MAX(AF94,$I94-SUM($L94:AF94))) -> 8.635135908 | AH94: =IF($I94 >0, MIN(AG94,$I94-SUM($L94:AG94)), MAX(AG94,$I94-SUM($L94:AG94))) -> 8.635135908 | AI94: =IF($I94 >0, MIN(AH94,$I94-SUM($L94:AH94)), MAX(AH94,$I94-SUM($L94:AH94))) -> 8.635135908 | AJ94: =IF($I94 >0, MIN(AI94,$I94-SUM($L94:AI94)), MAX(AI94,$I94-SUM($L94:AI94))) -> 8.635135908 | AK94: =IF($I94 >0, MIN(AJ94,$I94-SUM($L94:AJ94)), MAX(AJ94,$I94-SUM($L94:AJ94))) -> 8.635135908 | AL94: =IF($I94 >0, MIN(AK94,$I94-SUM($L94:AK94)), MAX(AK94,$I94-SUM($L94:AK94))) -> 8.635135908 | AM94: =IF($I94 >0, MIN(AL94,$I94-SUM($L94:AL94)), MAX(AL94,$I94-SUM($L94:AL94))) -> 8.635135908 | AN94: =IF($I94 >0, MIN(AM94,$I94-SUM($L94:AM94)), MAX(AM94,$I94-SUM($L94:AM94))) -> 8.635135908 | AO94: =IF($I94 >0, MIN(AN94,$I94-SUM($L94:AN94)), MAX(AN94,$I94-SUM($L94:AN94))) -> 8.635135908 | AP94: =IF($I94 >0, MIN(AO94,$I94-SUM($L94:AO94)), MAX(AO94,$I94-SUM($L94:AO94))) -> 8.635135908 | AQ94: =IF($I94 >0, MIN(AP94,$I94-SUM($L94:AP94)), MAX(AP94,$I94-SUM($L94:AP94))) -> 8.635135908 | AR94: =IF($I94 >0, MIN(AQ94,$I94-SUM($L94:AQ94)), MAX(AQ94,$I94-SUM($L94:AQ94))) -> 8.635135908 | AS94: =IF($I94 >0, MIN(AR94,$I94-SUM($L94:AR94)), MAX(AR94,$I94-SUM($L94:AR94))) -> 8.635135908 | AT94: =IF($I94 >0, MIN(AS94,$I94-SUM($L94:AS94)), MAX(AS94,$I94-SUM($L94:AS94))) -> 8.635135908
E95: 1997-03-31 | G95: £m 18/19 prices | I95: 334.5503842 | J95: > | R95: =$I95/Q$83 -> 8.363759606 | S95: =IF($I95 >0, MIN(R95,$I95-SUM($L95:R95)), MAX(R95,$I95-SUM($L95:R95))) -> 8.363759606 | T95: =IF($I95 >0, MIN(S95,$I95-SUM($L95:S95)), MAX(S95,$I95-SUM($L95:S95))) -> 8.363759606 | U95: =IF($I95 >0, MIN(T95,$I95-SUM($L95:T95)), MAX(T95,$I95-SUM($L95:T95))) -> 8.363759606 | V95: =IF($I95 >0, MIN(U95,$I95-SUM($L95:U95)), MAX(U95,$I95-SUM($L95:U95))) -> 8.363759606 | W95: =IF($I95 >0, MIN(V95,$I95-SUM($L95:V95)), MAX(V95,$I95-SUM($L95:V95))) -> 8.363759606 | X95: =IF($I95 >0, MIN(W95,$I95-SUM($L95:W95)), MAX(W95,$I95-SUM($L95:W95))) -> 8.363759606 | Y95: =IF($I95 >0, MIN(X95,$I95-SUM($L95:X95)), MAX(X95,$I95-SUM($L95:X95))) -> 8.363759606 | Z95: =IF($I95 >0, MIN(Y95,$I95-SUM($L95:Y95)), MAX(Y95,$I95-SUM($L95:Y95))) -> 8.363759606 | AA95: =IF($I95 >0, MIN(Z95,$I95-SUM($L95:Z95)), MAX(Z95,$I95-SUM($L95:Z95))) -> 8.363759606 | AB95: =IF($I95 >0, MIN(AA95,$I95-SUM($L95:AA95)), MAX(AA95,$I95-SUM($L95:AA95))) -> 8.363759606 | AC95: =IF($I95 >0, MIN(AB95,$I95-SUM($L95:AB95)), MAX(AB95,$I95-SUM($L95:AB95))) -> 8.363759606 | AD95: =IF($I95 >0, MIN(AC95,$I95-SUM($L95:AC95)), MAX(AC95,$I95-SUM($L95:AC95))) -> 8.363759606 | AE95: =IF($I95 >0, MIN(AD95,$I95-SUM($L95:AD95)), MAX(AD95,$I95-SUM($L95:AD95))) -> 8.363759606 | AF95: =IF($I95 >0, MIN(AE95,$I95-SUM($L95:AE95)), MAX(AE95,$I95-SUM($L95:AE95))) -> 8.363759606 | AG95: =IF($I95 >0, MIN(AF95,$I95-SUM($L95:AF95)), MAX(AF95,$I95-SUM($L95:AF95))) -> 8.363759606 | AH95: =IF($I95 >0, MIN(AG95,$I95-SUM($L95:AG95)), MAX(AG95,$I95-SUM($L95:AG95))) -> 8.363759606 | AI95: =IF($I95 >0, MIN(AH95,$I95-SUM($L95:AH95)), MAX(AH95,$I95-SUM($L95:AH95))) -> 8.363759606 | AJ95: =IF($I95 >0, MIN(AI95,$I95-SUM($L95:AI95)), MAX(AI95,$I95-SUM($L95:AI95))) -> 8.363759606 | AK95: =IF($I95 >0, MIN(AJ95,$I95-SUM($L95:AJ95)), MAX(AJ95,$I95-SUM($L95:AJ95))) -> 8.363759606 | AL95: =IF($I95 >0, MIN(AK95,$I95-SUM($L95:AK95)), MAX(AK95,$I95-SUM($L95:AK95))) -> 8.363759606 | AM95: =IF($I95 >0, MIN(AL95,$I95-SUM($L95:AL95)), MAX(AL95,$I95-SUM($L95:AL95))) -> 8.363759606 | AN95: =IF($I95 >0, MIN(AM95,$I95-SUM($L95:AM95)), MAX(AM95,$I95-SUM($L95:AM95))) -> 8.363759606 | AO95: =IF($I95 >0, MIN(AN95,$I95-SUM($L95:AN95)), MAX(AN95,$I95-SUM($L95:AN95))) -> 8.363759606 | AP95: =IF($I95 >0, MIN(AO95,$I95-SUM($L95:AO95)), MAX(AO95,$I95-SUM($L95:AO95))) -> 8.363759606 | AQ95: =IF($I95 >0, MIN(AP95,$I95-SUM($L95:AP95)), MAX(AP95,$I95-SUM($L95:AP95))) -> 8.363759606 | AR95: =IF($I95 >0, MIN(AQ95,$I95-SUM($L95:AQ95)), MAX(AQ95,$I95-SUM($L95:AQ95))) -> 8.363759606 | AS95: =IF($I95 >0, MIN(AR95,$I95-SUM($L95:AR95)), MAX(AR95,$I95-SUM($L95:AR95))) -> 8.363759606 | AT95: =IF($I95 >0, MIN(AS95,$I95-SUM($L95:AS95)), MAX(AS95,$I95-SUM($L95:AS95))) -> 8.363759606
E96: 1998-03-31 | G96: £m 18/19 prices | I96: 295.9747477 | J96: > | S96: =$I96/R$83 -> 7.399368693 | T96: =IF($I96 >0, MIN(S96,$I96-SUM($L96:S96)), MAX(S96,$I96-SUM($L96:S96))) -> 7.399368693 | U96: =IF($I96 >0, MIN(T96,$I96-SUM($L96:T96)), MAX(T96,$I96-SUM($L96:T96))) -> 7.399368693 | V96: =IF($I96 >0, MIN(U96,$I96-SUM($L96:U96)), MAX(U96,$I96-SUM($L96:U96))) -> 7.399368693 | W96: =IF($I96 >0, MIN(V96,$I96-SUM($L96:V96)), MAX(V96,$I96-SUM($L96:V96))) -> 7.399368693 | X96: =IF($I96 >0, MIN(W96,$I96-SUM($L96:W96)), MAX(W96,$I96-SUM($L96:W96))) -> 7.399368693 | Y96: =IF($I96 >0, MIN(X96,$I96-SUM($L96:X96)), MAX(X96,$I96-SUM($L96:X96))) -> 7.399368693 | Z96: =IF($I96 >0, MIN(Y96,$I96-SUM($L96:Y96)), MAX(Y96,$I96-SUM($L96:Y96))) -> 7.399368693 | AA96: =IF($I96 >0, MIN(Z96,$I96-SUM($L96:Z96)), MAX(Z96,$I96-SUM($L96:Z96))) -> 7.399368693 | AB96: =IF($I96 >0, MIN(AA96,$I96-SUM($L96:AA96)), MAX(AA96,$I96-SUM($L96:AA96))) -> 7.399368693 | AC96: =IF($I96 >0, MIN(AB96,$I96-SUM($L96:AB96)), MAX(AB96,$I96-SUM($L96:AB96))) -> 7.399368693 | AD96: =IF($I96 >0, MIN(AC96,$I96-SUM($L96:AC96)), MAX(AC96,$I96-SUM($L96:AC96))) -> 7.399368693 | AE96: =IF($I96 >0, MIN(AD96,$I96-SUM($L96:AD96)), MAX(AD96,$I96-SUM($L96:AD96))) -> 7.399368693 | AF96: =IF($I96 >0, MIN(AE96,$I96-SUM($L96:AE96)), MAX(AE96,$I96-SUM($L96:AE96))) -> 7.399368693 | AG96: =IF($I96 >0, MIN(AF96,$I96-SUM($L96:AF96)), MAX(AF96,$I96-SUM($L96:AF96))) -> 7.399368693 | AH96: =IF($I96 >0, MIN(AG96,$I96-SUM($L96:AG96)), MAX(AG96,$I96-SUM($L96:AG96))) -> 7.399368693 | AI96: =IF($I96 >0, MIN(AH96,$I96-SUM($L96:AH96)), MAX(AH96,$I96-SUM($L96:AH96))) -> 7.399368693 | AJ96: =IF($I96 >0, MIN(AI96,$I96-SUM($L96:AI96)), MAX(AI96,$I96-SUM($L96:AI96))) -> 7.399368693 | AK96: =IF($I96 >0, MIN(AJ96,$I96-SUM($L96:AJ96)), MAX(AJ96,$I96-SUM($L96:AJ96))) -> 7.399368693 | AL96: =IF($I96 >0, MIN(AK96,$I96-SUM($L96:AK96)), MAX(AK96,$I96-SUM($L96:AK96))) -> 7.399368693 | AM96: =IF($I96 >0, MIN(AL96,$I96-SUM($L96:AL96)), MAX(AL96,$I96-SUM($L96:AL96))) -> 7.399368693 | AN96: =IF($I96 >0, MIN(AM96,$I96-SUM($L96:AM96)), MAX(AM96,$I96-SUM($L96:AM96))) -> 7.399368693 | AO96: =IF($I96 >0, MIN(AN96,$I96-SUM($L96:AN96)), MAX(AN96,$I96-SUM($L96:AN96))) -> 7.399368693 | AP96: =IF($I96 >0, MIN(AO96,$I96-SUM($L96:AO96)), MAX(AO96,$I96-SUM($L96:AO96))) -> 7.399368693 | AQ96: =IF($I96 >0, MIN(AP96,$I96-SUM($L96:AP96)), MAX(AP96,$I96-SUM($L96:AP96))) -> 7.399368693 | AR96: =IF($I96 >0, MIN(AQ96,$I96-SUM($L96:AQ96)), MAX(AQ96,$I96-SUM($L96:AQ96))) -> 7.399368693 | AS96: =IF($I96 >0, MIN(AR96,$I96-SUM($L96:AR96)), MAX(AR96,$I96-SUM($L96:AR96))) -> 7.399368693 | AT96: =IF($I96 >0, MIN(AS96,$I96-SUM($L96:AS96)), MAX(AS96,$I96-SUM($L96:AS96))) -> 7.399368693
E97: 1999-03-31 | G97: £m 18/19 prices | I97: 512.8254519 | J97: > | T97: =$I97/S$83 -> 12.8206363 | U97: =IF($I97 >0, MIN(T97,$I97-SUM($L97:T97)), MAX(T97,$I97-SUM($L97:T97))) -> 12.8206363 | V97: =IF($I97 >0, MIN(U97,$I97-SUM($L97:U97)), MAX(U97,$I97-SUM($L97:U97))) -> 12.8206363 | W97: =IF($I97 >0, MIN(V97,$I97-SUM($L97:V97)), MAX(V97,$I97-SUM($L97:V97))) -> 12.8206363 | X97: =IF($I97 >0, MIN(W97,$I97-SUM($L97:W97)), MAX(W97,$I97-SUM($L97:W97))) -> 12.8206363 | Y97: =IF($I97 >0, MIN(X97,$I97-SUM($L97:X97)), MAX(X97,$I97-SUM($L97:X97))) -> 12.8206363 | Z97: =IF($I97 >0, MIN(Y97,$I97-SUM($L97:Y97)), MAX(Y97,$I97-SUM($L97:Y97))) -> 12.8206363 | AA97: =IF($I97 >0, MIN(Z97,$I97-SUM($L97:Z97)), MAX(Z97,$I97-SUM($L97:Z97))) -> 12.8206363 | AB97: =IF($I97 >0, MIN(AA97,$I97-SUM($L97:AA97)), MAX(AA97,$I97-SUM($L97:AA97))) -> 12.8206363 | AC97: =IF($I97 >0, MIN(AB97,$I97-SUM($L97:AB97)), MAX(AB97,$I97-SUM($L97:AB97))) -> 12.8206363 | AD97: =IF($I97 >0, MIN(AC97,$I97-SUM($L97:AC97)), MAX(AC97,$I97-SUM($L97:AC97))) -> 12.8206363 | AE97: =IF($I97 >0, MIN(AD97,$I97-SUM($L97:AD97)), MAX(AD97,$I97-SUM($L97:AD97))) -> 12.8206363 | AF97: =IF($I97 >0, MIN(AE97,$I97-SUM($L97:AE97)), MAX(AE97,$I97-SUM($L97:AE97))) -> 12.8206363 | AG97: =IF($I97 >0, MIN(AF97,$I97-SUM($L97:AF97)), MAX(AF97,$I97-SUM($L97:AF97))) -> 12.8206363 | AH97: =IF($I97 >0, MIN(AG97,$I97-SUM($L97:AG97)), MAX(AG97,$I97-SUM($L97:AG97))) -> 12.8206363 | AI97: =IF($I97 >0, MIN(AH97,$I97-SUM($L97:AH97)), MAX(AH97,$I97-SUM($L97:AH97))) -> 12.8206363 | AJ97: =IF($I97 >0, MIN(AI97,$I97-SUM($L97:AI97)), MAX(AI97,$I97-SUM($L97:AI97))) -> 12.8206363 | AK97: =IF($I97 >0, MIN(AJ97,$I97-SUM($L97:AJ97)), MAX(AJ97,$I97-SUM($L97:AJ97))) -> 12.8206363 | AL97: =IF($I97 >0, MIN(AK97,$I97-SUM($L97:AK97)), MAX(AK97,$I97-SUM($L97:AK97))) -> 12.8206363 | AM97: =IF($I97 >0, MIN(AL97,$I97-SUM($L97:AL97)), MAX(AL97,$I97-SUM($L97:AL97))) -> 12.8206363 | AN97: =IF($I97 >0, MIN(AM97,$I97-SUM($L97:AM97)), MAX(AM97,$I97-SUM($L97:AM97))) -> 12.8206363 | AO97: =IF($I97 >0, MIN(AN97,$I97-SUM($L97:AN97)), MAX(AN97,$I97-SUM($L97:AN97))) -> 12.8206363 | AP97: =IF($I97 >0, MIN(AO97,$I97-SUM($L97:AO97)), MAX(AO97,$I97-SUM($L97:AO97))) -> 12.8206363 | AQ97: =IF($I97 >0, MIN(AP97,$I97-SUM($L97:AP97)), MAX(AP97,$I97-SUM($L97:AP97))) -> 12.8206363 | AR97: =IF($I97 >0, MIN(AQ97,$I97-SUM($L97:AQ97)), MAX(AQ97,$I97-SUM($L97:AQ97))) -> 12.8206363 | AS97: =IF($I97 >0, MIN(AR97,$I97-SUM($L97:AR97)), MAX(AR97,$I97-SUM($L97:AR97))) -> 12.8206363 | AT97: =IF($I97 >0, MIN(AS97,$I97-SUM($L97:AS97)), MAX(AS97,$I97-SUM($L97:AS97))) -> 12.8206363
E98: 2000-03-31 | G98: £m 18/19 prices | I98: 455.5743295 | J98: > | U98: =$I98/T$83 -> 11.38935824 | V98: =IF($I98 >0, MIN(U98,$I98-SUM($L98:U98)), MAX(U98,$I98-SUM($L98:U98))) -> 11.38935824 | W98: =IF($I98 >0, MIN(V98,$I98-SUM($L98:V98)), MAX(V98,$I98-SUM($L98:V98))) -> 11.38935824 | X98: =IF($I98 >0, MIN(W98,$I98-SUM($L98:W98)), MAX(W98,$I98-SUM($L98:W98))) -> 11.38935824 | Y98: =IF($I98 >0, MIN(X98,$I98-SUM($L98:X98)), MAX(X98,$I98-SUM($L98:X98))) -> 11.38935824 | Z98: =IF($I98 >0, MIN(Y98,$I98-SUM($L98:Y98)), MAX(Y98,$I98-SUM($L98:Y98))) -> 11.38935824 | AA98: =IF($I98 >0, MIN(Z98,$I98-SUM($L98:Z98)), MAX(Z98,$I98-SUM($L98:Z98))) -> 11.38935824 | AB98: =IF($I98 >0, MIN(AA98,$I98-SUM($L98:AA98)), MAX(AA98,$I98-SUM($L98:AA98))) -> 11.38935824 | AC98: =IF($I98 >0, MIN(AB98,$I98-SUM($L98:AB98)), MAX(AB98,$I98-SUM($L98:AB98))) -> 11.38935824 | AD98: =IF($I98 >0, MIN(AC98,$I98-SUM($L98:AC98)), MAX(AC98,$I98-SUM($L98:AC98))) -> 11.38935824 | AE98: =IF($I98 >0, MIN(AD98,$I98-SUM($L98:AD98)), MAX(AD98,$I98-SUM($L98:AD98))) -> 11.38935824 | AF98: =IF($I98 >0, MIN(AE98,$I98-SUM($L98:AE98)), MAX(AE98,$I98-SUM($L98:AE98))) -> 11.38935824 | AG98: =IF($I98 >0, MIN(AF98,$I98-SUM($L98:AF98)), MAX(AF98,$I98-SUM($L98:AF98))) -> 11.38935824 | AH98: =IF($I98 >0, MIN(AG98,$I98-SUM($L98:AG98)), MAX(AG98,$I98-SUM($L98:AG98))) -> 11.38935824 | AI98: =IF($I98 >0, MIN(AH98,$I98-SUM($L98:AH98)), MAX(AH98,$I98-SUM($L98:AH98))) -> 11.38935824 | AJ98: =IF($I98 >0, MIN(AI98,$I98-SUM($L98:AI98)), MAX(AI98,$I98-SUM($L98:AI98))) -> 11.38935824 | AK98: =IF($I98 >0, MIN(AJ98,$I98-SUM($L98:AJ98)), MAX(AJ98,$I98-SUM($L98:AJ98))) -> 11.38935824 | AL98: =IF($I98 >0, MIN(AK98,$I98-SUM($L98:AK98)), MAX(AK98,$I98-SUM($L98:AK98))) -> 11.38935824 | AM98: =IF($I98 >0, MIN(AL98,$I98-SUM($L98:AL98)), MAX(AL98,$I98-SUM($L98:AL98))) -> 11.38935824 | AN98: =IF($I98 >0, MIN(AM98,$I98-SUM($L98:AM98)), MAX(AM98,$I98-SUM($L98:AM98))) -> 11.38935824 | AO98: =IF($I98 >0, MIN(AN98,$I98-SUM($L98:AN98)), MAX(AN98,$I98-SUM($L98:AN98))) -> 11.38935824 | AP98: =IF($I98 >0, MIN(AO98,$I98-SUM($L98:AO98)), MAX(AO98,$I98-SUM($L98:AO98))) -> 11.38935824 | AQ98: =IF($I98 >0, MIN(AP98,$I98-SUM($L98:AP98)), MAX(AP98,$I98-SUM($L98:AP98))) -> 11.38935824 | AR98: =IF($I98 >0, MIN(AQ98,$I98-SUM($L98:AQ98)), MAX(AQ98,$I98-SUM($L98:AQ98))) -> 11.38935824 | AS98: =IF($I98 >0, MIN(AR98,$I98-SUM($L98:AR98)), MAX(AR98,$I98-SUM($L98:AR98))) -> 11.38935824 | AT98: =IF($I98 >0, MIN(AS98,$I98-SUM($L98:AS98)), MAX(AS98,$I98-SUM($L98:AS98))) -> 11.38935824
E99: 2001-03-31 | G99: £m 18/19 prices | I99: 386.8379217 | J99: > | V99: =$I99/U$83 -> 9.670948041 | W99: =IF($I99 >0, MIN(V99,$I99-SUM($L99:V99)), MAX(V99,$I99-SUM($L99:V99))) -> 9.670948041 | X99: =IF($I99 >0, MIN(W99,$I99-SUM($L99:W99)), MAX(W99,$I99-SUM($L99:W99))) -> 9.670948041 | Y99: =IF($I99 >0, MIN(X99,$I99-SUM($L99:X99)), MAX(X99,$I99-SUM($L99:X99))) -> 9.670948041 | Z99: =IF($I99 >0, MIN(Y99,$I99-SUM($L99:Y99)), MAX(Y99,$I99-SUM($L99:Y99))) -> 9.670948041 | AA99: =IF($I99 >0, MIN(Z99,$I99-SUM($L99:Z99)), MAX(Z99,$I99-SUM($L99:Z99))) -> 9.670948041 | AB99: =IF($I99 >0, MIN(AA99,$I99-SUM($L99:AA99)), MAX(AA99,$I99-SUM($L99:AA99))) -> 9.670948041 | AC99: =IF($I99 >0, MIN(AB99,$I99-SUM($L99:AB99)), MAX(AB99,$I99-SUM($L99:AB99))) -> 9.670948041 | AD99: =IF($I99 >0, MIN(AC99,$I99-SUM($L99:AC99)), MAX(AC99,$I99-SUM($L99:AC99))) -> 9.670948041 | AE99: =IF($I99 >0, MIN(AD99,$I99-SUM($L99:AD99)), MAX(AD99,$I99-SUM($L99:AD99))) -> 9.670948041 | AF99: =IF($I99 >0, MIN(AE99,$I99-SUM($L99:AE99)), MAX(AE99,$I99-SUM($L99:AE99))) -> 9.670948041 | AG99: =IF($I99 >0, MIN(AF99,$I99-SUM($L99:AF99)), MAX(AF99,$I99-SUM($L99:AF99))) -> 9.670948041 | AH99: =IF($I99 >0, MIN(AG99,$I99-SUM($L99:AG99)), MAX(AG99,$I99-SUM($L99:AG99))) -> 9.670948041 | AI99: =IF($I99 >0, MIN(AH99,$I99-SUM($L99:AH99)), MAX(AH99,$I99-SUM($L99:AH99))) -> 9.670948041 | AJ99: =IF($I99 >0, MIN(AI99,$I99-SUM($L99:AI99)), MAX(AI99,$I99-SUM($L99:AI99))) -> 9.670948041 | AK99: =IF($I99 >0, MIN(AJ99,$I99-SUM($L99:AJ99)), MAX(AJ99,$I99-SUM($L99:AJ99))) -> 9.670948041 | AL99: =IF($I99 >0, MIN(AK99,$I99-SUM($L99:AK99)), MAX(AK99,$I99-SUM($L99:AK99))) -> 9.670948041 | AM99: =IF($I99 >0, MIN(AL99,$I99-SUM($L99:AL99)), MAX(AL99,$I99-SUM($L99:AL99))) -> 9.670948041 | AN99: =IF($I99 >0, MIN(AM99,$I99-SUM($L99:AM99)), MAX(AM99,$I99-SUM($L99:AM99))) -> 9.670948041 | AO99: =IF($I99 >0, MIN(AN99,$I99-SUM($L99:AN99)), MAX(AN99,$I99-SUM($L99:AN99))) -> 9.670948041 | AP99: =IF($I99 >0, MIN(AO99,$I99-SUM($L99:AO99)), MAX(AO99,$I99-SUM($L99:AO99))) -> 9.670948041 | AQ99: =IF($I99 >0, MIN(AP99,$I99-SUM($L99:AP99)), MAX(AP99,$I99-SUM($L99:AP99))) -> 9.670948041 | AR99: =IF($I99 >0, MIN(AQ99,$I99-SUM($L99:AQ99)), MAX(AQ99,$I99-SUM($L99:AQ99))) -> 9.670948041 | AS99: =IF($I99 >0, MIN(AR99,$I99-SUM($L99:AR99)), MAX(AR99,$I99-SUM($L99:AR99))) -> 9.670948041 | AT99: =IF($I99 >0, MIN(AS99,$I99-SUM($L99:AS99)), MAX(AS99,$I99-SUM($L99:AS99))) -> 9.670948041
E100: 2002-03-31 | G100: £m 18/19 prices | I100: 535.3336432 | J100: > | W100: =$I100/V$83 -> 13.38334108 | X100: =IF($I100 >0, MIN(W100,$I100-SUM($L100:W100)), MAX(W100,$I100-SUM($L100:W100))) -> 13.38334108 | Y100: =IF($I100 >0, MIN(X100,$I100-SUM($L100:X100)), MAX(X100,$I100-SUM($L100:X100))) -> 13.38334108 | Z100: =IF($I100 >0, MIN(Y100,$I100-SUM($L100:Y100)), MAX(Y100,$I100-SUM($L100:Y100))) -> 13.38334108 | AA100: =IF($I100 >0, MIN(Z100,$I100-SUM($L100:Z100)), MAX(Z100,$I100-SUM($L100:Z100))) -> 13.38334108 | AB100: =IF($I100 >0, MIN(AA100,$I100-SUM($L100:AA100)), MAX(AA100,$I100-SUM($L100:AA100))) -> 13.38334108 | AC100: =IF($I100 >0, MIN(AB100,$I100-SUM($L100:AB100)), MAX(AB100,$I100-SUM($L100:AB100))) -> 13.38334108 | AD100: =IF($I100 >0, MIN(AC100,$I100-SUM($L100:AC100)), MAX(AC100,$I100-SUM($L100:AC100))) -> 13.38334108 | AE100: =IF($I100 >0, MIN(AD100,$I100-SUM($L100:AD100)), MAX(AD100,$I100-SUM($L100:AD100))) -> 13.38334108 | AF100: =IF($I100 >0, MIN(AE100,$I100-SUM($L100:AE100)), MAX(AE100,$I100-SUM($L100:AE100))) -> 13.38334108 | AG100: =IF($I100 >0, MIN(AF100,$I100-SUM($L100:AF100)), MAX(AF100,$I100-SUM($L100:AF100))) -> 13.38334108 | AH100: =IF($I100 >0, MIN(AG100,$I100-SUM($L100:AG100)), MAX(AG100,$I100-SUM($L100:AG100))) -> 13.38334108 | AI100: =IF($I100 >0, MIN(AH100,$I100-SUM($L100:AH100)), MAX(AH100,$I100-SUM($L100:AH100))) -> 13.38334108 | AJ100: =IF($I100 >0, MIN(AI100,$I100-SUM($L100:AI100)), MAX(AI100,$I100-SUM($L100:AI100))) -> 13.38334108 | AK100: =IF($I100 >0, MIN(AJ100,$I100-SUM($L100:AJ100)), MAX(AJ100,$I100-SUM($L100:AJ100))) -> 13.38334108 | AL100: =IF($I100 >0, MIN(AK100,$I100-SUM($L100:AK100)), MAX(AK100,$I100-SUM($L100:AK100))) -> 13.38334108 | AM100: =IF($I100 >0, MIN(AL100,$I100-SUM($L100:AL100)), MAX(AL100,$I100-SUM($L100:AL100))) -> 13.38334108 | AN100: =IF($I100 >0, MIN(AM100,$I100-SUM($L100:AM100)), MAX(AM100,$I100-SUM($L100:AM100))) -> 13.38334108 | AO100: =IF($I100 >0, MIN(AN100,$I100-SUM($L100:AN100)), MAX(AN100,$I100-SUM($L100:AN100))) -> 13.38334108 | AP100: =IF($I100 >0, MIN(AO100,$I100-SUM($L100:AO100)), MAX(AO100,$I100-SUM($L100:AO100))) -> 13.38334108 | AQ100: =IF($I100 >0, MIN(AP100,$I100-SUM($L100:AP100)), MAX(AP100,$I100-SUM($L100:AP100))) -> 13.38334108 | AR100: =IF($I100 >0, MIN(AQ100,$I100-SUM($L100:AQ100)), MAX(AQ100,$I100-SUM($L100:AQ100))) -> 13.38334108 | AS100: =IF($I100 >0, MIN(AR100,$I100-SUM($L100:AR100)), MAX(AR100,$I100-SUM($L100:AR100))) -> 13.38334108 | AT100: =IF($I100 >0, MIN(AS100,$I100-SUM($L100:AS100)), MAX(AS100,$I100-SUM($L100:AS100))) -> 13.38334108
E101: 2003-03-31 | G101: £m 18/19 prices | I101: 496.4789124 | J101: > | X101: =$I101/W$83 -> 12.41197281 | Y101: =IF($I101 >0, MIN(X101,$I101-SUM($L101:X101)), MAX(X101,$I101-SUM($L101:X101))) -> 12.41197281 | Z101: =IF($I101 >0, MIN(Y101,$I101-SUM($L101:Y101)), MAX(Y101,$I101-SUM($L101:Y101))) -> 12.41197281 | AA101: =IF($I101 >0, MIN(Z101,$I101-SUM($L101:Z101)), MAX(Z101,$I101-SUM($L101:Z101))) -> 12.41197281 | AB101: =IF($I101 >0, MIN(AA101,$I101-SUM($L101:AA101)), MAX(AA101,$I101-SUM($L101:AA101))) -> 12.41197281 | AC101: =IF($I101 >0, MIN(AB101,$I101-SUM($L101:AB101)), MAX(AB101,$I101-SUM($L101:AB101))) -> 12.41197281 | AD101: =IF($I101 >0, MIN(AC101,$I101-SUM($L101:AC101)), MAX(AC101,$I101-SUM($L101:AC101))) -> 12.41197281 | AE101: =IF($I101 >0, MIN(AD101,$I101-SUM($L101:AD101)), MAX(AD101,$I101-SUM($L101:AD101))) -> 12.41197281 | AF101: =IF($I101 >0, MIN(AE101,$I101-SUM($L101:AE101)), MAX(AE101,$I101-SUM($L101:AE101))) -> 12.41197281 | AG101: =IF($I101 >0, MIN(AF101,$I101-SUM($L101:AF101)), MAX(AF101,$I101-SUM($L101:AF101))) -> 12.41197281 | AH101: =IF($I101 >0, MIN(AG101,$I101-SUM($L101:AG101)), MAX(AG101,$I101-SUM($L101:AG101))) -> 12.41197281 | AI101: =IF($I101 >0, MIN(AH101,$I101-SUM($L101:AH101)), MAX(AH101,$I101-SUM($L101:AH101))) -> 12.41197281 | AJ101: =IF($I101 >0, MIN(AI101,$I101-SUM($L101:AI101)), MAX(AI101,$I101-SUM($L101:AI101))) -> 12.41197281 | AK101: =IF($I101 >0, MIN(AJ101,$I101-SUM($L101:AJ101)), MAX(AJ101,$I101-SUM($L101:AJ101))) -> 12.41197281 | AL101: =IF($I101 >0, MIN(AK101,$I101-SUM($L101:AK101)), MAX(AK101,$I101-SUM($L101:AK101))) -> 12.41197281 | AM101: =IF($I101 >0, MIN(AL101,$I101-SUM($L101:AL101)), MAX(AL101,$I101-SUM($L101:AL101))) -> 12.41197281 | AN101: =IF($I101 >0, MIN(AM101,$I101-SUM($L101:AM101)), MAX(AM101,$I101-SUM($L101:AM101))) -> 12.41197281 | AO101: =IF($I101 >0, MIN(AN101,$I101-SUM($L101:AN101)), MAX(AN101,$I101-SUM($L101:AN101))) -> 12.41197281 | AP101: =IF($I101 >0, MIN(AO101,$I101-SUM($L101:AO101)), MAX(AO101,$I101-SUM($L101:AO101))) -> 12.41197281 | AQ101: =IF($I101 >0, MIN(AP101,$I101-SUM($L101:AP101)), MAX(AP101,$I101-SUM($L101:AP101))) -> 12.41197281 | AR101: =IF($I101 >0, MIN(AQ101,$I101-SUM($L101:AQ101)), MAX(AQ101,$I101-SUM($L101:AQ101))) -> 12.41197281 | AS101: =IF($I101 >0, MIN(AR101,$I101-SUM($L101:AR101)), MAX(AR101,$I101-SUM($L101:AR101))) -> 12.41197281 | AT101: =IF($I101 >0, MIN(AS101,$I101-SUM($L101:AS101)), MAX(AS101,$I101-SUM($L101:AS101))) -> 12.41197281
E102: 2004-03-31 | G102: £m 18/19 prices | I102: 421.9214617 | J102: > | Y102: =$I102/X$83 -> 10.54803654 | Z102: =IF($I102 >0, MIN(Y102,$I102-SUM($L102:Y102)), MAX(Y102,$I102-SUM($L102:Y102))) -> 10.54803654 | AA102: =IF($I102 >0, MIN(Z102,$I102-SUM($L102:Z102)), MAX(Z102,$I102-SUM($L102:Z102))) -> 10.54803654 | AB102: =IF($I102 >0, MIN(AA102,$I102-SUM($L102:AA102)), MAX(AA102,$I102-SUM($L102:AA102))) -> 10.54803654 | AC102: =IF($I102 >0, MIN(AB102,$I102-SUM($L102:AB102)), MAX(AB102,$I102-SUM($L102:AB102))) -> 10.54803654 | AD102: =IF($I102 >0, MIN(AC102,$I102-SUM($L102:AC102)), MAX(AC102,$I102-SUM($L102:AC102))) -> 10.54803654 | AE102: =IF($I102 >0, MIN(AD102,$I102-SUM($L102:AD102)), MAX(AD102,$I102-SUM($L102:AD102))) -> 10.54803654 | AF102: =IF($I102 >0, MIN(AE102,$I102-SUM($L102:AE102)), MAX(AE102,$I102-SUM($L102:AE102))) -> 10.54803654 | AG102: =IF($I102 >0, MIN(AF102,$I102-SUM($L102:AF102)), MAX(AF102,$I102-SUM($L102:AF102))) -> 10.54803654 | AH102: =IF($I102 >0, MIN(AG102,$I102-SUM($L102:AG102)), MAX(AG102,$I102-SUM($L102:AG102))) -> 10.54803654 | AI102: =IF($I102 >0, MIN(AH102,$I102-SUM($L102:AH102)), MAX(AH102,$I102-SUM($L102:AH102))) -> 10.54803654 | AJ102: =IF($I102 >0, MIN(AI102,$I102-SUM($L102:AI102)), MAX(AI102,$I102-SUM($L102:AI102))) -> 10.54803654 | AK102: =IF($I102 >0, MIN(AJ102,$I102-SUM($L102:AJ102)), MAX(AJ102,$I102-SUM($L102:AJ102))) -> 10.54803654 | AL102: =IF($I102 >0, MIN(AK102,$I102-SUM($L102:AK102)), MAX(AK102,$I102-SUM($L102:AK102))) -> 10.54803654 | AM102: =IF($I102 >0, MIN(AL102,$I102-SUM($L102:AL102)), MAX(AL102,$I102-SUM($L102:AL102))) -> 10.54803654 | AN102: =IF($I102 >0, MIN(AM102,$I102-SUM($L102:AM102)), MAX(AM102,$I102-SUM($L102:AM102))) -> 10.54803654 | AO102: =IF($I102 >0, MIN(AN102,$I102-SUM($L102:AN102)), MAX(AN102,$I102-SUM($L102:AN102))) -> 10.54803654 | AP102: =IF($I102 >0, MIN(AO102,$I102-SUM($L102:AO102)), MAX(AO102,$I102-SUM($L102:AO102))) -> 10.54803654 | AQ102: =IF($I102 >0, MIN(AP102,$I102-SUM($L102:AP102)), MAX(AP102,$I102-SUM($L102:AP102))) -> 10.54803654 | AR102: =IF($I102 >0, MIN(AQ102,$I102-SUM($L102:AQ102)), MAX(AQ102,$I102-SUM($L102:AQ102))) -> 10.54803654 | AS102: =IF($I102 >0, MIN(AR102,$I102-SUM($L102:AR102)), MAX(AR102,$I102-SUM($L102:AR102))) -> 10.54803654 | AT102: =IF($I102 >0, MIN(AS102,$I102-SUM($L102:AS102)), MAX(AS102,$I102-SUM($L102:AS102))) -> 10.54803654
E103: 2005-03-31 | G103: £m 18/19 prices | I103: 554.8815574 | J103: > | Z103: =$I103/Y$83 -> 13.87203894 | AA103: =IF($I103 >0, MIN(Z103,$I103-SUM($L103:Z103)), MAX(Z103,$I103-SUM($L103:Z103))) -> 13.87203894 | AB103: =IF($I103 >0, MIN(AA103,$I103-SUM($L103:AA103)), MAX(AA103,$I103-SUM($L103:AA103))) -> 13.87203894 | AC103: =IF($I103 >0, MIN(AB103,$I103-SUM($L103:AB103)), MAX(AB103,$I103-SUM($L103:AB103))) -> 13.87203894 | AD103: =IF($I103 >0, MIN(AC103,$I103-SUM($L103:AC103)), MAX(AC103,$I103-SUM($L103:AC103))) -> 13.87203894 | AE103: =IF($I103 >0, MIN(AD103,$I103-SUM($L103:AD103)), MAX(AD103,$I103-SUM($L103:AD103))) -> 13.87203894 | AF103: =IF($I103 >0, MIN(AE103,$I103-SUM($L103:AE103)), MAX(AE103,$I103-SUM($L103:AE103))) -> 13.87203894 | AG103: =IF($I103 >0, MIN(AF103,$I103-SUM($L103:AF103)), MAX(AF103,$I103-SUM($L103:AF103))) -> 13.87203894 | AH103: =IF($I103 >0, MIN(AG103,$I103-SUM($L103:AG103)), MAX(AG103,$I103-SUM($L103:AG103))) -> 13.87203894 | AI103: =IF($I103 >0, MIN(AH103,$I103-SUM($L103:AH103)), MAX(AH103,$I103-SUM($L103:AH103))) -> 13.87203894 | AJ103: =IF($I103 >0, MIN(AI103,$I103-SUM($L103:AI103)), MAX(AI103,$I103-SUM($L103:AI103))) -> 13.87203894 | AK103: =IF($I103 >0, MIN(AJ103,$I103-SUM($L103:AJ103)), MAX(AJ103,$I103-SUM($L103:AJ103))) -> 13.87203894 | AL103: =IF($I103 >0, MIN(AK103,$I103-SUM($L103:AK103)), MAX(AK103,$I103-SUM($L103:AK103))) -> 13.87203894 | AM103: =IF($I103 >0, MIN(AL103,$I103-SUM($L103:AL103)), MAX(AL103,$I103-SUM($L103:AL103))) -> 13.87203894 | AN103: =IF($I103 >0, MIN(AM103,$I103-SUM($L103:AM103)), MAX(AM103,$I103-SUM($L103:AM103))) -> 13.87203894 | AO103: =IF($I103 >0, MIN(AN103,$I103-SUM($L103:AN103)), MAX(AN103,$I103-SUM($L103:AN103))) -> 13.87203894 | AP103: =IF($I103 >0, MIN(AO103,$I103-SUM($L103:AO103)), MAX(AO103,$I103-SUM($L103:AO103))) -> 13.87203894 | AQ103: =IF($I103 >0, MIN(AP103,$I103-SUM($L103:AP103)), MAX(AP103,$I103-SUM($L103:AP103))) -> 13.87203894 | AR103: =IF($I103 >0, MIN(AQ103,$I103-SUM($L103:AQ103)), MAX(AQ103,$I103-SUM($L103:AQ103))) -> 13.87203894 | AS103: =IF($I103 >0, MIN(AR103,$I103-SUM($L103:AR103)), MAX(AR103,$I103-SUM($L103:AR103))) -> 13.87203894 | AT103: =IF($I103 >0, MIN(AS103,$I103-SUM($L103:AS103)), MAX(AS103,$I103-SUM($L103:AS103))) -> 13.87203894
E104: 2006-03-31 | G104: £m 18/19 prices | I104: 762.043947 | J104: > | AA104: =$I104/Z$83 -> 19.05109868 | AB104: =IF($I104 >0, MIN(AA104,$I104-SUM($L104:AA104)), MAX(AA104,$I104-SUM($L104:AA104))) -> 19.05109868 | AC104: =IF($I104 >0, MIN(AB104,$I104-SUM($L104:AB104)), MAX(AB104,$I104-SUM($L104:AB104))) -> 19.05109868 | AD104: =IF($I104 >0, MIN(AC104,$I104-SUM($L104:AC104)), MAX(AC104,$I104-SUM($L104:AC104))) -> 19.05109868 | AE104: =IF($I104 >0, MIN(AD104,$I104-SUM($L104:AD104)), MAX(AD104,$I104-SUM($L104:AD104))) -> 19.05109868 | AF104: =IF($I104 >0, MIN(AE104,$I104-SUM($L104:AE104)), MAX(AE104,$I104-SUM($L104:AE104))) -> 19.05109868 | AG104: =IF($I104 >0, MIN(AF104,$I104-SUM($L104:AF104)), MAX(AF104,$I104-SUM($L104:AF104))) -> 19.05109868 | AH104: =IF($I104 >0, MIN(AG104,$I104-SUM($L104:AG104)), MAX(AG104,$I104-SUM($L104:AG104))) -> 19.05109868 | AI104: =IF($I104 >0, MIN(AH104,$I104-SUM($L104:AH104)), MAX(AH104,$I104-SUM($L104:AH104))) -> 19.05109868 | AJ104: =IF($I104 >0, MIN(AI104,$I104-SUM($L104:AI104)), MAX(AI104,$I104-SUM($L104:AI104))) -> 19.05109868 | AK104: =IF($I104 >0, MIN(AJ104,$I104-SUM($L104:AJ104)), MAX(AJ104,$I104-SUM($L104:AJ104))) -> 19.05109868 | AL104: =IF($I104 >0, MIN(AK104,$I104-SUM($L104:AK104)), MAX(AK104,$I104-SUM($L104:AK104))) -> 19.05109868 | AM104: =IF($I104 >0, MIN(AL104,$I104-SUM($L104:AL104)), MAX(AL104,$I104-SUM($L104:AL104))) -> 19.05109868 | AN104: =IF($I104 >0, MIN(AM104,$I104-SUM($L104:AM104)), MAX(AM104,$I104-SUM($L104:AM104))) -> 19.05109868 | AO104: =IF($I104 >0, MIN(AN104,$I104-SUM($L104:AN104)), MAX(AN104,$I104-SUM($L104:AN104))) -> 19.05109868 | AP104: =IF($I104 >0, MIN(AO104,$I104-SUM($L104:AO104)), MAX(AO104,$I104-SUM($L104:AO104))) -> 19.05109868 | AQ104: =IF($I104 >0, MIN(AP104,$I104-SUM($L104:AP104)), MAX(AP104,$I104-SUM($L104:AP104))) -> 19.05109868 | AR104: =IF($I104 >0, MIN(AQ104,$I104-SUM($L104:AQ104)), MAX(AQ104,$I104-SUM($L104:AQ104))) -> 19.05109868 | AS104: =IF($I104 >0, MIN(AR104,$I104-SUM($L104:AR104)), MAX(AR104,$I104-SUM($L104:AR104))) -> 19.05109868 | AT104: =IF($I104 >0, MIN(AS104,$I104-SUM($L104:AS104)), MAX(AS104,$I104-SUM($L104:AS104))) -> 19.05109868
E105: 2007-03-31 | G105: £m 18/19 prices | I105: 730.910484 | J105: > | AB105: =$I105/AA$83 -> 18.2727621 | AC105: =IF($I105 >0, MIN(AB105,$I105-SUM($L105:AB105)), MAX(AB105,$I105-SUM($L105:AB105))) -> 18.2727621 | AD105: =IF($I105 >0, MIN(AC105,$I105-SUM($L105:AC105)), MAX(AC105,$I105-SUM($L105:AC105))) -> 18.2727621 | AE105: =IF($I105 >0, MIN(AD105,$I105-SUM($L105:AD105)), MAX(AD105,$I105-SUM($L105:AD105))) -> 18.2727621 | AF105: =IF($I105 >0, MIN(AE105,$I105-SUM($L105:AE105)), MAX(AE105,$I105-SUM($L105:AE105))) -> 18.2727621 | AG105: =IF($I105 >0, MIN(AF105,$I105-SUM($L105:AF105)), MAX(AF105,$I105-SUM($L105:AF105))) -> 18.2727621 | AH105: =IF($I105 >0, MIN(AG105,$I105-SUM($L105:AG105)), MAX(AG105,$I105-SUM($L105:AG105))) -> 18.2727621 | AI105: =IF($I105 >0, MIN(AH105,$I105-SUM($L105:AH105)), MAX(AH105,$I105-SUM($L105:AH105))) -> 18.2727621 | AJ105: =IF($I105 >0, MIN(AI105,$I105-SUM($L105:AI105)), MAX(AI105,$I105-SUM($L105:AI105))) -> 18.2727621 | AK105: =IF($I105 >0, MIN(AJ105,$I105-SUM($L105:AJ105)), MAX(AJ105,$I105-SUM($L105:AJ105))) -> 18.2727621 | AL105: =IF($I105 >0, MIN(AK105,$I105-SUM($L105:AK105)), MAX(AK105,$I105-SUM($L105:AK105))) -> 18.2727621 | AM105: =IF($I105 >0, MIN(AL105,$I105-SUM($L105:AL105)), MAX(AL105,$I105-SUM($L105:AL105))) -> 18.2727621 | AN105: =IF($I105 >0, MIN(AM105,$I105-SUM($L105:AM105)), MAX(AM105,$I105-SUM($L105:AM105))) -> 18.2727621 | AO105: =IF($I105 >0, MIN(AN105,$I105-SUM($L105:AN105)), MAX(AN105,$I105-SUM($L105:AN105))) -> 18.2727621 | AP105: =IF($I105 >0, MIN(AO105,$I105-SUM($L105:AO105)), MAX(AO105,$I105-SUM($L105:AO105))) -> 18.2727621 | AQ105: =IF($I105 >0, MIN(AP105,$I105-SUM($L105:AP105)), MAX(AP105,$I105-SUM($L105:AP105))) -> 18.2727621 | AR105: =IF($I105 >0, MIN(AQ105,$I105-SUM($L105:AQ105)), MAX(AQ105,$I105-SUM($L105:AQ105))) -> 18.2727621 | AS105: =IF($I105 >0, MIN(AR105,$I105-SUM($L105:AR105)), MAX(AR105,$I105-SUM($L105:AR105))) -> 18.2727621 | AT105: =IF($I105 >0, MIN(AS105,$I105-SUM($L105:AS105)), MAX(AS105,$I105-SUM($L105:AS105))) -> 18.2727621
E106: 2008-03-31 | G106: £m 18/19 prices | I106: 913.9605522 | J106: > | AC106: =$I106/AB$83 -> 22.84901381 | AD106: =IF($I106 >0, MIN(AC106,$I106-SUM($L106:AC106)), MAX(AC106,$I106-SUM($L106:AC106))) -> 22.84901381 | AE106: =IF($I106 >0, MIN(AD106,$I106-SUM($L106:AD106)), MAX(AD106,$I106-SUM($L106:AD106))) -> 22.84901381 | AF106: =IF($I106 >0, MIN(AE106,$I106-SUM($L106:AE106)), MAX(AE106,$I106-SUM($L106:AE106))) -> 22.84901381 | AG106: =IF($I106 >0, MIN(AF106,$I106-SUM($L106:AF106)), MAX(AF106,$I106-SUM($L106:AF106))) -> 22.84901381 | AH106: =IF($I106 >0, MIN(AG106,$I106-SUM($L106:AG106)), MAX(AG106,$I106-SUM($L106:AG106))) -> 22.84901381 | AI106: =IF($I106 >0, MIN(AH106,$I106-SUM($L106:AH106)), MAX(AH106,$I106-SUM($L106:AH106))) -> 22.84901381 | AJ106: =IF($I106 >0, MIN(AI106,$I106-SUM($L106:AI106)), MAX(AI106,$I106-SUM($L106:AI106))) -> 22.84901381 | AK106: =IF($I106 >0, MIN(AJ106,$I106-SUM($L106:AJ106)), MAX(AJ106,$I106-SUM($L106:AJ106))) -> 22.84901381 | AL106: =IF($I106 >0, MIN(AK106,$I106-SUM($L106:AK106)), MAX(AK106,$I106-SUM($L106:AK106))) -> 22.84901381 | AM106: =IF($I106 >0, MIN(AL106,$I106-SUM($L106:AL106)), MAX(AL106,$I106-SUM($L106:AL106))) -> 22.84901381 | AN106: =IF($I106 >0, MIN(AM106,$I106-SUM($L106:AM106)), MAX(AM106,$I106-SUM($L106:AM106))) -> 22.84901381 | AO106: =IF($I106 >0, MIN(AN106,$I106-SUM($L106:AN106)), MAX(AN106,$I106-SUM($L106:AN106))) -> 22.84901381 | AP106: =IF($I106 >0, MIN(AO106,$I106-SUM($L106:AO106)), MAX(AO106,$I106-SUM($L106:AO106))) -> 22.84901381 | AQ106: =IF($I106 >0, MIN(AP106,$I106-SUM($L106:AP106)), MAX(AP106,$I106-SUM($L106:AP106))) -> 22.84901381 | AR106: =IF($I106 >0, MIN(AQ106,$I106-SUM($L106:AQ106)), MAX(AQ106,$I106-SUM($L106:AQ106))) -> 22.84901381 | AS106: =IF($I106 >0, MIN(AR106,$I106-SUM($L106:AR106)), MAX(AR106,$I106-SUM($L106:AR106))) -> 22.84901381 | AT106: =IF($I106 >0, MIN(AS106,$I106-SUM($L106:AS106)), MAX(AS106,$I106-SUM($L106:AS106))) -> 22.84901381
E107: 2009-03-31 | G107: £m 18/19 prices | I107: 873.2122119 | J107: > | AD107: =$I107/AC$83 -> 21.8303053 | AE107: =IF($I107 >0, MIN(AD107,$I107-SUM($L107:AD107)), MAX(AD107,$I107-SUM($L107:AD107))) -> 21.8303053 | AF107: =IF($I107 >0, MIN(AE107,$I107-SUM($L107:AE107)), MAX(AE107,$I107-SUM($L107:AE107))) -> 21.8303053 | AG107: =IF($I107 >0, MIN(AF107,$I107-SUM($L107:AF107)), MAX(AF107,$I107-SUM($L107:AF107))) -> 21.8303053 | AH107: =IF($I107 >0, MIN(AG107,$I107-SUM($L107:AG107)), MAX(AG107,$I107-SUM($L107:AG107))) -> 21.8303053 | AI107: =IF($I107 >0, MIN(AH107,$I107-SUM($L107:AH107)), MAX(AH107,$I107-SUM($L107:AH107))) -> 21.8303053 | AJ107: =IF($I107 >0, MIN(AI107,$I107-SUM($L107:AI107)), MAX(AI107,$I107-SUM($L107:AI107))) -> 21.8303053 | AK107: =IF($I107 >0, MIN(AJ107,$I107-SUM($L107:AJ107)), MAX(AJ107,$I107-SUM($L107:AJ107))) -> 21.8303053 | AL107: =IF($I107 >0, MIN(AK107,$I107-SUM($L107:AK107)), MAX(AK107,$I107-SUM($L107:AK107))) -> 21.8303053 | AM107: =IF($I107 >0, MIN(AL107,$I107-SUM($L107:AL107)), MAX(AL107,$I107-SUM($L107:AL107))) -> 21.8303053 | AN107: =IF($I107 >0, MIN(AM107,$I107-SUM($L107:AM107)), MAX(AM107,$I107-SUM($L107:AM107))) -> 21.8303053 | AO107: =IF($I107 >0, MIN(AN107,$I107-SUM($L107:AN107)), MAX(AN107,$I107-SUM($L107:AN107))) -> 21.8303053 | AP107: =IF($I107 >0, MIN(AO107,$I107-SUM($L107:AO107)), MAX(AO107,$I107-SUM($L107:AO107))) -> 21.8303053 | AQ107: =IF($I107 >0, MIN(AP107,$I107-SUM($L107:AP107)), MAX(AP107,$I107-SUM($L107:AP107))) -> 21.8303053 | AR107: =IF($I107 >0, MIN(AQ107,$I107-SUM($L107:AQ107)), MAX(AQ107,$I107-SUM($L107:AQ107))) -> 21.8303053 | AS107: =IF($I107 >0, MIN(AR107,$I107-SUM($L107:AR107)), MAX(AR107,$I107-SUM($L107:AR107))) -> 21.8303053 | AT107: =IF($I107 >0, MIN(AS107,$I107-SUM($L107:AS107)), MAX(AS107,$I107-SUM($L107:AS107))) -> 21.8303053
E108: 2010-03-31 | G108: £m 18/19 prices | I108: 1066.431805 | J108: > | AE108: =$I108/AD$83 -> 26.66079512 | AF108: =IF($I108 >0, MIN(AE108,$I108-SUM($L108:AE108)), MAX(AE108,$I108-SUM($L108:AE108))) -> 26.66079512 | AG108: =IF($I108 >0, MIN(AF108,$I108-SUM($L108:AF108)), MAX(AF108,$I108-SUM($L108:AF108))) -> 26.66079512 | AH108: =IF($I108 >0, MIN(AG108,$I108-SUM($L108:AG108)), MAX(AG108,$I108-SUM($L108:AG108))) -> 26.66079512 | AI108: =IF($I108 >0, MIN(AH108,$I108-SUM($L108:AH108)), MAX(AH108,$I108-SUM($L108:AH108))) -> 26.66079512 | AJ108: =IF($I108 >0, MIN(AI108,$I108-SUM($L108:AI108)), MAX(AI108,$I108-SUM($L108:AI108))) -> 26.66079512 | AK108: =IF($I108 >0, MIN(AJ108,$I108-SUM($L108:AJ108)), MAX(AJ108,$I108-SUM($L108:AJ108))) -> 26.66079512 | AL108: =IF($I108 >0, MIN(AK108,$I108-SUM($L108:AK108)), MAX(AK108,$I108-SUM($L108:AK108))) -> 26.66079512 | AM108: =IF($I108 >0, MIN(AL108,$I108-SUM($L108:AL108)), MAX(AL108,$I108-SUM($L108:AL108))) -> 26.66079512 | AN108: =IF($I108 >0, MIN(AM108,$I108-SUM($L108:AM108)), MAX(AM108,$I108-SUM($L108:AM108))) -> 26.66079512 | AO108: =IF($I108 >0, MIN(AN108,$I108-SUM($L108:AN108)), MAX(AN108,$I108-SUM($L108:AN108))) -> 26.66079512 | AP108: =IF($I108 >0, MIN(AO108,$I108-SUM($L108:AO108)), MAX(AO108,$I108-SUM($L108:AO108))) -> 26.66079512 | AQ108: =IF($I108 >0, MIN(AP108,$I108-SUM($L108:AP108)), MAX(AP108,$I108-SUM($L108:AP108))) -> 26.66079512 | AR108: =IF($I108 >0, MIN(AQ108,$I108-SUM($L108:AQ108)), MAX(AQ108,$I108-SUM($L108:AQ108))) -> 26.66079512 | AS108: =IF($I108 >0, MIN(AR108,$I108-SUM($L108:AR108)), MAX(AR108,$I108-SUM($L108:AR108))) -> 26.66079512 | AT108: =IF($I108 >0, MIN(AS108,$I108-SUM($L108:AS108)), MAX(AS108,$I108-SUM($L108:AS108))) -> 26.66079512
E109: 2011-03-31 | G109: £m 18/19 prices | I109: 862.2930842 | J109: > | AF109: =$I109/AE$83 -> 21.55732711 | AG109: =IF($I109 >0, MIN(AF109,$I109-SUM($L109:AF109)), MAX(AF109,$I109-SUM($L109:AF109))) -> 21.55732711 | AH109: =IF($I109 >0, MIN(AG109,$I109-SUM($L109:AG109)), MAX(AG109,$I109-SUM($L109:AG109))) -> 21.55732711 | AI109: =IF($I109 >0, MIN(AH109,$I109-SUM($L109:AH109)), MAX(AH109,$I109-SUM($L109:AH109))) -> 21.55732711 | AJ109: =IF($I109 >0, MIN(AI109,$I109-SUM($L109:AI109)), MAX(AI109,$I109-SUM($L109:AI109))) -> 21.55732711 | AK109: =IF($I109 >0, MIN(AJ109,$I109-SUM($L109:AJ109)), MAX(AJ109,$I109-SUM($L109:AJ109))) -> 21.55732711 | AL109: =IF($I109 >0, MIN(AK109,$I109-SUM($L109:AK109)), MAX(AK109,$I109-SUM($L109:AK109))) -> 21.55732711 | AM109: =IF($I109 >0, MIN(AL109,$I109-SUM($L109:AL109)), MAX(AL109,$I109-SUM($L109:AL109))) -> 21.55732711 | AN109: =IF($I109 >0, MIN(AM109,$I109-SUM($L109:AM109)), MAX(AM109,$I109-SUM($L109:AM109))) -> 21.55732711 | AO109: =IF($I109 >0, MIN(AN109,$I109-SUM($L109:AN109)), MAX(AN109,$I109-SUM($L109:AN109))) -> 21.55732711 | AP109: =IF($I109 >0, MIN(AO109,$I109-SUM($L109:AO109)), MAX(AO109,$I109-SUM($L109:AO109))) -> 21.55732711 | AQ109: =IF($I109 >0, MIN(AP109,$I109-SUM($L109:AP109)), MAX(AP109,$I109-SUM($L109:AP109))) -> 21.55732711 | AR109: =IF($I109 >0, MIN(AQ109,$I109-SUM($L109:AQ109)), MAX(AQ109,$I109-SUM($L109:AQ109))) -> 21.55732711 | AS109: =IF($I109 >0, MIN(AR109,$I109-SUM($L109:AR109)), MAX(AR109,$I109-SUM($L109:AR109))) -> 21.55732711 | AT109: =IF($I109 >0, MIN(AS109,$I109-SUM($L109:AS109)), MAX(AS109,$I109-SUM($L109:AS109))) -> 21.55732711
E110: 2012-03-31 | G110: £m 18/19 prices | I110: 1218.161431 | J110: > | AG110: =$I110/AF$83 -> 30.45403577 | AH110: =IF($I110 >0, MIN(AG110,$I110-SUM($L110:AG110)), MAX(AG110,$I110-SUM($L110:AG110))) -> 30.45403577 | AI110: =IF($I110 >0, MIN(AH110,$I110-SUM($L110:AH110)), MAX(AH110,$I110-SUM($L110:AH110))) -> 30.45403577 | AJ110: =IF($I110 >0, MIN(AI110,$I110-SUM($L110:AI110)), MAX(AI110,$I110-SUM($L110:AI110))) -> 30.45403577 | AK110: =IF($I110 >0, MIN(AJ110,$I110-SUM($L110:AJ110)), MAX(AJ110,$I110-SUM($L110:AJ110))) -> 30.45403577 | AL110: =IF($I110 >0, MIN(AK110,$I110-SUM($L110:AK110)), MAX(AK110,$I110-SUM($L110:AK110))) -> 30.45403577 | AM110: =IF($I110 >0, MIN(AL110,$I110-SUM($L110:AL110)), MAX(AL110,$I110-SUM($L110:AL110))) -> 30.45403577 | AN110: =IF($I110 >0, MIN(AM110,$I110-SUM($L110:AM110)), MAX(AM110,$I110-SUM($L110:AM110))) -> 30.45403577 | AO110: =IF($I110 >0, MIN(AN110,$I110-SUM($L110:AN110)), MAX(AN110,$I110-SUM($L110:AN110))) -> 30.45403577 | AP110: =IF($I110 >0, MIN(AO110,$I110-SUM($L110:AO110)), MAX(AO110,$I110-SUM($L110:AO110))) -> 30.45403577 | AQ110: =IF($I110 >0, MIN(AP110,$I110-SUM($L110:AP110)), MAX(AP110,$I110-SUM($L110:AP110))) -> 30.45403577 | AR110: =IF($I110 >0, MIN(AQ110,$I110-SUM($L110:AQ110)), MAX(AQ110,$I110-SUM($L110:AQ110))) -> 30.45403577 | AS110: =IF($I110 >0, MIN(AR110,$I110-SUM($L110:AR110)), MAX(AR110,$I110-SUM($L110:AR110))) -> 30.45403577 | AT110: =IF($I110 >0, MIN(AS110,$I110-SUM($L110:AS110)), MAX(AS110,$I110-SUM($L110:AS110))) -> 30.45403577
E111: 2013-03-31 | G111: £m 18/19 prices | I111: 1185.615065 | AH111: =$I111/AG$83 -> 29.64037663 | AI111: =IF($I111 >0, MIN(AH111,$I111-SUM($L111:AH111)), MAX(AH111,$I111-SUM($L111:AH111))) -> 29.64037663 | AJ111: =IF($I111 >0, MIN(AI111,$I111-SUM($L111:AI111)), MAX(AI111,$I111-SUM($L111:AI111))) -> 29.64037663 | AK111: =IF($I111 >0, MIN(AJ111,$I111-SUM($L111:AJ111)), MAX(AJ111,$I111-SUM($L111:AJ111))) -> 29.64037663 | AL111: =IF($I111 >0, MIN(AK111,$I111-SUM($L111:AK111)), MAX(AK111,$I111-SUM($L111:AK111))) -> 29.64037663 | AM111: =IF($I111 >0, MIN(AL111,$I111-SUM($L111:AL111)), MAX(AL111,$I111-SUM($L111:AL111))) -> 29.64037663 | AN111: =IF($I111 >0, MIN(AM111,$I111-SUM($L111:AM111)), MAX(AM111,$I111-SUM($L111:AM111))) -> 29.64037663 | AO111: =IF($I111 >0, MIN(AN111,$I111-SUM($L111:AN111)), MAX(AN111,$I111-SUM($L111:AN111))) -> 29.64037663 | AP111: =IF($I111 >0, MIN(AO111,$I111-SUM($L111:AO111)), MAX(AO111,$I111-SUM($L111:AO111))) -> 29.64037663 | AQ111: =IF($I111 >0, MIN(AP111,$I111-SUM($L111:AP111)), MAX(AP111,$I111-SUM($L111:AP111))) -> 29.64037663 | AR111: =IF($I111 >0, MIN(AQ111,$I111-SUM($L111:AQ111)), MAX(AQ111,$I111-SUM($L111:AQ111))) -> 29.64037663 | AS111: =IF($I111 >0, MIN(AR111,$I111-SUM($L111:AR111)), MAX(AR111,$I111-SUM($L111:AR111))) -> 29.64037663 | AT111: =IF($I111 >0, MIN(AS111,$I111-SUM($L111:AS111)), MAX(AS111,$I111-SUM($L111:AS111))) -> 29.64037663
E112: 2014-03-31 | G112: £m 18/19 prices | I112: 1247.42538 | AI112: =$I112/AH$83 -> 53.94271915 | AJ112: =IF($I112 >0, MIN(AI112,$I112-SUM($L112:AI112)), MAX(AI112,$I112-SUM($L112:AI112))) -> 53.94271915 | AK112: =IF($I112 >0, MIN(AJ112,$I112-SUM($L112:AJ112)), MAX(AJ112,$I112-SUM($L112:AJ112))) -> 53.94271915 | AL112: =IF($I112 >0, MIN(AK112,$I112-SUM($L112:AK112)), MAX(AK112,$I112-SUM($L112:AK112))) -> 53.94271915 | AM112: =IF($I112 >0, MIN(AL112,$I112-SUM($L112:AL112)), MAX(AL112,$I112-SUM($L112:AL112))) -> 53.94271915 | AN112: =IF($I112 >0, MIN(AM112,$I112-SUM($L112:AM112)), MAX(AM112,$I112-SUM($L112:AM112))) -> 53.94271915 | AO112: =IF($I112 >0, MIN(AN112,$I112-SUM($L112:AN112)), MAX(AN112,$I112-SUM($L112:AN112))) -> 53.94271915 | AP112: =IF($I112 >0, MIN(AO112,$I112-SUM($L112:AO112)), MAX(AO112,$I112-SUM($L112:AO112))) -> 53.94271915 | AQ112: =IF($I112 >0, MIN(AP112,$I112-SUM($L112:AP112)), MAX(AP112,$I112-SUM($L112:AP112))) -> 53.94271915 | AR112: =IF($I112 >0, MIN(AQ112,$I112-SUM($L112:AQ112)), MAX(AQ112,$I112-SUM($L112:AQ112))) -> 53.94271915 | AS112: =IF($I112 >0, MIN(AR112,$I112-SUM($L112:AR112)), MAX(AR112,$I112-SUM($L112:AR112))) -> 53.94271915 | AT112: =IF($I112 >0, MIN(AS112,$I112-SUM($L112:AS112)), MAX(AS112,$I112-SUM($L112:AS112))) -> 53.94271915
E113: 2015-03-31 | G113: £m 18/19 prices | I113: 1170.059191 | AJ113: =$I113/AI$83 -> 44.57368348 | AK113: =IF($I113 >0, MIN(AJ113,$I113-SUM($L113:AJ113)), MAX(AJ113,$I113-SUM($L113:AJ113))) -> 44.57368348 | AL113: =IF($I113 >0, MIN(AK113,$I113-SUM($L113:AK113)), MAX(AK113,$I113-SUM($L113:AK113))) -> 44.57368348 | AM113: =IF($I113 >0, MIN(AL113,$I113-SUM($L113:AL113)), MAX(AL113,$I113-SUM($L113:AL113))) -> 44.57368348 | AN113: =IF($I113 >0, MIN(AM113,$I113-SUM($L113:AM113)), MAX(AM113,$I113-SUM($L113:AM113))) -> 44.57368348 | AO113: =IF($I113 >0, MIN(AN113,$I113-SUM($L113:AN113)), MAX(AN113,$I113-SUM($L113:AN113))) -> 44.57368348 | AP113: =IF($I113 >0, MIN(AO113,$I113-SUM($L113:AO113)), MAX(AO113,$I113-SUM($L113:AO113))) -> 44.57368348 | AQ113: =IF($I113 >0, MIN(AP113,$I113-SUM($L113:AP113)), MAX(AP113,$I113-SUM($L113:AP113))) -> 44.57368348 | AR113: =IF($I113 >0, MIN(AQ113,$I113-SUM($L113:AQ113)), MAX(AQ113,$I113-SUM($L113:AQ113))) -> 44.57368348 | AS113: =IF($I113 >0, MIN(AR113,$I113-SUM($L113:AR113)), MAX(AR113,$I113-SUM($L113:AR113))) -> 44.57368348 | AT113: =IF($I113 >0, MIN(AS113,$I113-SUM($L113:AS113)), MAX(AS113,$I113-SUM($L113:AS113))) -> 44.57368348
E114: 2016-03-31 | G114: £m 18/19 prices | I114: 1116.836618 | AK114: =$I114/AJ$83 -> 38.01996999 | AL114: =IF($I114 >0, MIN(AK114,$I114-SUM($L114:AK114)), MAX(AK114,$I114-SUM($L114:AK114))) -> 38.01996999 | AM114: =IF($I114 >0, MIN(AL114,$I114-SUM($L114:AL114)), MAX(AL114,$I114-SUM($L114:AL114))) -> 38.01996999 | AN114: =IF($I114 >0, MIN(AM114,$I114-SUM($L114:AM114)), MAX(AM114,$I114-SUM($L114:AM114))) -> 38.01996999 | AO114: =IF($I114 >0, MIN(AN114,$I114-SUM($L114:AN114)), MAX(AN114,$I114-SUM($L114:AN114))) -> 38.01996999 | AP114: =IF($I114 >0, MIN(AO114,$I114-SUM($L114:AO114)), MAX(AO114,$I114-SUM($L114:AO114))) -> 38.01996999 | AQ114: =IF($I114 >0, MIN(AP114,$I114-SUM($L114:AP114)), MAX(AP114,$I114-SUM($L114:AP114))) -> 38.01996999 | AR114: =IF($I114 >0, MIN(AQ114,$I114-SUM($L114:AQ114)), MAX(AQ114,$I114-SUM($L114:AQ114))) -> 38.01996999 | AS114: =IF($I114 >0, MIN(AR114,$I114-SUM($L114:AR114)), MAX(AR114,$I114-SUM($L114:AR114))) -> 38.01996999 | AT114: =IF($I114 >0, MIN(AS114,$I114-SUM($L114:AS114)), MAX(AS114,$I114-SUM($L114:AS114))) -> 38.01996999
E115: 2017-03-31 | G115: £m 18/19 prices | I115: 1105.284162 | AL115: =$I115/AK$83 -> 34.00874343 | AM115: =IF($I115 >0, MIN(AL115,$I115-SUM($L115:AL115)), MAX(AL115,$I115-SUM($L115:AL115))) -> 34.00874343 | AN115: =IF($I115 >0, MIN(AM115,$I115-SUM($L115:AM115)), MAX(AM115,$I115-SUM($L115:AM115))) -> 34.00874343 | AO115: =IF($I115 >0, MIN(AN115,$I115-SUM($L115:AN115)), MAX(AN115,$I115-SUM($L115:AN115))) -> 34.00874343 | AP115: =IF($I115 >0, MIN(AO115,$I115-SUM($L115:AO115)), MAX(AO115,$I115-SUM($L115:AO115))) -> 34.00874343 | AQ115: =IF($I115 >0, MIN(AP115,$I115-SUM($L115:AP115)), MAX(AP115,$I115-SUM($L115:AP115))) -> 34.00874343 | AR115: =IF($I115 >0, MIN(AQ115,$I115-SUM($L115:AQ115)), MAX(AQ115,$I115-SUM($L115:AQ115))) -> 34.00874343 | AS115: =IF($I115 >0, MIN(AR115,$I115-SUM($L115:AR115)), MAX(AR115,$I115-SUM($L115:AR115))) -> 34.00874343 | AT115: =IF($I115 >0, MIN(AS115,$I115-SUM($L115:AS115)), MAX(AS115,$I115-SUM($L115:AS115))) -> 34.00874343
E116: 2018-03-31 | G116: £m 18/19 prices | I116: 1027.809278 | AM116: =$I116/AL$83 -> 28.85078674 | AN116: =IF($I116 >0, MIN(AM116,$I116-SUM($L116:AM116)), MAX(AM116,$I116-SUM($L116:AM116))) -> 28.85078674 | AO116: =IF($I116 >0, MIN(AN116,$I116-SUM($L116:AN116)), MAX(AN116,$I116-SUM($L116:AN116))) -> 28.85078674 | AP116: =IF($I116 >0, MIN(AO116,$I116-SUM($L116:AO116)), MAX(AO116,$I116-SUM($L116:AO116))) -> 28.85078674 | AQ116: =IF($I116 >0, MIN(AP116,$I116-SUM($L116:AP116)), MAX(AP116,$I116-SUM($L116:AP116))) -> 28.85078674 | AR116: =IF($I116 >0, MIN(AQ116,$I116-SUM($L116:AQ116)), MAX(AQ116,$I116-SUM($L116:AQ116))) -> 28.85078674 | AS116: =IF($I116 >0, MIN(AR116,$I116-SUM($L116:AR116)), MAX(AR116,$I116-SUM($L116:AR116))) -> 28.85078674 | AT116: =IF($I116 >0, MIN(AS116,$I116-SUM($L116:AS116)), MAX(AS116,$I116-SUM($L116:AS116))) -> 28.85078674
E117: 2019-03-31 | G117: £m 18/19 prices | I117: 1084.140649 | AN117: =$I117/AM$83 -> 27.97782319 | AO117: =IF($I117 >0, MIN(AN117,$I117-SUM($L117:AN117)), MAX(AN117,$I117-SUM($L117:AN117))) -> 27.97782319 | AP117: =IF($I117 >0, MIN(AO117,$I117-SUM($L117:AO117)), MAX(AO117,$I117-SUM($L117:AO117))) -> 27.97782319 | AQ117: =IF($I117 >0, MIN(AP117,$I117-SUM($L117:AP117)), MAX(AP117,$I117-SUM($L117:AP117))) -> 27.97782319 | AR117: =IF($I117 >0, MIN(AQ117,$I117-SUM($L117:AQ117)), MAX(AQ117,$I117-SUM($L117:AQ117))) -> 27.97782319 | AS117: =IF($I117 >0, MIN(AR117,$I117-SUM($L117:AR117)), MAX(AR117,$I117-SUM($L117:AR117))) -> 27.97782319 | AT117: =IF($I117 >0, MIN(AS117,$I117-SUM($L117:AS117)), MAX(AS117,$I117-SUM($L117:AS117))) -> 27.97782319
E118: 2020-03-31 | G118: £m 18/19 prices | I118: 1105.598144 | AO118: =$I118/AN$83 -> 26.40234373 | AP118: =IF($I118 >0, MIN(AO118,$I118-SUM($L118:AO118)), MAX(AO118,$I118-SUM($L118:AO118))) -> 26.40234373 | AQ118: =IF($I118 >0, MIN(AP118,$I118-SUM($L118:AP118)), MAX(AP118,$I118-SUM($L118:AP118))) -> 26.40234373 | AR118: =IF($I118 >0, MIN(AQ118,$I118-SUM($L118:AQ118)), MAX(AQ118,$I118-SUM($L118:AQ118))) -> 26.40234373 | AS118: =IF($I118 >0, MIN(AR118,$I118-SUM($L118:AR118)), MAX(AR118,$I118-SUM($L118:AR118))) -> 26.40234373 | AT118: =IF($I118 >0, MIN(AS118,$I118-SUM($L118:AS118)), MAX(AS118,$I118-SUM($L118:AS118))) -> 26.40234373
E119: 2021-03-31 | G119: £m 18/19 prices | I119: 1096.212691 | AP119: =$I119/AO$83 -> 24.36028202 | AQ119: =IF($I119 >0, MIN(AP119,$I119-SUM($L119:AP119)), MAX(AP119,$I119-SUM($L119:AP119))) -> 24.36028202 | AR119: =IF($I119 >0, MIN(AQ119,$I119-SUM($L119:AQ119)), MAX(AQ119,$I119-SUM($L119:AQ119))) -> 24.36028202 | AS119: =IF($I119 >0, MIN(AR119,$I119-SUM($L119:AR119)), MAX(AR119,$I119-SUM($L119:AR119))) -> 24.36028202 | AT119: =IF($I119 >0, MIN(AS119,$I119-SUM($L119:AS119)), MAX(AS119,$I119-SUM($L119:AS119))) -> 24.36028202
E120: 2022-03-31 | G120: £m 18/19 prices | I120: 1108.526013 | AQ120: =$I120/AP$83 -> 24.63391139 | AR120: =IF($I120 >0, MIN(AQ120,$I120-SUM($L120:AQ120)), MAX(AQ120,$I120-SUM($L120:AQ120))) -> 24.63391139 | AS120: =IF($I120 >0, MIN(AR120,$I120-SUM($L120:AR120)), MAX(AR120,$I120-SUM($L120:AR120))) -> 24.63391139 | AT120: =IF($I120 >0, MIN(AS120,$I120-SUM($L120:AS120)), MAX(AS120,$I120-SUM($L120:AS120))) -> 24.63391139
E121: 2023-03-31 | G121: £m 18/19 prices | I121: 1318.202722 | AR121: =$I121/AQ$83 -> 29.29339382 | AS121: =IF($I121 >0, MIN(AR121,$I121-SUM($L121:AR121)), MAX(AR121,$I121-SUM($L121:AR121))) -> 29.29339382 | AT121: =IF($I121 >0, MIN(AS121,$I121-SUM($L121:AS121)), MAX(AS121,$I121-SUM($L121:AS121))) -> 29.29339382
E122: 2024-03-31 | G122: £m 18/19 prices | I122: 1287.008172 | AS122: =$I122/AR$83 -> 28.60018159 | AT122: =IF($I122 >0, MIN(AS122,$I122-SUM($L122:AS122)), MAX(AS122,$I122-SUM($L122:AS122))) -> 28.60018159
E123: 2025-03-31 | G123: £m 18/19 prices | I123: 1211.736734 | AT123: =$I123/AS$83 -> 26.92748298
E124: 2026-03-31 | G124: £m 18/19 prices | I124: 1294.607033
C126: Accelerated RAV differential post-vesting depreciation
C127: Note: The RAV differential accumulated from the accelerated and non-accelerated schedules above is released once pre-vesting assets are fully depreciated over an input smoothing profile.
D129: Depreciation parameters
E131: RAV differential is accruing differences | G131: flag | J131: > | L131: =IF(L84, 1, 0) -> 1 | M131: =IF(M84, 1, 0) -> 1 | N131: 1 | O131: 1 | P131: 1 | Q131: 1 | R131: 1 | S131: 1 | T131: 1 | U131: 1 | V131: 1 | W131: 1 | X131: 1 | Y131: 1 | Z131: 1 | AA131: 1 | AB131: 1 | AC131: 1 | AD131: 1 | AE131: 0 | AF131: 0 | AG131: 0 | AH131: 0 | AI131: 0 | AJ131: 0 | AK131: 0 | AL131: 0 | AM131: 0 | AN131: 0 | AO131: 0 | AP131: 0 | AQ131: 0 | AR131: 0 | AS131: 0 | AT131: 0
E132: Smoothing period | G132: years | I132: =Input!I714 -> 50
E133: Smoothing profile for recovery of RAV differential | G133: % | L133: =IF($I132 = 0, 0, IF(AND(YEAR(L$4) >= YEAR($I$26) + $I$27, YEAR(L$4) < YEAR($I$26) + $I$27 + $I132), 1, 0) / $I132) -> 0 | M133: 0 | N133: 0 | O133: 0 | P133: 0 | Q133: 0 | R133: 0 | S133: 0 | T133: 0 | U133: 0 | V133: 0 | W133: 0 | X133: 0 | Y133: 0 | Z133: 0 | AA133: 0 | AB133: 0 | AC133: 0 | AD133: 0 | AE133: 0.02 | AF133: 0.02 | AG133: 0.02 | AH133: 0.02 | AI133: 0.02 | AJ133: 0.02 | AK133: 0.02 | AL133: 0.02 | AM133: 0.02 | AN133: 0.02 | AO133: 0.02 | AP133: 0.02 | AQ133: 0.02 | AR133: 0.02 | AS133: 0.02 | AT133: 0.02
D135: Pre-RIIO transfer to depreciation
E137: Year ending | K137: =K4 -> 1991-03-31 | L137: 1992-03-31 | M137: 1993-03-31 | N137: 1994-03-31 | O137: 1995-03-31 | P137: 1996-03-31 | Q137: 1997-03-31 | R137: 1998-03-31 | S137: 1999-03-31 | T137: 2000-03-31 | U137: 2001-03-31 | V137: 2002-03-31 | W137: 2003-03-31 | X137: 2004-03-31 | Y137: 2005-03-31 | Z137: 2006-03-31 | AA137: 2007-03-31 | AB137: 2008-03-31 | AC137: 2009-03-31 | AD137: 2010-03-31 | AE137: 2011-03-31 | AF137: 2012-03-31 | AG137: 2013-03-31 | AH137: 2014-03-31 | AI137: 2015-03-31 | AJ137: 2016-03-31 | AK137: 2017-03-31 | AL137: 2018-03-31 | AM137: 2019-03-31 | AN137: 2020-03-31 | AO137: 2021-03-31 | AP137: 2022-03-31 | AQ137: 2023-03-31 | AR137: 2024-03-31 | AS137: 2025-03-31 | AT137: 2026-03-31
E138: Pre-RIIO transfers to depreciation | K138: =K131 * K21 -> 0 | L138: 0 | M138: 0 | N138: 0 | O138: 0 | P138: 0 | Q138: 0 | R138: 0 | S138: 0 | T138: 0 | U138: 0 | V138: 0 | W138: 0 | X138: -53.09486601 | Y138: 0 | Z138: 0 | AA138: 0 | AB138: 0 | AC138: 0 | AD138: 0 | AE138: 0 | AF138: 0 | AG138: 0 | AH138: 0 | AI138: 0 | AJ138: 0 | AK138: 0 | AL138: 0 | AM138: 0 | AN138: 0 | AO138: 0 | AP138: =AP131 * AP21 -> 0 | AQ138: =AQ131 * AQ21 -> 0 | AR138: =AR131 * AR21 -> 0 | AS138: =AS131 * AS21 -> 0 | AT138: =AT131 * AT21 -> 0
D140: Depreciation schedule
E142: RAV differential depreciation of additions from year ending | I142: RAV differential
E143: 1991-03-31 | G143: £m 18/19 prices | I143: =SUMPRODUCT(L41:AT41, L$131:AT$131) - SUMPRODUCT(L89:AT89, L$131:AT$131) + HLOOKUP(E143, $K$137:$AT$138,2, FALSE) -> 236.6547896 | J143: > | L143: =$I143 * L$133 -> 0 | M143: =$I143 * M$133 -> 0 | N143: 0 | O143: 0 | P143: 0 | Q143: 0 | R143: 0 | S143: 0 | T143: 0 | U143: 0 | V143: 0 | W143: 0 | X143: 0 | Y143: 0 | Z143: 0 | AA143: 0 | AB143: 0 | AC143: 0 | AD143: 0 | AE143: 4.733095792 | AF143: 4.733095792 | AG143: 4.733095792 | AH143: =$I143 * AH$133 -> 4.733095792 | AI143: =$I143 * AI$133 -> 4.733095792 | AJ143: 4.733095792 | AK143: 4.733095792 | AL143: 4.733095792 | AM143: 4.733095792 | AN143: 4.733095792 | AO143: 4.733095792 | AP143: 4.733095792 | AQ143: =$I143 * AQ$133 -> 4.733095792 | AR143: 4.733095792 | AS143: 4.733095792 | AT143: 4.733095792
E144: 1992-03-31 | G144: £m 18/19 prices | I144: =SUMPRODUCT(L42:AT42, L$131:AT$131) - SUMPRODUCT(L90:AT90, L$131:AT$131) + HLOOKUP(E144, $K$137:$AT$138,2, FALSE) -> 277.7615491 | J144: > | M144: =$I144 * M$133 -> 0 | N144: 0 | O144: 0 | P144: 0 | Q144: 0 | R144: 0 | S144: 0 | T144: 0 | U144: 0 | V144: 0 | W144: 0 | X144: 0 | Y144: 0 | Z144: 0 | AA144: 0 | AB144: 0 | AC144: 0 | AD144: 0 | AE144: 5.555230982 | AF144: 5.555230982 | AG144: 5.555230982 | AH144: 5.555230982 | AI144: 5.555230982 | AJ144: 5.555230982 | AK144: 5.555230982 | AL144: 5.555230982 | AM144: 5.555230982 | AN144: 5.555230982 | AO144: 5.555230982 | AP144: 5.555230982 | AQ144: 5.555230982 | AR144: 5.555230982 | AS144: 5.555230982 | AT144: 5.555230982
E145: 1993-03-31 | G145: £m 18/19 prices | I145: 309.6052317 | J145: > | N145: =$I145 * N$133 -> 0 | O145: 0 | P145: 0 | Q145: 0 | R145: 0 | S145: 0 | T145: 0 | U145: 0 | V145: 0 | W145: 0 | X145: 0 | Y145: 0 | Z145: 0 | AA145: 0 | AB145: 0 | AC145: 0 | AD145: 0 | AE145: 6.192104633 | AF145: 6.192104633 | AG145: 6.192104633 | AH145: 6.192104633 | AI145: 6.192104633 | AJ145: 6.192104633 | AK145: 6.192104633 | AL145: 6.192104633 | AM145: 6.192104633 | AN145: 6.192104633 | AO145: 6.192104633 | AP145: 6.192104633 | AQ145: 6.192104633 | AR145: 6.192104633 | AS145: 6.192104633 | AT145: 6.192104633
E146: 1994-03-31 | G146: £m 18/19 prices | I146: 209.8577454 | J146: > | O146: =$I146 * O$133 -> 0 | P146: 0 | Q146: 0 | R146: 0 | S146: 0 | T146: 0 | U146: 0 | V146: 0 | W146: 0 | X146: 0 | Y146: 0 | Z146: 0 | AA146: 0 | AB146: 0 | AC146: 0 | AD146: 0 | AE146: 4.197154907 | AF146: 4.197154907 | AG146: 4.197154907 | AH146: 4.197154907 | AI146: 4.197154907 | AJ146: 4.197154907 | AK146: 4.197154907 | AL146: 4.197154907 | AM146: 4.197154907 | AN146: 4.197154907 | AO146: 4.197154907 | AP146: 4.197154907 | AQ146: 4.197154907 | AR146: 4.197154907 | AS146: 4.197154907 | AT146: 4.197154907
E147: 1995-03-31 | G147: £m 18/19 prices | I147: 128.1317975 | J147: > | P147: =$I147 * P$133 -> 0 | Q147: 0 | R147: 0 | S147: 0 | T147: 0 | U147: 0 | V147: 0 | W147: 0 | X147: 0 | Y147: 0 | Z147: 0 | AA147: 0 | AB147: 0 | AC147: 0 | AD147: 0 | AE147: 2.562635951 | AF147: 2.562635951 | AG147: 2.562635951 | AH147: 2.562635951 | AI147: 2.562635951 | AJ147: 2.562635951 | AK147: 2.562635951 | AL147: 2.562635951 | AM147: 2.562635951 | AN147: 2.562635951 | AO147: 2.562635951 | AP147: 2.562635951 | AQ147: 2.562635951 | AR147: 2.562635951 | AS147: 2.562635951 | AT147: 2.562635951
E148: 1996-03-31 | G148: £m 18/19 prices | I148: 120.8919027 | J148: > | Q148: =$I148 * Q$133 -> 0 | R148: 0 | S148: 0 | T148: 0 | U148: 0 | V148: 0 | W148: 0 | X148: 0 | Y148: 0 | Z148: 0 | AA148: 0 | AB148: 0 | AC148: 0 | AD148: 0 | AE148: 2.417838054 | AF148: 2.417838054 | AG148: 2.417838054 | AH148: 2.417838054 | AI148: 2.417838054 | AJ148: 2.417838054 | AK148: 2.417838054 | AL148: 2.417838054 | AM148: 2.417838054 | AN148: 2.417838054 | AO148: 2.417838054 | AP148: 2.417838054 | AQ148: 2.417838054 | AR148: 2.417838054 | AS148: 2.417838054 | AT148: 2.417838054
E149: 1997-03-31 | G149: £m 18/19 prices | I149: 108.7288749 | J149: > | R149: =$I149 * R$133 -> 0 | S149: 0 | T149: 0 | U149: 0 | V149: 0 | W149: 0 | X149: 0 | Y149: 0 | Z149: 0 | AA149: 0 | AB149: 0 | AC149: 0 | AD149: 0 | AE149: 2.174577497 | AF149: 2.174577497 | AG149: 2.174577497 | AH149: 2.174577497 | AI149: 2.174577497 | AJ149: 2.174577497 | AK149: 2.174577497 | AL149: 2.174577497 | AM149: 2.174577497 | AN149: 2.174577497 | AO149: 2.174577497 | AP149: 2.174577497 | AQ149: 2.174577497 | AR149: 2.174577497 | AS149: 2.174577497 | AT149: 2.174577497
E150: 1998-03-31 | G150: £m 18/19 prices | I150: 88.79242432 | J150: > | S150: =$I150 * S$133 -> 0 | T150: 0 | U150: 0 | V150: 0 | W150: 0 | X150: 0 | Y150: 0 | Z150: 0 | AA150: 0 | AB150: 0 | AC150: 0 | AD150: 0 | AE150: 1.775848486 | AF150: 1.775848486 | AG150: 1.775848486 | AH150: 1.775848486 | AI150: 1.775848486 | AJ150: 1.775848486 | AK150: 1.775848486 | AL150: 1.775848486 | AM150: 1.775848486 | AN150: 1.775848486 | AO150: 1.775848486 | AP150: 1.775848486 | AQ150: 1.775848486 | AR150: 1.775848486 | AS150: 1.775848486 | AT150: 1.775848486
E151: 1999-03-31 | G151: £m 18/19 prices | I151: 141.0269993 | J151: > | T151: =$I151 * T$133 -> 0 | U151: 0 | V151: 0 | W151: 0 | X151: 0 | Y151: 0 | Z151: 0 | AA151: 0 | AB151: 0 | AC151: 0 | AD151: 0 | AE151: 2.820539986 | AF151: 2.820539986 | AG151: 2.820539986 | AH151: 2.820539986 | AI151: 2.820539986 | AJ151: 2.820539986 | AK151: 2.820539986 | AL151: 2.820539986 | AM151: 2.820539986 | AN151: 2.820539986 | AO151: 2.820539986 | AP151: 2.820539986 | AQ151: 2.820539986 | AR151: 2.820539986 | AS151: 2.820539986 | AT151: 2.820539986
E152: 2000-03-31 | G152: £m 18/19 prices | I152: 113.8935824 | J152: > | U152: =$I152 * U$133 -> 0 | V152: 0 | W152: 0 | X152: 0 | Y152: 0 | Z152: 0 | AA152: 0 | AB152: 0 | AC152: 0 | AD152: 0 | AE152: 2.277871647 | AF152: 2.277871647 | AG152: 2.277871647 | AH152: 2.277871647 | AI152: 2.277871647 | AJ152: 2.277871647 | AK152: 2.277871647 | AL152: 2.277871647 | AM152: 2.277871647 | AN152: 2.277871647 | AO152: 2.277871647 | AP152: 2.277871647 | AQ152: 2.277871647 | AR152: 2.277871647 | AS152: 2.277871647 | AT152: 2.277871647
E153: 2001-03-31 | G153: £m 18/19 prices | I153: 87.03853237 | J153: > | V153: =$I153 * V$133 -> 0 | W153: 0 | X153: 0 | Y153: 0 | Z153: 0 | AA153: 0 | AB153: 0 | AC153: 0 | AD153: 0 | AE153: 1.740770647 | AF153: 1.740770647 | AG153: =$I153 * AG$133 -> 1.740770647 | AH153: 1.740770647 | AI153: 1.740770647 | AJ153: 1.740770647 | AK153: 1.740770647 | AL153: 1.740770647 | AM153: 1.740770647 | AN153: 1.740770647 | AO153: 1.740770647 | AP153: 1.740770647 | AQ153: 1.740770647 | AR153: 1.740770647 | AS153: 1.740770647 | AT153: 1.740770647
E154: 2002-03-31 | G154: £m 18/19 prices | I154: 107.0667286 | J154: > | W154: =$I154 * W$133 -> 0 | X154: =$I154 * X$133 -> 0 | Y154: 0 | Z154: 0 | AA154: 0 | AB154: 0 | AC154: 0 | AD154: 0 | AE154: 2.141334573 | AF154: 2.141334573 | AG154: 2.141334573 | AH154: 2.141334573 | AI154: 2.141334573 | AJ154: 2.141334573 | AK154: 2.141334573 | AL154: 2.141334573 | AM154: 2.141334573 | AN154: 2.141334573 | AO154: 2.141334573 | AP154: 2.141334573 | AQ154: 2.141334573 | AR154: 2.141334573 | AS154: 2.141334573 | AT154: 2.141334573
E155: 2003-03-31 | G155: £m 18/19 prices | I155: 86.88380966 | J155: > | X155: =$I155 * X$133 -> 0 | Y155: 0 | Z155: 0 | AA155: 0 | AB155: 0 | AC155: 0 | AD155: 0 | AE155: 1.737676193 | AF155: 1.737676193 | AG155: 1.737676193 | AH155: 1.737676193 | AI155: 1.737676193 | AJ155: 1.737676193 | AK155: 1.737676193 | AL155: 1.737676193 | AM155: 1.737676193 | AN155: 1.737676193 | AO155: 1.737676193 | AP155: 1.737676193 | AQ155: 1.737676193 | AR155: 1.737676193 | AS155: 1.737676193 | AT155: 1.737676193
E156: 2004-03-31 | G156: £m 18/19 prices | I156: 10.19335325 | J156: > | Y156: =$I156 * Y$133 -> 0 | Z156: 0 | AA156: 0 | AB156: 0 | AC156: 0 | AD156: 0 | AE156: 0.203867065 | AF156: 0.203867065 | AG156: 0.203867065 | AH156: 0.203867065 | AI156: 0.203867065 | AJ156: 0.203867065 | AK156: 0.203867065 | AL156: 0.203867065 | AM156: 0.203867065 | AN156: 0.203867065 | AO156: 0.203867065 | AP156: 0.203867065 | AQ156: 0.203867065 | AR156: 0.203867065 | AS156: 0.203867065 | AT156: 0.203867065
E157: 2005-03-31 | G157: £m 18/19 prices | I157: 69.36019468 | J157: > | Z157: =$I157 * Z$133 -> 0 | AA157: 0 | AB157: 0 | AC157: 0 | AD157: 0 | AE157: 1.387203894 | AF157: 1.387203894 | AG157: 1.387203894 | AH157: 1.387203894 | AI157: 1.387203894 | AJ157: 1.387203894 | AK157: 1.387203894 | AL157: 1.387203894 | AM157: 1.387203894 | AN157: 1.387203894 | AO157: 1.387203894 | AP157: 1.387203894 | AQ157: 1.387203894 | AR157: 1.387203894 | AS157: 1.387203894 | AT157: 1.387203894
E158: 2006-03-31 | G158: £m 18/19 prices | I158: 76.2043947 | J158: > | AA158: =$I158 * AA$133 -> 0 | AB158: 0 | AC158: 0 | AD158: 0 | AE158: 1.524087894 | AF158: 1.524087894 | AG158: 1.524087894 | AH158: 1.524087894 | AI158: 1.524087894 | AJ158: 1.524087894 | AK158: 1.524087894 | AL158: 1.524087894 | AM158: 1.524087894 | AN158: 1.524087894 | AO158: 1.524087894 | AP158: 1.524087894 | AQ158: 1.524087894 | AR158: 1.524087894 | AS158: 1.524087894 | AT158: 1.524087894
E159: 2007-03-31 | G159: £m 18/19 prices | I159: 54.8182863 | J159: > | AB159: =$I159 * AB$133 -> 0 | AC159: 0 | AD159: 0 | AE159: 1.096365726 | AF159: 1.096365726 | AG159: 1.096365726 | AH159: 1.096365726 | AI159: 1.096365726 | AJ159: 1.096365726 | AK159: 1.096365726 | AL159: 1.096365726 | AM159: 1.096365726 | AN159: 1.096365726 | AO159: 1.096365726 | AP159: 1.096365726 | AQ159: 1.096365726 | AR159: 1.096365726 | AS159: 1.096365726 | AT159: 1.096365726
E160: 2008-03-31 | G160: £m 18/19 prices | I160: 45.69802761 | J160: > | AC160: =$I160 * AC$133 -> 0 | AD160: 0 | AE160: 0.9139605522 | AF160: 0.9139605522 | AG160: 0.9139605522 | AH160: 0.9139605522 | AI160: 0.9139605522 | AJ160: 0.9139605522 | AK160: 0.9139605522 | AL160: 0.9139605522 | AM160: 0.9139605522 | AN160: 0.9139605522 | AO160: 0.9139605522 | AP160: 0.9139605522 | AQ160: 0.9139605522 | AR160: 0.9139605522 | AS160: 0.9139605522 | AT160: 0.9139605522
E161: 2009-03-31 | G161: £m 18/19 prices | I161: 21.8303053 | J161: > | AD161: =$I161 * AD$133 -> 0 | AE161: 0.436606106 | AF161: 0.436606106 | AG161: 0.436606106 | AH161: 0.436606106 | AI161: 0.436606106 | AJ161: 0.436606106 | AK161: 0.436606106 | AL161: 0.436606106 | AM161: 0.436606106 | AN161: 0.436606106 | AO161: 0.436606106 | AP161: 0.436606106 | AQ161: 0.436606106 | AR161: 0.436606106 | AS161: 0.436606106 | AT161: 0.436606106
E162: 2010-03-31 | G162: £m 18/19 prices | I162: 0 | J162: > | AE162: =$I162 * AE$133 -> 0 | AF162: 0 | AG162: 0 | AH162: 0 | AI162: 0 | AJ162: 0 | AK162: 0 | AL162: 0 | AM162: 0 | AN162: 0 | AO162: 0 | AP162: 0 | AQ162: 0 | AR162: 0 | AS162: 0 | AT162: 0
E163: 2011-03-31 | G163: £m 18/19 prices | I163: 0 | J163: > | AF163: =$I163 * AF$133 -> 0 | AG163: 0 | AH163: 0 | AI163: 0 | AJ163: 0 | AK163: 0 | AL163: 0 | AM163: 0 | AN163: 0 | AO163: 0 | AP163: 0 | AQ163: 0 | AR163: 0 | AS163: 0 | AT163: 0
E164: 2012-03-31 | G164: £m 18/19 prices | I164: 0 | J164: > | AG164: =$I164 * AG$133 -> 0 | AH164: 0 | AI164: 0 | AJ164: 0 | AK164: 0 | AL164: 0 | AM164: 0 | AN164: 0 | AO164: 0 | AP164: 0 | AQ164: 0 | AR164: 0 | AS164: 0 | AT164: 0
E165: 2013-03-31 | G165: £m 18/19 prices | I165: 0 | AH165: =$I165 * AH$133 -> 0 | AI165: 0 | AJ165: 0 | AK165: 0 | AL165: 0 | AM165: 0 | AN165: 0 | AO165: 0 | AP165: 0 | AQ165: 0 | AR165: 0 | AS165: 0 | AT165: 0
E166: 2014-03-31 | G166: £m 18/19 prices | I166: 0 | AI166: =$I166 * AI$133 -> 0 | AJ166: 0 | AK166: 0 | AL166: 0 | AM166: 0 | AN166: 0 | AO166: 0 | AP166: 0 | AQ166: 0 | AR166: 0 | AS166: 0 | AT166: 0
E167: 2015-03-31 | G167: £m 18/19 prices | I167: 0 | AJ167: =$I167 * AJ$133 -> 0 | AK167: 0 | AL167: 0 | AM167: 0 | AN167: 0 | AO167: 0 | AP167: 0 | AQ167: 0 | AR167: 0 | AS167: 0 | AT167: 0
E168: 2016-03-31 | G168: £m 18/19 prices | I168: 0 | AK168: =$I168 * AK$133 -> 0 | AL168: 0 | AM168: 0 | AN168: 0 | AO168: 0 | AP168: 0 | AQ168: 0 | AR168: 0 | AS168: 0 | AT168: 0
E169: 2017-03-31 | G169: £m 18/19 prices | I169: 0 | AL169: =$I169 * AL$133 -> 0 | AM169: =$I169 * AM$133 -> 0 | AN169: 0 | AO169: 0 | AP169: 0 | AQ169: 0 | AR169: 0 | AS169: 0 | AT169: 0
E170: 2018-03-31 | G170: £m 18/19 prices | I170: 0 | AM170: =$I170 * AM$133 -> 0 | AN170: 0 | AO170: 0 | AP170: 0 | AQ170: 0 | AR170: 0 | AS170: 0 | AT170: 0
E171: 2019-03-31 | G171: £m 18/19 prices | I171: 0 | AN171: =$I171 * AN$133 -> 0 | AO171: =$I171 * AO$133 -> 0 | AP171: 0 | AQ171: 0 | AR171: 0 | AS171: 0 | AT171: 0
E172: 2020-03-31 | G172: £m 18/19 prices | I172: 0 | AO172: =$I172 * AO$133 -> 0 | AP172: 0 | AQ172: 0 | AR172: 0 | AS172: 0 | AT172: 0
E173: 2021-03-31 | G173: £m 18/19 prices | I173: 0 | AP173: =$I173 * AP$133 -> 0 | AQ173: 0 | AR173: 0 | AS173: 0 | AT173: 0
E174: 2022-03-31 | G174: £m 18/19 prices | I174: 0 | AQ174: =$I174 * AQ$133 -> 0 | AR174: 0 | AS174: 0 | AT174: 0
E175: 2023-03-31 | G175: £m 18/19 prices | I175: 0 | AR175: =$I175 * AR$133 -> 0 | AS175: 0 | AT175: 0
E176: 2024-03-31 | G176: £m 18/19 prices | I176: 0 | AS176: =$I176 * AS$133 -> 0 | AT176: 0
E177: 2025-03-31 | G177: £m 18/19 prices | I177: 0 | AT177: =$I177 * AT$133 -> 0
E178: 2026-03-31 | G178: £m 18/19 prices | I178: 0
C180: Depreciation values applied
C181: Note: Before vesting assets are fully depreciated, regulatory depreciation is just non-accelerated depreciation. Afterwards it is accelerated depreciation plus any smoothed RAV differential value available.
E183: Depreciation allowed on additions from year ending | I183: Net additions
